{"text_format":"1","workbook":"xlsx","n_sheets":10,"sheets":["入力シート","指定登録依頼書①","指定登録依頼書②","指定登録依頼書③","指定解除依頼書①","指定解除依頼書②","指定解除依頼書③","被ばく歴等証明書","記号項目","課室"],"not_rendered":{"charts":0,"images":26,"macros":1,"external_links":0,"defined_names":4,"comments":0,"pivot_tables":0},"unopened":[],"bounds":{"document_bytes":16777216,"sheet_cells":100000,"rows_first":2000,"rows_last":500,"rows_between":2000,"halvings":0,"cell_chars":16384,"cell_head_chars":4096},"cells_cut":0,"cells_raw":0,"read":"whole","date_system":"1900"}

{"sheet":"入力シート","index":0,"n_rows":86,"n_cols":38,"rows_kept":86,"cut":false,"hidden":false,"merged":[[3,37,6,37],[76,4,76,5],[74,23,74,25],[75,23,75,25],[76,23,76,25],[58,20,58,25],[63,8,63,11],[69,8,69,11],[69,12,69,15],[73,1,73,5],[60,23,60,25],[61,23,61,25],[62,23,62,25],[60,6,60,22],[66,6,66,25],[67,6,67,25],[65,1,65,5],[57,6,57,8],[58,1,58,5],[62,4,62,5],[60,4,60,5],[59,1,59,5],[59,20,59,25],[66,1,66,5],[79,1,79,25],[80,1,83,25],[75,4,75,5],[75,6,75,22],[77,6,77,8],[77,9,77,10],[77,12,77,14],[77,1,77,5],[74,1,76,3],[74,4,74,5],[77,16,77,18],[74,6,74,22],[76,6,76,22],[77,20,77,25],[69,6,69,7],[64,6,64,25],[58,16,58,18],[64,1,64,5],[65,6,65,25],[57,1,57,5],[63,6,63,7],[53,1,53,5],[50,4,50,5],[69,16,69,25],[50,6,50,25],[59,12,59,14],[56,1,56,5],[59,6,59,8],[59,9,59,10],[54,1,54,5],[45,16,45,25],[54,6,54,25],[41,20,41,25],[41,12,41,14],[44,12,44,14],[41,16,41,18],[44,6,44,8],[49,6,49,25],[45,12,45,15],[43,1,43,25],[49,1,50,3],[48,12,48,14],[41,6,41,8],[41,9,41,10],[48,16,48,18],[29,1,33,3],[29,4,29,5],[34,3,34,5],[37,1,37,5],[36,1,36,5],[44,9,44,10],[45,6,45,7],[48,9,48,10],[44,1,44,5],[45,8,45,11],[25,23,25,25],[30,10,30,22],[24,23,24,25],[23,9,23,10],[40,20,40,25],[40,16,40,18],[26,23,26,25],[40,9,40,10],[32,23,32,25],[32,11,32,13],[34,6,34,22],[40,12,40,14],[35,8,35,11],[31,23,31,25],[40,6,40,8],[70,6,70,7],[70,8,70,11],[70,12,70,15],[68,6,68,25],[27,6,27,8],[29,6,29,11],[26,6,26,8],[27,9,27,10],[35,12,35,15],[35,16,35,25],[31,6,31,9],[28,6,28,8],[35,6,35,7],[28,13,28,22],[26,9,26,10],[26,13,26,22],[28,11,28,12],[28,23,28,25],[27,13,27,22],[27,23,27,25],[29,12,29,14],[30,23,30,25],[29,23,29,25],[36,6,36,25],[11,1,11,5],[13,1,13,25],[21,1,22,5],[23,1,24,5],[24,7,24,12],[35,3,35,5],[34,1,35,2],[31,10,31,22],[33,10,33,22],[30,4,33,5],[25,1,28,3],[23,6,23,8],[27,4,27,5],[24,18,24,22],[23,13,23,22],[25,13,25,22],[22,18,22,22],[23,23,23,25],[26,11,26,12],[32,15,32,22],[22,23,22,25],[18,23,18,25],[32,6,32,9],[30,6,30,9],[8,1,8,5],[9,1,9,5],[10,1,10,5],[21,11,21,12],[16,6,16,8],[16,10,16,13],[14,6,14,25],[26,4,26,5],[16,14,16,25],[18,1,18,5],[17,6,17,25],[14,1,14,5],[15,1,15,5],[24,13,24,16],[23,11,23,12],[16,4,16,5],[16,1,17,3],[18,6,18,9],[18,11,18,14],[18,16,18,22],[17,4,17,5],[8,16,8,18],[8,20,8,25],[8,6,8,8],[7,16,7,25],[7,1,7,5],[7,6,7,7],[7,8,7,11],[7,12,7,15],[3,1,3,25],[4,15,4,25],[1,1,1,25],[5,6,5,7],[5,8,5,15],[5,16,5,17],[5,18,5,25],[4,1,4,5],[5,1,6,3],[6,4,6,5],[5,4,5,5],[6,6,6,25],[10,12,10,15],[8,9,8,10],[8,12,8,14],[10,8,10,11],[10,6,10,7],[9,12,9,25],[1,26,2,30],[61,4,61,5],[20,1,20,25],[44,16,44,18],[37,6,37,25],[11,12,11,15],[45,1,45,5],[53,19,53,22],[49,4,49,5],[44,20,44,25],[11,6,11,7],[11,8,11,11],[41,1,41,5],[40,1,40,5],[39,1,39,25],[21,6,21,8],[22,7,22,11],[15,6,15,25],[88,6,92,14],[47,1,47,25],[48,1,48,5],[48,6,48,8],[63,1,63,5],[55,1,55,5],[62,6,62,22],[59,16,59,18],[48,20,48,25],[58,9,58,10],[58,12,58,14],[53,6,53,18],[57,16,57,18],[57,12,57,14],[56,6,56,25],[57,9,57,10],[57,20,57,25],[55,6,55,25],[67,1,67,5],[68,1,68,5],[69,1,69,5],[70,1,70,5],[70,16,70,25],[72,1,72,25],[43,37,48,37],[10,16,11,25],[85,6,87,14],[52,1,52,25],[63,20,63,25],[61,6,61,22],[60,1,62,3],[63,12,63,15],[63,16,63,19],[58,6,58,8],[21,23,21,25],[21,13,21,22],[22,13,22,16],[29,18,29,22],[34,23,34,25],[33,23,33,25],[25,4,25,5],[28,4,28,5],[27,11,27,12],[28,9,28,10],[25,6,25,8],[25,9,25,10],[25,11,25,12],[21,9,21,10]]}
[1]
[null,"■指定登録依頼書"]
[]
[null,"■作業者記入欄",null,null,null,null,null,null,null,null,null,null,null,null,null,null,null,null,null,null,null,null,null,null,null,null,1,null,null,null,null,null,null,null,null,null,null," 注意\n\n   従事者指定は1事業所1指定（日にち単位）です。\n   従事者指定解除した日に、同事業所で従事者指定することは\n   出来ません。"]
[null,"中央登録番号",null,null,null,null,null,null,"-",null,null,null,null,null,null,"中央登録番号が無い方は入力不要"]
[null,"氏名",null,null,"フリガナ",null,"（姓）",null,null,null,null,null,null,null,null,null,"（名）"]
[null,null,null,null,"漢字"]
[null,"性別",null,null,null,null,null,null,null,null,null,null,null,null,null,null,null,null,null,null,null,null,null,null,null,null,false,false,null,null,null,null,null,null,null,{"$f":"IF(AJ58=\"\",\"\",AJ58)","v":""}]
[null,"生年月日",null,null,null,null,null,null,null,null,null,"年",null,null,null,"月",null,null,null,"日",null,null,null,null,null,null,null,null,null,null,null,null,{"$f":"IF(AA9=\"平成\",AB9+1988,IF(AA9=\"昭和\",AB9+1925,AB9))","v":0},{"$f":"AC9","v":0},{"$f":"AD9","v":0},{"$f":"IF(AA9=\"\",\"\",DATE(AG9,AH9,AI9))","v":""}]
[null,"職員番号",null,null,null,null,null,null,null,null,null,null,"職員等のみ入力して下さい",null,null,null,null,null,null,null,null,null,null,null,null,null,null,null,null,null,null,null,null,null,null,{"$f":"IF(AI9=\"\",\"\",DATEDIF(AJ9,AJ8,\"y\"))","v":{"$error":"#VALUE!"}}]
[null,"国籍",null,null,null,null,null,null,null,null,null,null,null,null,null,null,"学生はここにチェックを入れてください\n\n",null,null,null,null,null,null,null,null,null,false,false,null,null,null,null,null,null,null,{"$f":"IF(OR(AJ9=\"\",AJ8=\"\"),TRUE,IF(AJ10>=18,TRUE,FALSE))","v":true}]
[null,"放管手帳",null,null,null,null,null,null,null,null,null,null,null,null,null,null,null,null,null,null,null,null,null,null,null,null,false,false,false]
[]
[null,"■会社等（外来者）"]
[null,"所属会社名（全角30文字）",null,null,null,null,null,null,null,null,null,null,null,null,null,null,null,null,null,null,null,null,null,null,null,null,null,null,null,null,null,null,null,null,null,null,null,"機構との契約先である会社又は大学等"]
[null,"事業所等（全角30文字）"]
[null,"住所",null,null,"郵便番号",null,null,null,null,"-"]
[null,null,null,null,"住所"]
[null,"TEL",null,null,null,null,null,null,null,null,"(",null,null,null,null,")"]
[]
[null,"■被ばく前歴（該当無しは空白）※数字以外の文字を入れると印刷出来ません"]
[null,"昭和63年度以前の\n集積線量",null,null,null,null,"昭和",null,null,null,null,"年度",null,null,null,null,null,null,null,null,null,null,null,"[mrem]"]
[null,null,null,null,null,null,null,"～昭和63年度",null,null,null,null,null,null,null,null,null,"（",null,null,null,null,null,"X )",null,null,{"$f":"N22","v":0}]
[null,"平成元年度以後の\n実効線量",null,null,null,null,"平成",null,null,null,null,"年度",null,null,null,null,null,null,null,null,null,null,null,"[mSv]"]
[null,null,null,null,null,null,null,"～前年度",null,null,null,null,null,null,null,null,null,"（",null,null,null,null,null,"X )",null,null,{"$f":"N24","v":0}]
[null,"前年度までの\n過去4年間の\n実効線量",null,null,"年１：線量",null,"平成",null,null,null,null,"年度",null,null,null,null,null,null,null,null,null,null,null,"[mSv]",null,null,{"$f":"N26","v":0},null,null,null,null,null,"年",{"$f":"SUM(AA30)","v":0},null,{"$f":"IF(AH26<50,TRUE,FALSE)","v":true}]
[null,null,null,null,"年２：線量",null,"平成",null,null,null,null,"年度",null,null,null,null,null,null,null,null,null,null,null,"[mSv]",null,null,{"$f":"N27","v":0},null,null,null,null,null,"５年",{"$f":"SUM(AA26:AA29,G30)","v":0},null,{"$f":"IF(AH27<100,TRUE,FALSE)","v":true}]
[null,null,null,null,"年３：線量",null,"平成",null,null,null,null,"年度",null,null,null,null,null,null,null,null,null,null,null,"[mSv]",null,null,{"$f":"N28","v":0}]
[null,null,null,null,"年４：線量",null,"平成",null,null,null,null,"年度",null,null,null,null,null,null,null,null,null,null,null,"[mSv]",null,null,0]
[null,"今年度の集計",null,null,"実効線量",null,null,null,null,null,null,null,"[mSv]",null,null,null,null,"（",null,null,null,null,null,"X )",null,null,{"$f":"G30","v":0}]
[null,null,null,null,"等価線量",null,"皮膚",null,null,null,null,null,null,null,null,null,null,null,null,null,null,null,null,"[mSv]"]
[null,null,null,null,null,null,"眼の水晶体",null,null,null,null,null,null,null,null,null,null,null,null,null,null,null,null,"[mSv]"]
[null,null,null,null,null,null,"その他",null,null,null,"（",null,null,null,"）",null,null,null,null,null,null,null,null,"[mSv]"]
[]
[null,"女子\nのみ",null,"今四半期の集計",null,null,null,null,null,null,null,null,null,null,null,null,null,null,null,null,null,null,null,"[mSv]"]
[null,null,null,"別添の有無",null,null,null,null,null,null,null,null,null,null,null,null,null,null,null,null,null,null,null,null,null,null,false,false]
[null,"これまでの主な作業事業所\n（全角30文字）"]
[null,"これまでの主な作業内容"]
[]
[null,"■教育訓練歴",null,null,null,null,null,null,null,null,null,null,null,null,null,null,null,null,null,null,null,null,null,null,null,null,null,null,null,null,null,null,null,null,"指定1年前",{"$f":"IF(AB41=\"\",\"\",EDATE(AJ58,-12))","v":""}]
[null,"保安教育訓練実施日",null,null,null,null,"平成",null,null,null,null,"年",null,null,null,"月",null,null,null,"日",null,null,null,null,null,null,null,"","","",null,null,{"$f":"AB41+1988","v":{"$error":"#VALUE!"}},{"$f":"AC41","v":""},{"$f":"AD41","v":""},{"$f":"IF(AB41=\"\",\"\",DATE(AG41,AH41,AI41))","v":""},{"$f":"IF(AF40=TRUE,\"\",IF(AF41>=1,\"指定日までに1年を経過しています。教育訓練実施日を確認して下さい。\",\"\"))","v":""}]
[null,"特別教育実施日",null,null,null,null,"平成",null,null,null,null,"年",null,null,null,"月",null,null,null,"日",null,null,null,null,null,null,null,null,null,null,null,null,{"$f":"AB42+1988","v":1988},{"$f":"AC42","v":0},{"$f":"AD42","v":0},{"$f":"IF(AB42=\"\",\"\",DATE(AG42,AH42,AI42))","v":""}]
[null,null,null,null,null,null,null,null,null,null,null,null,null,null,null,null,null,null,null,null,null,null,null,null,null,null,null,null,null,null,null,null,null,null,null,{"$f":"IF(AB41=\"\",\"\",IF(AJ41>AJ40,TRUE,FALSE))","v":""}]
[null,"■特殊健康診断歴",null,null,null,null,null,null,null,null,null,null,null,null,null,null,null,null,null,null,null,null,null,null,null,null,null,null,null,null,null,null,null,null,null,{"$f":"IF(AB42=\"\",FALSE,TRUE)","v":false},null,"特殊健康診断の受診日が指定前６月以内であること。\n（学生の場合は１年以内）\n\n特殊健康診断結果を確認して下さい。\n放射線障害防止法及び電離放射線障害防止規則に基づき放射線業務従事者を対象に実施される健康診断であり、一般の健康診断とは異なることに注意。"]
[null,"実施年月日",null,null,null,null,"平成",null,null,null,null,"年",null,null,null,"月",null,null,null,"日",null,null,null,null,null,null,null,"","","",null,null,{"$f":"AB45+1988","v":{"$error":"#VALUE!"}},{"$f":"AC45","v":""},{"$f":"AD45","v":""},{"$f":"IF(AB45=\"\",\"\",DATE(AG45,AH45,AI45))","v":""}]
[null,"結果",null,null,null,null,null,null,null,null,null,null,null,null,null,null,null,null,null,null,null,null,null,null,null,null,false,false,null,null,null,null,"6ヶ月後",null,null,{"$f":"IF(AB45=\"\",\"\",EDATE(AJ45,6))","v":""}]
[null,null,null,null,null,null,null,null,null,null,null,null,null,null,null,null,null,null,null,null,null,null,null,null,null,null,null,null,null,null,null,null,"1年後",null,null,{"$f":"IF(AB45=\"\",\"\",EDATE(AJ45,12))","v":""}]
[null,"■身分確認",null,null,null,null,null,null,null,null,null,null,null,null,null,null,null,null,null,null,null,null,null,null,null,null,null,null,null,null,null,null,"指定",null,null,{"$f":"IF(OR(AB45=\"\",AB58=\"\"),\"\",IF(AJ58<$AJ$46,TRUE,FALSE))","v":""}]
[null,"実施年月日",null,null,null,null,"平成",null,null,null,null,"年",null,null,null,"月",null,null,null,"日",null,null,null,null,null,null,null,null,null,null,null,null,"指定解除",null,null,{"$f":"IF(AND(AB45=\"\",AB59=\"\"),\"\",IF(AND(AJ48=TRUE,AB59=\"\"),TRUE,IF(AJ59<$AJ$46,TRUE,FALSE)))","v":""}]
[null,"確認書類の写しが得られない場合",null,null,"書類名",null,null,null,null,null,null,null,null,null,null,null,null,null,null,null,null,null,null,null,null,null,null,null,null,null,null,null,"指定(学)",null,null,{"$f":"IF(OR(AB45=\"\",AB58=\"\"),\"\",IF(AJ58<$AJ$47,TRUE,FALSE))","v":""}]
[null,null,null,null,"番号等",null,null,null,null,null,null,null,null,null,null,null,null,null,null,null,null,null,null,null,null,null,null,null,null,null,null,null,"指定解除(学)",null,null,{"$f":"IF(AND(AB45=\"\",AB59=\"\"),\"\",IF(AND(AJ50=TRUE,AB59=\"\"),TRUE,IF(AJ59<$AJ$47,TRUE,FALSE)))","v":""}]
[]
[null,"■作業担当課室"]
[null,"拠点名"]
[null,"部課室名"]
[null,"担当者"]
[null,"TEL"]
[null,"指定年月日",null,null,null,null,"平成",null,null,null,null,"年",null,null,null,"月",null,null,null,"日",null,null,null,null,null,null,null,"","","",null,null,{"$f":"AB58+1988","v":{"$error":"#VALUE!"}},{"$f":"AC58","v":""},{"$f":"AD58","v":""},{"$f":"IF(AB58=\"\",\"\",DATE(AG58,AH58,AI58))","v":""}]
[null,"指定解除予定年月日",null,null,null,null,"平成",null,null,null,null,"年",null,null,null,"月",null,null,null,"日",null,null,null,null,null,null,null,null,null,null,null,null,{"$f":"AB59+1988","v":1988},{"$f":"AC59","v":0},{"$f":"AD59","v":0},{"$f":"IF(AB59=\"\",\"\",DATE(AG59,AH59,AI59))","v":""}]
[null,"指定解除年月日",null,null,null,null,null,null,null,null,null,"年",null,null,null,"月",null,null,null,"日"]
[null,"推定線量",null,null,"γ",null,null,null,null,null,null,null,null,null,null,null,null,null,null,null,null,null,null,"[mSv]"]
[null,null,null,null,"n",null,null,null,null,null,null,null,null,null,null,null,null,null,null,null,null,null,null,"[mSv]"]
[null,null,null,null,"β",null,null,null,null,null,null,null,null,null,null,null,null,null,null,null,null,null,null,"[mSv]"]
[null,"推定方法"]
[null,"作業場所",null,null,null,null,null,null,null,null,null,null,null,null,null,null,null,null,null,null,null,null,null,null,null,null,{"$error":"#N/A"}]
[null,"作業内容（全角30文字）"]
[null,"作業種類",null,null,null,null,null,null,null,null,null,null,null,null,null,null,null,null,null,null,null,null,null,null,null,null,{"$error":"#N/A"}]
[null,"作業者区分",null,null,null,null,null,null,null,null,null,null,null,null,null,null,null,null,null,null,null,null,null,null,null,null,{"$error":"#N/A"}]
[null,"放射線発生源",null,null,null,null,null,null,null,null,null,null,null,null,null,null,null,null,null,null,null,null,null,null,null,null,{"$error":"#N/A"}]
[null,"中性子線量計",null,null,null,null,null,null,null,null,null,null,null,null,null,null,null,null,null,null,null,null,null,null,null,null,false,false]
[null,"内部被ばく入域検査",null,null,null,null,null,null,null,null,null,null,null,null,null,null,null,null,null,null,null,null,null,null,null,null,false,false]
[]
[null,"■被ばく管理担当課記入欄"]
[null,"バッジ番号"]
[null,"測定線量",null,null,"γ",null,null,null,null,null,null,null,null,null,null,null,null,null,null,null,null,null,null,"[mSv]"]
[null,null,null,null,"n",null,null,null,null,null,null,null,null,null,null,null,null,null,null,null,null,null,null,"[mSv]"]
[null,null,null,null,"β",null,null,null,null,null,null,null,null,null,null,null,null,null,null,null,null,null,null,"[mSv]"]
[null,"測定年月日",null,null,null,null,null,null,null,null,null,"年",null,null,null,"月",null,null,null,"日"]
[]
[null,"●印刷対象（解除依頼書は解除時でも作成が可能です。）"]
[]
[]
[]
[]
[]
[null,null,null,null,null,null,"※［印刷プレビュー］ボタンを\nクリックすると、一枚目の\n印刷プレビューを表示します。"]

{"sheet":"指定登録依頼書①","index":1,"n_rows":46,"n_cols":89,"rows_kept":46,"cut":false,"hidden":false,"merged":[[14,74,15,83],[17,79,18,83],[19,81,20,81],[13,48,13,73],[16,68,16,73],[10,62,10,63],[10,57,11,58],[7,48,8,64],[3,65,3,72],[6,48,6,64],[6,65,6,73],[4,48,5,73],[10,51,11,52],[10,49,11,50],[10,64,10,65],[10,59,11,59],[10,53,11,53],[10,54,11,55],[10,56,11,56],[16,48,16,67],[17,48,20,67],[19,74,20,78],[10,67,10,68],[10,70,10,71],[37,0,44,1],[37,15,44,16],[37,17,37,29],[41,17,41,29],[43,8,43,9],[41,2,41,14],[39,8,39,9],[39,11,39,12],[37,2,37,14],[43,11,43,12],[43,5,43,6],[43,3,43,4],[39,5,39,6],[39,3,39,4],[39,18,39,19],[43,18,43,22],[39,20,39,21],[32,33,33,36],[31,9,32,9],[28,16,28,18],[18,68,20,73],[33,16,33,18],[32,16,32,18],[34,2,34,32],[31,3,32,6],[29,6,30,8],[24,9,25,15],[26,39,27,45],[26,46,27,47],[0,2,0,35],[1,2,1,35],[2,0,2,47],[3,0,3,17],[3,18,3,22],[3,36,3,47],[3,23,3,35],[6,29,6,30],[30,16,30,18],[12,18,12,22],[11,24,11,28],[11,30,11,34],[6,32,6,33],[6,24,6,27],[27,16,27,18],[28,28,29,32],[30,24,31,25],[30,28,31,32],[29,16,29,18],[30,20,31,23],[4,44,6,45],[4,46,6,47],[20,0,22,1],[23,0,23,1],[42,32,43,34],[11,0,12,17],[7,19,7,21],[4,0,6,1],[7,0,7,17],[4,2,6,3],[4,8,6,9],[4,10,6,11],[4,12,6,13],[4,14,6,15],[4,4,6,5],[4,6,6,7],[26,2,26,3],[26,26,27,32],[19,32,19,35],[9,23,9,35],[8,0,9,17],[10,0,10,17],[13,1,15,46],[10,18,10,22],[19,10,19,13],[19,2,19,4],[16,0,19,1],[9,18,9,22],[4,42,6,43],[4,36,6,37],[5,19,5,21],[4,16,6,17],[4,38,6,39],[4,40,6,41],[26,33,26,36],[24,0,36,1],[28,24,29,25],[29,13,30,15],[24,17,25,24],[31,2,32,2],[31,7,32,8],[27,2,27,8],[29,9,30,12],[27,9,27,15],[26,4,26,5],[26,11,26,12],[26,6,26,7],[28,20,29,23],[26,16,26,18],[31,10,32,13],[32,20,33,23],[26,20,27,23],[44,32,44,34],[44,35,44,44],[42,35,43,44],[28,33,29,36],[30,33,31,36],[35,2,36,32],[31,16,31,18],[32,24,33,25],[29,2,30,5],[31,14,32,15],[43,24,43,28],[39,23,39,24],[39,26,39,27],[28,40,31,46],[41,32,41,44],[39,45,44,61],[28,37,29,38],[30,37,31,38],[37,30,44,31],[37,32,37,44],[39,33,39,34],[39,35,39,36],[39,38,39,39],[39,41,39,42],[14,48,15,73],[25,54,36,59],[7,37,12,46],[21,60,21,73],[19,44,19,47],[19,36,19,38],[24,27,25,37],[9,61,9,73],[9,48,9,60],[17,68,17,73],[7,65,8,73],[17,2,18,47],[26,24,27,25],[19,40,19,42],[33,29,33,31],[32,28,32,32],[27,37,27,38],[27,34,27,36],[26,37,26,38],[16,2,16,47],[19,6,19,8],[32,37,33,38],[34,33,34,47],[35,33,36,47],[45,0,45,83],[2,48,2,83],[4,78,4,79],[4,81,4,83],[7,81,7,83],[34,61,36,82],[13,74,13,83],[16,74,16,83],[6,74,8,77],[3,74,5,77],[7,78,7,79],[21,74,21,83],[22,74,23,75],[22,78,23,79],[19,79,20,80],[19,82,20,83],[22,76,23,77],[22,80,23,81],[17,74,18,78],[25,67,33,73],[39,62,39,71],[24,2,25,8],[26,13,26,14],[26,9,26,10],[42,72,42,73],[40,74,40,78],[40,79,40,83],[40,62,40,66],[22,82,23,83],[25,74,33,83],[38,46,38,60],[21,48,21,59],[22,48,23,59],[40,67,40,71],[39,74,39,83],[22,60,23,73],[24,74,24,83],[25,60,33,66],[25,48,36,53],[20,2,23,47],[24,39,25,47],[24,48,24,59],[24,60,24,73],[32,45,33,46],[32,39,33,41],[32,42,33,43],[32,44,33,44],[28,26,33,27]]}
[null,null,"指　定　登　録　依　頼　書　①"]
[null,null,"作業者→作業担当課室→被ばく管理担当課"]
["作　業　者　記　入　欄",null,null,null,null,null,null,null,null,null,null,null,null,null,null,null,null,null,null,null,null,null,null,null,null,null,null,null,null,null,null,null,null,null,null,null,null,null,null,null,null,null,null,null,null,null,null,null,"作  業  担  当  課  室  記  入  欄"]
["中　央　登　録　番　号",null,null,null,null,null,null,null,null,null,null,null,null,null,null,null,null,null,"放管手帳",null,null,null,null,"生年月日（Date of Birth）",null,null,null,null,null,null,null,null,null,null,null,null,"職員番号(職員等のみ)",null,null,null,null,null,null,null,null,null,null,null,"作業担当部課室(職員等は所属部課室)",null,null,null,null,null,null,null,null,null,null,null,null,null,null,null,null,{"$f":"IF((入力シート!AA55)=\"\",\"\",入力シート!AA55)","v":""},null,null,null,null,null,null,null,null,"中性子\n線量計"]
[{"$f":"\"\" & 入力シート!G5","v":""},null,{"$f":"\"\"&入力シート!H5","v":""},null,"-",null,{"$f":"\"\" & 入力シート!J5","v":""},null,{"$f":"\"\" & 入力シート!K5","v":""},null,{"$f":"\"\" & 入力シート!L5","v":""},null,{"$f":"\"\" & 入力シート!M5","v":""},null,{"$f":"\"\" & 入力シート!N5","v":""},null,{"$f":"\"\" & 入力シート!O5","v":""},null,null,null,null,null,null,null,null,null,null,null,null,null,null,null,null,null,null,null,{"$f":"IF((入力シート!G10)=\"\",\"\",IF(入力シート!AA10,\"\",TEXT(入力シート!G10,0)))","v":""},null,{"$f":"IF((入力シート!H10)=\"\",\"\",IF(入力シート!AA10,\"\",TEXT(入力シート!H10,0)))","v":""},null,{"$f":"IF((入力シート!I10)=\"\",\"\",IF(入力シート!AA10,\"\",TEXT(入力シート!I10,0)))","v":""},null,{"$f":"IF((入力シート!J10)=\"\",\"\",IF(入力シート!AA10,\"\",TEXT(入力シート!J10,0)))","v":""},null,{"$f":"IF((入力シート!K10)=\"\",\"\",IF(入力シート!AA10,\"\",TEXT(入力シート!K10,0)))","v":""},null,{"$f":"IF((入力シート!L10)=\"\",\"\",IF(入力シート!AA10,\"\",TEXT(入力シート!L10,0)))","v":""},null,{"$f":"IF(ISNA(入力シート!AB55),\"\",\"\" & 入力シート!AB55)","v":""},null,null,null,null,null,null,null,null,null,null,null,null,null,null,null,null,null,null,null,null,null,null,null,null,null,null,null,null,null,{"$f":"IF(入力シート!AA70,\"■\",\"□\") & \"要\"","v":"□要"},null,"・",{"$f":"IF(入力シート!AB70,\"■\",\"□\") & \"不要\"","v":"□不要"}]
[null,null,null,null,null,null,null,null,null,null,null,null,null,null,null,null,null,null,null,{"$f":"IF(入力シート!AA12,\"■\",\"□\") & \" 有\"","v":"□ 有"}]
[null,null,null,null,null,null,null,null,null,null,null,null,null,null,null,null,null,null,null,null,"・",null,null,null,{"$f":"IF(入力シート!AA9=\"西暦\",\"\",入力シート!AA9)  & 入力シート!AB9 & \"\"","v":""},null,null,null,"年",{"$f":"入力シート!AC9 & \"\"","v":""},null,"月",{"$f":"入力シート!AD9 & \"\"","v":""},null,"日",null,null,null,null,null,null,null,null,null,null,null,null,null,"担当者",null,null,null,null,null,null,null,null,null,null,null,null,null,null,null,null,"TEL",null,null,null,null,null,null,null,null,"内部被ばく\n入域検査"]
["フリガナ（姓名間は空白）",null,null,null,null,null,null,null,null,null,null,null,null,null,null,null,null,null,null,{"$f":"IF(入力シート!AB12,\"■\",\"□\") & \" 無\"","v":"□ 無"},null,null,null,null,null,null,null,null,null,null,null,null,null,null,null,null,null,"　放射線管理手帳を所持していない職員等は、手帳用顔写真(縦 3cm、横 2.4cm：被ばく管理担当課で撮影可)を1枚添付する。",null,null,null,null,null,null,null,null,null,null,{"$f":"入力シート!G56 & \"\"","v":""},null,null,null,null,null,null,null,null,null,null,null,null,null,null,null,null,{"$f":"入力シート!G57 & \"\"","v":""},null,null,null,null,null,null,null,null,null,null,null,null,{"$f":"IF(入力シート!AA71,\"■\",\"□\") & \"要\"","v":"□要"},null,"・",{"$f":"IF(入力シート!AB71,\"■\",\"□\") & \"不要\"","v":"□不要"},null,null,null,null,null,"指定",{"$f":"DATE((AZ11+1988),BC11,BF11)","v":{"$error":"#VALUE!"}}]
[{"$f":"入力シート!I6 & \" \" & 入力シート!S6","v":" "},null,null,null,null,null,null,null,null,null,null,null,null,null,null,null,null,null,null,null,null,null,null,null,null,null,null,null,null,null,null,null,null,null,null,null,null,null,null,null,null,null,null,null,null,null,null,null,null,null,null,null,null,null,null,null,null,null,null,null,null,null,null,null,null,null,null,null,null,null,null,null,null,null,null,null,null,null,null,null,null,null,null,null,null,null,null,"健康",{"$f":"DATE((U40+1988),X40,AA40)","v":{"$error":"#VALUE!"}}]
[null,null,null,null,null,null,null,null,null,null,null,null,null,null,null,null,null,null,"性　別",null,null,null,null,"国籍区分",null,null,null,null,null,null,null,null,null,null,null,null,null,null,null,null,null,null,null,null,null,null,null,null,"指定年月日",null,null,null,null,null,null,null,null,null,null,null,null,"指定解除予定年月日"]
["氏名（Name:Family First Middle）",null,null,null,null,null,null,null,null,null,null,null,null,null,null,null,null,null,{"$f":"IF(入力シート!AA8,\"■\",\"□\") & \" 男（M）\"","v":"□ 男（M）"},null,null,null,null,null,null,null,null,null,null,null,null,null,null,null,null,null,null,null,null,null,null,null,null,null,null,null,null,null,null,{"$f":"入力シート!G58","v":"平成"},null,{"$f":"IF(入力シート!AA58=\"西暦\",\"\",\"\") & 入力シート!AB58 & \"\"","v":""},null,"年",{"$f":"入力シート!AC58 & \"\"","v":""},null,"月",{"$f":"入力シート!AD58 & \"\"","v":""},null,"日",null,null,{"$f":"入力シート!G59","v":"平成"},null,{"$f":"IF(入力シート!AA59=\"西暦\",\"\",\"\") & 入力シート!AB59 & \"\"","v":""},null,"年",{"$f":"入力シート!AC59 & \"\"","v":""},null,"月",{"$f":"入力シート!AD59 & \"\"","v":""},null,"日"]
[{"$f":"入力シート!G7 & \"\"","v":""},null,null,null,null,null,null,null,null,null,null,null,null,null,null,null,null,null,null,null,"・",null,null,null,{"$f":"IF(入力シート!AA11,\"■\",\"□\") & \" 55.日本人\"","v":"□ 55.日本人"},null,null,null,null,null,{"$f":"IF(入力シート!AB11,\"■\",\"□\") & \" 80.外国人\"","v":"□ 80.外国人"}]
[null,null,null,null,null,null,null,null,null,null,null,null,null,null,null,null,null,null,{"$f":"IF(入力シート!AB8,\"■\",\"□\") & \" 女（F）\"","v":"□ 女（F）"}]
[null,"　本依頼書に記載した個人情報は、個人線量管理システム及び放射線従事者中央登録センターへの登録処理が行われ、被ばく前歴の把握などの一元管理に利用されます。登録情報は、個人情報保護法に基づき適切な管理が行われます。また、職員等及び検査官等以外の方は、公的証明書等（運転免許証、パスポート等）により本人確認等が行われ、その写しが保管されます。",null,null,null,null,null,null,null,null,null,null,null,null,null,null,null,null,null,null,null,null,null,null,null,null,null,null,null,null,null,null,null,null,null,null,null,null,null,null,null,null,null,null,null,null,null,null,"作業場所"]
[null,null,null,null,null,null,null,null,null,null,null,null,null,null,null,null,null,null,null,null,null,null,null,null,null,null,null,null,null,null,null,null,null,null,null,null,null,null,null,null,null,null,null,null,null,null,null,null,{"$f":"\"\" & IF(ISNA(入力シート!AB65),\"\",入力シート!AB65) & IF(ISNA(入力シート!AA65),\"\", \".\" & 入力シート!AA65)","v":""}]
[]
["会社等（",null,"会社名（機構との契約先である会社又は大学等）",null,null,null,null,null,null,null,null,null,null,null,null,null,null,null,null,null,null,null,null,null,null,null,null,null,null,null,null,null,null,null,null,null,null,null,null,null,null,null,null,null,null,null,null,null,"作業内容",null,null,null,null,null,null,null,null,null,null,null,null,null,null,null,null,null,null,null,"作業種類",null,null,null,null,null,"被ばく管理担当課記入欄"]
[null,null,{"$f":"入力シート!G15 & \"　\"& 入力シート!G16","v":"　"},null,null,null,null,null,null,null,null,null,null,null,null,null,null,null,null,null,null,null,null,null,null,null,null,null,null,null,null,null,null,null,null,null,null,null,null,null,null,null,null,null,null,null,null,null,{"$f":"入力シート!G66 & \"\"","v":""},null,null,null,null,null,null,null,null,null,null,null,null,null,null,null,null,null,null,null,"（下欄記号）",null,null,null,null,null,"内部被ばく\n検　査　印"]
[null,null,null,null,null,null,null,null,null,null,null,null,null,null,null,null,null,null,null,null,null,null,null,null,null,null,null,null,null,null,null,null,null,null,null,null,null,null,null,null,null,null,null,null,null,null,null,null,null,null,null,null,null,null,null,null,null,null,null,null,null,null,null,null,null,null,null,null,{"$f":"IF(ISNA(入力シート!AA67)=\"\",\"\",IF(ISNA(入力シート!AA67),\"\",入力シート!AA67))","v":""}]
[null,null,"所在地",null,null,"〒",{"$f":"入力シート!G17 & \"\"","v":""},null,null,"-",{"$f":"入力シート!K17 & \"\"","v":""},null,null,null,null,null,null,null,null,null,null,null,null,null,null,null,null,null,null,null,null,null,"電話番号",null,null,null,{"$f":"入力シート!G19 & \"\"","v":""},null,null,"(",{"$f":"入力シート!L19 & \"\"","v":""},null,null,")",{"$f":"入力シート!Q19 & \"\"","v":""},null,null,null,null,null,null,null,null,null,null,null,null,null,null,null,null,null,null,null,null,null,null,null,null,null,null,null,null,null,"検 査 時 間",null,null,null,null,null,null,"："]
["は不要職員等",null,{"$f":"入力シート!G18 & \"\"","v":""}]
[null,null,null,null,null,null,null,null,null,null,null,null,null,null,null,null,null,null,null,null,null,null,null,null,null,null,null,null,null,null,null,null,null,null,null,null,null,null,null,null,null,null,null,null,null,null,null,null,"作業者区分（下欄記号）",null,null,null,null,null,null,null,null,null,null,null,"放射線発生源（下欄記号）",null,null,null,null,null,null,null,null,null,null,null,null,null,"バッジ番号"]
[null,null,null,null,null,null,null,null,null,null,null,null,null,null,null,null,null,null,null,null,null,null,null,null,null,null,null,null,null,null,null,null,null,null,null,null,null,null,null,null,null,null,null,null,null,null,null,null,{"$f":"IF(ISNA(入力シート!AA68)=\"\",\"\",IF(ISNA(入力シート!AA68),\"\",入力シート!AA68))","v":""},null,null,null,null,null,null,null,null,null,null,null,{"$f":"IF(ISNA(入力シート!AA69)=\"\",\"\",IF(ISNA(入力シート!AA69),\"\",入力シート!AA69))","v":""}]
["）"]
["被ばく前歴（該当無しは空白）",null,"昭和63年度以前の集積線量",null,null,null,null,null,null,"平成元年度以後の実効線量",null,null,null,null,null,null,null,"前年度までの過去\n4年間の実効線量",null,null,null,null,null,null,null,null,null,"今年度の集計",null,null,null,null,null,null,null,null,null,null,null,"今四半期の集計\n（女子のみ）",null,null,null,null,null,null,null,null,"作業者区分",null,null,null,null,null,null,null,null,null,null,null,"作業種類",null,null,null,null,null,null,null,null,null,null,null,null,null,"放射線発生源"]
[null,null,null,null,null,null,null,null,null,null,null,null,null,null,null,null,null,null,null,null,null,null,null,null,null,null,null,null,null,null,null,null,null,null,null,null,null,null,null,null,null,null,null,null,null,null,null,null,"A 職員\nB 常用用員\nC 臨時用員\nD 嘱託、\n  特別研究員、\n  出向職員、\n  専門研究員、\n  ﾘｻｰﾁﾌｪﾛｰ、\n  博士研究員、\n  任期付職員、\n  技術開発協力員、\n  特定課題推進員等\nE 非常勤職員\nF 役員\n",null,null,null,null,null,"G 外来研究員\nH 客員研究員\nI 協力研究員\nJ 開放研、\n  共同利用、\n  研究協力\nK 特別研究生\nL 学生研究生\nM 実習生\nN 留学生\nO 研修生\nQ 検査官\nS 年間契約に\n  基づく請負業者\nT S以外の請負業者",null,null,null,null,null,"A 研究・開発\nB 原子炉等の運転\nC 原子炉等の保守\nD 一般機械等の運転\nE RI等の製造、加工\nF RI等の分析、検査\nG RI等の輸送\nH RI等の保管、管理\nI 放射線管理、\n  安全管理\nJ 構内保安管理",null,null,null,null,null,null,"K 施設等の建設、\n  工事、解体\nL 管理区域内の清掃\nM 管理区域内の除染\nN 原子炉、\n  RI等の教育\nO 健康診断、医療\nP 機器等の製造、\n  管理\nQ 物品等の管理\nR 施設等の査察、\n  視察\nS 防護隊",null,null,null,null,null,null,"A 原子炉及び臨界集合体\nB 核燃料物質\n（核燃料による汚染物質を含む）\nC 密封されたRI（廃棄物を含む）\nD 非密封のRI（廃棄物を含む）\nE 加速器（電子顕微鏡を含む）\nF X線発生装置\nG 医療用X線発生装置\nH 核融合装置及びこれに付置\n  する加速器\n- 特定せず"]
[null,null,{"$f":"入力シート!G22","v":"昭和"},null,{"$f":"入力シート!AA22 & \"\"","v":""},null,"年度",null,null,{"$f":"入力シート!G24","v":"平成"},null,{"$f":"入力シート!AA24 & \"\"","v":""},null,"年度",null,null,{"$f":"入力シート!G26","v":"平成"},null,null,null,{"$f":"IF(ISNUMBER(入力シート!N26),入力シート!N26,入力シート!N26&\"\")","v":""},null,null,null,"mSv",null,"実効線量",null,null,null,null,null,null,{"$f":"IF(ISNUMBER(入力シート!G30),入力シート!G30,入力シート!G30&\"\")","v":""},null,null,null,"mSv",null,{"$f":"IF(ISNUMBER(入力シート!G35),入力シート!G35,入力シート!G35&\"\")","v":""},null,null,null,null,null,null,"mSv"]
[null,null,{"$f":"入力シート!H23","v":"～昭和63年度"},null,null,null,null,null,null,{"$f":"入力シート!H25","v":"～前年度"},null,null,null,null,null,null,{"$f":"IF(入力シート!AA26=\"西暦\",\"\",\"\") & 入力シート!AB26 & \"\"","v":""},null,null,"年",null,null,null,null,null,null,null,null,null,null,null,null,null,"(",{"$f":"入力シート!S30 & \"\"","v":""},null,null,"X)"]
[null,null,null,null,null,null,null,null,null,null,null,null,null,null,null,null,{"$f":"入力シート!G27","v":"平成"},null,null,null,{"$f":"IF(ISNUMBER(入力シート!N27),入力シート!N27,入力シート!N27&\"\")","v":""},null,null,null,"mSv",null,"等価線量",null,"皮膚",null,null,null,null,{"$f":"IF(ISNUMBER(入力シート!K31),入力シート!K31,入力シート!K31&\"\")","v":""},null,null,null,"mSv",null,null,"妊娠中の女子は妊娠からの被ばく歴を別添にて提出して下さい"]
[null,null,{"$f":"IF(ISNUMBER(入力シート!N22),入力シート!N22,入力シート!N22&\"\")","v":""},null,null,null,"mrem",null,null,{"$f":"IF(ISNUMBER(入力シート!N24),入力シート!N24,入力シート!N24&\"\")","v":""},null,null,null,"mSv",null,null,{"$f":"IF(入力シート!AA27=\"西暦\",\"\",\"\") & 入力シート!AB27 & \"\"","v":""},null,null,"年"]
[null,null,null,null,null,null,null,null,null,null,null,null,null,null,null,null,{"$f":"入力シート!G28","v":"平成"},null,null,null,{"$f":"IF(ISNUMBER(入力シート!N28),入力シート!N28,入力シート!N28&\"\")","v":""},null,null,null,"mSv",null,null,null,"眼の水晶体",null,null,null,null,{"$f":"IF(ISNUMBER(入力シート!K32),入力シート!K32,入力シート!K32&\"\")","v":""},null,null,null,"mSv"]
[null,null,"(",{"$f":"入力シート!S23 & \"\"","v":""},null,null,null,"X)",null,"(",{"$f":"入力シート!S25 & \"\"","v":""},null,null,null,"X)",null,{"$f":"IF(入力シート!AA28=\"西暦\",\"\",\"\") & 入力シート!AB28 & \"\"","v":""},null,null,"年"]
[null,null,null,null,null,null,null,null,null,null,null,null,null,null,null,null,{"$f":"入力シート!G29","v":"平成"},null,null,null,{"$f":"IF(ISNUMBER(入力シート!N29),入力シート!N29,入力シート!N29&\"\")","v":""},null,null,null,"mSv",null,null,null,"その他",null,null,null,null,{"$f":"IF(ISNUMBER(入力シート!P33),入力シート!P33,入力シート!P33&\"\")","v":""},null,null,null,"mSv",null,"別添：",null,null,{"$f":"IF(入力シート!AA36,\"■\",\"□\") & \" 有\"","v":"□ 有"},null,"・",{"$f":"IF(入力シート!AB36,\"■\",\"□\") & \" 無\"","v":"□ 無"}]
[null,null,null,null,null,null,null,null,null,null,null,null,null,null,null,null,{"$f":"IF(入力シート!AA29=\"西暦\",\"\",\"\") & 入力シート!AB29 & \"\"","v":""},null,null,"年",null,null,null,null,null,null,null,null,"（",{"$f":"入力シート!L33 & \"\"","v":""},null,null,"）"]
[null,null,"これまでの主な作業事業所",null,null,null,null,null,null,null,null,null,null,null,null,null,null,null,null,null,null,null,null,null,null,null,null,null,null,null,null,null,null,"これまでの主な作業種類（右欄記号）",null,null,null,null,null,null,null,null,null,null,null,null,null,null,null,null,null,null,null,null,null,null,null,null,null,null,null,"原子炉等：加速器、核融合装置、廃棄物処理装置及びホットラボ等を含む\nRI等　　：核燃料及び廃棄物を含む"]
[null,null,{"$f":"入力シート!G37 & \"\"","v":""},null,null,null,null,null,null,null,null,null,null,null,null,null,null,null,null,null,null,null,null,null,null,null,null,null,null,null,null,null,null,{"$f":"IF((入力シート!AA38)=\"\",\"\",IF(ISNA(入力シート!AA38),\"\",入力シート!AA38))","v":""}]
[]
["教 育 訓 練 歴 ",null,"保安教育訓練実施日",null,null,null,null,null,null,null,null,null,null,null,null,"特殊健康診断歴",null,"実施年月日",null,null,null,null,null,null,null,null,null,null,null,null,"身　分　確　認",null,"確認年月日"]
[null,null,null,null,null,null,null,null,null,null,null,null,null,null,null,null,null,null,null,null,null,null,null,null,null,null,null,null,null,null,null,null,null,null,null,null,null,null,null,null,null,null,null,null,null,null,"起票上の注意"]
[null,null,null,{"$f":"入力シート!G41","v":"平成"},null,{"$f":"IF(入力シート!AA41=\"西暦\",\"\",\"\") & 入力シート!AB41 & \"\"","v":""},null,"年",{"$f":"入力シート!AC41 & \"\"","v":""},null,"月",{"$f":"入力シート!AD41 & \"\"","v":""},null,"日",null,null,null,null,{"$f":"入力シート!G45","v":"平成"},null,{"$f":"IF(入力シート!AA45=\"西暦\",\"\",\"\") & 入力シート!AB45 & \"\"","v":""},null,"年",{"$f":"入力シート!AC45 & \"\"","v":""},null,"月",{"$f":"入力シート!AD45 & \"\"","v":""},null,"日",null,null,null,null,{"$f":"入力シート!G49","v":"平成"},null,{"$f":"IF(入力シート!AA49=\"西暦\",\"\",\"\") & 入力シート!AB49 & \"\"","v":""},null,"年",{"$f":"入力シート!AC49 & \"\"","v":""},null,"月",{"$f":"入力シート!AD49 & \"\"","v":""},null,"日",null," 1．放射線管理手帳又は被ばく歴等証明書を参照し\n     て記入すること。\n 2．被ばく前歴欄の「X」は、検出下限値未満の評価回\n     数（Ｍ数等）を記入する。\n 3．特別教育とは、労働安全衛生法第59条第3項の特\n     別教育をいう。",null,null,null,null,null,null,null,null,null,null,null,null,null,null,null,null,"被ばく管理担当部",null,null,null,null,null,null,null,null,null,null,null,"作業担当部"]
[null,null,null,null,null,null,null,null,null,null,null,null,null,null,null,null,null,null,null,null,null,null,null,null,null,null,null,null,null,null,null,null,null,null,null,null,null,null,null,null,null,null,null,null,null,null,null,null,null,null,null,null,null,null,null,null,null,null,null,null,null,null,"部長",null,null,null,null,"課長",null,null,null,null,null,null,"部長等",null,null,null,null,"課長等"]
[null,null,"特別教育実施日",null,null,null,null,null,null,null,null,null,null,null,null,null,null,"結　　　　果",null,null,null,null,null,null,null,null,null,null,null,null,null,null,"確認書類の写しが得られない場合"]
[null,null,null,null,null,null,null,null,null,null,null,null,null,null,null,null,null,null,null,null,null,null,null,null,null,null,null,null,null,null,null,null,"書類名：",null,null,{"$f":"入力シート!G50 & \"\"","v":""},null,null,null,null,null,null,null,null,null,null,null,null,null,null,null,null,null,null,null,null,null,null,null,null,null,null,null,null,null,null,null,null,null,null,null,null,"←"]
[null,null,null,{"$f":"入力シート!G42","v":"平成"},null,{"$f":"IF(入力シート!AA42=\"西暦\",\"\",\"\") & 入力シート!AB42 & \"\"","v":""},null,"年",{"$f":"入力シート!AC42 & \"\"","v":""},null,"月",{"$f":"入力シート!AD42 & \"\"","v":""},null,"日",null,null,null,null,{"$f":"IF(入力シート!AA46,\"■\",\"□\") & \" 従事可\"","v":"□ 従事可"},null,null,null,null,"・",{"$f":"IF(入力シート!AB46,\"■\",\"□\") & \" 従事不可\"","v":"□ 従事不可"}]
[null,null,null,null,null,null,null,null,null,null,null,null,null,null,null,null,null,null,null,null,null,null,null,null,null,null,null,null,null,null,null,null,"番号等：",null,null,{"$f":"入力シート!G51 & \"\"","v":""}]
["日　　本　　原　　子　　力　　研　　究　　開　　発　　機　　構"]

{"sheet":"指定登録依頼書②","index":2,"n_rows":46,"n_cols":82,"rows_kept":46,"cut":false,"hidden":false,"merged":[[34,2,34,32],[26,37,26,38],[28,28,29,32],[22,80,23,81],[21,74,21,83],[22,74,23,75],[22,78,23,79],[17,74,20,83],[26,26,27,32],[34,33,34,47],[32,45,33,46],[33,29,33,31],[28,37,29,38],[28,33,29,36],[32,33,33,36],[32,37,33,38],[26,6,26,7],[24,60,24,73],[25,60,33,66],[28,26,33,27],[25,54,36,59],[35,2,36,32],[33,16,33,18],[26,24,27,25],[2,48,2,83],[4,78,4,79],[4,81,4,83],[7,81,7,83],[7,78,7,79],[10,57,11,58],[9,61,9,73],[6,65,6,73],[7,65,8,73],[3,65,3,72],[10,64,10,65],[40,74,40,78],[40,79,40,83],[22,82,23,83],[25,74,33,83],[24,74,24,83],[39,74,39,83],[34,61,36,82],[25,67,33,73],[3,74,5,77],[4,48,5,73],[14,74,15,83],[6,48,6,64],[9,48,9,60],[7,48,8,64],[6,74,8,77],[13,74,13,83],[16,74,16,83],[22,76,23,77],[21,60,21,73],[21,48,21,59],[22,48,23,59],[24,48,24,59],[25,48,36,53],[22,60,23,73],[26,13,26,14],[28,40,31,46],[26,39,27,45],[24,39,25,47],[32,44,33,44],[31,16,31,18],[29,9,30,12],[26,2,26,3],[30,16,30,18],[24,2,25,8],[30,33,31,36],[26,46,27,47],[30,37,31,38],[24,27,25,37],[26,33,26,36],[27,37,27,38],[27,34,27,36],[28,24,29,25],[17,2,18,47],[10,54,11,55],[10,56,11,56],[10,51,11,52],[19,44,19,47],[19,6,19,8],[16,48,16,67],[13,48,13,73],[14,48,15,73],[10,59,11,59],[18,68,20,73],[17,48,20,67],[10,67,10,68],[10,70,10,71],[19,32,19,35],[4,46,6,47],[4,36,6,37],[6,29,6,30],[4,14,6,15],[19,2,19,4],[9,18,9,22],[16,68,16,73],[20,2,23,47],[31,2,32,2],[31,7,32,8],[31,3,32,6],[29,6,30,8],[28,20,29,23],[29,2,30,5],[32,24,33,25],[19,10,19,13],[13,1,15,46],[11,30,11,34],[11,24,11,28],[11,0,12,17],[10,62,10,63],[10,49,11,50],[10,53,11,53],[7,37,12,46],[0,2,0,35],[1,2,1,35],[2,0,2,47],[3,0,3,17],[3,18,3,22],[3,36,3,47],[3,23,3,35],[38,46,38,60],[39,33,39,34],[39,45,44,61],[39,35,39,36],[39,41,39,42],[41,32,41,44],[42,32,43,34],[42,35,43,44],[6,24,6,27],[4,44,6,45],[4,16,6,17],[4,38,6,39],[5,19,5,21],[4,10,6,11],[6,32,6,33],[19,36,19,38],[16,2,16,47],[4,40,6,41],[4,42,6,43],[39,23,39,24],[30,28,31,32],[32,28,32,32],[37,32,37,44],[31,10,32,13],[30,24,31,25],[43,8,43,9],[41,2,41,14],[39,8,39,9],[43,18,43,22],[43,3,43,4],[39,5,39,6],[39,18,39,19],[43,5,43,6],[39,3,39,4],[39,11,39,12],[43,24,43,28],[39,38,39,39],[37,17,37,29],[41,17,41,29],[37,30,44,31],[39,26,39,27],[9,23,9,35],[7,0,7,17],[10,18,10,22],[4,8,6,9],[4,12,6,13],[8,0,9,17],[7,19,7,21],[4,0,6,1],[26,20,27,23],[27,9,27,15],[10,0,10,17],[4,2,6,3],[4,4,6,5],[4,6,6,7],[12,18,12,22],[24,0,36,1],[26,11,26,12],[27,16,27,18],[31,9,32,9],[29,16,29,18],[26,16,26,18],[28,16,28,18],[32,20,33,23],[29,13,30,15],[45,0,45,83],[16,0,19,1],[20,0,22,1],[23,0,23,1],[43,11,43,12],[32,39,33,41],[32,42,33,43],[26,4,26,5],[24,9,25,15],[26,9,26,10],[27,2,27,8],[24,17,25,24],[44,35,44,44],[32,16,32,18],[30,20,31,23],[37,2,37,14],[39,20,39,21],[44,32,44,34],[31,14,32,15],[37,0,44,1],[37,15,44,16],[35,33,36,47],[19,40,19,42],[17,68,17,73]]}
[null,null,"指　定　登　録　依　頼　書　②"]
[null,null,"作業者→作業担当課室"]
["作　業　者　記　入　欄",null,null,null,null,null,null,null,null,null,null,null,null,null,null,null,null,null,null,null,null,null,null,null,null,null,null,null,null,null,null,null,null,null,null,null,null,null,null,null,null,null,null,null,null,null,null,null,"作  業  担  当  課  室  記  入  欄"]
["中　央　登　録　番　号",null,null,null,null,null,null,null,null,null,null,null,null,null,null,null,null,null,"放管手帳",null,null,null,null,"生年月日（Date of Birth）",null,null,null,null,null,null,null,null,null,null,null,null,"職員番号(職員等のみ)",null,null,null,null,null,null,null,null,null,null,null,"作業担当部課室(職員等は所属部課室)",null,null,null,null,null,null,null,null,null,null,null,null,null,null,null,null,{"$f":"指定登録依頼書①!BN4","v":""},null,null,null,null,null,null,null,null,"中性子\n線量計"]
[{"$f":"指定登録依頼書①!A5","v":""},null,{"$f":"指定登録依頼書①!C5","v":""},null,"-",null,{"$f":"指定登録依頼書①!G5","v":""},null,{"$f":"指定登録依頼書①!I5","v":""},null,{"$f":"指定登録依頼書①!K5","v":""},null,{"$f":"指定登録依頼書①!M5","v":""},null,{"$f":"指定登録依頼書①!O5","v":""},null,{"$f":"指定登録依頼書①!Q5","v":""},null,null,null,null,null,null,null,null,null,null,null,null,null,null,null,null,null,null,null,{"$f":"指定登録依頼書①!AK5","v":""},null,{"$f":"指定登録依頼書①!AM5","v":""},null,{"$f":"指定登録依頼書①!AO5","v":""},null,{"$f":"指定登録依頼書①!AQ5","v":""},null,{"$f":"指定登録依頼書①!AS5","v":""},null,{"$f":"指定登録依頼書①!AU5","v":""},null,{"$f":"指定登録依頼書①!AW5","v":""},null,null,null,null,null,null,null,null,null,null,null,null,null,null,null,null,null,null,null,null,null,null,null,null,null,null,null,null,null,{"$f":"指定登録依頼書①!CA5","v":"□要"},null,"・",{"$f":"指定登録依頼書①!CD5","v":"□不要"}]
[null,null,null,null,null,null,null,null,null,null,null,null,null,null,null,null,null,null,null,{"$f":"指定登録依頼書①!T6","v":"□ 有"}]
[null,null,null,null,null,null,null,null,null,null,null,null,null,null,null,null,null,null,null,null,"・",null,null,null,{"$f":"指定登録依頼書①!Y7","v":""},null,null,null,"年",{"$f":"指定登録依頼書①!AD7","v":""},null,"月",{"$f":"指定登録依頼書①!AG7","v":""},null,"日",null,null,null,null,null,null,null,null,null,null,null,null,null,"担当者",null,null,null,null,null,null,null,null,null,null,null,null,null,null,null,null,"TEL",null,null,null,null,null,null,null,null,"内部被ばく\n入域検査"]
["フリガナ（姓名間は空白）",null,null,null,null,null,null,null,null,null,null,null,null,null,null,null,null,null,null,{"$f":"指定登録依頼書①!T8","v":"□ 無"},null,null,null,null,null,null,null,null,null,null,null,null,null,null,null,null,null,"　放射線管理手帳を所持していない職員等は、手帳用顔写真(縦 3cm、横 2.4cm：被ばく管理担当課で撮影可)を1枚添付する。",null,null,null,null,null,null,null,null,null,null,{"$f":"指定登録依頼書①!AW8","v":""},null,null,null,null,null,null,null,null,null,null,null,null,null,null,null,null,{"$f":"指定登録依頼書①!BN8","v":""},null,null,null,null,null,null,null,null,null,null,null,null,{"$f":"指定登録依頼書①!CA8","v":"□要"},null,"・",{"$f":"指定登録依頼書①!CD8","v":"□不要"}]
[{"$f":"指定登録依頼書①!A9","v":" "}]
[null,null,null,null,null,null,null,null,null,null,null,null,null,null,null,null,null,null,"性　別",null,null,null,null,"国籍区分",null,null,null,null,null,null,null,null,null,null,null,null,null,null,null,null,null,null,null,null,null,null,null,null,"指定年月日",null,null,null,null,null,null,null,null,null,null,null,null,"指定解除予定年月日"]
["氏名（Name:Family First Middle）",null,null,null,null,null,null,null,null,null,null,null,null,null,null,null,null,null,{"$f":"指定登録依頼書①!S11","v":"□ 男（M）"},null,null,null,null,null,null,null,null,null,null,null,null,null,null,null,null,null,null,null,null,null,null,null,null,null,null,null,null,null,null,{"$f":"指定登録依頼書①!AX11","v":"平成"},null,{"$f":"指定登録依頼書①!AZ11","v":""},null,"年",{"$f":"指定登録依頼書①!BC11","v":""},null,"月",{"$f":"指定登録依頼書①!BF11","v":""},null,"日",null,null,{"$f":"指定登録依頼書①!BK11","v":"平成"},null,{"$f":"指定登録依頼書①!BM11","v":""},null,"年",{"$f":"指定登録依頼書①!BP11","v":""},null,"月",{"$f":"指定登録依頼書①!BS11","v":""},null,"日"]
[{"$f":"指定登録依頼書①!A12","v":""},null,null,null,null,null,null,null,null,null,null,null,null,null,null,null,null,null,null,null,"・",null,null,null,{"$f":"指定登録依頼書①!Y12","v":"□ 55.日本人"},null,null,null,null,null,{"$f":"指定登録依頼書①!AE12","v":"□ 80.外国人"}]
[null,null,null,null,null,null,null,null,null,null,null,null,null,null,null,null,null,null,{"$f":"指定登録依頼書①!S13","v":"□ 女（F）"}]
[null,"　本依頼書に記載した個人情報は、個人線量管理システム及び放射線従事者中央登録センターへの登録処理が行われ、被ばく前歴の把握などの一元管理に利用されます。登録情報は、個人情報保護法に基づき適切な管理が行われます。また、職員等及び検査官等以外の方は、公的証明書等（運転免許証、パスポート等）により本人確認等が行われ、その写しが保管されます。",null,null,null,null,null,null,null,null,null,null,null,null,null,null,null,null,null,null,null,null,null,null,null,null,null,null,null,null,null,null,null,null,null,null,null,null,null,null,null,null,null,null,null,null,null,null,"作業場所"]
[null,null,null,null,null,null,null,null,null,null,null,null,null,null,null,null,null,null,null,null,null,null,null,null,null,null,null,null,null,null,null,null,null,null,null,null,null,null,null,null,null,null,null,null,null,null,null,null,{"$f":"指定登録依頼書①!AW15","v":""}]
[]
["会社等（",null,"会社名（機構との契約先である会社又は大学等）",null,null,null,null,null,null,null,null,null,null,null,null,null,null,null,null,null,null,null,null,null,null,null,null,null,null,null,null,null,null,null,null,null,null,null,null,null,null,null,null,null,null,null,null,null,"作業内容",null,null,null,null,null,null,null,null,null,null,null,null,null,null,null,null,null,null,null,"作業種類",null,null,null,null,null,"被ばく管理担当課記入欄"]
[null,null,{"$f":"指定登録依頼書①!C18","v":"　"},null,null,null,null,null,null,null,null,null,null,null,null,null,null,null,null,null,null,null,null,null,null,null,null,null,null,null,null,null,null,null,null,null,null,null,null,null,null,null,null,null,null,null,null,null,{"$f":"指定登録依頼書①!AW18","v":""},null,null,null,null,null,null,null,null,null,null,null,null,null,null,null,null,null,null,null,"（下欄記号）"]
[null,null,null,null,null,null,null,null,null,null,null,null,null,null,null,null,null,null,null,null,null,null,null,null,null,null,null,null,null,null,null,null,null,null,null,null,null,null,null,null,null,null,null,null,null,null,null,null,null,null,null,null,null,null,null,null,null,null,null,null,null,null,null,null,null,null,null,null,{"$f":"指定登録依頼書①!BQ19","v":""}]
[null,null,"所在地",null,null,"〒",{"$f":"指定登録依頼書①!G20","v":""},null,null,"-",{"$f":"指定登録依頼書①!K20","v":""},null,null,null,null,null,null,null,null,null,null,null,null,null,null,null,null,null,null,null,null,null,"電話番号",null,null,null,{"$f":"指定登録依頼書①!AK20","v":""},null,null,"(",{"$f":"指定登録依頼書①!AO20","v":""},null,null,")",{"$f":"指定登録依頼書①!AS20","v":""}]
["は不要職員等",null,{"$f":"指定登録依頼書①!C21","v":""}]
[null,null,null,null,null,null,null,null,null,null,null,null,null,null,null,null,null,null,null,null,null,null,null,null,null,null,null,null,null,null,null,null,null,null,null,null,null,null,null,null,null,null,null,null,null,null,null,null,"作業者区分（下欄記号）",null,null,null,null,null,null,null,null,null,null,null,"放射線発生源（下欄記号）",null,null,null,null,null,null,null,null,null,null,null,null,null,"バッジ番号"]
[null,null,null,null,null,null,null,null,null,null,null,null,null,null,null,null,null,null,null,null,null,null,null,null,null,null,null,null,null,null,null,null,null,null,null,null,null,null,null,null,null,null,null,null,null,null,null,null,{"$f":"指定登録依頼書①!AW23","v":""},null,null,null,null,null,null,null,null,null,null,null,{"$f":"指定登録依頼書①!BI23","v":""}]
["）"]
["被ばく前歴（該当無しは空白）",null,"昭和63年度以前の集積線量",null,null,null,null,null,null,"平成元年度以後の実効線量",null,null,null,null,null,null,null,"前年度までの過去\n4年間の実効線量",null,null,null,null,null,null,null,null,null,"今年度の集計",null,null,null,null,null,null,null,null,null,null,null,"今四半期の集計\n（女子のみ）",null,null,null,null,null,null,null,null,"作業者区分",null,null,null,null,null,null,null,null,null,null,null,"作業種類",null,null,null,null,null,null,null,null,null,null,null,null,null,"放射線発生源"]
[null,null,null,null,null,null,null,null,null,null,null,null,null,null,null,null,null,null,null,null,null,null,null,null,null,null,null,null,null,null,null,null,null,null,null,null,null,null,null,null,null,null,null,null,null,null,null,null,"A 職員\nB 常用用員\nC 臨時用員\nD 嘱託、\n  特別研究員、\n  出向職員、\n  専門研究員、\n  ﾘｻｰﾁﾌｪﾛｰ、\n  博士研究員、\n  任期付職員、\n  技術開発協力員、\n  特定課題推進員等\nE 非常勤職員\nF 役員\n",null,null,null,null,null,"G 外来研究員\nH 客員研究員\nI 協力研究員\nJ 開放研、\n  共同利用、\n  研究協力\nK 特別研究生\nL 学生研究生\nM 実習生\nN 留学生\nO 研修生\nQ 検査官\nS 年間契約に\n  基づく請負業者\nT S以外の請負業者",null,null,null,null,null,"A 研究・開発\nB 原子炉等の運転\nC 原子炉等の保守\nD 一般機械等の運転\nE RI等の製造、加工\nF RI等の分析、検査\nG RI等の輸送\nH RI等の保管、管理\nI 放射線管理、\n  安全管理\nJ 構内保安管理",null,null,null,null,null,null,"K 施設等の建設、\n  工事、解体\nL 管理区域内の清掃\nM 管理区域内の除染\nN 原子炉、\n  RI等の教育\nO 健康診断、医療\nP 機器等の製造、\n  管理\nQ 物品等の管理\nR 施設等の査察、\n  視察\nS 防護隊",null,null,null,null,null,null,"A 原子炉及び臨界集合体\nB 核燃料物質\n（核燃料による汚染物質を含む）\nC 密封されたRI（廃棄物を含む）\nD 非密封のRI（廃棄物を含む）\nE 加速器（電子顕微鏡を含む）\nF X線発生装置\nG 医療用X線発生装置\nH 核融合装置及びこれに付置\n  する加速器\n- 特定せず"]
[null,null,{"$f":"指定登録依頼書①!C27","v":"昭和"},null,{"$f":"指定登録依頼書①!E27","v":""},null,"年度",null,null,{"$f":"指定登録依頼書①!J27","v":"平成"},null,{"$f":"指定登録依頼書①!L27","v":""},null,"年度",null,null,{"$f":"指定登録依頼書①!Q27","v":"平成"},null,null,null,{"$f":"指定登録依頼書①!U27","v":""},null,null,null,"mSv",null,"実効線量",null,null,null,null,null,null,{"$f":"指定登録依頼書①!AH27","v":""},null,null,null,"mSv",null,{"$f":"指定登録依頼書①!AN27","v":""},null,null,null,null,null,null,"mSv"]
[null,null,{"$f":"指定登録依頼書①!C28","v":"～昭和63年度"},null,null,null,null,null,null,{"$f":"指定登録依頼書①!J28","v":"～前年度"},null,null,null,null,null,null,{"$f":"指定登録依頼書①!Q28","v":""},null,null,"年",null,null,null,null,null,null,null,null,null,null,null,null,null,"(",{"$f":"指定登録依頼書①!AI28","v":""},null,null,"X)"]
[null,null,null,null,null,null,null,null,null,null,null,null,null,null,null,null,{"$f":"指定登録依頼書①!Q29","v":"平成"},null,null,null,{"$f":"指定登録依頼書①!U29","v":""},null,null,null,"mSv",null,"等価線量",null,"皮膚",null,null,null,null,{"$f":"指定登録依頼書①!AH29","v":""},null,null,null,"mSv",null,null,"妊娠中の女子は妊娠からの被ばく歴を別添にて提出して下さい"]
[null,null,{"$f":"指定登録依頼書①!C30","v":""},null,null,null,"mrem",null,null,{"$f":"指定登録依頼書①!J30","v":""},null,null,null,"mSv",null,null,{"$f":"指定登録依頼書①!Q30","v":""},null,null,"年"]
[null,null,null,null,null,null,null,null,null,null,null,null,null,null,null,null,{"$f":"指定登録依頼書①!Q31","v":"平成"},null,null,null,{"$f":"指定登録依頼書①!U31","v":""},null,null,null,"mSv",null,null,null,"眼の水晶体",null,null,null,null,{"$f":"指定登録依頼書①!AH31","v":""},null,null,null,"mSv"]
[null,null,"(",{"$f":"指定登録依頼書①!D32","v":""},null,null,null,"X)",null,"(",{"$f":"指定登録依頼書①!K32","v":""},null,null,null,"X)",null,{"$f":"指定登録依頼書①!Q32","v":""},null,null,"年"]
[null,null,null,null,null,null,null,null,null,null,null,null,null,null,null,null,{"$f":"指定登録依頼書①!Q33","v":"平成"},null,null,null,{"$f":"指定登録依頼書①!U33","v":""},null,null,null,"mSv",null,null,null,"その他",null,null,null,null,{"$f":"指定登録依頼書①!AH33","v":""},null,null,null,"mSv",null,"別添：",null,null,{"$f":"指定登録依頼書①!AQ33","v":"□ 有"},null,"・",{"$f":"指定登録依頼書①!AT33","v":"□ 無"}]
[null,null,null,null,null,null,null,null,null,null,null,null,null,null,null,null,{"$f":"指定登録依頼書①!Q34","v":""},null,null,"年",null,null,null,null,null,null,null,null,"（",{"$f":"指定登録依頼書①!AD34","v":""},null,null,"）"]
[null,null,"これまでの主な作業事業所",null,null,null,null,null,null,null,null,null,null,null,null,null,null,null,null,null,null,null,null,null,null,null,null,null,null,null,null,null,null,"これまでの主な作業種類（右欄記号）",null,null,null,null,null,null,null,null,null,null,null,null,null,null,null,null,null,null,null,null,null,null,null,null,null,null,null,"原子炉等：加速器、核融合装置、廃棄物処理装置及びホットラボ等を含む\nRI等　　：核燃料及び廃棄物を含む"]
[null,null,{"$f":"指定登録依頼書①!C36","v":""},null,null,null,null,null,null,null,null,null,null,null,null,null,null,null,null,null,null,null,null,null,null,null,null,null,null,null,null,null,null,{"$f":"指定登録依頼書①!AH36","v":""}]
[]
["教 育 訓 練 歴 ",null,"保安教育訓練実施日",null,null,null,null,null,null,null,null,null,null,null,null,"特殊健康診断歴",null,"実施年月日",null,null,null,null,null,null,null,null,null,null,null,null,"身　分　確　認",null,"確認年月日"]
[null,null,null,null,null,null,null,null,null,null,null,null,null,null,null,null,null,null,null,null,null,null,null,null,null,null,null,null,null,null,null,null,null,null,null,null,null,null,null,null,null,null,null,null,null,null,"起票上の注意"]
[null,null,null,{"$f":"指定登録依頼書①!D40","v":"平成"},null,{"$f":"指定登録依頼書①!F40","v":""},null,"年",{"$f":"指定登録依頼書①!I40","v":""},null,"月",{"$f":"指定登録依頼書①!L40","v":""},null,"日",null,null,null,null,{"$f":"指定登録依頼書①!S40","v":"平成"},null,{"$f":"指定登録依頼書①!U40","v":""},null,"年",{"$f":"指定登録依頼書①!X40","v":""},null,"月",{"$f":"指定登録依頼書①!AA40","v":""},null,"日",null,null,null,null,{"$f":"入力シート!G49","v":"平成"},null,{"$f":"IF(入力シート!AA49=\"西暦\",\"\",\"\") & 入力シート!AB49 & \"\"","v":""},null,"年",{"$f":"入力シート!AC49 & \"\"","v":""},null,"月",{"$f":"入力シート!AD49 & \"\"","v":""},null,"日",null," 1．放射線管理手帳又は被ばく歴等証明書を参照し\n     て記入すること。\n 2．被ばく前歴欄の「X」は、検出下限値未満の評価回\n     数（Ｍ数等）を記入する。\n 3．特別教育とは、労働安全衛生法第59条第3項の特\n     別教育をいう。",null,null,null,null,null,null,null,null,null,null,null,null,null,null,null,null,null,null,null,null,null,null,null,null,null,null,null,null,"作業担当部"]
[null,null,null,null,null,null,null,null,null,null,null,null,null,null,null,null,null,null,null,null,null,null,null,null,null,null,null,null,null,null,null,null,null,null,null,null,null,null,null,null,null,null,null,null,null,null,null,null,null,null,null,null,null,null,null,null,null,null,null,null,null,null,null,null,null,null,null,null,null,null,null,null,null,null,"部長等",null,null,null,null,"課長等"]
[null,null,"特別教育実施日",null,null,null,null,null,null,null,null,null,null,null,null,null,null,"結　　　　果",null,null,null,null,null,null,null,null,null,null,null,null,null,null,"確認書類の写しが得られない場合"]
[null,null,null,null,null,null,null,null,null,null,null,null,null,null,null,null,null,null,null,null,null,null,null,null,null,null,null,null,null,null,null,null,"書類名：",null,null,{"$f":"指定登録依頼書①!AJ43 & \"\"","v":""}]
[null,null,null,{"$f":"指定登録依頼書①!D44","v":"平成"},null,{"$f":"指定登録依頼書①!F44","v":""},null,"年",{"$f":"指定登録依頼書①!I44","v":""},null,"月",{"$f":"指定登録依頼書①!L44","v":""},null,"日",null,null,null,null,{"$f":"指定登録依頼書①!S44","v":"□ 従事可"},null,null,null,null,"・",{"$f":"指定登録依頼書①!Y44","v":"□ 従事不可"}]
[null,null,null,null,null,null,null,null,null,null,null,null,null,null,null,null,null,null,null,null,null,null,null,null,null,null,null,null,null,null,null,null,"番号等：",null,null,{"$f":"指定登録依頼書①!AJ45 & \"\"","v":""}]
["日　　本　　原　　子　　力　　研　　究　　開　　発　　機　　構"]

{"sheet":"指定登録依頼書③","index":3,"n_rows":46,"n_cols":82,"rows_kept":46,"cut":false,"hidden":false,"merged":[[31,3,32,6],[29,6,30,8],[26,13,26,14],[31,7,32,8],[11,0,12,17],[31,10,32,13],[28,20,29,23],[30,28,31,32],[31,16,31,18],[27,2,27,8],[26,4,26,5],[26,2,26,3],[27,9,27,15],[26,9,26,10],[26,26,27,32],[11,30,11,34],[32,16,32,18],[30,16,30,18],[29,13,30,15],[31,9,32,9],[31,14,32,15],[31,2,32,2],[32,28,32,32],[28,24,29,25],[14,48,15,73],[4,12,6,13],[4,2,6,3],[26,24,27,25],[4,8,6,9],[4,10,6,11],[4,46,6,47],[5,19,5,21],[4,4,6,5],[4,16,6,17],[9,23,9,35],[19,2,19,4],[4,40,6,41],[27,16,27,18],[4,44,6,45],[19,6,19,8],[4,38,6,39],[13,1,15,46],[4,42,6,43],[19,10,19,13],[4,14,6,15],[6,29,6,30],[4,6,6,7],[4,0,6,1],[6,24,6,27],[34,2,34,32],[32,24,33,25],[32,20,33,23],[33,16,33,18],[0,2,0,35],[1,2,1,35],[2,0,2,47],[3,0,3,17],[3,18,3,22],[3,36,3,47],[16,0,19,1],[26,6,26,7],[29,2,30,5],[23,0,23,1],[20,2,23,47],[19,44,19,47],[16,2,16,47],[17,2,18,47],[19,36,19,38],[24,17,25,24],[30,24,31,25],[30,20,31,23],[29,9,30,12],[29,16,29,18],[25,74,33,83],[24,74,24,83],[24,60,24,73],[28,26,33,27],[28,28,29,32],[24,27,25,37],[26,33,26,36],[27,37,27,38],[26,37,26,38],[25,67,33,73],[25,60,33,66],[32,45,33,46],[33,29,33,31],[32,33,33,36],[32,37,33,38],[32,39,33,41],[32,42,33,43],[22,60,23,73],[22,48,23,59],[13,48,13,73],[24,48,24,59],[25,54,36,59],[28,33,29,36],[28,37,29,38],[32,44,33,44],[30,37,31,38],[30,33,31,36],[27,34,27,36],[24,39,25,47],[25,48,36,53],[26,39,27,45],[21,60,21,73],[17,48,20,67],[21,48,21,59],[34,33,34,47],[28,40,31,46],[19,40,19,42],[17,68,17,73],[18,68,20,73],[16,48,16,67],[34,61,36,82],[22,82,23,83],[3,74,5,77],[22,76,23,77],[7,78,7,79],[21,74,21,83],[13,74,13,83],[16,74,16,83],[14,74,15,83],[6,74,8,77],[22,80,23,81],[22,74,23,75],[22,78,23,79],[17,74,20,83],[2,48,2,83],[4,78,4,79],[4,81,4,83],[7,81,7,83],[3,65,3,72],[10,53,11,53],[10,54,11,55],[10,56,11,56],[10,51,11,52],[10,64,10,65],[10,67,10,68],[10,70,10,71],[10,49,11,50],[10,62,10,63],[10,59,11,59],[6,48,6,64],[9,48,9,60],[7,48,8,64],[10,57,11,58],[6,65,6,73],[9,61,9,73],[7,65,8,73],[16,68,16,73],[4,48,5,73],[3,23,3,35],[6,32,6,33],[11,24,11,28],[4,36,6,37],[26,46,27,47],[26,20,27,23],[7,37,12,46],[7,19,7,21],[19,32,19,35],[9,18,9,22],[26,16,26,18],[10,18,10,22],[10,0,10,17],[7,0,7,17],[8,0,9,17],[20,0,22,1],[24,2,25,8],[24,9,25,15],[24,0,36,1],[26,11,26,12],[12,18,12,22],[28,16,28,18],[39,20,39,21],[39,8,39,9],[38,46,38,60],[43,11,43,12],[39,11,39,12],[35,2,36,32],[37,30,44,31],[37,32,37,44],[41,2,41,14],[39,33,39,34],[42,35,43,44],[44,32,44,34],[39,41,39,42],[39,45,44,61],[35,33,36,47],[45,0,45,83],[43,3,43,4],[39,5,39,6],[39,3,39,4],[40,74,40,78],[39,74,39,83],[41,32,41,44],[43,8,43,9],[42,32,43,34],[44,35,44,44],[43,24,43,28],[39,23,39,24],[39,18,39,19],[41,17,41,29],[39,35,39,36],[39,38,39,39],[39,26,39,27],[40,79,40,83],[37,0,44,1],[37,15,44,16],[37,17,37,29],[43,5,43,6],[37,2,37,14],[43,18,43,22]]}
[null,null,"指　定　登　録　依　頼　書　③"]
[null,null,"作業者→作業担当課室→区域管理者"]
["作　業　者　記　入　欄",null,null,null,null,null,null,null,null,null,null,null,null,null,null,null,null,null,null,null,null,null,null,null,null,null,null,null,null,null,null,null,null,null,null,null,null,null,null,null,null,null,null,null,null,null,null,null,"作  業  担  当  課  室  記  入  欄"]
["中　央　登　録　番　号",null,null,null,null,null,null,null,null,null,null,null,null,null,null,null,null,null,"放管手帳",null,null,null,null,"生年月日（Date of Birth）",null,null,null,null,null,null,null,null,null,null,null,null,"職員番号(職員等のみ)",null,null,null,null,null,null,null,null,null,null,null,"作業担当部課室(職員等は所属部課室)",null,null,null,null,null,null,null,null,null,null,null,null,null,null,null,null,{"$f":"指定登録依頼書①!BN4","v":""},null,null,null,null,null,null,null,null,"中性子\n線量計"]
[{"$f":"指定登録依頼書①!A5","v":""},null,{"$f":"指定登録依頼書①!C5","v":""},null,"-",null,{"$f":"指定登録依頼書①!G5","v":""},null,{"$f":"指定登録依頼書①!I5","v":""},null,{"$f":"指定登録依頼書①!K5","v":""},null,{"$f":"指定登録依頼書①!M5","v":""},null,{"$f":"指定登録依頼書①!O5","v":""},null,{"$f":"指定登録依頼書①!Q5","v":""},null,null,null,null,null,null,null,null,null,null,null,null,null,null,null,null,null,null,null,{"$f":"指定登録依頼書①!AK5","v":""},null,{"$f":"指定登録依頼書①!AM5","v":""},null,{"$f":"指定登録依頼書①!AO5","v":""},null,{"$f":"指定登録依頼書①!AQ5","v":""},null,{"$f":"指定登録依頼書①!AS5","v":""},null,{"$f":"指定登録依頼書①!AU5","v":""},null,{"$f":"指定登録依頼書①!AW5","v":""},null,null,null,null,null,null,null,null,null,null,null,null,null,null,null,null,null,null,null,null,null,null,null,null,null,null,null,null,null,{"$f":"指定登録依頼書①!CA5","v":"□要"},null,"・",{"$f":"指定登録依頼書①!CD5","v":"□不要"}]
[null,null,null,null,null,null,null,null,null,null,null,null,null,null,null,null,null,null,null,{"$f":"指定登録依頼書①!T6","v":"□ 有"}]
[null,null,null,null,null,null,null,null,null,null,null,null,null,null,null,null,null,null,null,null,"・",null,null,null,{"$f":"指定登録依頼書①!Y7","v":""},null,null,null,"年",{"$f":"指定登録依頼書①!AD7","v":""},null,"月",{"$f":"指定登録依頼書①!AG7","v":""},null,"日",null,null,null,null,null,null,null,null,null,null,null,null,null,"担当者",null,null,null,null,null,null,null,null,null,null,null,null,null,null,null,null,"TEL",null,null,null,null,null,null,null,null,"内部被ばく\n入域検査"]
["フリガナ（姓名間は空白）",null,null,null,null,null,null,null,null,null,null,null,null,null,null,null,null,null,null,{"$f":"指定登録依頼書①!T8","v":"□ 無"},null,null,null,null,null,null,null,null,null,null,null,null,null,null,null,null,null,"　放射線管理手帳を所持していない職員等は、手帳用顔写真(縦 3cm、横 2.4cm：被ばく管理担当課で撮影可)を1枚添付する。",null,null,null,null,null,null,null,null,null,null,{"$f":"指定登録依頼書①!AW8","v":""},null,null,null,null,null,null,null,null,null,null,null,null,null,null,null,null,{"$f":"指定登録依頼書①!BN8","v":""},null,null,null,null,null,null,null,null,null,null,null,null,{"$f":"指定登録依頼書①!CA8","v":"□要"},null,"・",{"$f":"指定登録依頼書①!CD8","v":"□不要"}]
[{"$f":"指定登録依頼書①!A9","v":" "}]
[null,null,null,null,null,null,null,null,null,null,null,null,null,null,null,null,null,null,"性　別",null,null,null,null,"国籍区分",null,null,null,null,null,null,null,null,null,null,null,null,null,null,null,null,null,null,null,null,null,null,null,null,"指定年月日",null,null,null,null,null,null,null,null,null,null,null,null,"指定解除予定年月日"]
["氏名（Name:Family First Middle）",null,null,null,null,null,null,null,null,null,null,null,null,null,null,null,null,null,{"$f":"指定登録依頼書①!S11","v":"□ 男（M）"},null,null,null,null,null,null,null,null,null,null,null,null,null,null,null,null,null,null,null,null,null,null,null,null,null,null,null,null,null,null,{"$f":"指定登録依頼書①!AX11","v":"平成"},null,{"$f":"指定登録依頼書①!AZ11","v":""},null,"年",{"$f":"指定登録依頼書①!BC11","v":""},null,"月",{"$f":"指定登録依頼書①!BF11","v":""},null,"日",null,null,{"$f":"指定登録依頼書①!BK11","v":"平成"},null,{"$f":"指定登録依頼書①!BM11","v":""},null,"年",{"$f":"指定登録依頼書①!BP11","v":""},null,"月",{"$f":"指定登録依頼書①!BS11","v":""},null,"日"]
[{"$f":"指定登録依頼書①!A12","v":""},null,null,null,null,null,null,null,null,null,null,null,null,null,null,null,null,null,null,null,"・",null,null,null,{"$f":"指定登録依頼書①!Y12","v":"□ 55.日本人"},null,null,null,null,null,{"$f":"指定登録依頼書①!AE12","v":"□ 80.外国人"}]
[null,null,null,null,null,null,null,null,null,null,null,null,null,null,null,null,null,null,{"$f":"指定登録依頼書①!S13","v":"□ 女（F）"}]
[null,"　本依頼書に記載した個人情報は、個人線量管理システム及び放射線従事者中央登録センターへの登録処理が行われ、被ばく前歴の把握などの一元管理に利用されます。登録情報は、個人情報保護法に基づき適切な管理が行われます。また、職員等及び検査官等以外の方は、公的証明書等（運転免許証、パスポート等）により本人確認等が行われ、その写しが保管されます。",null,null,null,null,null,null,null,null,null,null,null,null,null,null,null,null,null,null,null,null,null,null,null,null,null,null,null,null,null,null,null,null,null,null,null,null,null,null,null,null,null,null,null,null,null,null,"作業場所"]
[null,null,null,null,null,null,null,null,null,null,null,null,null,null,null,null,null,null,null,null,null,null,null,null,null,null,null,null,null,null,null,null,null,null,null,null,null,null,null,null,null,null,null,null,null,null,null,null,{"$f":"指定登録依頼書①!AW15","v":""}]
[]
["会社等（",null,"会社名（機構との契約先である会社又は大学等）",null,null,null,null,null,null,null,null,null,null,null,null,null,null,null,null,null,null,null,null,null,null,null,null,null,null,null,null,null,null,null,null,null,null,null,null,null,null,null,null,null,null,null,null,null,"作業内容",null,null,null,null,null,null,null,null,null,null,null,null,null,null,null,null,null,null,null,"作業種類",null,null,null,null,null,"被ばく管理担当課記入欄"]
[null,null,{"$f":"指定登録依頼書①!C18","v":"　"},null,null,null,null,null,null,null,null,null,null,null,null,null,null,null,null,null,null,null,null,null,null,null,null,null,null,null,null,null,null,null,null,null,null,null,null,null,null,null,null,null,null,null,null,null,{"$f":"指定登録依頼書①!AW18","v":""},null,null,null,null,null,null,null,null,null,null,null,null,null,null,null,null,null,null,null,"（下欄記号）"]
[null,null,null,null,null,null,null,null,null,null,null,null,null,null,null,null,null,null,null,null,null,null,null,null,null,null,null,null,null,null,null,null,null,null,null,null,null,null,null,null,null,null,null,null,null,null,null,null,null,null,null,null,null,null,null,null,null,null,null,null,null,null,null,null,null,null,null,null,{"$f":"指定登録依頼書①!BQ19","v":""}]
[null,null,"所在地",null,null,"〒",{"$f":"指定登録依頼書①!G20","v":""},null,null,"-",{"$f":"指定登録依頼書①!K20","v":""},null,null,null,null,null,null,null,null,null,null,null,null,null,null,null,null,null,null,null,null,null,"電話番号",null,null,null,{"$f":"指定登録依頼書①!AK20","v":""},null,null,"(",{"$f":"指定登録依頼書①!AO20","v":""},null,null,")",{"$f":"指定登録依頼書①!AS20","v":""}]
["は不要職員等",null,{"$f":"指定登録依頼書①!C21","v":""}]
[null,null,null,null,null,null,null,null,null,null,null,null,null,null,null,null,null,null,null,null,null,null,null,null,null,null,null,null,null,null,null,null,null,null,null,null,null,null,null,null,null,null,null,null,null,null,null,null,"作業者区分（下欄記号）",null,null,null,null,null,null,null,null,null,null,null,"放射線発生源（下欄記号）",null,null,null,null,null,null,null,null,null,null,null,null,null,"バッジ番号"]
[null,null,null,null,null,null,null,null,null,null,null,null,null,null,null,null,null,null,null,null,null,null,null,null,null,null,null,null,null,null,null,null,null,null,null,null,null,null,null,null,null,null,null,null,null,null,null,null,{"$f":"指定登録依頼書①!AW23","v":""},null,null,null,null,null,null,null,null,null,null,null,{"$f":"指定登録依頼書①!BI23","v":""}]
["）"]
["被ばく前歴（該当無しは空白）",null,"昭和63年度以前の集積線量",null,null,null,null,null,null,"平成元年度以後の実効線量",null,null,null,null,null,null,null,"前年度までの過去\n4年間の実効線量",null,null,null,null,null,null,null,null,null,"今年度の集計",null,null,null,null,null,null,null,null,null,null,null,"今四半期の集計\n（女子のみ）",null,null,null,null,null,null,null,null,"作業者区分",null,null,null,null,null,null,null,null,null,null,null,"作業種類",null,null,null,null,null,null,null,null,null,null,null,null,null,"放射線発生源"]
[null,null,null,null,null,null,null,null,null,null,null,null,null,null,null,null,null,null,null,null,null,null,null,null,null,null,null,null,null,null,null,null,null,null,null,null,null,null,null,null,null,null,null,null,null,null,null,null,"A 職員\nB 常用用員\nC 臨時用員\nD 嘱託、\n  特別研究員、\n  出向職員、\n  専門研究員、\n  ﾘｻｰﾁﾌｪﾛｰ、\n  博士研究員、\n  任期付職員、\n  技術開発協力員、\n  特定課題推進員等\nE 非常勤職員\nF 役員\n",null,null,null,null,null,"G 外来研究員\nH 客員研究員\nI 協力研究員\nJ 開放研、\n  共同利用、\n  研究協力\nK 特別研究生\nL 学生研究生\nM 実習生\nN 留学生\nO 研修生\nQ 検査官\nS 年間契約に\n  基づく請負業者\nT S以外の請負業者",null,null,null,null,null,"A 研究・開発\nB 原子炉等の運転\nC 原子炉等の保守\nD 一般機械等の運転\nE RI等の製造、加工\nF RI等の分析、検査\nG RI等の輸送\nH RI等の保管、管理\nI 放射線管理、\n  安全管理\nJ 構内保安管理",null,null,null,null,null,null,"K 施設等の建設、\n  工事、解体\nL 管理区域内の清掃\nM 管理区域内の除染\nN 原子炉、\n  RI等の教育\nO 健康診断、医療\nP 機器等の製造、\n  管理\nQ 物品等の管理\nR 施設等の査察、\n  視察\nS 防護隊",null,null,null,null,null,null,"A 原子炉及び臨界集合体\nB 核燃料物質\n（核燃料による汚染物質を含む）\nC 密封されたRI（廃棄物を含む）\nD 非密封のRI（廃棄物を含む）\nE 加速器（電子顕微鏡を含む）\nF X線発生装置\nG 医療用X線発生装置\nH 核融合装置及びこれに付置\n  する加速器\n- 特定せず"]
[null,null,{"$f":"指定登録依頼書①!C27","v":"昭和"},null,{"$f":"指定登録依頼書①!E27","v":""},null,"年度",null,null,{"$f":"指定登録依頼書①!J27","v":"平成"},null,{"$f":"指定登録依頼書①!L27","v":""},null,"年度",null,null,{"$f":"指定登録依頼書①!Q27","v":"平成"},null,null,null,{"$f":"指定登録依頼書①!U27","v":""},null,null,null,"mSv",null,"実効線量",null,null,null,null,null,null,{"$f":"指定登録依頼書①!AH27","v":""},null,null,null,"mSv",null,{"$f":"指定登録依頼書①!AN27","v":""},null,null,null,null,null,null,"mSv"]
[null,null,{"$f":"指定登録依頼書①!C28","v":"～昭和63年度"},null,null,null,null,null,null,{"$f":"指定登録依頼書①!J28","v":"～前年度"},null,null,null,null,null,null,{"$f":"指定登録依頼書①!Q28","v":""},null,null,"年",null,null,null,null,null,null,null,null,null,null,null,null,null,"(",{"$f":"指定登録依頼書①!AI28","v":""},null,null,"X)"]
[null,null,null,null,null,null,null,null,null,null,null,null,null,null,null,null,{"$f":"指定登録依頼書①!Q29","v":"平成"},null,null,null,{"$f":"指定登録依頼書①!U29","v":""},null,null,null,"mSv",null,"等価線量",null,"皮膚",null,null,null,null,{"$f":"指定登録依頼書①!AH29","v":""},null,null,null,"mSv",null,null,"妊娠中の女子は妊娠からの被ばく歴を別添にて提出して下さい"]
[null,null,{"$f":"指定登録依頼書①!C30","v":""},null,null,null,"mrem",null,null,{"$f":"指定登録依頼書①!J30","v":""},null,null,null,"mSv",null,null,{"$f":"指定登録依頼書①!Q30","v":""},null,null,"年"]
[null,null,null,null,null,null,null,null,null,null,null,null,null,null,null,null,{"$f":"指定登録依頼書①!Q31","v":"平成"},null,null,null,{"$f":"指定登録依頼書①!U31","v":""},null,null,null,"mSv",null,null,null,"眼の水晶体",null,null,null,null,{"$f":"指定登録依頼書①!AH31","v":""},null,null,null,"mSv"]
[null,null,"(",{"$f":"指定登録依頼書①!D32","v":""},null,null,null,"X)",null,"(",{"$f":"指定登録依頼書①!K32","v":""},null,null,null,"X)",null,{"$f":"指定登録依頼書①!Q32","v":""},null,null,"年"]
[null,null,null,null,null,null,null,null,null,null,null,null,null,null,null,null,{"$f":"指定登録依頼書①!Q33","v":"平成"},null,null,null,{"$f":"指定登録依頼書①!U33","v":""},null,null,null,"mSv",null,null,null,"その他",null,null,null,null,{"$f":"指定登録依頼書①!AH33","v":""},null,null,null,"mSv",null,"別添：",null,null,{"$f":"指定登録依頼書①!AQ33","v":"□ 有"},null,"・",{"$f":"指定登録依頼書①!AT33","v":"□ 無"}]
[null,null,null,null,null,null,null,null,null,null,null,null,null,null,null,null,{"$f":"指定登録依頼書①!Q34","v":""},null,null,"年",null,null,null,null,null,null,null,null,"（",{"$f":"指定登録依頼書①!AD34","v":""},null,null,"）"]
[null,null,"これまでの主な作業事業所",null,null,null,null,null,null,null,null,null,null,null,null,null,null,null,null,null,null,null,null,null,null,null,null,null,null,null,null,null,null,"これまでの主な作業種類（右欄記号）",null,null,null,null,null,null,null,null,null,null,null,null,null,null,null,null,null,null,null,null,null,null,null,null,null,null,null,"原子炉等：加速器、核融合装置、廃棄物処理装置及びホットラボ等を含む\nRI等　　：核燃料及び廃棄物を含む"]
[null,null,{"$f":"指定登録依頼書①!C36","v":""},null,null,null,null,null,null,null,null,null,null,null,null,null,null,null,null,null,null,null,null,null,null,null,null,null,null,null,null,null,null,{"$f":"指定登録依頼書①!AH36","v":""}]
[]
["教 育 訓 練 歴 ",null,"保安教育訓練実施日",null,null,null,null,null,null,null,null,null,null,null,null,"特殊健康診断歴",null,"実施年月日",null,null,null,null,null,null,null,null,null,null,null,null,"身　分　確　認",null,"確認年月日"]
[null,null,null,null,null,null,null,null,null,null,null,null,null,null,null,null,null,null,null,null,null,null,null,null,null,null,null,null,null,null,null,null,null,null,null,null,null,null,null,null,null,null,null,null,null,null,"起票上の注意"]
[null,null,null,{"$f":"指定登録依頼書①!D40","v":"平成"},null,{"$f":"指定登録依頼書①!F40","v":""},null,"年",{"$f":"指定登録依頼書①!I40","v":""},null,"月",{"$f":"指定登録依頼書①!L40","v":""},null,"日",null,null,null,null,{"$f":"指定登録依頼書①!S40","v":"平成"},null,{"$f":"指定登録依頼書①!U40","v":""},null,"年",{"$f":"指定登録依頼書①!X40","v":""},null,"月",{"$f":"指定登録依頼書①!AA40","v":""},null,"日",null,null,null,null,{"$f":"入力シート!G49","v":"平成"},null,{"$f":"IF(入力シート!AA49=\"西暦\",\"\",\"\") & 入力シート!AB49 & \"\"","v":""},null,"年",{"$f":"入力シート!AC49 & \"\"","v":""},null,"月",{"$f":"入力シート!AD49 & \"\"","v":""},null,"日",null," 1．放射線管理手帳又は被ばく歴等証明書を参照し\n     て記入すること。\n 2．被ばく前歴欄の「X」は、検出下限値未満の評価回\n     数（Ｍ数等）を記入する。\n 3．特別教育とは、労働安全衛生法第59条第3項の特\n     別教育をいう。",null,null,null,null,null,null,null,null,null,null,null,null,null,null,null,null,null,null,null,null,null,null,null,null,null,null,null,null,"作業担当部"]
[null,null,null,null,null,null,null,null,null,null,null,null,null,null,null,null,null,null,null,null,null,null,null,null,null,null,null,null,null,null,null,null,null,null,null,null,null,null,null,null,null,null,null,null,null,null,null,null,null,null,null,null,null,null,null,null,null,null,null,null,null,null,null,null,null,null,null,null,null,null,null,null,null,null,"部長等",null,null,null,null,"課長等"]
[null,null,"特別教育実施日",null,null,null,null,null,null,null,null,null,null,null,null,null,null,"結　　　　果",null,null,null,null,null,null,null,null,null,null,null,null,null,null,"確認書類の写しが得られない場合"]
[null,null,null,null,null,null,null,null,null,null,null,null,null,null,null,null,null,null,null,null,null,null,null,null,null,null,null,null,null,null,null,null,"書類名：",null,null,{"$f":"指定登録依頼書①!AJ43 & \"\"","v":""}]
[null,null,null,{"$f":"指定登録依頼書①!D44","v":"平成"},null,{"$f":"指定登録依頼書①!F44","v":""},null,"年",{"$f":"指定登録依頼書①!I44","v":""},null,"月",{"$f":"指定登録依頼書①!L44","v":""},null,"日",null,null,null,null,{"$f":"指定登録依頼書①!S44","v":"□ 従事可"},null,null,null,null,"・",{"$f":"指定登録依頼書①!Y44","v":"□ 従事不可"}]
[null,null,null,null,null,null,null,null,null,null,null,null,null,null,null,null,null,null,null,null,null,null,null,null,null,null,null,null,null,null,null,null,"番号等：",null,null,{"$f":"指定登録依頼書①!AJ45 & \"\"","v":""}]
["日　　本　　原　　子　　力　　研　　究　　開　　発　　機　　構"]

{"sheet":"指定解除依頼書①","index":4,"n_rows":46,"n_cols":82,"rows_kept":46,"cut":false,"hidden":false,"merged":[[40,79,40,83],[40,67,40,71],[20,2,23,47],[39,33,39,45],[39,0,41,6],[40,7,41,19],[22,78,23,79],[25,67,33,73],[43,29,44,30],[40,62,40,66],[40,74,40,78],[0,2,0,35],[1,2,1,35],[2,0,2,47],[3,0,3,17],[3,36,3,47],[3,23,3,35],[4,40,6,41],[6,29,6,30],[39,7,39,19],[4,42,6,43],[39,20,39,32],[11,24,11,28],[11,30,11,34],[12,18,12,22],[23,0,23,1],[20,0,22,1],[37,0,38,45],[32,1,35,46],[19,2,19,4],[19,32,19,35],[4,8,6,9],[4,44,6,45],[19,6,19,8],[17,2,18,47],[11,0,12,17],[6,24,6,27],[7,0,7,17],[4,14,6,15],[16,0,19,1],[13,1,15,46],[19,10,19,13],[19,44,19,47],[16,2,16,47],[3,65,3,72],[4,48,5,73],[7,65,8,73],[6,65,6,73],[10,51,11,52],[10,49,11,50],[9,61,9,73],[10,54,11,55],[4,2,6,3],[4,4,6,5],[4,6,6,7],[4,16,6,17],[4,38,6,39],[10,0,10,17],[9,18,9,22],[10,18,10,22],[9,23,9,35],[8,0,9,17],[6,32,6,33],[4,36,6,37],[4,46,6,47],[4,0,6,1],[4,10,6,11],[4,12,6,13],[9,74,9,79],[10,67,10,68],[11,80,11,83],[10,80,10,83],[10,74,10,75],[11,74,11,75],[10,70,10,71],[2,48,2,83],[4,78,4,79],[4,81,4,83],[7,81,7,83],[6,74,8,77],[10,64,10,65],[6,48,6,64],[9,48,9,60],[10,57,11,58],[10,56,11,56],[3,74,5,77],[10,76,10,79],[9,80,9,83],[11,76,11,79],[7,78,7,79],[10,53,11,53],[7,48,8,64],[10,59,11,59],[24,74,24,83],[13,74,13,83],[19,74,20,78],[18,68,20,73],[14,48,15,73],[21,48,21,59],[22,48,23,59],[21,60,21,73],[17,79,18,83],[10,62,10,63],[12,80,12,83],[19,79,20,80],[12,76,12,79],[12,74,12,75],[19,82,20,83],[12,62,12,63],[24,48,24,59],[24,60,24,73],[22,60,23,73],[17,74,18,78],[11,61,11,73],[12,67,12,68],[12,70,12,71],[13,48,13,73],[12,64,12,65],[22,82,23,83],[16,74,16,83],[14,74,15,83],[22,76,23,77],[22,80,23,81],[21,74,21,83],[22,74,23,75],[16,48,16,67],[16,68,16,73],[45,0,45,83],[43,31,44,31],[43,33,44,45],[17,68,17,73],[17,48,20,67],[25,74,33,83],[39,74,39,83],[25,54,36,59],[25,60,33,66],[19,81,20,81],[19,36,19,38],[19,40,19,42],[40,33,41,45],[25,48,36,53],[42,72,42,73],[40,20,41,32],[43,21,44,24],[42,33,42,45],[43,25,44,25],[43,26,44,27],[43,28,44,28],[42,20,42,32],[39,62,39,71],[34,61,36,82]]}
[null,null,"指　定　解　除　登　録　依　頼　書　①"]
[null,null,"作業者→作業担当課室→被ばく管理担当課"]
["作　業　者　記　入　欄",null,null,null,null,null,null,null,null,null,null,null,null,null,null,null,null,null,null,null,null,null,null,null,null,null,null,null,null,null,null,null,null,null,null,null,null,null,null,null,null,null,null,null,null,null,null,null,"作  業  担  当  課  室  記  入  欄"]
["中　央　登　録　番　号",null,null,null,null,null,null,null,null,null,null,null,null,null,null,null,null,null,null,null,null,null,null,"生年月日（Date of Birth）",null,null,null,null,null,null,null,null,null,null,null,null,"職員番号(職員等のみ)",null,null,null,null,null,null,null,null,null,null,null,"作業担当部課室(職員等は所属部課室)",null,null,null,null,null,null,null,null,null,null,null,null,null,null,null,null,{"$f":"指定登録依頼書①!BN4","v":""},null,null,null,null,null,null,null,null,"中性子\n線量計"]
[{"$f":"指定登録依頼書①!A5","v":""},null,{"$f":"指定登録依頼書①!C5","v":""},null,"-",null,{"$f":"指定登録依頼書①!G5","v":""},null,{"$f":"指定登録依頼書①!I5","v":""},null,{"$f":"指定登録依頼書①!K5","v":""},null,{"$f":"指定登録依頼書①!M5","v":""},null,{"$f":"指定登録依頼書①!O5","v":""},null,{"$f":"指定登録依頼書①!Q5","v":""},null,null,null,null,null,null,null,null,null,null,null,null,null,null,null,null,null,null,null,{"$f":"指定登録依頼書①!AK5","v":""},null,{"$f":"指定登録依頼書①!AM5","v":""},null,{"$f":"指定登録依頼書①!AO5","v":""},null,{"$f":"指定登録依頼書①!AQ5","v":""},null,{"$f":"指定登録依頼書①!AS5","v":""},null,{"$f":"指定登録依頼書①!AU5","v":""},null,{"$f":"指定登録依頼書①!AW5","v":""},null,null,null,null,null,null,null,null,null,null,null,null,null,null,null,null,null,null,null,null,null,null,null,null,null,null,null,null,null,{"$f":"IF(入力シート!AA70,\"■\",\"□\") & \"有\"","v":"□有"},null,"・",{"$f":"IF(入力シート!AB70,\"■\",\"□\") & \"無\"","v":"□無"}]
[]
[null,null,null,null,null,null,null,null,null,null,null,null,null,null,null,null,null,null,null,null,null,null,null,null,{"$f":"指定登録依頼書①!Y7","v":""},null,null,null,"年",{"$f":"指定登録依頼書①!AD7","v":""},null,"月",{"$f":"指定登録依頼書①!AG7","v":""},null,"日",null,null,null,null,null,null,null,null,null,null,null,null,null,"担当者",null,null,null,null,null,null,null,null,null,null,null,null,null,null,null,null,"TEL",null,null,null,null,null,null,null,null,"内部被ばく\n退域検査"]
["フリガナ（姓名間は空白）",null,null,null,null,null,null,null,null,null,null,null,null,null,null,null,null,null,null,null,null,null,null,null,null,null,null,null,null,null,null,null,null,null,null,null,null,null,null,null,null,null,null,null,null,null,null,null,{"$f":"指定登録依頼書①!AW8","v":""},null,null,null,null,null,null,null,null,null,null,null,null,null,null,null,null,{"$f":"指定登録依頼書①!BN8","v":""},null,null,null,null,null,null,null,null,null,null,null,null,{"$f":"指定登録依頼書①!CA8","v":"□要"},null,"・",{"$f":"指定登録依頼書①!CD8","v":"□不要"}]
[{"$f":"指定登録依頼書①!A9","v":" "}]
[null,null,null,null,null,null,null,null,null,null,null,null,null,null,null,null,null,null,"性　別",null,null,null,null,"国籍区分",null,null,null,null,null,null,null,null,null,null,null,null,null,null,null,null,null,null,null,null,null,null,null,null,"指定年月日",null,null,null,null,null,null,null,null,null,null,null,null,"指定解除予定年月日",null,null,null,null,null,null,null,null,null,null,null,null,"推定線量",null,null,null,null,null,"推定方法"]
["氏名（Name:Family First Middle）",null,null,null,null,null,null,null,null,null,null,null,null,null,null,null,null,null,{"$f":"指定登録依頼書①!S11","v":"□ 男（M）"},null,null,null,null,null,null,null,null,null,null,null,null,null,null,null,null,null,null,null,null,null,null,null,null,null,null,null,null,null,null,{"$f":"指定登録依頼書①!AX11","v":"平成"},null,{"$f":"指定登録依頼書①!AZ11","v":""},null,"年",{"$f":"指定登録依頼書①!BC11","v":""},null,"月",{"$f":"指定登録依頼書①!BF11","v":""},null,"日",null,null,{"$f":"指定登録依頼書①!BK11","v":"平成"},null,{"$f":"指定登録依頼書①!BM11","v":""},null,"年",{"$f":"指定登録依頼書①!BP11","v":""},null,"月",{"$f":"指定登録依頼書①!BS11","v":""},null,"日",null,"γ",null,{"$f":"入力シート!G61 & \"\"","v":""},null,null,null,{"$f":"IF(入力シート!AA64,\"■\",\"□\") & \" P D\"","v":"□ P D"}]
[{"$f":"指定登録依頼書①!A12","v":""},null,null,null,null,null,null,null,null,null,null,null,null,null,null,null,null,null,null,null,"・",null,null,null,{"$f":"指定登録依頼書①!Y12","v":"□ 55.日本人"},null,null,null,null,null,{"$f":"指定登録依頼書①!AE12","v":"□ 80.外国人"},null,null,null,null,null,null,null,null,null,null,null,null,null,null,null,null,null,null,null,null,null,null,null,null,null,null,null,null,null,null,"指定解除年月日",null,null,null,null,null,null,null,null,null,null,null,null,"n",null,{"$f":"入力シート!G62 & \"\"","v":""},null,null,null,{"$f":"IF(入力シート!AB64,\"■\",\"□\") & \" TLD\"","v":"□ TLD"}]
[null,null,null,null,null,null,null,null,null,null,null,null,null,null,null,null,null,null,{"$f":"指定登録依頼書①!S13","v":"□ 女（F）"},null,null,null,null,null,null,null,null,null,null,null,null,null,null,null,null,null,null,null,null,null,null,null,null,null,null,null,null,null,null,null,null,null,null,null,null,null,null,null,null,null,null,null,"平成",null,{"$f":"IF(入力シート!AA60=\"西暦\",\"\",\"\") & 入力シート!AB60 & \"\"","v":""},null,"年",{"$f":"入力シート!AC60 & \"\"","v":""},null,"月",{"$f":"入力シート!AD60 & \"\"","v":""},null,"日",null,"β",null,{"$f":"入力シート!G63 & \"\"","v":""},null,null,null,{"$f":"IF(入力シート!AC64,\"■\",\"□\") & \"計算\"","v":"□計算"}]
[null,"　本依頼書に記載した個人情報は、個人線量管理システム及び放射線従事者中央登録センターへの登録処理が行われ、被ばく前歴の把握などの一元管理に利用されます。登録情報は、個人情報保護法に基づき適切な管理が行われます。",null,null,null,null,null,null,null,null,null,null,null,null,null,null,null,null,null,null,null,null,null,null,null,null,null,null,null,null,null,null,null,null,null,null,null,null,null,null,null,null,null,null,null,null,null,null,"作業場所"]
[null,null,null,null,null,null,null,null,null,null,null,null,null,null,null,null,null,null,null,null,null,null,null,null,null,null,null,null,null,null,null,null,null,null,null,null,null,null,null,null,null,null,null,null,null,null,null,null,{"$f":"指定登録依頼書①!AW15","v":""}]
[]
["会社等（",null,"会社名（機構との契約先である会社又は大学等）",null,null,null,null,null,null,null,null,null,null,null,null,null,null,null,null,null,null,null,null,null,null,null,null,null,null,null,null,null,null,null,null,null,null,null,null,null,null,null,null,null,null,null,null,null,"作業内容",null,null,null,null,null,null,null,null,null,null,null,null,null,null,null,null,null,null,null,"作業種類",null,null,null,null,null,"被ばく管理担当課記入欄"]
[null,null,{"$f":"指定登録依頼書①!C18","v":"　"},null,null,null,null,null,null,null,null,null,null,null,null,null,null,null,null,null,null,null,null,null,null,null,null,null,null,null,null,null,null,null,null,null,null,null,null,null,null,null,null,null,null,null,null,null,{"$f":"指定登録依頼書①!AW18","v":""},null,null,null,null,null,null,null,null,null,null,null,null,null,null,null,null,null,null,null,"（下欄記号）",null,null,null,null,null,"内部被ばく\n検　査　印"]
[null,null,null,null,null,null,null,null,null,null,null,null,null,null,null,null,null,null,null,null,null,null,null,null,null,null,null,null,null,null,null,null,null,null,null,null,null,null,null,null,null,null,null,null,null,null,null,null,null,null,null,null,null,null,null,null,null,null,null,null,null,null,null,null,null,null,null,null,{"$f":"指定登録依頼書①!BQ19","v":""}]
[null,null,"所在地",null,null,"〒",{"$f":"指定登録依頼書①!G20","v":""},null,null,"-",{"$f":"指定登録依頼書①!K20","v":""},null,null,null,null,null,null,null,null,null,null,null,null,null,null,null,null,null,null,null,null,null,"電話番号",null,null,null,{"$f":"指定登録依頼書①!AK20","v":""},null,null,"(",{"$f":"指定登録依頼書①!AO20","v":""},null,null,")",{"$f":"指定登録依頼書①!AS20","v":""},null,null,null,null,null,null,null,null,null,null,null,null,null,null,null,null,null,null,null,null,null,null,null,null,null,null,null,null,null,"検 査 時 間",null,null,null,null,null,null,"："]
["は不要職員等",null,{"$f":"指定登録依頼書①!C21","v":""}]
[null,null,null,null,null,null,null,null,null,null,null,null,null,null,null,null,null,null,null,null,null,null,null,null,null,null,null,null,null,null,null,null,null,null,null,null,null,null,null,null,null,null,null,null,null,null,null,null,"作業者区分（下欄記号）",null,null,null,null,null,null,null,null,null,null,null,"放射線発生源（下欄記号）",null,null,null,null,null,null,null,null,null,null,null,null,null,"バッジ番号"]
[null,null,null,null,null,null,null,null,null,null,null,null,null,null,null,null,null,null,null,null,null,null,null,null,null,null,null,null,null,null,null,null,null,null,null,null,null,null,null,null,null,null,null,null,null,null,null,null,{"$f":"指定登録依頼書①!AW23","v":""},null,null,null,null,null,null,null,null,null,null,null,{"$f":"指定登録依頼書①!BI23","v":""}]
["）"]
[null,null,null,null,null,null,null,null,null,null,null,null,null,null,null,null,null,null,null,null,null,null,null,null,null,null,null,null,null,null,null,null,null,null,null,null,null,null,null,null,null,null,null,null,null,null,null,null,"作業者区分",null,null,null,null,null,null,null,null,null,null,null,"作業種類",null,null,null,null,null,null,null,null,null,null,null,null,null,"放射線発生源"]
[null,null,null,null,null,null,null,null,null,null,null,null,null,null,null,null,null,null,null,null,null,null,null,null,null,null,null,null,null,null,null,null,null,null,null,null,null,null,null,null,null,null,null,null,null,null,null,null,"A 職員\nB 常用用員\nC 臨時用員\nD 嘱託、\n  特別研究員、\n  出向職員、\n  専門研究員、\n  ﾘｻｰﾁﾌｪﾛｰ、\n  博士研究員、\n  任期付職員、\n  技術開発協力員、\n  特定課題推進員等\nE 非常勤職員\nF 役員\n",null,null,null,null,null,"G 外来研究員\nH 客員研究員\nI 協力研究員\nJ 開放研、\n  共同利用、\n  研究協力\nK 特別研究生\nL 学生研究生\nM 実習生\nN 留学生\nO 研修生\nQ 検査官\nS 年間契約に\n  基づく請負業者\nT S以外の請負業者",null,null,null,null,null,"A 研究・開発\nB 原子炉等の運転\nC 原子炉等の保守\nD 一般機械等の運転\nE RI等の製造、加工\nF RI等の分析、検査\nG RI等の輸送\nH RI等の保管、管理\nI 放射線管理、\n  安全管理\nJ 構内保安管理",null,null,null,null,null,null,"K 施設等の建設、\n  工事、解体\nL 管理区域内の清掃\nM 管理区域内の除染\nN 原子炉、\n  RI等の教育\nO 健康診断、医療\nP 機器等の製造、\n  管理\nQ 物品等の管理\nR 施設等の査察、\n  視察\nS 防護隊",null,null,null,null,null,null,"A 原子炉及び臨界集合体\nB 核燃料物質\n（核燃料による汚染物質を含む）\nC 密封されたRI（廃棄物を含む）\nD 非密封のRI（廃棄物を含む）\nE 加速器（電子顕微鏡を含む）\nF X線発生装置\nG 医療用X線発生装置\nH 核融合装置及びこれに付置\n  する加速器\n- 特定せず"]
[]
[]
[]
[]
[]
["注意事項"]
[null,"１．OSLバッジを必ず添付すること。\n２．借用中のOSLリングバッジ等がある場合は、同時に返却手続きを行うこと。\n３．職員等で、退職・出向・出向解除に伴い指定解除する場合は、放射線管理手帳にその旨を記入すること。"]
[]
[null,null,null,null,null,null,null,null,null,null,null,null,null,null,null,null,null,null,null,null,null,null,null,null,null,null,null,null,null,null,null,null,null,null,null,null,null,null,null,null,null,null,null,null,null,null,null,null,null,null,null,null,null,null,null,null,null,null,null,null,null,"原子炉等：加速器、核融合装置、廃棄物処理装置及びホットラボ等を含む\nRI等　　：核燃料及び廃棄物を含む"]
[]
[]
["被ばく管理担当課記入欄"]
[]
["測定線量\n(mSv)",null,null,null,null,null,null,"γ(X)",null,null,null,null,null,null,null,null,null,null,null,null,"n",null,null,null,null,null,null,null,null,null,null,null,null,"β",null,null,null,null,null,null,null,null,null,null,null,null,null,null,null,null,null,null,null,null,null,null,null,null,null,null,null,null,"被ばく管理担当部",null,null,null,null,null,null,null,null,null,null,null,"作業担当部"]
[null,null,null,null,null,null,null,{"$f":"\"\" & 入力シート!G75","v":""},null,null,null,null,null,null,null,null,null,null,null,null,{"$f":"\"\" & 入力シート!G76","v":""},null,null,null,null,null,null,null,null,null,null,null,null,{"$f":"\"\" & 入力シート!G77","v":""},null,null,null,null,null,null,null,null,null,null,null,null,null,null,null,null,null,null,null,null,null,null,null,null,null,null,null,null,"部長",null,null,null,null,"課長",null,null,null,null,null,null,"部長等",null,null,null,null,"課長等"]
[]
[null,null,null,null,null,null,null,null,null,null,null,null,null,null,null,null,null,null,null,null,null,null,null,null,null,null,null,null,null,null,null,null,null,"測定値確認",null,null,null,null,null,null,null,null,null,null,null,null,null,null,null,null,null,null,null,null,null,null,null,null,null,null,null,null,null,null,null,null,null,null,null,null,null,null,"←"]
[null,null,null,null,null,null,null,null,null,null,null,null,null,null,null,null,null,null,null,null,null,null,null,null,null,null,null,null,null,null,null,null,null,"印"]
[]
["日　　本　　原　　子　　力　　研　　究　　開　　発　　機　　構"]

{"sheet":"指定解除依頼書②","index":5,"n_rows":46,"n_cols":82,"rows_kept":46,"cut":false,"hidden":false,"merged":[[9,74,9,79],[9,80,9,83],[12,80,12,83],[11,80,11,83],[10,80,10,83],[10,74,10,75],[11,74,11,75],[10,76,10,79],[11,76,11,79],[2,48,2,83],[4,78,4,79],[4,81,4,83],[7,81,7,83],[6,74,8,77],[3,74,5,77],[7,78,7,79],[6,65,6,73],[3,65,3,72],[4,48,5,73],[17,48,20,67],[25,60,33,66],[14,74,15,83],[17,74,20,83],[22,76,23,77],[22,80,23,81],[21,74,21,83],[22,74,23,75],[22,78,23,79],[22,60,23,73],[21,60,21,73],[14,48,15,73],[12,64,12,65],[12,62,12,63],[10,67,10,68],[10,56,11,56],[10,57,11,58],[10,59,11,59],[10,53,11,53],[10,51,11,52],[40,74,40,78],[12,76,12,79],[12,74,12,75],[10,62,10,63],[10,64,10,65],[10,54,11,55],[40,79,40,83],[13,74,13,83],[16,74,16,83],[39,74,39,83],[22,82,23,83],[25,74,33,83],[24,74,24,83],[34,61,36,82],[16,48,16,67],[18,68,20,73],[0,2,0,35],[1,2,1,35],[2,0,2,47],[3,0,3,17],[3,36,3,47],[3,23,3,35],[4,40,6,41],[6,29,6,30],[10,18,10,22],[4,16,6,17],[4,8,6,9],[4,14,6,15],[4,2,6,3],[4,4,6,5],[4,6,6,7],[4,42,6,43],[4,46,6,47],[4,44,6,45],[9,18,9,22],[9,23,9,35],[8,0,9,17],[10,0,10,17],[45,0,45,83],[20,0,22,1],[23,0,23,1],[32,1,35,46],[20,2,23,47],[21,48,21,59],[22,48,23,59],[25,54,36,59],[19,6,19,8],[19,10,19,13],[16,0,19,1],[17,2,18,47],[16,2,16,47],[19,2,19,4],[19,32,19,35],[19,44,19,47],[19,40,19,42],[19,36,19,38],[16,68,16,73],[17,68,17,73],[24,60,24,73],[25,67,33,73],[25,48,36,53],[24,48,24,59],[13,1,15,46],[4,0,6,1],[9,48,9,60],[7,48,8,64],[6,48,6,64],[4,36,6,37],[4,10,6,11],[4,12,6,13],[4,38,6,39],[13,48,13,73],[6,32,6,33],[6,24,6,27],[7,0,7,17],[12,18,12,22],[9,61,9,73],[11,24,11,28],[11,0,12,17],[11,30,11,34],[7,65,8,73],[10,49,11,50],[10,70,10,71],[11,61,11,73],[12,67,12,68],[12,70,12,71]]}
[null,null,"指　定　解　除　登　録　依　頼　書　②"]
[null,null,"作業者→作業担当課室"]
["作　業　者　記　入　欄",null,null,null,null,null,null,null,null,null,null,null,null,null,null,null,null,null,null,null,null,null,null,null,null,null,null,null,null,null,null,null,null,null,null,null,null,null,null,null,null,null,null,null,null,null,null,null,"作  業  担  当  課  室  記  入  欄"]
["中　央　登　録　番　号",null,null,null,null,null,null,null,null,null,null,null,null,null,null,null,null,null,null,null,null,null,null,"生年月日（Date of Birth）",null,null,null,null,null,null,null,null,null,null,null,null,"職員番号(職員等のみ)",null,null,null,null,null,null,null,null,null,null,null,"作業担当部課室(職員等は所属部課室)",null,null,null,null,null,null,null,null,null,null,null,null,null,null,null,null,{"$f":"指定登録依頼書①!BN4","v":""},null,null,null,null,null,null,null,null,"中性子\n線量計"]
[{"$f":"指定登録依頼書①!A5","v":""},null,{"$f":"指定登録依頼書①!C5","v":""},null,"-",null,{"$f":"指定登録依頼書①!G5","v":""},null,{"$f":"指定登録依頼書①!I5","v":""},null,{"$f":"指定登録依頼書①!K5","v":""},null,{"$f":"指定登録依頼書①!M5","v":""},null,{"$f":"指定登録依頼書①!O5","v":""},null,{"$f":"指定登録依頼書①!Q5","v":""},null,null,null,null,null,null,null,null,null,null,null,null,null,null,null,null,null,null,null,{"$f":"指定登録依頼書①!AK5","v":""},null,{"$f":"指定登録依頼書①!AM5","v":""},null,{"$f":"指定登録依頼書①!AO5","v":""},null,{"$f":"指定登録依頼書①!AQ5","v":""},null,{"$f":"指定登録依頼書①!AS5","v":""},null,{"$f":"指定登録依頼書①!AU5","v":""},null,{"$f":"指定登録依頼書①!AW5","v":""},null,null,null,null,null,null,null,null,null,null,null,null,null,null,null,null,null,null,null,null,null,null,null,null,null,null,null,null,null,{"$f":"IF(入力シート!AA70,\"■\",\"□\") & \"有\"","v":"□有"},null,"・",{"$f":"IF(入力シート!AB70,\"■\",\"□\") & \"無\"","v":"□無"}]
[]
[null,null,null,null,null,null,null,null,null,null,null,null,null,null,null,null,null,null,null,null,null,null,null,null,{"$f":"指定登録依頼書①!Y7","v":""},null,null,null,"年",{"$f":"指定登録依頼書①!AD7","v":""},null,"月",{"$f":"指定登録依頼書①!AG7","v":""},null,"日",null,null,null,null,null,null,null,null,null,null,null,null,null,"担当者",null,null,null,null,null,null,null,null,null,null,null,null,null,null,null,null,"TEL",null,null,null,null,null,null,null,null,"内部被ばく\n退域検査"]
["フリガナ（姓名間は空白）",null,null,null,null,null,null,null,null,null,null,null,null,null,null,null,null,null,null,null,null,null,null,null,null,null,null,null,null,null,null,null,null,null,null,null,null,null,null,null,null,null,null,null,null,null,null,null,{"$f":"指定登録依頼書①!AW8","v":""},null,null,null,null,null,null,null,null,null,null,null,null,null,null,null,null,{"$f":"指定登録依頼書①!BN8","v":""},null,null,null,null,null,null,null,null,null,null,null,null,{"$f":"指定登録依頼書①!CA8","v":"□要"},null,"・",{"$f":"指定登録依頼書①!CD8","v":"□不要"}]
[{"$f":"指定登録依頼書①!A9","v":" "}]
[null,null,null,null,null,null,null,null,null,null,null,null,null,null,null,null,null,null,"性　別",null,null,null,null,"国籍区分",null,null,null,null,null,null,null,null,null,null,null,null,null,null,null,null,null,null,null,null,null,null,null,null,"指定年月日",null,null,null,null,null,null,null,null,null,null,null,null,"指定解除予定年月日",null,null,null,null,null,null,null,null,null,null,null,null,"推定線量",null,null,null,null,null,"推定方法"]
["氏名（Name:Family First Middle）",null,null,null,null,null,null,null,null,null,null,null,null,null,null,null,null,null,{"$f":"指定登録依頼書①!S11","v":"□ 男（M）"},null,null,null,null,null,null,null,null,null,null,null,null,null,null,null,null,null,null,null,null,null,null,null,null,null,null,null,null,null,null,{"$f":"指定登録依頼書①!AX11","v":"平成"},null,{"$f":"指定登録依頼書①!AZ11","v":""},null,"年",{"$f":"指定登録依頼書①!BC11","v":""},null,"月",{"$f":"指定登録依頼書①!BF11","v":""},null,"日",null,null,{"$f":"指定登録依頼書①!BK11","v":"平成"},null,{"$f":"指定登録依頼書①!BM11","v":""},null,"年",{"$f":"指定登録依頼書①!BP11","v":""},null,"月",{"$f":"指定登録依頼書①!BS11","v":""},null,"日",null,"γ",null,{"$f":"指定解除依頼書①!BY11","v":""},null,null,null,{"$f":"指定解除依頼書①!CC11","v":"□ P D"}]
[{"$f":"指定登録依頼書①!A12","v":""},null,null,null,null,null,null,null,null,null,null,null,null,null,null,null,null,null,null,null,"・",null,null,null,{"$f":"指定登録依頼書①!Y12","v":"□ 55.日本人"},null,null,null,null,null,{"$f":"指定登録依頼書①!AE12","v":"□ 80.外国人"},null,null,null,null,null,null,null,null,null,null,null,null,null,null,null,null,null,null,null,null,null,null,null,null,null,null,null,null,null,null,"指定解除年月日",null,null,null,null,null,null,null,null,null,null,null,null,"n",null,{"$f":"指定解除依頼書①!BY12","v":""},null,null,null,{"$f":"指定解除依頼書①!CC12","v":"□ TLD"}]
[null,null,null,null,null,null,null,null,null,null,null,null,null,null,null,null,null,null,{"$f":"指定登録依頼書①!S13","v":"□ 女（F）"},null,null,null,null,null,null,null,null,null,null,null,null,null,null,null,null,null,null,null,null,null,null,null,null,null,null,null,null,null,null,null,null,null,null,null,null,null,null,null,null,null,null,null,"平成",null,{"$f":"指定解除依頼書①!BM13","v":""},null,"年",{"$f":"指定解除依頼書①!BP13","v":""},null,"月",{"$f":"指定解除依頼書①!BS13","v":""},null,"日",null,"β",null,{"$f":"指定解除依頼書①!BY13","v":""},null,null,null,{"$f":"指定解除依頼書①!CC13","v":"□計算"}]
[null,"　本依頼書に記載した個人情報は、個人線量管理システム及び放射線従事者中央登録センターへの登録処理が行われ、被ばく前歴の把握などの一元管理に利用されます。登録情報は、個人情報保護法に基づき適切な管理が行われます。",null,null,null,null,null,null,null,null,null,null,null,null,null,null,null,null,null,null,null,null,null,null,null,null,null,null,null,null,null,null,null,null,null,null,null,null,null,null,null,null,null,null,null,null,null,null,"作業場所"]
[null,null,null,null,null,null,null,null,null,null,null,null,null,null,null,null,null,null,null,null,null,null,null,null,null,null,null,null,null,null,null,null,null,null,null,null,null,null,null,null,null,null,null,null,null,null,null,null,{"$f":"指定登録依頼書①!AW15","v":""}]
[]
["会社等（",null,"会社名（機構との契約先である会社又は大学等）",null,null,null,null,null,null,null,null,null,null,null,null,null,null,null,null,null,null,null,null,null,null,null,null,null,null,null,null,null,null,null,null,null,null,null,null,null,null,null,null,null,null,null,null,null,"作業内容",null,null,null,null,null,null,null,null,null,null,null,null,null,null,null,null,null,null,null,"作業種類",null,null,null,null,null,"被ばく管理担当課記入欄"]
[null,null,{"$f":"指定登録依頼書①!C18","v":"　"},null,null,null,null,null,null,null,null,null,null,null,null,null,null,null,null,null,null,null,null,null,null,null,null,null,null,null,null,null,null,null,null,null,null,null,null,null,null,null,null,null,null,null,null,null,{"$f":"指定登録依頼書①!AW18","v":""},null,null,null,null,null,null,null,null,null,null,null,null,null,null,null,null,null,null,null,"（下欄記号）"]
[null,null,null,null,null,null,null,null,null,null,null,null,null,null,null,null,null,null,null,null,null,null,null,null,null,null,null,null,null,null,null,null,null,null,null,null,null,null,null,null,null,null,null,null,null,null,null,null,null,null,null,null,null,null,null,null,null,null,null,null,null,null,null,null,null,null,null,null,{"$f":"指定登録依頼書①!BQ19","v":""}]
[null,null,"所在地",null,null,"〒",{"$f":"指定登録依頼書①!G20","v":""},null,null,"-",{"$f":"指定登録依頼書①!K20","v":""},null,null,null,null,null,null,null,null,null,null,null,null,null,null,null,null,null,null,null,null,null,"電話番号",null,null,null,{"$f":"指定登録依頼書①!AK20","v":""},null,null,"(",{"$f":"指定登録依頼書①!AO20","v":""},null,null,")",{"$f":"指定登録依頼書①!AS20","v":""}]
["は不要職員等",null,{"$f":"指定登録依頼書①!C21","v":""}]
[null,null,null,null,null,null,null,null,null,null,null,null,null,null,null,null,null,null,null,null,null,null,null,null,null,null,null,null,null,null,null,null,null,null,null,null,null,null,null,null,null,null,null,null,null,null,null,null,"作業者区分（下欄記号）",null,null,null,null,null,null,null,null,null,null,null,"放射線発生源（下欄記号）",null,null,null,null,null,null,null,null,null,null,null,null,null,"バッジ番号"]
[null,null,null,null,null,null,null,null,null,null,null,null,null,null,null,null,null,null,null,null,null,null,null,null,null,null,null,null,null,null,null,null,null,null,null,null,null,null,null,null,null,null,null,null,null,null,null,null,{"$f":"指定登録依頼書①!AW23","v":""},null,null,null,null,null,null,null,null,null,null,null,{"$f":"指定登録依頼書①!BI23","v":""}]
["）"]
[null,null,null,null,null,null,null,null,null,null,null,null,null,null,null,null,null,null,null,null,null,null,null,null,null,null,null,null,null,null,null,null,null,null,null,null,null,null,null,null,null,null,null,null,null,null,null,null,"作業者区分",null,null,null,null,null,null,null,null,null,null,null,"作業種類",null,null,null,null,null,null,null,null,null,null,null,null,null,"放射線発生源"]
[null,null,null,null,null,null,null,null,null,null,null,null,null,null,null,null,null,null,null,null,null,null,null,null,null,null,null,null,null,null,null,null,null,null,null,null,null,null,null,null,null,null,null,null,null,null,null,null,"A 職員\nB 常用用員\nC 臨時用員\nD 嘱託、\n  特別研究員、\n  出向職員、\n  専門研究員、\n  ﾘｻｰﾁﾌｪﾛｰ、\n  博士研究員、\n  任期付職員、\n  技術開発協力員、\n  特定課題推進員等\nE 非常勤職員\nF 役員\n",null,null,null,null,null,"G 外来研究員\nH 客員研究員\nI 協力研究員\nJ 開放研、\n  共同利用、\n  研究協力\nK 特別研究生\nL 学生研究生\nM 実習生\nN 留学生\nO 研修生\nQ 検査官\nS 年間契約に\n  基づく請負業者\nT S以外の請負業者",null,null,null,null,null,"A 研究・開発\nB 原子炉等の運転\nC 原子炉等の保守\nD 一般機械等の運転\nE RI等の製造、加工\nF RI等の分析、検査\nG RI等の輸送\nH RI等の保管、管理\nI 放射線管理、\n  安全管理\nJ 構内保安管理",null,null,null,null,null,null,"K 施設等の建設、\n  工事、解体\nL 管理区域内の清掃\nM 管理区域内の除染\nN 原子炉、\n  RI等の教育\nO 健康診断、医療\nP 機器等の製造、\n  管理\nQ 物品等の管理\nR 施設等の査察、\n  視察\nS 防護隊",null,null,null,null,null,null,"A 原子炉及び臨界集合体\nB 核燃料物質\n（核燃料による汚染物質を含む）\nC 密封されたRI（廃棄物を含む）\nD 非密封のRI（廃棄物を含む）\nE 加速器（電子顕微鏡を含む）\nF X線発生装置\nG 医療用X線発生装置\nH 核融合装置及びこれに付置\n  する加速器\n- 特定せず"]
[]
[]
[]
[]
[]
["注意事項"]
[null,"１．OSLバッジを必ず添付すること。\n２．借用中のリOSLングバッジ等がある場合は、同時に返却手続きを行うこと。\n３．職員等で、退職・出向・出向解除に伴い指定解除する場合は、放射線管理手帳にその旨を記入すること。"]
[]
[null,null,null,null,null,null,null,null,null,null,null,null,null,null,null,null,null,null,null,null,null,null,null,null,null,null,null,null,null,null,null,null,null,null,null,null,null,null,null,null,null,null,null,null,null,null,null,null,null,null,null,null,null,null,null,null,null,null,null,null,null,"原子炉等：加速器、核融合装置、廃棄物処理装置及びホットラボ等を含む\nRI等　　：核燃料及び廃棄物を含む"]
[]
[]
[]
[]
[null,null,null,null,null,null,null,null,null,null,null,null,null,null,null,null,null,null,null,null,null,null,null,null,null,null,null,null,null,null,null,null,null,null,null,null,null,null,null,null,null,null,null,null,null,null,null,null,null,null,null,null,null,null,null,null,null,null,null,null,null,null,null,null,null,null,null,null,null,null,null,null,null,null,"作業担当部"]
[null,null,null,null,null,null,null,null,null,null,null,null,null,null,null,null,null,null,null,null,null,null,null,null,null,null,null,null,null,null,null,null,null,null,null,null,null,null,null,null,null,null,null,null,null,null,null,null,null,null,null,null,null,null,null,null,null,null,null,null,null,null,null,null,null,null,null,null,null,null,null,null,null,null,"部長等",null,null,null,null,"課長等"]
[]
[]
[]
[]
["日　　本　　原　　子　　力　　研　　究　　開　　発　　機　　構"]

{"sheet":"指定解除依頼書③","index":6,"n_rows":46,"n_cols":82,"rows_kept":46,"cut":false,"hidden":false,"merged":[[13,48,13,73],[14,48,15,73],[19,2,19,4],[4,42,6,43],[32,1,35,46],[20,2,23,47],[4,0,6,1],[6,32,6,33],[6,24,6,27],[13,1,15,46],[4,44,6,45],[4,46,6,47],[4,38,6,39],[4,40,6,41],[4,36,6,37],[6,29,6,30],[10,67,10,68],[10,70,10,71],[9,61,9,73],[9,48,9,60],[7,48,8,64],[6,48,6,64],[11,61,11,73],[12,67,12,68],[12,70,12,71],[12,64,12,65],[7,0,7,17],[8,0,9,17],[10,0,10,17],[2,48,2,83],[4,78,4,79],[4,81,4,83],[7,81,7,83],[6,74,8,77],[3,74,5,77],[7,78,7,79],[6,65,6,73],[3,65,3,72],[7,65,8,73],[4,48,5,73],[9,74,9,79],[9,23,9,35],[11,30,11,34],[10,18,10,22],[12,18,12,22],[11,24,11,28],[11,0,12,17],[9,18,9,22],[0,2,0,35],[1,2,1,35],[2,0,2,47],[3,0,3,17],[3,36,3,47],[3,23,3,35],[4,2,6,3],[4,4,6,5],[4,6,6,7],[4,16,6,17],[4,8,6,9],[4,10,6,11],[4,12,6,13],[4,14,6,15],[20,0,22,1],[23,0,23,1],[34,61,36,82],[14,74,15,83],[24,48,24,59],[24,60,24,73],[25,67,33,73],[22,60,23,73],[22,48,23,59],[16,68,16,73],[16,48,16,67],[19,6,19,8],[19,10,19,13],[16,0,19,1],[17,2,18,47],[16,2,16,47],[40,74,40,78],[19,32,19,35],[19,40,19,42],[19,36,19,38],[25,54,36,59],[25,60,33,66],[19,44,19,47],[21,60,21,73],[18,68,20,73],[17,48,20,67],[25,48,36,53],[17,68,17,73],[21,48,21,59],[9,80,9,83],[12,80,12,83],[11,80,11,83],[10,80,10,83],[10,74,10,75],[11,74,11,75],[12,74,12,75],[10,76,10,79],[11,76,11,79],[12,76,12,79],[10,53,11,53],[12,62,12,63],[45,0,45,83],[10,49,11,50],[10,51,11,52],[10,62,10,63],[10,64,10,65],[10,54,11,55],[10,56,11,56],[10,57,11,58],[10,59,11,59],[17,74,20,83],[22,76,23,77],[22,80,23,81],[21,74,21,83],[22,74,23,75],[22,78,23,79],[40,79,40,83],[13,74,13,83],[16,74,16,83],[39,74,39,83],[22,82,23,83],[25,74,33,83],[24,74,24,83]]}
[null,null,"指　定　解　除　登　録　依　頼　書　③"]
[null,null,"作業者→作業担当課室→区域管理者"]
["作　業　者　記　入　欄",null,null,null,null,null,null,null,null,null,null,null,null,null,null,null,null,null,null,null,null,null,null,null,null,null,null,null,null,null,null,null,null,null,null,null,null,null,null,null,null,null,null,null,null,null,null,null,"作  業  担  当  課  室  記  入  欄"]
["中　央　登　録　番　号",null,null,null,null,null,null,null,null,null,null,null,null,null,null,null,null,null,null,null,null,null,null,"生年月日（Date of Birth）",null,null,null,null,null,null,null,null,null,null,null,null,"職員番号(職員等のみ)",null,null,null,null,null,null,null,null,null,null,null,"作業担当部課室(職員等は所属部課室)",null,null,null,null,null,null,null,null,null,null,null,null,null,null,null,null,{"$f":"指定登録依頼書①!BN4","v":""},null,null,null,null,null,null,null,null,"中性子\n線量計"]
[{"$f":"指定登録依頼書①!A5","v":""},null,{"$f":"指定登録依頼書①!C5","v":""},null,"-",null,{"$f":"指定登録依頼書①!G5","v":""},null,{"$f":"指定登録依頼書①!I5","v":""},null,{"$f":"指定登録依頼書①!K5","v":""},null,{"$f":"指定登録依頼書①!M5","v":""},null,{"$f":"指定登録依頼書①!O5","v":""},null,{"$f":"指定登録依頼書①!Q5","v":""},null,null,null,null,null,null,null,null,null,null,null,null,null,null,null,null,null,null,null,{"$f":"指定登録依頼書①!AK5","v":""},null,{"$f":"指定登録依頼書①!AM5","v":""},null,{"$f":"指定登録依頼書①!AO5","v":""},null,{"$f":"指定登録依頼書①!AQ5","v":""},null,{"$f":"指定登録依頼書①!AS5","v":""},null,{"$f":"指定登録依頼書①!AU5","v":""},null,{"$f":"指定登録依頼書①!AW5","v":""},null,null,null,null,null,null,null,null,null,null,null,null,null,null,null,null,null,null,null,null,null,null,null,null,null,null,null,null,null,{"$f":"IF(入力シート!AA70,\"■\",\"□\") & \"有\"","v":"□有"},null,"・",{"$f":"IF(入力シート!AB70,\"■\",\"□\") & \"無\"","v":"□無"}]
[]
[null,null,null,null,null,null,null,null,null,null,null,null,null,null,null,null,null,null,null,null,null,null,null,null,{"$f":"指定登録依頼書①!Y7","v":""},null,null,null,"年",{"$f":"指定登録依頼書①!AD7","v":""},null,"月",{"$f":"指定登録依頼書①!AG7","v":""},null,"日",null,null,null,null,null,null,null,null,null,null,null,null,null,"担当者",null,null,null,null,null,null,null,null,null,null,null,null,null,null,null,null,"TEL",null,null,null,null,null,null,null,null,"内部被ばく\n退域検査"]
["フリガナ（姓名間は空白）",null,null,null,null,null,null,null,null,null,null,null,null,null,null,null,null,null,null,null,null,null,null,null,null,null,null,null,null,null,null,null,null,null,null,null,null,null,null,null,null,null,null,null,null,null,null,null,{"$f":"指定登録依頼書①!AW8","v":""},null,null,null,null,null,null,null,null,null,null,null,null,null,null,null,null,{"$f":"指定登録依頼書①!BN8","v":""},null,null,null,null,null,null,null,null,null,null,null,null,{"$f":"指定登録依頼書①!CA8","v":"□要"},null,"・",{"$f":"指定登録依頼書①!CD8","v":"□不要"}]
[{"$f":"指定登録依頼書①!A9","v":" "}]
[null,null,null,null,null,null,null,null,null,null,null,null,null,null,null,null,null,null,"性　別",null,null,null,null,"国籍区分",null,null,null,null,null,null,null,null,null,null,null,null,null,null,null,null,null,null,null,null,null,null,null,null,"指定年月日",null,null,null,null,null,null,null,null,null,null,null,null,"指定解除予定年月日",null,null,null,null,null,null,null,null,null,null,null,null,"推定線量",null,null,null,null,null,"推定方法"]
["氏名（Name:Family First Middle）",null,null,null,null,null,null,null,null,null,null,null,null,null,null,null,null,null,{"$f":"指定登録依頼書①!S11","v":"□ 男（M）"},null,null,null,null,null,null,null,null,null,null,null,null,null,null,null,null,null,null,null,null,null,null,null,null,null,null,null,null,null,null,{"$f":"指定登録依頼書①!AX11","v":"平成"},null,{"$f":"指定登録依頼書①!AZ11","v":""},null,"年",{"$f":"指定登録依頼書①!BC11","v":""},null,"月",{"$f":"指定登録依頼書①!BF11","v":""},null,"日",null,null,{"$f":"指定登録依頼書①!BK11","v":"平成"},null,{"$f":"指定登録依頼書①!BM11","v":""},null,"年",{"$f":"指定登録依頼書①!BP11","v":""},null,"月",{"$f":"指定登録依頼書①!BS11","v":""},null,"日",null,"γ",null,{"$f":"指定解除依頼書①!BY11","v":""},null,null,null,{"$f":"指定解除依頼書①!CC11","v":"□ P D"}]
[{"$f":"指定登録依頼書①!A12","v":""},null,null,null,null,null,null,null,null,null,null,null,null,null,null,null,null,null,null,null,"・",null,null,null,{"$f":"指定登録依頼書①!Y12","v":"□ 55.日本人"},null,null,null,null,null,{"$f":"指定登録依頼書①!AE12","v":"□ 80.外国人"},null,null,null,null,null,null,null,null,null,null,null,null,null,null,null,null,null,null,null,null,null,null,null,null,null,null,null,null,null,null,"指定解除年月日",null,null,null,null,null,null,null,null,null,null,null,null,"n",null,{"$f":"指定解除依頼書①!BY12","v":""},null,null,null,{"$f":"指定解除依頼書①!CC12","v":"□ TLD"}]
[null,null,null,null,null,null,null,null,null,null,null,null,null,null,null,null,null,null,{"$f":"指定登録依頼書①!S13","v":"□ 女（F）"},null,null,null,null,null,null,null,null,null,null,null,null,null,null,null,null,null,null,null,null,null,null,null,null,null,null,null,null,null,null,null,null,null,null,null,null,null,null,null,null,null,null,null,"平成",null,{"$f":"指定解除依頼書①!BM13","v":""},null,"年",{"$f":"指定解除依頼書①!BP13","v":""},null,"月",{"$f":"指定解除依頼書①!BS13","v":""},null,"日",null,"β",null,{"$f":"指定解除依頼書①!BY13","v":""},null,null,null,{"$f":"指定解除依頼書①!CC13","v":"□計算"}]
[null,"　本依頼書に記載した個人情報は、個人線量管理システム及び放射線従事者中央登録センターへの登録処理が行われ、被ばく前歴の把握などの一元管理に利用されます。登録情報は、個人情報保護法に基づき適切な管理が行われます。",null,null,null,null,null,null,null,null,null,null,null,null,null,null,null,null,null,null,null,null,null,null,null,null,null,null,null,null,null,null,null,null,null,null,null,null,null,null,null,null,null,null,null,null,null,null,"作業場所"]
[null,null,null,null,null,null,null,null,null,null,null,null,null,null,null,null,null,null,null,null,null,null,null,null,null,null,null,null,null,null,null,null,null,null,null,null,null,null,null,null,null,null,null,null,null,null,null,null,{"$f":"指定登録依頼書①!AW15","v":""}]
[]
["会社等（",null,"会社名（機構との契約先である会社又は大学等）",null,null,null,null,null,null,null,null,null,null,null,null,null,null,null,null,null,null,null,null,null,null,null,null,null,null,null,null,null,null,null,null,null,null,null,null,null,null,null,null,null,null,null,null,null,"作業内容",null,null,null,null,null,null,null,null,null,null,null,null,null,null,null,null,null,null,null,"作業種類",null,null,null,null,null,"被ばく管理担当課記入欄"]
[null,null,{"$f":"指定登録依頼書①!C18","v":"　"},null,null,null,null,null,null,null,null,null,null,null,null,null,null,null,null,null,null,null,null,null,null,null,null,null,null,null,null,null,null,null,null,null,null,null,null,null,null,null,null,null,null,null,null,null,{"$f":"指定登録依頼書①!AW18","v":""},null,null,null,null,null,null,null,null,null,null,null,null,null,null,null,null,null,null,null,"（下欄記号）"]
[null,null,null,null,null,null,null,null,null,null,null,null,null,null,null,null,null,null,null,null,null,null,null,null,null,null,null,null,null,null,null,null,null,null,null,null,null,null,null,null,null,null,null,null,null,null,null,null,null,null,null,null,null,null,null,null,null,null,null,null,null,null,null,null,null,null,null,null,{"$f":"指定登録依頼書①!BQ19","v":""}]
[null,null,"所在地",null,null,"〒",{"$f":"指定登録依頼書①!G20","v":""},null,null,"-",{"$f":"指定登録依頼書①!K20","v":""},null,null,null,null,null,null,null,null,null,null,null,null,null,null,null,null,null,null,null,null,null,"電話番号",null,null,null,{"$f":"指定登録依頼書①!AK20","v":""},null,null,"(",{"$f":"指定登録依頼書①!AO20","v":""},null,null,")",{"$f":"指定登録依頼書①!AS20","v":""}]
["は不要職員等",null,{"$f":"指定登録依頼書①!C21","v":""}]
[null,null,null,null,null,null,null,null,null,null,null,null,null,null,null,null,null,null,null,null,null,null,null,null,null,null,null,null,null,null,null,null,null,null,null,null,null,null,null,null,null,null,null,null,null,null,null,null,"作業者区分（下欄記号）",null,null,null,null,null,null,null,null,null,null,null,"放射線発生源（下欄記号）",null,null,null,null,null,null,null,null,null,null,null,null,null,"バッジ番号"]
[null,null,null,null,null,null,null,null,null,null,null,null,null,null,null,null,null,null,null,null,null,null,null,null,null,null,null,null,null,null,null,null,null,null,null,null,null,null,null,null,null,null,null,null,null,null,null,null,{"$f":"指定登録依頼書①!AW23","v":""},null,null,null,null,null,null,null,null,null,null,null,{"$f":"指定登録依頼書①!BI23","v":""}]
["）"]
[null,null,null,null,null,null,null,null,null,null,null,null,null,null,null,null,null,null,null,null,null,null,null,null,null,null,null,null,null,null,null,null,null,null,null,null,null,null,null,null,null,null,null,null,null,null,null,null,"作業者区分",null,null,null,null,null,null,null,null,null,null,null,"作業種類",null,null,null,null,null,null,null,null,null,null,null,null,null,"放射線発生源"]
[null,null,null,null,null,null,null,null,null,null,null,null,null,null,null,null,null,null,null,null,null,null,null,null,null,null,null,null,null,null,null,null,null,null,null,null,null,null,null,null,null,null,null,null,null,null,null,null,"A 職員\nB 常用用員\nC 臨時用員\nD 嘱託、\n  特別研究員、\n  出向職員、\n  専門研究員、\n  ﾘｻｰﾁﾌｪﾛｰ、\n  博士研究員、\n  任期付職員、\n  技術開発協力員、\n  特定課題推進員等\nE 非常勤職員\nF 役員\n",null,null,null,null,null,"G 外来研究員\nH 客員研究員\nI 協力研究員\nJ 開放研、\n  共同利用、\n  研究協力\nK 特別研究生\nL 学生研究生\nM 実習生\nN 留学生\nO 研修生\nQ 検査官\nS 年間契約に\n  基づく請負業者\nT S以外の請負業者",null,null,null,null,null,"A 研究・開発\nB 原子炉等の運転\nC 原子炉等の保守\nD 一般機械等の運転\nE RI等の製造、加工\nF RI等の分析、検査\nG RI等の輸送\nH RI等の保管、管理\nI 放射線管理、\n  安全管理\nJ 構内保安管理",null,null,null,null,null,null,"K 施設等の建設、\n  工事、解体\nL 管理区域内の清掃\nM 管理区域内の除染\nN 原子炉、\n  RI等の教育\nO 健康診断、医療\nP 機器等の製造、\n  管理\nQ 物品等の管理\nR 施設等の査察、\n  視察\nS 防護隊",null,null,null,null,null,null,"A 原子炉及び臨界集合体\nB 核燃料物質\n（核燃料による汚染物質を含む）\nC 密封されたRI（廃棄物を含む）\nD 非密封のRI（廃棄物を含む）\nE 加速器（電子顕微鏡を含む）\nF X線発生装置\nG 医療用X線発生装置\nH 核融合装置及びこれに付置\n  する加速器\n- 特定せず"]
[]
[]
[]
[]
[]
["注意事項"]
[null,"１．OSLバッジを必ず添付すること。\n２．借用中のOSLリングバッジ等がある場合は、同時に返却手続きを行うこと。\n３．職員等で、退職・出向・出向解除に伴い指定解除する場合は、放射線管理手帳にその旨を記入すること。"]
[]
[null,null,null,null,null,null,null,null,null,null,null,null,null,null,null,null,null,null,null,null,null,null,null,null,null,null,null,null,null,null,null,null,null,null,null,null,null,null,null,null,null,null,null,null,null,null,null,null,null,null,null,null,null,null,null,null,null,null,null,null,null,"原子炉等：加速器、核融合装置、廃棄物処理装置及びホットラボ等を含む\nRI等　　：核燃料及び廃棄物を含む"]
[]
[]
[]
[]
[null,null,null,null,null,null,null,null,null,null,null,null,null,null,null,null,null,null,null,null,null,null,null,null,null,null,null,null,null,null,null,null,null,null,null,null,null,null,null,null,null,null,null,null,null,null,null,null,null,null,null,null,null,null,null,null,null,null,null,null,null,null,null,null,null,null,null,null,null,null,null,null,null,null,"作業担当部"]
[null,null,null,null,null,null,null,null,null,null,null,null,null,null,null,null,null,null,null,null,null,null,null,null,null,null,null,null,null,null,null,null,null,null,null,null,null,null,null,null,null,null,null,null,null,null,null,null,null,null,null,null,null,null,null,null,null,null,null,null,null,null,null,null,null,null,null,null,null,null,null,null,null,null,"部長等",null,null,null,null,"課長等"]
[]
[]
[]
[]
["日　　本　　原　　子　　力　　研　　究　　開　　発　　機　　構"]

{"sheet":"被ばく歴等証明書","index":7,"n_rows":56,"n_cols":36,"rows_kept":56,"cut":false,"hidden":false,"merged":[[11,0,11,35],[13,0,14,35],[17,0,17,7],[17,8,17,15],[17,16,17,21],[17,22,17,35],[16,0,16,15],[16,27,16,28],[22,0,22,5],[22,6,22,11],[22,30,22,35],[55,0,55,35],[15,8,15,15],[24,12,24,13],[26,12,26,13],[15,16,15,19],[26,14,27,15],[26,16,27,17],[18,29,19,29],[16,30,16,31],[18,30,19,32],[30,16,31,17],[18,0,19,15],[23,0,23,5],[23,6,23,11],[28,10,29,11],[30,1,30,3],[15,0,15,7],[16,22,16,25],[18,23,19,23],[18,24,19,26],[24,18,25,22],[24,24,24,26],[24,14,25,15],[20,0,21,35],[1,33,1,34],[2,0,3,35],[5,23,5,27],[6,23,8,35],[1,25,1,26],[1,27,1,28],[1,30,1,31],[9,23,9,27],[9,28,9,33],[26,6,26,11],[28,0,29,3],[28,6,29,9],[28,27,29,28],[28,14,29,15],[28,16,29,17],[28,4,29,5],[25,0,25,5],[22,12,22,17],[26,18,31,18],[30,14,31,15],[30,4,30,5],[30,7,30,9],[24,0,24,1],[26,0,26,5],[24,2,24,3],[24,4,24,5],[24,6,24,7],[24,16,25,17],[23,12,23,17],[25,9,25,11],[24,8,24,9],[24,10,24,11],[31,20,31,21],[30,23,31,26],[30,27,31,28],[30,30,30,31],[30,19,30,22],[31,34,31,35],[31,31,31,32],[34,24,35,35],[22,18,23,29],[23,30,23,35],[36,13,36,14],[36,15,36,16],[36,18,36,19],[36,21,36,22],[34,0,35,23],[26,27,27,28],[24,30,25,33],[26,19,27,22],[28,23,29,26],[28,19,29,22],[24,27,24,28],[26,23,27,26],[25,24,25,26],[26,30,29,35],[24,34,25,35],[28,12,28,13],[32,0,32,4],[32,5,33,24],[32,25,32,29],[33,0,33,4],[33,25,33,29],[30,10,30,11],[30,12,30,13],[32,30,33,35],[45,2,46,35],[49,0,53,0],[37,27,37,28],[37,30,37,31],[37,33,37,34],[41,0,41,8],[41,13,41,14],[41,15,41,16],[41,18,41,19],[41,21,41,22]]}
["様式４－１５　"]
[null,null,null,null,null,null,null,null,null,null,null,null,null,null,null,null,null,null,null,null,null,null,null,null,null,"平成",null,null,null,"年",null,null,"月",null,null,"日"]
["被 ば く 歴 等 証 明 書"]
[]
[]
[null,null,null,null,null,null,null,null,null,null,null,null,null,null,null,null,null,null,null,null,null,null,null,"証明者所属"]
[]
[]
[]
[null,null,null,null,null,null,null,null,null,null,null,null,null,null,null,null,null,null,null,null,null,null,null,"証明者氏名",null,null,null,null,null,null,null,null,null,null,"印"]
[]
["　下記の者の個人識別項目、被ばく前歴、教育訓練及び特殊健康診断の記録を証明します。"]
[]
["個　　人　　識　　別　　項　　目"]
[]
["フリガナ",null,null,null,null,null,null,null,null,null,null,null,null,null,null,null,"生年月日"]
[{"$f":"指定登録依頼書①!A9","v":" "},null,null,null,null,null,null,null,null,null,null,null,null,null,null,null,null,null,null,null,null,null,{"$f":"指定登録依頼書①!Y7","v":""},null,null,null,"年",{"$f":"指定登録依頼書①!AD7","v":""},null,"月",{"$f":"指定登録依頼書①!AG7","v":""},null,"日"]
["氏名",null,null,null,null,null,null,null,null,null,null,null,null,null,null,null,"　　性　　別",null,null,null,null,null,"　国籍区分"]
[{"$f":"指定登録依頼書①!A12","v":""},null,null,null,null,null,null,null,null,null,null,null,null,null,null,null,null,null,{"$f":"IF(入力シート!AA8,\"■\",\"□\")","v":"□"},"男性",null,null,null,{"$f":"IF(入力シート!AA11,\"■\",\"□\")","v":"□"},"日本人",null,null,null,null,{"$f":"IF(入力シート!AB11,\"■\",\"□\")","v":"□"},"外国人"]
[null,null,null,null,null,null,null,null,null,null,null,null,null,null,null,null,null,null,{"$f":"IF(入力シート!AB8,\"■\",\"□\")","v":"□"},"女性"]
["被　ば　く　前　歴　注1）　（　該　当　無　し　は　空　白　）"]
[]
["昭和63年度まで",null,null,null,null,null,"平成元年度以降",null,null,null,null,null,"前年度までの過去",null,null,null,null,null,"今年度の集計",null,null,null,null,null,null,null,null,null,null,null,"今四半期の集計"]
["集積線量",null,null,null,null,null,"実効線量",null,null,null,null,null,"４年間の実効線量",null,null,null,null,null,null,null,null,null,null,null,null,null,null,null,null,null,"（女子のみ）"]
[{"$f":"指定登録依頼書①!C27","v":"昭和"},null,{"$f":"指定登録依頼書①!E27","v":""},null,"年度～",null,{"$f":"指定登録依頼書①!J27","v":"平成"},null,{"$f":"指定登録依頼書①!L27","v":""},null,"年度",null,{"$f":"指定登録依頼書①!Q27","v":"平成"},null,{"$f":"指定登録依頼書①!U27","v":""},null,"ｍSv",null,"実効線量",null,null,null,null,null,{"$f":"指定登録依頼書①!AH27","v":""},null,null,"ｍSv",null,null,{"$f":"指定登録依頼書①!AN27","v":""},null,null,null,"ｍSv"]
["昭和63年度まで",null,null,null,null,null,null,null,"～","前年度",null,null,{"$f":"指定登録依頼書①!Q28","v":""},"年",null,null,null,null,null,null,null,null,null,"(",{"$f":"指定登録依頼書①!AI28","v":""},null,null,"x)"]
["集積線量",null,null,null,null,null,"実効線量の合計",null,null,null,null,null,{"$f":"指定登録依頼書①!Q29","v":"平成"},null,{"$f":"指定登録依頼書①!U29","v":""},null,"ｍSv",null,"等価線量","皮　膚",null,null,null,{"$f":"指定登録依頼書①!AH29","v":""},null,null,null,"ｍSv",null,null,"妊娠中の女子は妊娠からの被ばく歴を別添で提出する。"]
[null,null,null,null,null,null,null,null,null,null,null,null,{"$f":"指定登録依頼書①!Q30","v":""},"年"]
[{"$f":"指定登録依頼書①!C30","v":""},null,null,null,"mrem",null,{"$f":"指定登録依頼書①!J30","v":""},null,null,null,"ｍSv",null,{"$f":"指定登録依頼書①!Q31","v":"平成"},null,{"$f":"指定登録依頼書①!U31","v":""},null,"ｍSv",null,null,"眼　の　　　   　　水晶体",null,null,null,{"$f":"指定登録依頼書①!AH31","v":""},null,null,null,"ｍSv"]
[null,null,null,null,null,null,null,null,null,null,null,null,{"$f":"指定登録依頼書①!Q32","v":""},"年"]
["（",{"$f":"指定登録依頼書①!D32","v":""},null,null,"X）",null,"（",{"$f":"指定登録依頼書①!K32","v":""},null,null,"X）",null,{"$f":"指定登録依頼書①!Q33","v":"平成"},null,{"$f":"指定登録依頼書①!U33","v":""},null,"ｍSv",null,null,"その他",null,null,null,{"$f":"指定登録依頼書①!AH33","v":""},null,null,null,"ｍSv",null,null,"別添"]
[null,null,null,null,null,null,null,null,null,null,null,null,{"$f":"指定登録依頼書①!Q34","v":""},"年",null,null,null,null,null,"（",{"$f":"指定登録依頼書①!AD34","v":""},null,"）",null,null,null,null,null,null,null,null,{"$f":"指定登録依頼書①!AQ33","v":"□ 有"},null,"･",{"$f":"指定登録依頼書①!AT33","v":"□ 無"}]
["主な作業",null,null,null,null,{"$f":"指定登録依頼書①!C36","v":""},null,null,null,null,null,null,null,null,null,null,null,null,null,null,null,null,null,null,null,"     主な作業　",null,null,null,null,{"$f":"指定登録依頼書①!AH36","v":""}]
["事 業 所",null,null,null,null,null,null,null,null,null,null,null,null,null,null,null,null,null,null,null,null,null,null,null,null,"     種類記号注2）"]
["教　育　訓　練　歴",null,null,null,null,null,null,null,null,null,null,null,null,null,null,null,null,null,null,null,null,null,null,null,"特　殊　健　康　診　断　歴"]
[]
["　放射線障害防止法関係教育注3）",null,null,null,null,null,null,null,null,null,null,null,"実施年月日","平成",null,null,null,"年",null,null,"月",null,null,"日","　実施年月日注5）"]
[null,"□","　放射線の人体に与える影響",null,null,null,null,null,null,null,null,null,null,null,null,null,null,null,null,null,null,null,null,null,null,"平成",null,{"$f":"指定登録依頼書①!U40","v":""},null,"年",{"$f":"指定登録依頼書①!X40","v":""},null,"月",{"$f":"指定登録依頼書①!AA40","v":""},null,"日"]
[null,"□","　放射線同位元素又は放射線発生装置の安全取扱"]
[null,"□","　放射線同位元素又は放射線発生装置のによる放射線障害防止に関する法令",null,null,null,null,null,null,null,null,null,null,null,null,null,null,null,null,null,null,null,null,null,"　　診断結果"]
[null,"□","　放射線障害予防規程",null,null,null,null,null,null,null,null,null,null,null,null,null,null,null,null,null,null,null,null,null,null,null,null,null,{"$f":"IF(入力シート!AA46,\"■\",\"□\")","v":"□"},"従事可"]
["　特別教育注4）",null,null,null,null,null,null,null,null,null,null,null,"実施年月日","平成",null,{"$f":"指定登録依頼書①!F44","v":""},null,"年",{"$f":"指定登録依頼書①!I44","v":""},null,"月",{"$f":"指定登録依頼書①!L44","v":""},null,"日",null,null,null,null,{"$f":"IF(入力シート!AB46,\"■\",\"□\")","v":"□"},"従事不可"]
["注","1）","今年度とは、指定登録日の属する年度、前年度はその年度の前年度とする（今四半期も同様）。"]
["注","2）","下記の作業種類記号より選択して記号を記載すること。"]
["注","3）","放射線障害防止法関係の教育は、1年以内に実施した項目がある場合のみ記載すること。"]
["注","4）","原子炉施設又は核燃料使用施設等の管理区域において、核燃料物質等を取り扱う業務に従事する者で労働安全衛生法の適用を受ける者は、労働安全衛生法第59条第3項の特別教育の実施日を記載すること。"]
[]
["注","5）","労働安全衛生法の適用を受ける者は指定日まで6月以内、それ以外の者は1年以内に実施した特殊健康診断の結果を記載すること。"]
[]
["作業種類記号",null,"A","研究・開発",null,null,null,null,null,null,"F","RI等の分析、検査",null,null,null,null,null,null,"K","施設等の建設、工事、解体",null,null,null,null,null,null,"P","機器等の製造、管理"]
[null,null,"B","原子炉等の運転",null,null,null,null,null,null,"G","RI等の輸送",null,null,null,null,null,null,"L","管理区域の清掃",null,null,null,null,null,null,"Q","物品等の管理"]
[null,null,"C","原子炉等の保守",null,null,null,null,null,null,"H","RI等の保管、管理",null,null,null,null,null,null,"M","管理区域の除染",null,null,null,null,null,null,"R","施設等の査察、視察"]
[null,null,"D","一般機械等の運転",null,null,null,null,null,null,"I","放射線管理、安全管理",null,null,null,null,null,null,"N","原子炉、RI等の教育"]
[null,null,"E","RI等の製造、加工",null,null,null,null,null,null,"J","構内保安管理",null,null,null,null,null,null,"O","健康診断、医療"]
[]
["日　　本　　原　　子　　力　　研　　究　　開　　発　　機　　構"]

{"sheet":"記号項目","index":8,"n_rows":1241,"n_cols":28,"rows_kept":1241,"cut":false,"hidden":false,"merged":[]}
["大正",1,1,"A","研究・開発",{"$f":"D1&\"．\"&E1","v":"A．研究・開発"},"A","職員",{"$f":"G1&\"．\"&H1","v":"A．職員"},"A","原子炉及び臨界集合体",{"$f":"J1&\"．\"&K1","v":"A．原子炉及び臨界集合体"},"BA1","（旧）第１研究棟",null,"組織コード","課室名",{"$f":"P1&\"．\"&Q1","v":"組織コード．課室名"},null,null,null,null,null,null,null,"拠点コード","組織コード","課室名"]
["昭和",2,2,"B","原子炉等の運転","B．原子炉等の運転","B","常用","B．常用","B","核燃料物質(汚染物質を含む)","B．核燃料物質(汚染物質を含む)","BA2","第２研究棟",null,null,null,"．",null,null,null,null,6,"東海駐在",null,1,"01000000","（本　部）"]
["平成",3,3,"C","原子炉等の保守","C．原子炉等の保守","C","臨時","C．臨時","C","密封されたRI(廃棄物を含む)","C．密封されたRI(廃棄物を含む)","BA3","（旧）第３研究棟",null,null,null,"．",null,null,null,null,3,"東海管理センター",null,1,"01022000","原子力機構改革本部"]
["西暦",4,4,"D","一般機械等の運転","D．一般機械等の運転","D","嘱特出","D．嘱特出","D","非密封のRI(廃棄物)","D．非密封のRI(廃棄物)","BA4","荒谷台診療所",null,null,null,"．",null,null,null,null,4,"原子力科学研究所",null,1,"01022001","原子力機構改革本部 原子力機構改革室"]
[null,5,5,"E","RI等の製造、加工","E．RI等の製造、加工","E","非常勤","E．非常勤","E","加速器(電子顕微鏡を含む)","E．加速器(電子顕微鏡を含む)","BA5","放射線標準施設棟",null,null,null,"．",null,null,null,null,5,"核燃料サイクル工学研究所",null,1,"01024000","もんじゅ安全・改革本部"]
[null,6,6,"F","RI等の分析、検査","F．RI等の分析、検査","F","役員","F．役員","F","X線発生装置","F．X線発生装置","BA6","第４研究棟",null,null,null,"．",null,null,null,null,7,"大洗研究開発センター",null,1,"01024001","もんじゅ安全・改革本部 もんじゅ安全・改革室"]
[null,7,7,"G","RI等の輸送","G．RI等の輸送","G","外来研","G．外来研","G","医療用X線発生装置","G．医療用X線発生装置","BA7","（旧）体内ＲＩ分析建",null,null,null,"．",null,null,null,null,8,"敦賀本部",null,1,"01045000","戦略企画室"]
[null,8,8,"H","RI等の保管、管理","H．RI等の保管、管理","H","客員研","H．客員研","H","核融合装置および付置する加速器","H．核融合装置および付置する加速器","BB1","（旧）ＦＥＬ（２Ｍ）",null,null,null,"．",null,null,null,null,9,"那珂核融合研究所",null,1,"01045001","戦略企画室 秘書課"]
[null,9,9,"I","放射線管理、安全管理","I．放射線管理、安全管理","I","協力研","I．協力研","-","特定せず(構内全域のため)","-．特定せず(構内全域のため)","BB2","ＦＥＬ研究棟（５Ｍ）",null,null,null,"．",null,null,null,null,10,"高崎量子応用研究所",null,1,"01009000","安全・核セキュリティ統括部"]
[null,10,10,"J","構内、船内の保安管理","J．構内、船内の保安管理","J","開放研","J．開放研","*","不明","*．不明","BB3","タンデム加速器建家",null,null,null,"．",null,null,null,null,11,"関西光科学研究所",null,1,"01009007","安全・核セキュリティ統括部 安全・核セキュリティ推進室"]
[null,11,11,"K","施設等の建設、工事","K．施設等の建設、工事","K","特別研","K．特別研","","","","BB4","超高圧電子顕微鏡建家",null,null,null,"．",null,null,null,null,12,"幌延深地層研究センター",null,1,"01009001","安全・核セキュリティ統括部 安全・環境課"]
[null,12,12,"L","管理区域の清掃","L．管理区域の清掃","L","学生研","L．学生研",null,null,null,"BB5","工作工場",null,null,null,"．",null,null,null,null,13,"東濃地科学センター",null,1,"01009003","安全・核セキュリティ統括部 品質保証課"]
[null,null,13,"M","管理区域の除染","M．管理区域の除染","M","実習生","M．実習生",null,null,null,"BB6","使用済燃料貯蔵施設",null,null,null,"．",null,null,null,null,14,"人形峠環境技術センター",null,1,"01009006","安全・核セキュリティ統括部 核セキュリティ・保障措置課"]
[null,null,14,"N","原子炉、RI等の教育","N．原子炉、RI等の教育","N","留学生","N．留学生",null,null,null,"BB7","（旧）廃棄物埋設実",null,null,null,"．",null,null,null,null,15,"青森研究開発センター",null,1,"01009002","安全・核セキュリティ統括部 危機管理課"]
[null,null,15,"O","健康診断、医療","O．健康診断、医療","O","研修生","O．研修生",null,null,null,"BB8","第２保管廃棄施設",null,null,null,"．",null,null,null,null,1,"本部",null,1,"01023000","安全統括部(廃止)"]
[null,null,16,"P","機器等の製造、管理","P．機器等の製造、管理","Q","検査官","Q．検査官",null,null,null,"BC1","（旧）セラミック特研",null,null,null,"．",null,null,null,null,2,"東京駐在",null,1,"01023001","安全統括部(廃止) 安全課(廃止)"]
[null,null,17,"Q","物品の管理","Q．物品の管理","R","見学者","R．見学者",null,null,null,"BC2","（旧）冶金特研",null,null,null,"．",null,null,null,null,null,null,null,1,"01023002","安全統括部(廃止) 保安管理課(廃止)"]
[null,null,18,"R","施設の査察","R．施設の査察","S","請負1","S．請負1",null,null,null,"BC3","材料試験室",null,null,null,"．",null,null,null,null,null,null,null,1,"01023003","安全統括部(廃止) 施設品質課(廃止)"]
[null,null,19,"S","防護隊","S．防護隊","T","請負2","T．請負2",null,null,null,"BC4","（旧）非破壊測定実験",null,null,null,"．",null,null,null,null,null,null,null,1,"01023004","安全統括部(廃止) 環境配慮促進課(廃止)"]
[null,null,20,"*","不明","*．不明","*","不明","*．不明",null,null,null,"BC5","（旧）ＪＦＴ－２建家",null,null,null,"．",null,null,null,null,null,null,null,1,"01023005","安全統括部(廃止) 技術調整室(廃止)"]
[null,null,21,"","","","","","",null,null,null,"BC6","（旧）核融合特研",null,null,null,"．",null,null,null,null,null,null,null,1,"01004000","法務監査部"]
[null,null,22,null,null,null,null,null,null,null,null,null,"BD1","（旧）機械化工特研",null,null,null,"．",null,null,null,null,null,null,null,1,"01004001","法務監査部 法務リスク管理課"]
[null,null,23,null,null,null,null,null,null,null,null,null,"BD2","（旧）高温ガスループ",null,null,null,"．",null,null,null,null,null,null,null,1,"01004002","法務監査部 監査課"]
[null,null,24,null,null,null,null,null,null,null,null,null,"BD3","モックアップ建家",null,null,null,"．",null,null,null,null,null,null,null,1,"01004003","法務監査部 原子力安全監査課"]
[null,null,25,null,null,null,null,null,null,null,null,null,"BD4","（旧）ＶＨＴＲＣ",null,null,null,"．",null,null,null,null,null,null,null,1,"01001000","事業計画統括部"]
[null,null,26,null,null,null,null,null,null,null,null,null,"BD5","（旧）ＡＨＲ",null,null,null,"．",null,null,null,null,null,null,null,1,"01001002","事業計画統括部 評価室"]
[null,null,27,null,null,null,null,null,null,null,null,null,"BD6","原子炉特研",null,null,null,"．",null,null,null,null,null,null,null,1,"01002000","総務部"]
[null,null,28,null,null,null,null,null,null,null,null,null,"BD7","（旧）化学実験室",null,null,null,"．",null,null,null,null,null,null,null,1,"01002001","総務部 総務課"]
[null,null,29,null,null,null,null,null,null,null,null,null,"BD8","（旧）同位体分離施設",null,null,null,"．",null,null,null,null,null,null,null,1,"01002002","総務部 文書課"]
[null,null,30,null,null,null,null,null,null,null,null,null,"BD9","（旧）開発試験室４室",null,null,null,"．",null,null,null,null,null,null,null,1,"01005000","人事部"]
[null,null,31,null,null,null,null,null,null,null,null,null,"BE1","（旧）Ｃｏ６０照射室",null,null,null,"．",null,null,null,null,null,null,null,1,"01005001","人事部 人事課"]
[null,null,null,null,null,null,null,null,null,null,null,null,"BE2","リニアック建家",null,null,null,"．",null,null,null,null,null,null,null,1,"01005002","人事部 給与課"]
[null,null,null,null,null,null,null,null,null,null,null,null,"BE3","ＪＲＲ－１",null,null,null,"．",null,null,null,null,null,null,null,1,"01005004","人事部 職員課"]
[null,null,null,null,null,null,null,null,null,null,null,null,"BE4","原科研　ホットラボ",null,null,null,"．",null,null,null,null,null,null,null,1,"01007000","財務部"]
[null,null,null,null,null,null,null,null,null,null,null,null,"BE5","ＪＲＲ－２",null,null,null,"．",null,null,null,null,null,null,null,1,"01007001","財務部 財務課"]
[null,null,null,null,null,null,null,null,null,null,null,null,"BE6","（旧）炉管理部格納庫",null,null,null,"．",null,null,null,null,null,null,null,1,"01007002","財務部 経理課"]
[null,null,null,null,null,null,null,null,null,null,null,null,"BE7","核燃料倉庫",null,null,null,"．",null,null,null,null,null,null,null,1,"01007003","財務部 資金課"]
[null,null,null,null,null,null,null,null,null,null,null,null,"BE8","ＪＲＲ３実験利用２棟",null,null,null,"．",null,null,null,null,null,null,null,1,"01007004","財務部 管財課"]
[null,null,null,null,null,null,null,null,null,null,null,null,"BE9","陽子加速器開発棟",null,null,null,"．",null,null,null,null,null,null,null,1,"01008000","契約部"]
[null,null,null,null,null,null,null,null,null,null,null,null,"BF1","ＲＩ製造棟",null,null,null,"．",null,null,null,null,null,null,null,1,"01008001","契約部 契約調整課"]
[null,null,null,null,null,null,null,null,null,null,null,null,"BF2","（旧）梱包発送室",null,null,null,"．",null,null,null,null,null,null,null,1,"01008002","契約部 契約第１課"]
[null,null,null,null,null,null,null,null,null,null,null,null,"BF3","ＪＲＲ－３",null,null,null,"．",null,null,null,null,null,null,null,1,"01008003","契約部 契約第２課"]
[null,null,null,null,null,null,null,null,null,null,null,null,"BF4","ＪＲＲ－４",null,null,null,"．",null,null,null,null,null,null,null,1,"01008004","契約部 契約第３課"]
[null,null,null,null,null,null,null,null,null,null,null,null,"BF5","（旧）高温工学特研",null,null,null,"．",null,null,null,null,null,null,null,1,"01008005","契約部 審査課"]
[null,null,null,null,null,null,null,null,null,null,null,null,"BF6","（旧）高温構造機器棟",null,null,null,"．",null,null,null,null,null,null,null,1,"01010000","広報部"]
[null,null,null,null,null,null,null,null,null,null,null,null,"BF7","トリチウムプロセス棟",null,null,null,"．",null,null,null,null,null,null,null,1,"01010001","広報部 広報課"]
[null,null,null,null,null,null,null,null,null,null,null,null,"BF8","高度環境分析研究棟",null,null,null,"．",null,null,null,null,null,null,null,1,"01010002","広報部 報道課"]
[null,null,null,null,null,null,null,null,null,null,null,null,"BG1","（旧）ナトリウム特研",null,null,null,"．",null,null,null,null,null,null,null,1,"01010003","広報部 情報公開課"]
[null,null,null,null,null,null,null,null,null,null,null,null,"BG2","プルトニウム研究１棟",null,null,null,"．",null,null,null,null,null,null,null,1,"01011000","産学連携推進部"]
[null,null,null,null,null,null,null,null,null,null,null,null,"BG3","（旧）フッ素実験室",null,null,null,"．",null,null,null,null,null,null,null,1,"01011001","産学連携推進部 産学連携推進課"]
[null,null,null,null,null,null,null,null,null,null,null,null,"BH1","再処理特別研究棟",null,null,null,"．",null,null,null,null,null,null,null,1,"01011002","産学連携推進部 研究協力課"]
[null,null,null,null,null,null,null,null,null,null,null,null,"BH2","（旧）プル研究２棟",null,null,null,"．",null,null,null,null,null,null,null,1,"01011004","産学連携推進部 知的財産管理・利用促進課"]
[null,null,null,null,null,null,null,null,null,null,null,null,"BH3","（旧）再処理試験室",null,null,null,"．",null,null,null,null,null,null,null,1,"01012000","国際部"]
[null,null,null,null,null,null,null,null,null,null,null,null,"BH4","原科研　廃棄物処理場",null,null,null,"．",null,null,null,null,null,null,null,1,"01012001","国際部 国際協力課"]
[null,null,null,null,null,null,null,null,null,null,null,null,"BH5","汚染除去場",null,null,null,"．",null,null,null,null,null,null,null,1,"01012003","国際部 ワシントン事務所"]
[null,null,null,null,null,null,null,null,null,null,null,null,"BH6","廃棄物安全試験施設",null,null,null,"．",null,null,null,null,null,null,null,1,"01012004","国際部 パリ事務所"]
[null,null,null,null,null,null,null,null,null,null,null,null,"BH7","環境シミュレーション",null,null,null,"．",null,null,null,null,null,null,null,1,"01012005","国際部 ウィーン事務所"]
[null,null,null,null,null,null,null,null,null,null,null,null,"BH8","（旧）ＮＵＣＥＦ",null,null,null,"．",null,null,null,null,null,null,null,1,"01013000","建設部"]
[null,null,null,null,null,null,null,null,null,null,null,null,"BI1","廃液操作室（含再処理",null,null,null,"．",null,null,null,null,null,null,null,1,"01013001","建設部 業務課"]
[null,null,null,null,null,null,null,null,null,null,null,null,"BI2","ウラン濃縮研究棟",null,null,null,"．",null,null,null,null,null,null,null,1,"01013002","建設部 施設技術課"]
[null,null,null,null,null,null,null,null,null,null,null,null,"BI3","廃液長期貯蔵施設",null,null,null,"．",null,null,null,null,null,null,null,1,"01013003","建設部 建設課"]
[null,null,null,null,null,null,null,null,null,null,null,null,"BI4","（旧）廃処理処分開発",null,null,null,"．",null,null,null,null,null,null,null,1,"01013004","建設部 設備課"]
[null,null,null,null,null,null,null,null,null,null,null,null,"BI5","（旧）ＲＡＮＤＥＦ棟",null,null,null,"．",null,null,null,null,null,null,null,1,"01013007","建設部 耐震対応整備室"]
[null,null,null,null,null,null,null,null,null,null,null,null,"BI6","ＳＴＡＣＹ",null,null,null,"．",null,null,null,null,null,null,null,1,"01013005","建設部 大洗大型施設建設室"]
[null,null,null,null,null,null,null,null,null,null,null,null,"BI7","ＴＲＡＣＹ",null,null,null,{"$f":"P65&\"．\"&Q65","v":"．"},null,null,null,null,null,null,null,1,"01014000","研究技術情報部"]
[null,null,null,null,null,null,null,null,null,null,null,null,"BI8","ＢＥＣＫＹ",null,null,null,"．",null,null,null,null,null,null,null,1,"01014001","研究技術情報部 研究技術情報課"]
[null,null,null,null,null,null,null,null,null,null,null,null,"BJ1","ＦＣＡ",null,null,null,"．",null,null,null,null,null,null,null,1,"01014002","研究技術情報部 情報メディア管理課"]
[null,null,null,null,null,null,null,null,null,null,null,null,"BJ2","ＴＣＡ",null,null,null,"．",null,null,null,null,null,null,null,1,"01014003","研究技術情報部 原子力情報システム管理課"]
[null,null,null,null,null,null,null,null,null,null,null,null,"BJ3","（旧）ＪＰＤＲ",null,null,null,"．",null,null,null,null,null,null,null,1,"01015000","システム計算科学センター"]
[null,null,null,null,null,null,null,null,null,null,null,null,"BJ4","（旧）電源特会施設",null,null,null,"．",null,null,null,null,null,null,null,1,"01015007","システム計算科学センター 情報システム企画室"]
[null,null,null,null,null,null,null,null,null,null,null,null,"BJ5","ＮＳＲＲ",null,null,null,"．",null,null,null,null,null,null,null,1,"01015002","システム計算科学センター 情報システム利用推進室"]
[null,null,null,null,null,null,null,null,null,null,null,null,"BJ6","燃料試験施設",null,null,null,"．",null,null,null,null,null,null,null,1,"01015003","システム計算科学センター 情報システム管理室"]
[null,null,null,null,null,null,null,null,null,null,null,null,"BJ7","（旧）大型再冠水実験",null,null,null,"．",null,null,null,null,null,null,null,1,"01015004","システム計算科学センター OAシステム室"]
[null,null,null,null,null,null,null,null,null,null,null,null,"BJ8","ＦＮＳ建家",null,null,null,"．",null,null,null,null,null,null,null,1,"01015005","システム計算科学センター 高度計算機技術開発室"]
[null,null,null,null,null,null,null,null,null,null,null,null,"BJ9","（旧）配管信頼性試験",null,null,null,"．",null,null,null,null,null,null,null,1,"01015006","システム計算科学センター シミュレーション技術開発室"]
[null,null,null,null,null,null,null,null,null,null,null,null,"BK1","（旧）２相流ループ実",null,null,null,"．",null,null,null,null,null,null,null,1,"01017000","原子力人材育成センター"]
[null,null,null,null,null,null,null,null,null,null,null,null,"BK2","大型非定常ループ棟",null,null,null,"．",null,null,null,null,null,null,null,1,"01017001","原子力人材育成センター 原子力人材育成推進課"]
[null,null,null,null,null,null,null,null,null,null,null,null,"BK3","保証措置技術開発施設",null,null,null,"．",null,null,null,null,null,null,null,1,"01017002","原子力人材育成センター 原子力研修課"]
[null,null,null,null,null,null,null,null,null,null,null,null,"BK4","バックエンド技術開発",null,null,null,"．",null,null,null,null,null,null,null,1,"01017003","原子力人材育成センター 国際原子力人材育成課"]
[null,null,null,null,null,null,null,null,null,null,null,null,"BK5","核物質防護実習",null,null,null,"．",null,null,null,null,null,null,null,1,"01043000","核不拡散・核セキュリティ総合支援センター"]
[null,null,null,null,null,null,null,null,null,null,null,null,"BL1","Ｊ－Ｐリニアック棟",null,null,null,"．",null,null,null,null,null,null,null,1,"01043001","核不拡散・核セキュリティ総合支援センター 計画管理室"]
[null,null,null,null,null,null,null,null,null,null,null,null,"BZ9","原科研　構内全域",null,null,null,"．",null,null,null,null,null,null,null,1,"01043002","核不拡散・核セキュリティ総合支援センター 能力構築国際支援室"]
[null,null,null,null,null,null,null,null,null,null,null,null,"CA1","ＪＭＴＲ",null,null,null,"．",null,null,null,null,null,null,null,1,"01043003","核不拡散・核セキュリティ総合支援センター 政策調査室"]
[null,null,null,null,null,null,null,null,null,null,null,null,"CA2","（旧）ＪＭＴＲＣ",null,null,null,"．",null,null,null,null,null,null,null,1,"01043004","核不拡散・核セキュリティ総合支援センター 技術開発推進室"]
[null,null,null,null,null,null,null,null,null,null,null,null,"CA3","大洗北　照射施設",null,null,null,"．",null,null,null,null,null,null,null,1,"01043005","核不拡散・核セキュリティ総合支援センター 輸送・研究炉燃料支援室"]
[null,null,null,null,null,null,null,null,null,null,null,null,"CA4","大洗北　ホットラボ",null,null,null,"．",null,null,null,null,null,null,null,1,"01049000","核物質管理科学技術推進部"]
[null,null,null,null,null,null,null,null,null,null,null,null,"CA5","大洗北　廃棄物処理場",null,null,null,"．",null,null,null,null,null,null,null,1,"01049001","核物質管理科学技術推進部 核物質管理室"]
[null,null,null,null,null,null,null,null,null,null,null,null,"CA6","（旧）ＲＩ利用開発棟",null,null,null,"．",null,null,null,null,null,null,null,1,"01044000","福島研究開発部門"]
[null,null,null,null,null,null,null,null,null,null,null,null,"CA7","安全管理棟",null,null,null,"．",null,null,null,null,null,null,null,1,"01044001","福島研究開発部門 企画調整室"]
[null,null,null,null,null,null,null,null,null,null,null,null,"CA8","燃料研究棟",null,null,null,"．",null,null,null,null,null,null,null,1,"01050000","福島事業管理部"]
[null,null,null,null,null,null,null,null,null,null,null,null,"CA9","（旧）流動試験室",null,null,null,"．",null,null,null,null,null,null,null,1,"01050001","福島事業管理部 総務課"]
[null,null,null,null,null,null,null,null,null,null,null,null,"CB1","ＨＴＴＲ",null,null,null,"．",null,null,null,null,null,null,null,1,"01050002","福島事業管理部 経理管理課"]
[null,null,null,null,null,null,null,null,null,null,null,null,"CZ9","大洗北　構内全域",null,null,null,"．",null,null,null,null,null,null,null,1,"01052000","福島廃炉技術安全研究所"]
[null,null,null,null,null,null,null,null,null,null,null,null,"CC1","ＡＧＦ",null,null,null,"．",null,null,null,null,null,null,null,1,"01052001","福島廃炉技術安全研究所 研究計画部"]
[null,null,null,null,null,null,null,null,null,null,null,null,"CC2","環境監視棟",null,null,null,"．",null,null,null,null,null,null,null,1,"01052002","福島廃炉技術安全研究所 研究計画部 研究計画課"]
[null,null,null,null,null,null,null,null,null,null,null,null,"CC3","放射線管理棟",null,null,null,"．",null,null,null,null,null,null,null,1,"01052003","福島廃炉技術安全研究所 研究計画部 アクティブ試験施設課"]
[null,null,null,null,null,null,null,null,null,null,null,null,"CC4","ナトリウム分析室",null,null,null,"．",null,null,null,null,null,null,null,1,"01052004","福島廃炉技術安全研究所 研究計画部 モックアップ試験施設課"]
[null,null,null,null,null,null,null,null,null,null,null,null,"CC5","ＭＥＬＴ",null,null,null,"．",null,null,null,null,null,null,null,1,"01052005","福島廃炉技術安全研究所 福島現地調査事務所"]
[null,null,null,null,null,null,null,null,null,null,null,null,"CC6","ＦＳＩ",null,null,null,"．",null,null,null,null,null,null,null,1,"01053000","福島廃止措置技術開発センター"]
[null,null,null,null,null,null,null,null,null,null,null,null,"CD1","高速実験炉「常陽」",null,null,null,"．",null,null,null,null,null,null,null,1,"01053001","福島廃止措置技術開発センター 研究推進室"]
[null,null,null,null,null,null,null,null,null,null,null,null,"CD2","旧ＪＷＴＦ",null,null,null,"．",null,null,null,null,null,null,null,1,"01053002","福島廃止措置技術開発センター 燃料デブリ取扱技術開発Gr"]
[null,null,null,null,null,null,null,null,null,null,null,null,"CD3","ＪＷＴＦ",null,null,null,"．",null,null,null,null,null,null,null,1,"01053003","福島廃止措置技術開発センター 廃棄物処理・処分技術開発Gr"]
[null,null,null,null,null,null,null,null,null,null,null,null,"CD4","ＩＲＡＦ",null,null,null,"．",null,null,null,null,null,null,null,1,"01053004","福島廃止措置技術開発センター 基盤技術開発Gr"]
[null,null,null,null,null,null,null,null,null,null,null,null,"CD5","ＦＭＦ",null,null,null,"．",null,null,null,null,null,null,null,1,"01053005","福島廃止措置技術開発センター 燃料溶融複雑系試験準備室"]
[null,null,null,null,null,null,null,null,null,null,null,null,"CD6","ＭＭＦ",null,null,null,"．",null,null,null,null,null,null,null,1,"01051000","福島環境安全センター"]
[null,null,null,null,null,null,null,null,null,null,null,null,"CD7","ＷＤＦ",null,null,null,"．",null,null,null,null,null,null,null,1,"01051001","福島環境安全センター 計画管理室"]
[null,null,null,null,null,null,null,null,null,null,null,null,"CD8","ＤＣＡ",null,null,null,"．",null,null,null,null,null,null,null,1,"01051002","福島環境安全センター 放射線計測技術Gr"]
[null,null,null,null,null,null,null,null,null,null,null,null,"DA1","高崎　研究棟",null,null,null,"．",null,null,null,null,null,null,null,1,"01051003","福島環境安全センター 環境回復推進Gr"]
[null,null,null,null,null,null,null,null,null,null,null,null,"DA2","Ｃｏ６０第１照射棟",null,null,null,"．",null,null,null,null,null,null,null,1,"01051004","福島環境安全センター 環境動態研究Gr"]
[null,null,null,null,null,null,null,null,null,null,null,null,"DA3","Ｃｏ６０第２照射棟",null,null,null,"．",null,null,null,null,null,null,null,1,"01030000","安全研究センター"]
[null,null,null,null,null,null,null,null,null,null,null,null,"DA4","１号加速器棟",null,null,null,"．",null,null,null,null,null,null,null,1,"01030001","安全研究センター 研究計画調整室"]
[null,null,null,null,null,null,null,null,null,null,null,null,"DA5","（旧）２号加速器棟",null,null,null,"．",null,null,null,null,null,null,null,1,"01030014","安全研究センター 規制情報分析室"]
[null,null,null,null,null,null,null,null,null,null,null,null,"DA6","（旧）第１実験棟",null,null,null,"．",null,null,null,null,null,null,null,1,"01030002","安全研究センター 原子炉安全研究U"]
[null,null,null,null,null,null,null,null,null,null,null,null,"DA7","（旧）ＲＩ工学照射棟",null,null,null,"．",null,null,null,null,null,null,null,1,"01030003","安全研究センター 原子炉安全研究U 熱水力安全研究Gr"]
[null,null,null,null,null,null,null,null,null,null,null,null,"DA8","（旧）Ｋｒ取扱施設",null,null,null,"．",null,null,null,null,null,null,null,1,"01030004","安全研究センター 原子炉安全研究U 燃料安全研究Gr"]
[null,null,null,null,null,null,null,null,null,null,null,null,"DA9","食品照射γ線照射棟",null,null,null,"．",null,null,null,null,null,null,null,1,"01030010","安全研究センター 材料・構造安全研究U"]
[null,null,null,null,null,null,null,null,null,null,null,null,"DB1","（旧）大阪１号加速器",null,null,null,"．",null,null,null,null,null,null,null,1,"01030005","安全研究センター 材料・構造安全研究U 構造健全性評価研究Gr"]
[null,null,null,null,null,null,null,null,null,null,null,null,"DB2","（旧）大阪２号加速器",null,null,null,"．",null,null,null,null,null,null,null,1,"01030011","安全研究センター 材料・構造安全研究U 材料・水化学研究Gr"]
[null,null,null,null,null,null,null,null,null,null,null,null,"DB3","（旧）大阪Ｃｏ照射室",null,null,null,"．",null,null,null,null,null,null,null,1,"01030015","安全研究センター リスク評価研究U"]
[null,null,null,null,null,null,null,null,null,null,null,null,"DC1","（旧）高崎モックＵＰ",null,null,null,"．",null,null,null,null,null,null,null,1,"01030016","安全研究センター リスク評価研究U シビアアクシデント評価研究Gr"]
[null,null,null,null,null,null,null,null,null,null,null,null,"DC2","イオン照射研究施設",null,null,null,"．",null,null,null,null,null,null,null,1,"01030018","安全研究センター リスク評価研究U 放射線安全・防災研究Gr"]
[null,null,null,null,null,null,null,null,null,null,null,null,"DZ8","（旧）大阪　構内全域",null,null,null,"．",null,null,null,null,null,null,null,1,"01030006","安全研究センター 燃料サイクル安全研究U"]
[null,null,null,null,null,null,null,null,null,null,null,null,"DZ9","高崎　構内全域",null,null,null,"．",null,null,null,null,null,null,null,1,"01030008","安全研究センター 燃料サイクル安全研究U サイクル安全研究Gr"]
[null,null,null,null,null,null,null,null,null,null,null,null,"EA1","（旧）東京研修センタ",null,null,null,"．",null,null,null,null,null,null,null,1,"01030019","安全研究センター 燃料サイクル安全研究U 臨界安全研究Gr"]
[null,null,null,null,null,null,null,null,null,null,null,null,"FA1","原子力船附帯陸上施設",null,null,null,"．",null,null,null,null,null,null,null,1,"01030020","安全研究センター 環境安全研究U"]
[null,null,null,null,null,null,null,null,null,null,null,null,"FA2","大湊施設　研究棟",null,null,null,"．",null,null,null,null,null,null,null,1,"01030009","安全研究センター 環境安全研究U 廃棄物安全研究Gr"]
[null,null,null,null,null,null,null,null,null,null,null,null,"FB1","原型炉Ｒ＆Ｄ棟",null,null,null,"．",null,null,null,null,null,null,null,1,"01030017","安全研究センター 環境安全研究U 環境影響評価研究Gr"]
[null,null,null,null,null,null,null,null,null,null,null,null,"GA1","（旧）原船内炉施設",null,null,null,"．",null,null,null,null,null,null,null,1,"01018000","原子力緊急時支援・研修センター"]
[null,null,null,null,null,null,null,null,null,null,null,null,"HA1","ＪＴ―６０実験準備棟",null,null,null,{"$f":"P129&\"．\"&Q129","v":"．"},null,null,null,null,null,null,null,1,"01018001","原子力緊急時支援・研修センター 企画管理課"]
[null,null,null,null,null,null,null,null,null,null,null,null,"HA2","ＪＴ―６０附属実験棟",null,null,null,"．",null,null,null,null,null,null,null,1,"01018002","原子力緊急時支援・研修センター 調査研究課"]
[null,null,null,null,null,null,null,null,null,null,null,null,"HA3","ＪＴ―６０実験棟",null,null,null,"．",null,null,null,null,null,null,null,1,"01018003","原子力緊急時支援・研修センター 原子力防災研修課"]
[null,null,null,null,null,null,null,null,null,null,null,null,"HA4","（旧）能動粒子線電源",null,null,null,"．",null,null,null,null,null,null,null,1,"01031000","先端基礎研究センター"]
[null,null,null,null,null,null,null,null,null,null,null,null,"HA5","ＪＴ－６０加熱電源棟",null,null,null,"．",null,null,null,null,null,null,null,1,"01031001","先端基礎研究センター 研究推進室"]
[null,null,null,null,null,null,null,null,null,null,null,null,"HA6","（旧）第１工学試験棟",null,null,null,"．",null,null,null,null,null,null,null,1,"01031004","先端基礎研究センター 量子物性理論研究Gr"]
[null,null,null,null,null,null,null,null,null,null,null,null,"HA7","ＪＴ６０廃棄物保管棟",null,null,null,"．",null,null,null,null,null,null,null,1,"01031006","先端基礎研究センター 分子スピントロニクス研究Gr"]
[null,null,null,null,null,null,null,null,null,null,null,null,"HA8","ＪＴ－６０１次冷却棟",null,null,null,"．",null,null,null,null,null,null,null,1,"01031011","先端基礎研究センター 力学的物質・スピン制御研究Gr"]
[null,null,null,null,null,null,null,null,null,null,null,null,"HA9","超伝導導体製作棟",null,null,null,"．",null,null,null,null,null,null,null,1,"01031002","先端基礎研究センター 重原子核反応フロンティア研究Gr"]
[null,null,null,null,null,null,null,null,null,null,null,null,"HB1","ＪＴ－６０発電機棟",null,null,null,"．",null,null,null,null,null,null,null,1,"01031003","先端基礎研究センター 超重元素研究Gr"]
[null,null,null,null,null,null,null,null,null,null,null,null,"HB2","保管用地（１）",null,null,null,"．",null,null,null,null,null,null,null,1,"01031012","先端基礎研究センター アクチノイド物質開発研究Gr"]
[null,null,null,null,null,null,null,null,null,null,null,null,"HB3","ＪＴ－６０機器収納棟",null,null,null,"．",null,null,null,null,null,null,null,1,"01031013","先端基礎研究センター 重元素系固体物理研究Gr"]
[null,null,null,null,null,null,null,null,null,null,null,null,"HZ9","那珂　構内全域",null,null,null,"．",null,null,null,null,null,null,null,1,"01031014","先端基礎研究センター ハドロン物理研究Gr"]
[null,null,null,null,null,null,null,null,null,null,null,null,"IA1","スイッチヤード",null,null,null,"．",null,null,null,null,null,null,null,1,"01031009","先端基礎研究センター バイオアクチノイド化学研究Gr"]
[null,null,null,null,null,null,null,null,null,null,null,null,"IA2","加速器施設全域",null,null,null,"．",null,null,null,null,null,null,null,1,"01031010","先端基礎研究センター 放射場生体分子科学研究Gr"]
[null,null,null,null,null,null,null,null,null,null,null,null,"IA3","実験施設全域",null,null,null,"．",null,null,null,null,null,null,null,1,"01031007","先端基礎研究センター スピン偏極陽電子ビーム研究Gr"]
[null,null,null,null,null,null,null,null,null,null,null,null,"IA4","物質生命科学実験施設",null,null,null,"．",null,null,null,null,null,null,null,1,"01032000","原子力基礎工学研究センター"]
[null,null,null,null,null,null,null,null,null,null,null,null,"IA5","ハドロン実験施設",null,null,null,"．",null,null,null,null,null,null,null,1,"01032001","原子力基礎工学研究センター 研究推進室"]
[null,null,null,null,null,null,null,null,null,null,null,null,"IA6","ニュートリノ実験施設",null,null,null,"．",null,null,null,null,null,null,null,1,"01032002","原子力基礎工学研究センター 核工学・炉工学U"]
[null,null,null,null,null,null,null,null,null,null,null,null,"IA7","素粒子原子核実験施設",null,null,null,"．",null,null,null,null,null,null,null,1,"01032007","原子力基礎工学研究センター 核工学・炉工学U 核データ研究Gr"]
[null,null,null,null,null,null,null,null,null,null,null,null,"IZ9","ＪＰセ　構内全域",null,null,null,"．",null,null,null,null,null,null,null,1,"01032033","原子力基礎工学研究センター 核工学・炉工学U 炉物理標準コード研究Gr"]
[null,null,null,null,null,null,null,null,null,null,null,null,"JA1","大型放射光入射系建家",null,null,null,"．",null,null,null,null,null,null,null,1,"01032004","原子力基礎工学研究センター 核工学・炉工学U 熱流動研究Gr"]
[null,null,null,null,null,null,null,null,null,null,null,null,"JA2","大型放射光施設",null,null,null,"．",null,null,null,null,null,null,null,1,"01032031","原子力基礎工学研究センター 核工学・炉工学U 原子力センシング研究Gr"]
[null,null,null,null,null,null,null,null,null,null,null,null,"JB1","木津　実験棟",null,null,null,"．",null,null,null,null,null,null,null,1,"01032014","原子力基礎工学研究センター 燃料・材料工学U"]
[null,null,null,null,null,null,null,null,null,null,null,null,"JB2","木津　実験棟（Ｘ線）",null,null,null,"．",null,null,null,null,null,null,null,1,"01032019","原子力基礎工学研究センター 燃料・材料工学U 防食材料技術開発Gr"]
[null,null,null,null,null,null,null,null,null,null,null,null,"JZ9","大型放射光　構内全域",null,null,null,"．",null,null,null,null,null,null,null,1,"01032020","原子力基礎工学研究センター 燃料・材料工学U 照射材料工学研究Gr"]
[null,null,null,null,null,null,null,null,null,null,null,null,null,"",null,null,null,"．",null,null,null,null,null,null,null,1,"01032034","原子力基礎工学研究センター 燃料・材料工学U 燃料高温科学研究Gr"]
[null,null,null,null,null,null,null,null,null,null,null,null,null,"",null,null,null,"．",null,null,null,null,null,null,null,1,"01032040","原子力基礎工学研究センター 原子力化学U"]
[null,null,null,null,null,null,null,null,null,null,null,null,null,"",null,null,null,"．",null,null,null,null,null,null,null,1,"01032028","原子力基礎工学研究センター 原子力化学U 環境化学研究Gr"]
[null,null,null,null,null,null,null,null,null,null,null,null,null,"",null,null,null,"．",null,null,null,null,null,null,null,1,"01032024","原子力基礎工学研究センター 原子力化学U 放射化学研究Gr"]
[null,null,null,null,null,null,null,null,null,null,null,null,null,"",null,null,null,"．",null,null,null,null,null,null,null,1,"01032041","原子力基礎工学研究センター 原子力化学U 分析化学研究Gr"]
[null,null,null,null,null,null,null,null,null,null,null,null,null,"",null,null,null,"．",null,null,null,null,null,null,null,1,"01032022","原子力基礎工学研究センター 環境・放射線科学U"]
[null,null,null,null,null,null,null,null,null,null,null,null,null,"",null,null,null,"．",null,null,null,null,null,null,null,1,"01032023","原子力基礎工学研究センター 環境・放射線科学U 環境動態研究Gr"]
[null,null,null,null,null,null,null,null,null,null,null,null,null,"",null,null,null,"．",null,null,null,null,null,null,null,1,"01032026","原子力基礎工学研究センター 環境・放射線科学U 放射線影響解析研究Gr"]
[null,null,null,null,null,null,null,null,null,null,null,null,null,"",null,null,null,"．",null,null,null,null,null,null,null,1,"01032027","原子力基礎工学研究センター 環境・放射線科学U 放射線防護研究Gr"]
[null,null,null,null,null,null,null,null,null,null,null,null,null,"",null,null,null,"．",null,null,null,null,null,null,null,1,"01032042","原子力基礎工学研究センター 福島基盤技術U"]
[null,null,null,null,null,null,null,null,null,null,null,null,null,"",null,null,null,"．",null,null,null,null,null,null,null,1,"01032043","原子力基礎工学研究センター 福島基盤技術U 燃料デブリ解析研究Gr"]
[null,null,null,null,null,null,null,null,null,null,null,null,null,"",null,null,null,"．",null,null,null,null,null,null,null,1,"01032047","原子力基礎工学研究センター 分離変換技術開発U"]
[null,null,null,null,null,null,null,null,null,null,null,null,null,"",null,null,null,"．",null,null,null,null,null,null,null,1,"01032016","原子力基礎工学研究センター 分離変換技術開発U 分離変換サイクル開発Gr"]
[null,null,null,null,null,null,null,null,null,null,null,null,null,"",null,null,null,"．",null,null,null,null,null,null,null,1,"01032005","原子力基礎工学研究センター 分離変換技術開発U 核変換システム開発Gr"]
[null,null,null,null,null,null,null,null,null,null,null,null,null,"",null,null,null,"．",null,null,null,null,null,null,null,1,"01020000","原子力エネルギー基盤連携センター"]
[null,null,null,null,null,null,null,null,null,null,null,null,null,"",null,null,null,"．",null,null,null,null,null,null,null,1,"01020001","原子力エネルギー基盤連携センター 次世代再処理材料開発特別Gr"]
[null,null,null,null,null,null,null,null,null,null,null,null,null,"",null,null,null,"．",null,null,null,null,null,null,null,1,"01020002","原子力エネルギー基盤連携センター 軽水炉熱流動技術開発特別Gr"]
[null,null,null,null,null,null,null,null,null,null,null,null,null,"",null,null,null,"．",null,null,null,null,null,null,null,1,"01020004","原子力エネルギー基盤連携センター 黒鉛・炭素材料挙動評価特別Gr"]
[null,null,null,null,null,null,null,null,null,null,null,null,null,"",null,null,null,"．",null,null,null,null,null,null,null,1,"01020005","原子力エネルギー基盤連携センター ガラス固化技術特別Gr"]
[null,null,null,null,null,null,null,null,null,null,null,null,null,"",null,null,null,"．",null,null,null,null,null,null,null,1,"01020006","原子力エネルギー基盤連携センター 高温ガス炉要素技術開発特別Gr"]
[null,null,null,null,null,null,null,null,null,null,null,null,null,"",null,null,null,"．",null,null,null,null,null,null,null,1,"01020008","原子力エネルギー基盤連携センター 加速器中性子利用ＲＩ生成技術開発特別Gr"]
[null,null,null,null,null,null,null,null,null,null,null,null,null,"",null,null,null,"．",null,null,null,null,null,null,null,1,"01020009","原子力エネルギー基盤連携センター 材料溶融挙動評価特別Gr"]
[null,null,null,null,null,null,null,null,null,null,null,null,null,"",null,null,null,"．",null,null,null,null,null,null,null,1,"01020010","原子力エネルギー基盤連携センター 水素安全技術高度化特別Gr"]
[null,null,null,null,null,null,null,null,null,null,null,null,null,"",null,null,null,"．",null,null,null,null,null,null,null,1,"01033000","量子ビーム応用研究センター"]
[null,null,null,null,null,null,null,null,null,null,null,null,null,"",null,null,null,"．",null,null,null,null,null,null,null,1,"01033001","量子ビーム応用研究センター 研究推進室"]
[null,null,null,null,null,null,null,null,null,null,null,null,null,"",null,null,null,"．",null,null,null,null,null,null,null,1,"01033002","量子ビーム応用研究センター 量子ビーム機能性分子解析技術研究U"]
[null,null,null,null,null,null,null,null,null,null,null,null,null,"",null,null,null,"．",null,null,null,null,null,null,null,1,"01033003","量子ビーム応用研究センター 量子ビーム機能性分子解析技術研究U 分子構造・機能研究Gr"]
[null,null,null,null,null,null,null,null,null,null,null,null,null,"",null,null,null,"．",null,null,null,null,null,null,null,1,"01033004","量子ビーム応用研究センター 量子ビーム機能性分子解析技術研究U 分子シミュレーション研究Gr"]
[null,null,null,null,null,null,null,null,null,null,null,null,null,"",null,null,null,"．",null,null,null,null,null,null,null,1,"01033005","量子ビーム応用研究センター 量子ビーム機能性分子解析技術研究U 分子ダイナミクス研究Gr"]
[null,null,null,null,null,null,null,null,null,null,null,null,null,"",null,null,null,"．",null,null,null,null,null,null,null,1,"01033006","量子ビーム応用研究センター 量子ビーム材料評価・構造制御技術研究U"]
[null,null,null,null,null,null,null,null,null,null,null,null,null,"",null,null,null,"．",null,null,null,null,null,null,null,1,"01033007","量子ビーム応用研究センター 量子ビーム材料評価・構造制御技術研究U 多重自由度相関研究Gr"]
[null,null,null,null,null,null,null,null,null,null,null,null,null,"",null,null,null,"．",null,null,null,null,null,null,null,1,"01033008","量子ビーム応用研究センター 量子ビーム材料評価・構造制御技術研究U ナノ構造制御研究Gr"]
[null,null,null,null,null,null,null,null,null,null,null,null,null,"",null,null,null,"．",null,null,null,null,null,null,null,1,"01033062","量子ビーム応用研究センター 量子ビーム材料評価・構造制御技術研究U 強相関超分子研究Gr"]
[null,null,null,null,null,null,null,null,null,null,null,null,null,"",null,null,null,"．",null,null,null,null,null,null,null,1,"01033011","量子ビーム応用研究センター 量子ビーム材料評価・構造制御技術研究U 中性子イメージング・分析研究Gr"]
[null,null,null,null,null,null,null,null,null,null,null,null,null,"",null,null,null,"．",null,null,null,null,null,null,null,1,"01033012","量子ビーム応用研究センター 量子ビーム材料評価・構造制御技術研究U 弾塑性材料評価研究Gr"]
[null,null,null,null,null,null,null,null,null,null,null,null,null,"",null,null,null,"．",null,null,null,null,null,null,null,1,"01033023","量子ビーム応用研究センター 医療・バイオ応用量子ビーム技術研究U"]
[null,null,null,null,null,null,null,null,null,null,null,null,null,"",null,null,null,"．",null,null,null,null,null,null,null,1,"01033024","量子ビーム応用研究センター 医療・バイオ応用量子ビーム技術研究U イオンビーム変異誘発研究Gr"]
[null,null,null,null,null,null,null,null,null,null,null,null,null,"",null,null,null,"．",null,null,null,null,null,null,null,1,"01033025","量子ビーム応用研究センター 医療・バイオ応用量子ビーム技術研究U マイクロビーム細胞照射研究Gr"]
[null,null,null,null,null,null,null,null,null,null,null,null,null,"",null,null,null,{"$f":"P193&\"．\"&Q193","v":"．"},null,null,null,null,null,null,null,1,"01033026","量子ビーム応用研究センター 医療・バイオ応用量子ビーム技術研究U ＲＩ医療応用研究Gr"]
[null,null,null,null,null,null,null,null,null,null,null,null,null,"",null,null,null,"．",null,null,null,null,null,null,null,1,"01033063","量子ビーム応用研究センター 医療・バイオ応用量子ビーム技術研究U ＲＩイメージング研究Gr"]
[null,null,null,null,null,null,null,null,null,null,null,null,null,"",null,null,null,"．",null,null,null,null,null,null,null,1,"01033064","量子ビーム応用研究センター 医療・バイオ応用量子ビーム技術研究U 照射細胞解析研究Gr"]
[null,null,null,null,null,null,null,null,null,null,null,null,null,"",null,null,null,"．",null,null,null,null,null,null,null,1,"01033027","量子ビーム応用研究センター 環境・産業応用量子ビーム技術研究U"]
[null,null,null,null,null,null,null,null,null,null,null,null,null,"",null,null,null,"．",null,null,null,null,null,null,null,1,"01033028","量子ビーム応用研究センター 環境・産業応用量子ビーム技術研究U 高性能高分子材料研究Gr"]
[null,null,null,null,null,null,null,null,null,null,null,null,null,"",null,null,null,"．",null,null,null,null,null,null,null,1,"01033029","量子ビーム応用研究センター 環境・産業応用量子ビーム技術研究U 機能性セラミック材料研究Gr"]
[null,null,null,null,null,null,null,null,null,null,null,null,null,"",null,null,null,"．",null,null,null,null,null,null,null,1,"01033030","量子ビーム応用研究センター 環境・産業応用量子ビーム技術研究U 半導体耐放射線性研究Gr"]
[null,null,null,null,null,null,null,null,null,null,null,null,null,"",null,null,null,"．",null,null,null,null,null,null,null,1,"01033031","量子ビーム応用研究センター 環境・産業応用量子ビーム技術研究U 環境機能高分子材料研究Gr"]
[null,null,null,null,null,null,null,null,null,null,null,null,null,"",null,null,null,"．",null,null,null,null,null,null,null,1,"01033032","量子ビーム応用研究センター 環境・産業応用量子ビーム技術研究U 環境材料プロセシング研究Gr"]
[null,null,null,null,null,null,null,null,null,null,null,null,null,"",null,null,null,"．",null,null,null,null,null,null,null,1,"01033033","量子ビーム応用研究センター 先進ビーム技術研究U"]
[null,null,null,null,null,null,null,null,null,null,null,null,null,"",null,null,null,"．",null,null,null,null,null,null,null,1,"01033036","量子ビーム応用研究センター 先進ビーム技術研究U レーザー駆動粒子線研究Gr"]
[null,null,null,null,null,null,null,null,null,null,null,null,null,"",null,null,null,"．",null,null,null,null,null,null,null,1,"01033037","量子ビーム応用研究センター 先進ビーム技術研究U レーザー電子加速研究Gr"]
[null,null,null,null,null,null,null,null,null,null,null,null,null,"",null,null,null,"．",null,null,null,null,null,null,null,1,"01033034","量子ビーム応用研究センター 先進ビーム技術研究U Ｘ線レーザー応用研究Gr"]
[null,null,null,null,null,null,null,null,null,null,null,null,null,"",null,null,null,"．",null,null,null,null,null,null,null,1,"01033070","量子ビーム応用研究センター 先進ビーム技術研究U 高出力レーザー研究Gr"]
[null,null,null,null,null,null,null,null,null,null,null,null,null,"",null,null,null,"．",null,null,null,null,null,null,null,1,"01033065","量子ビーム応用研究センター レーザー応用技術研究U"]
[null,null,null,null,null,null,null,null,null,null,null,null,null,"",null,null,null,"．",null,null,null,null,null,null,null,1,"01033035","量子ビーム応用研究センター レーザー応用技術研究U 高強度場物質制御研究Gr"]
[null,null,null,null,null,null,null,null,null,null,null,null,null,"",null,null,null,"．",null,null,null,null,null,null,null,1,"01033066","量子ビーム応用研究センター レーザー応用技術研究U レーザー量子制御研究Gr"]
[null,null,null,null,null,null,null,null,null,null,null,null,null,"",null,null,null,"．",null,null,null,null,null,null,null,1,"01033060","量子ビーム応用研究センター レーザー応用技術研究U 光量子融合研究Gr"]
[null,null,null,null,null,null,null,null,null,null,null,null,null,"",null,null,null,"．",null,null,null,null,null,null,null,1,"01033043","量子ビーム応用研究センター レーザー応用技術研究U ガンマ線核種分析研究Gr"]
[null,null,null,null,null,null,null,null,null,null,null,null,null,"",null,null,null,"．",null,null,null,null,null,null,null,1,"01033059","量子ビーム応用研究センター レーザー応用技術研究U 次世代レーザー開発研究Gr"]
[null,null,null,null,null,null,null,null,null,null,null,null,null,"",null,null,null,"．",null,null,null,null,null,null,null,1,"01033044","量子ビーム応用研究センター 量子ビーム物性制御・解析技術研究U"]
[null,null,null,null,null,null,null,null,null,null,null,null,null,"",null,null,null,"．",null,null,null,null,null,null,null,1,"01033048","量子ビーム応用研究センター 量子ビーム物性制御・解析技術研究U 高密度物質研究Gr"]
[null,null,null,null,null,null,null,null,null,null,null,null,null,"",null,null,null,"．",null,null,null,null,null,null,null,1,"01033046","量子ビーム応用研究センター 量子ビーム物性制御・解析技術研究U 量子構造研究Gr"]
[null,null,null,null,null,null,null,null,null,null,null,null,null,"",null,null,null,"．",null,null,null,null,null,null,null,1,"01033051","量子ビーム応用研究センター 量子ビーム物性制御・解析技術研究U 電子構造研究Gr"]
[null,null,null,null,null,null,null,null,null,null,null,null,null,"",null,null,null,"．",null,null,null,null,null,null,null,1,"01033052","量子ビーム応用研究センター 量子ビーム物性制御・解析技術研究U 量子シミュレーション研究Gr"]
[null,null,null,null,null,null,null,null,null,null,null,null,null,"",null,null,null,"．",null,null,null,null,null,null,null,1,"01033067","量子ビーム応用研究センター 量子ビーム物性制御・解析技術研究U コヒーレントＸ線利用研究Gr"]
[null,null,null,null,null,null,null,null,null,null,null,null,null,"",null,null,null,"．",null,null,null,null,null,null,null,1,"01033068","量子ビーム応用研究センター 量子ビーム反応制御・解析技術研究U"]
[null,null,null,null,null,null,null,null,null,null,null,null,null,"",null,null,null,"．",null,null,null,null,null,null,null,1,"01033049","量子ビーム応用研究センター 量子ビーム反応制御・解析技術研究U アクチノイド錯体化学研究Gr"]
[null,null,null,null,null,null,null,null,null,null,null,null,null,"",null,null,null,"．",null,null,null,null,null,null,null,1,"01033047","量子ビーム応用研究センター 量子ビーム反応制御・解析技術研究U 量子ダイナミクス研究Gr"]
[null,null,null,null,null,null,null,null,null,null,null,null,null,"",null,null,null,"．",null,null,null,null,null,null,null,1,"01033050","量子ビーム応用研究センター 量子ビーム反応制御・解析技術研究U 表面反応ダイナミクス研究Gr"]
[null,null,null,null,null,null,null,null,null,null,null,null,null,"",null,null,null,"．",null,null,null,null,null,null,null,1,"01042000","原子力水素・熱利用研究センター"]
[null,null,null,null,null,null,null,null,null,null,null,null,null,"",null,null,null,"．",null,null,null,null,null,null,null,1,"01042001","原子力水素・熱利用研究センター 研究推進室"]
[null,null,null,null,null,null,null,null,null,null,null,null,null,"",null,null,null,"．",null,null,null,null,null,null,null,1,"01042002","原子力水素・熱利用研究センター 小型高温ガス炉研究開発U"]
[null,null,null,null,null,null,null,null,null,null,null,null,null,"",null,null,null,"．",null,null,null,null,null,null,null,1,"01042003","原子力水素・熱利用研究センター 小型高温ガス炉研究開発U 原子炉設計Gr"]
[null,null,null,null,null,null,null,null,null,null,null,null,null,"",null,null,null,"．",null,null,null,null,null,null,null,1,"01042004","原子力水素・熱利用研究センター 小型高温ガス炉研究開発U 国際共同試験Gr"]
[null,null,null,null,null,null,null,null,null,null,null,null,null,"",null,null,null,"．",null,null,null,null,null,null,null,1,"01042008","原子力水素・熱利用研究センター 小型高温ガス炉研究開発U 安全設計Gr"]
[null,null,null,null,null,null,null,null,null,null,null,null,null,"",null,null,null,"．",null,null,null,null,null,null,null,1,"01042005","原子力水素・熱利用研究センター 水素利用研究開発U"]
[null,null,null,null,null,null,null,null,null,null,null,null,null,"",null,null,null,"．",null,null,null,null,null,null,null,1,"01042006","原子力水素・熱利用研究センター 水素利用研究開発U ＩＳプロセス信頼性確証試験Gr"]
[null,null,null,null,null,null,null,null,null,null,null,null,null,"",null,null,null,"．",null,null,null,null,null,null,null,1,"01042007","原子力水素・熱利用研究センター 水素利用研究開発U 熱利用システム設計Gr"]
[null,null,null,null,null,null,null,null,null,null,null,null,null,"",null,null,null,"．",null,null,null,null,null,null,null,1,"01035000","次世代高速炉サイクル研究開発センター"]
[null,null,null,null,null,null,null,null,null,null,null,null,null,"",null,null,null,"．",null,null,null,null,null,null,null,1,"01035001","次世代高速炉サイクル研究開発センター プロジェクト推進室"]
[null,null,null,null,null,null,null,null,null,null,null,null,null,"",null,null,null,"．",null,null,null,null,null,null,null,1,"01035040","次世代高速炉サイクル研究開発センター 設計・規格基準室"]
[null,null,null,null,null,null,null,null,null,null,null,null,null,"",null,null,null,"．",null,null,null,null,null,null,null,1,"01035043","次世代高速炉サイクル研究開発センター 高速炉計算工学技術開発部"]
[null,null,null,null,null,null,null,null,null,null,null,null,null,"",null,null,null,"．",null,null,null,null,null,null,null,1,"01035014","次世代高速炉サイクル研究開発センター 高速炉計算工学技術開発部 システム統合Gr"]
[null,null,null,null,null,null,null,null,null,null,null,null,null,"",null,null,null,"．",null,null,null,null,null,null,null,1,"01035052","次世代高速炉サイクル研究開発センター 高速炉計算工学技術開発部 システム安全解析Gr"]
[null,null,null,null,null,null,null,null,null,null,null,null,null,"",null,null,null,"．",null,null,null,null,null,null,null,1,"01035053","次世代高速炉サイクル研究開発センター 高速炉計算工学技術開発部 炉心挙動解析Gr"]
[null,null,null,null,null,null,null,null,null,null,null,null,null,"",null,null,null,"．",null,null,null,null,null,null,null,1,"01035054","次世代高速炉サイクル研究開発センター 高速炉計算工学技術開発部 流動・系統解析Gr"]
[null,null,null,null,null,null,null,null,null,null,null,null,null,"",null,null,null,"．",null,null,null,null,null,null,null,1,"01035011","次世代高速炉サイクル研究開発センター 高速炉安全技術開発部"]
[null,null,null,null,null,null,null,null,null,null,null,null,null,"",null,null,null,"．",null,null,null,null,null,null,null,1,"01035018","次世代高速炉サイクル研究開発センター 高速炉安全技術開発部 構造・材料信頼性評価技術開発Gr"]
[null,null,null,null,null,null,null,null,null,null,null,null,null,"",null,null,null,"．",null,null,null,null,null,null,null,1,"01035051","次世代高速炉サイクル研究開発センター 高速炉安全技術開発部 炉心安全評価技術開発Gr"]
[null,null,null,null,null,null,null,null,null,null,null,null,null,"",null,null,null,"．",null,null,null,null,null,null,null,1,"01035033","次世代高速炉サイクル研究開発センター 燃料サイクル技術開発部"]
[null,null,null,null,null,null,null,null,null,null,null,null,null,"",null,null,null,"．",null,null,null,null,null,null,null,1,"01035049","次世代高速炉サイクル研究開発センター 燃料サイクル技術開発部 燃料材料開発Gr"]
[null,null,null,null,null,null,null,null,null,null,null,null,null,"",null,null,null,"．",null,null,null,null,null,null,null,1,"01035022","次世代高速炉サイクル研究開発センター 燃料サイクル技術開発部 燃料技術開発Gr"]
[null,null,null,null,null,null,null,null,null,null,null,null,null,"",null,null,null,"．",null,null,null,null,null,null,null,1,"01035023","次世代高速炉サイクル研究開発センター 燃料サイクル技術開発部 再処理技術開発Gr"]
[null,null,null,null,null,null,null,null,null,null,null,null,null,"",null,null,null,"．",null,null,null,null,null,null,null,1,"01038000","バックエンド研究開発部門"]
[null,null,null,null,null,null,null,null,null,null,null,null,null,"",null,null,null,"．",null,null,null,null,null,null,null,1,"01038001","バックエンド研究開発部門 企画調整室"]
[null,null,null,null,null,null,null,null,null,null,null,null,null,"",null,null,null,"．",null,null,null,null,null,null,null,1,"01040000","廃棄物対策・埋設事業統括部"]
[null,null,null,null,null,null,null,null,null,null,null,null,null,"",null,null,null,"．",null,null,null,null,null,null,null,1,"01040001","廃棄物対策・埋設事業統括部 事業・立地推進課"]
[null,null,null,null,null,null,null,null,null,null,null,null,null,"",null,null,null,"．",null,null,null,null,null,null,null,1,"01040004","廃棄物対策・埋設事業統括部 廃止措置計画課"]
[null,null,null,null,null,null,null,null,null,null,null,null,null,"",null,null,null,"．",null,null,null,null,null,null,null,1,"01040005","廃棄物対策・埋設事業統括部 廃棄物処理計画課"]
[null,null,null,null,null,null,null,null,null,null,null,null,null,"",null,null,null,"．",null,null,null,null,null,null,null,1,"01040006","廃棄物対策・埋設事業統括部 廃棄物処分計画課"]
[null,null,null,null,null,null,null,null,null,null,null,null,null,"",null,null,null,"．",null,null,null,null,null,null,null,1,"01040003","廃棄物対策・埋設事業統括部 設計技術課"]
[null,null,null,null,null,null,null,null,null,null,null,null,null,"",null,null,null,"．",null,null,null,null,null,null,null,1,"01037000","地層処分研究開発推進部"]
[null,null,null,null,null,null,null,null,null,null,null,null,null,"",null,null,null,"．",null,null,null,null,null,null,null,1,"01037001","地層処分研究開発推進部 処分システム研究計画推進課"]
[null,null,null,null,null,null,null,null,null,null,null,null,null,"",null,null,null,{"$f":"P257&\"．\"&Q257","v":"．"},null,null,null,null,null,null,null,1,"01037017","地層処分研究開発推進部 地質環境研究統合課"]
[null,null,null,null,null,null,null,null,null,null,null,null,null,"",null,null,null,"．",null,null,null,null,null,null,null,1,"01037010","深地層研究部"]
[null,null,null,null,null,null,null,null,null,null,null,null,null,"",null,null,null,"．",null,null,null,null,null,null,null,1,"01037018","深地層研究部 研究計画調整Gr"]
[null,null,null,null,null,null,null,null,null,null,null,null,null,"",null,null,null,"．",null,null,null,null,null,null,null,1,"01037011","深地層研究部 堆積岩処分技術開発Gr"]
[null,null,null,null,null,null,null,null,null,null,null,null,null,"",null,null,null,"．",null,null,null,null,null,null,null,1,"01037012","深地層研究部 堆積岩地質環境研究Gr"]
[null,null,null,null,null,null,null,null,null,null,null,null,null,"",null,null,null,"．",null,null,null,null,null,null,null,1,"01037013","地層科学研究部"]
[null,null,null,null,null,null,null,null,null,null,null,null,null,"",null,null,null,"．",null,null,null,null,null,null,null,1,"01037014","地層科学研究部 結晶質岩工学技術開発Gr"]
[null,null,null,null,null,null,null,null,null,null,null,null,null,"",null,null,null,"．",null,null,null,null,null,null,null,1,"01037015","地層科学研究部 結晶質岩地質環境研究Gr"]
[null,null,null,null,null,null,null,null,null,null,null,null,null,"",null,null,null,"．",null,null,null,null,null,null,null,1,"01037016","地層科学研究部 ネオテクトニクス研究Gr"]
[null,null,null,null,null,null,null,null,null,null,null,null,null,"",null,null,null,"．",null,null,null,null,null,null,null,1,"01034000","核融合研究開発部門"]
[null,null,null,null,null,null,null,null,null,null,null,null,null,"",null,null,null,"．",null,null,null,null,null,null,null,1,"01034001","核融合研究開発部門 企画調整室"]
[null,null,null,null,null,null,null,null,null,null,null,null,null,"",null,null,null,"．",null,null,null,null,null,null,null,1,"01034002","ITERプロジェクト部"]
[null,null,null,null,null,null,null,null,null,null,null,null,null,"",null,null,null,"．",null,null,null,null,null,null,null,1,"01034027","ITERプロジェクト部 ITER計画管理Gr"]
[null,null,null,null,null,null,null,null,null,null,null,null,null,"",null,null,null,"．",null,null,null,null,null,null,null,1,"01034028","ITERプロジェクト部 ITER統合支援Gr"]
[null,null,null,null,null,null,null,null,null,null,null,null,null,"",null,null,null,"．",null,null,null,null,null,null,null,1,"01034029","ITERプロジェクト部 ITERトカマク本体開発Gr"]
[null,null,null,null,null,null,null,null,null,null,null,null,null,"",null,null,null,"．",null,null,null,null,null,null,null,1,"01034045","ITERプロジェクト部 超伝導コイル開発Gr"]
[null,null,null,null,null,null,null,null,null,null,null,null,null,"",null,null,null,"．",null,null,null,null,null,null,null,1,"01034046","ITERプロジェクト部 超伝導導体開発Gr"]
[null,null,null,null,null,null,null,null,null,null,null,null,null,"",null,null,null,"．",null,null,null,null,null,null,null,1,"01034047","ITERプロジェクト部 超伝導コイル試験Gr"]
[null,null,null,null,null,null,null,null,null,null,null,null,null,"",null,null,null,"．",null,null,null,null,null,null,null,1,"01034035","ITERプロジェクト部 計測開発Gr"]
[null,null,null,null,null,null,null,null,null,null,null,null,null,"",null,null,null,"．",null,null,null,null,null,null,null,1,"01034013","ITERプロジェクト部 RF加熱開発Gr"]
[null,null,null,null,null,null,null,null,null,null,null,null,null,"",null,null,null,"．",null,null,null,null,null,null,null,1,"01034014","ITERプロジェクト部 NB加熱開発Gr"]
[null,null,null,null,null,null,null,null,null,null,null,null,null,"",null,null,null,"．",null,null,null,null,null,null,null,1,"01034010","トカマクシステム技術開発部"]
[null,null,null,null,null,null,null,null,null,null,null,null,null,"",null,null,null,"．",null,null,null,null,null,null,null,1,"01034043","トカマクシステム技術開発部 JT-60システム統合Gr"]
[null,null,null,null,null,null,null,null,null,null,null,null,null,"",null,null,null,"．",null,null,null,null,null,null,null,1,"01034036","トカマクシステム技術開発部 JT-60マグネットシステム開発Gr"]
[null,null,null,null,null,null,null,null,null,null,null,null,null,"",null,null,null,"．",null,null,null,null,null,null,null,1,"01034012","トカマクシステム技術開発部 JT-60本体開発Gr"]
[null,null,null,null,null,null,null,null,null,null,null,null,null,"",null,null,null,"．",null,null,null,null,null,null,null,1,"01034011","トカマクシステム技術開発部 JT-60電源・制御開発Gr"]
[null,null,null,null,null,null,null,null,null,null,null,null,null,"",null,null,null,"．",null,null,null,null,null,null,null,1,"01034038","トカマクシステム技術開発部 JT-60安全評価Gr"]
[null,null,null,null,null,null,null,null,null,null,null,null,null,"",null,null,null,"．",null,null,null,null,null,null,null,1,"01034003","先進プラズマ研究部"]
[null,null,null,null,null,null,null,null,null,null,null,null,null,"",null,null,null,"．",null,null,null,null,null,null,null,1,"01034032","先進プラズマ研究部 先進プラズマ計画調整Gr"]
[null,null,null,null,null,null,null,null,null,null,null,null,null,"",null,null,null,"．",null,null,null,null,null,null,null,1,"01034005","先進プラズマ研究部 先進プラズマモデリングGr"]
[null,null,null,null,null,null,null,null,null,null,null,null,null,"",null,null,null,"．",null,null,null,null,null,null,null,1,"01034006","先進プラズマ研究部 先進プラズマ実験Gr"]
[null,null,null,null,null,null,null,null,null,null,null,null,null,"",null,null,null,"．",null,null,null,null,null,null,null,1,"01034039","核融合炉システム研究開発部"]
[null,null,null,null,null,null,null,null,null,null,null,null,null,"",null,null,null,"．",null,null,null,null,null,null,null,1,"01034041","核融合炉システム研究開発部 BA計画調整Gr"]
[null,null,null,null,null,null,null,null,null,null,null,null,null,"",null,null,null,"．",null,null,null,null,null,null,null,1,"01034008","核融合炉システム研究開発部 プラズマ理論シミュレーションGr"]
[null,null,null,null,null,null,null,null,null,null,null,null,null,"",null,null,null,"．",null,null,null,null,null,null,null,1,"01034009","核融合炉システム研究開発部 核融合炉システム研究Gr"]
[null,null,null,null,null,null,null,null,null,null,null,null,null,"",null,null,null,"．",null,null,null,null,null,null,null,1,"01034048","核融合炉材料研究開発部"]
[null,null,null,null,null,null,null,null,null,null,null,null,null,"",null,null,null,"．",null,null,null,null,null,null,null,1,"01034042","核融合炉材料研究開発部 IFMIF加速器施設開発Gr"]
[null,null,null,null,null,null,null,null,null,null,null,null,null,"",null,null,null,"．",null,null,null,null,null,null,null,1,"01034044","核融合炉材料研究開発部 IFMIF照射・試験施設開発Gr"]
[null,null,null,null,null,null,null,null,null,null,null,null,null,"",null,null,null,"．",null,null,null,null,null,null,null,1,"01034033","核融合炉材料研究開発部 核融合炉構造材料開発Gr"]
[null,null,null,null,null,null,null,null,null,null,null,null,null,"",null,null,null,"．",null,null,null,null,null,null,null,1,"01034020","核融合炉材料研究開発部 核融合中性子工学研究Gr"]
[null,null,null,null,null,null,null,null,null,null,null,null,null,"",null,null,null,"．",null,null,null,null,null,null,null,1,"01034015","ブランケット研究開発部"]
[null,null,null,null,null,null,null,null,null,null,null,null,null,"",null,null,null,"．",null,null,null,null,null,null,null,1,"01034016","ブランケット研究開発部 ブランケット工学研究Gr"]
[null,null,null,null,null,null,null,null,null,null,null,null,null,"",null,null,null,"．",null,null,null,null,null,null,null,1,"01034019","ブランケット研究開発部 トリチウム工学研究Gr"]
[null,null,null,null,null,null,null,null,null,null,null,null,null,"",null,null,null,"．",null,null,null,null,null,null,null,1,"01034022","ブランケット研究開発部 増殖機能材料開発Gr"]
[null,null,null,null,null,null,null,null,null,null,null,null,null,"",null,null,null,"．",null,null,null,null,null,null,null,1,"01100000","役員室"]
[null,null,null,null,null,null,null,null,null,null,null,null,null,"",null,null,null,"．",null,null,null,null,null,null,null,2,"01093001","大洗研究開発センター 計画管理室"]
[null,null,null,null,null,null,null,null,null,null,null,null,null,"",null,null,null,"．",null,null,null,null,null,null,null,2,"01078000","大洗研究開発センター 安全管理部"]
[null,null,null,null,null,null,null,null,null,null,null,null,null,"",null,null,null,"．",null,null,null,null,null,null,null,2,"01068000","大洗研究開発センター 安全管理部 危機管理課"]
[null,null,null,null,null,null,null,null,null,null,null,null,null,"",null,null,null,"．",null,null,null,null,null,null,null,2,"01079000","大洗研究開発センター 管理部"]
[null,null,null,null,null,null,null,null,null,null,null,null,null,"",null,null,null,"．",null,null,null,null,null,null,null,2,"01083000","大洗) 福島燃料材料試験部"]
[null,null,null,null,null,null,null,null,null,null,null,null,null,"",null,null,null,"．",null,null,null,null,null,null,null,2,"01083001","大洗) 福島燃料材料試験部 集合体試験課"]
[null,null,null,null,null,null,null,null,null,null,null,null,null,"",null,null,null,"．",null,null,null,null,null,null,null,2,"01065000","原子力科学研究所 保安管理部"]
[null,null,null,null,null,null,null,null,null,null,null,null,null,"",null,null,null,"．",null,null,null,null,null,null,null,2,"01084000","原子力科学研究所 放射線管理部"]
[null,null,null,null,null,null,null,null,null,null,null,null,null,"",null,null,null,"．",null,null,null,null,null,null,null,2,"01084003","原子力科学研究所 放射線管理部 放射線管理第１課"]
[null,null,null,null,null,null,null,null,null,null,null,null,null,"",null,null,null,"．",null,null,null,null,null,null,null,2,"01084004","原子力科学研究所 放射線管理部 放射線管理第２課"]
[null,null,null,null,null,null,null,null,null,null,null,null,null,"",null,null,null,"．",null,null,null,null,null,null,null,2,"01087000","Ｊ－ＰＡＲＣセンター"]
[null,null,null,null,null,null,null,null,null,null,null,null,null,"",null,null,null,"．",null,null,null,null,null,null,null,2,"01087009","Ｊ－ＰＡＲＣセンター 中性子源セクション"]
[null,null,null,null,null,null,null,null,null,null,null,null,null,"",null,null,null,"．",null,null,null,null,null,null,null,2,"01087010","Ｊ－ＰＡＲＣセンター 中性子利用セクション"]
[null,null,null,null,null,null,null,null,null,null,null,null,null,"",null,null,null,"．",null,null,null,null,null,null,null,2,"01087014","Ｊ－ＰＡＲＣセンター 核変換セクション"]
[null,null,null,null,null,null,null,null,null,null,null,null,null,"",null,null,null,"．",null,null,null,null,null,null,null,2,"01091004","大洗) 高温工学試験研究炉部 HTTR運転管理課"]
[null,null,null,null,null,null,null,null,null,null,null,null,null,"",null,null,null,"．",null,null,null,null,null,null,null,2,"01085000","原子力科学研究所 バックエンド技術部"]
[null,null,null,null,null,null,null,null,null,null,null,null,null,"",null,null,null,"．",null,null,null,null,null,null,null,2,"01085005","原子力科学研究所 バックエンド技術部 高減容処理技術課"]
[null,null,null,null,null,null,null,null,null,null,null,null,null,"",null,null,null,"．",null,null,null,null,null,null,null,2,"01046000","核サ研 環境技術開発センター"]
[null,null,null,null,null,null,null,null,null,null,null,null,null,"",null,null,null,"．",null,null,null,null,null,null,null,2,"01047000","基盤技術研究開発部"]
[null,null,null,null,null,null,null,null,null,null,null,null,null,"",null,null,null,{"$f":"P321&\"．\"&Q321","v":"．"},null,null,null,null,null,null,null,2,"01047001","基盤技術研究開発部 システム性能研究Gr"]
[null,null,null,null,null,null,null,null,null,null,null,null,null,"",null,null,null,"．",null,null,null,null,null,null,null,2,"01047002","基盤技術研究開発部 ニアフィールド研究Gr"]
[null,null,null,null,null,null,null,null,null,null,null,null,null,"",null,null,null,"．",null,null,null,null,null,null,null,2,"01047003","基盤技術研究開発部 核種移行研究Gr"]
[null,null,null,null,null,null,null,null,null,null,null,null,null,"",null,null,null,"．",null,null,null,null,null,null,null,2,"01047004","基盤技術研究開発部 廃棄物処理技術Gr"]
[null,null,null,null,null,null,null,null,null,null,null,null,null,"",null,null,null,"．",null,null,null,null,null,null,null,2,"01089000","大洗研究開発センター 環境保全部"]
[null,null,null,null,null,null,null,null,null,null,null,null,null,"",null,null,null,"．",null,null,null,null,null,null,null,2,"01089001","大洗研究開発センター 環境保全部 環境計画課"]
[null,null,null,null,null,null,null,null,null,null,null,null,null,"",null,null,null,"．",null,null,null,null,null,null,null,2,"01069000","敦賀本部 経営企画部"]
[null,null,null,null,null,null,null,null,null,null,null,null,null,"",null,null,null,"．",null,null,null,null,null,null,null,2,"01069003","敦賀本部 経営企画部 経営企画Gr"]
[null,null,null,null,null,null,null,null,null,null,null,null,null,"",null,null,null,"．",null,null,null,null,null,null,null,3,"02000000","（東海拠点）"]
[null,null,null,null,null,null,null,null,null,null,null,null,null,"",null,null,null,"．",null,null,null,null,null,null,null,3,"02001000","東海管理センター"]
[null,null,null,null,null,null,null,null,null,null,null,null,null,"",null,null,null,"．",null,null,null,null,null,null,null,3,"02001001","東海管理センター 総務第１課"]
[null,null,null,null,null,null,null,null,null,null,null,null,null,"",null,null,null,"．",null,null,null,null,null,null,null,3,"02001008","東海管理センター 総務第２課"]
[null,null,null,null,null,null,null,null,null,null,null,null,null,"",null,null,null,"．",null,null,null,null,null,null,null,3,"02001003","東海管理センター 経理課"]
[null,null,null,null,null,null,null,null,null,null,null,null,null,"",null,null,null,"．",null,null,null,null,null,null,null,3,"02001004","東海管理センター 管財課"]
[null,null,null,null,null,null,null,null,null,null,null,null,null,"",null,null,null,"．",null,null,null,null,null,null,null,3,"02001005","東海管理センター 調達課"]
[null,null,null,null,null,null,null,null,null,null,null,null,null,"",null,null,null,"．",null,null,null,null,null,null,null,3,"02001007","東海管理センター 労務課"]
[null,null,null,null,null,null,null,null,null,null,null,null,null,"",null,null,null,"．",null,null,null,null,null,null,null,4,"02002000","原科研地区"]
[null,null,null,null,null,null,null,null,null,null,null,null,null,"",null,null,null,"．",null,null,null,null,null,null,null,4,"02007000","福島技術開発試験部"]
[null,null,null,null,null,null,null,null,null,null,null,null,null,"",null,null,null,"．",null,null,null,null,null,null,null,4,"02007001","福島技術開発試験部 業務課"]
[null,null,null,null,null,null,null,null,null,null,null,null,null,"",null,null,null,"．",null,null,null,null,null,null,null,4,"02007006","福島技術開発試験部 ホット使用施設管理課"]
[null,null,null,null,null,null,null,null,null,null,null,null,null,"",null,null,null,"．",null,null,null,null,null,null,null,4,"02007003","福島技術開発試験部 実用燃料試験課"]
[null,null,null,null,null,null,null,null,null,null,null,null,null,"",null,null,null,"．",null,null,null,null,null,null,null,4,"02007004","福島技術開発試験部 ホット材料試験課"]
[null,null,null,null,null,null,null,null,null,null,null,null,null,"",null,null,null,"．",null,null,null,null,null,null,null,4,"02007005","福島技術開発試験部 未照射燃料管理課"]
[null,null,null,null,null,null,null,null,null,null,null,null,null,"",null,null,null,"．",null,null,null,null,null,null,null,4,"02007007","福島技術開発試験部 臨界技術第１課"]
[null,null,null,null,null,null,null,null,null,null,null,null,null,"",null,null,null,"．",null,null,null,null,null,null,null,4,"02007008","福島技術開発試験部 臨界技術第２課"]
[null,null,null,null,null,null,null,null,null,null,null,null,null,"",null,null,null,"．",null,null,null,null,null,null,null,4,"02007009","福島技術開発試験部 BECKY技術課"]
[null,null,null,null,null,null,null,null,null,null,null,null,null,"",null,null,null,"．",null,null,null,null,null,null,null,4,"02007010","福島技術開発試験部 分析技術課"]
[null,null,null,null,null,null,null,null,null,null,null,null,null,"",null,null,null,"．",null,null,null,null,null,null,null,4,"02007011","福島技術開発試験部 流動試験技術課"]
[null,null,null,null,null,null,null,null,null,null,null,null,null,"",null,null,null,"．",null,null,null,null,null,null,null,4,"02044000","安全研究・防災支援部門"]
[null,null,null,null,null,null,null,null,null,null,null,null,null,"",null,null,null,"．",null,null,null,null,null,null,null,4,"02044001","安全研究・防災支援部門 企画調整室"]
[null,null,null,null,null,null,null,null,null,null,null,null,null,"",null,null,null,"．",null,null,null,null,null,null,null,4,"02044002","安全研究・防災支援部門 核不拡散・核セキュリティ規制支援室"]
[null,null,null,null,null,null,null,null,null,null,null,null,null,"",null,null,null,"．",null,null,null,null,null,null,null,4,"02045000","原子力科学研究部門"]
[null,null,null,null,null,null,null,null,null,null,null,null,null,"",null,null,null,"．",null,null,null,null,null,null,null,4,"02045001","原子力科学研究部門 企画調整室"]
[null,null,null,null,null,null,null,null,null,null,null,null,null,"",null,null,null,"．",null,null,null,null,null,null,null,4,"02004000","保安管理部"]
[null,null,null,null,null,null,null,null,null,null,null,null,null,"",null,null,null,"．",null,null,null,null,null,null,null,4,"02004001","保安管理部 業務課"]
[null,null,null,null,null,null,null,null,null,null,null,null,null,"",null,null,null,"．",null,null,null,null,null,null,null,4,"02004002","保安管理部 安全対策課"]
[null,null,null,null,null,null,null,null,null,null,null,null,null,"",null,null,null,"．",null,null,null,null,null,null,null,4,"02004003","保安管理部 施設安全課"]
[null,null,null,null,null,null,null,null,null,null,null,null,null,"",null,null,null,"．",null,null,null,null,null,null,null,4,"02004004","保安管理部 危機管理課"]
[null,null,null,null,null,null,null,null,null,null,null,null,null,"",null,null,null,"．",null,null,null,null,null,null,null,4,"02004005","保安管理部 核物質管理課"]
[null,null,null,null,null,null,null,null,null,null,null,null,null,"",null,null,null,"．",null,null,null,null,null,null,null,4,"02002001","原子力科学研究部門 計画管理室"]
[null,null,null,null,null,null,null,null,null,null,null,null,null,"",null,null,null,"．",null,null,null,null,null,null,null,4,"02005000","放射線管理部"]
[null,null,null,null,null,null,null,null,null,null,null,null,null,"",null,null,null,"．",null,null,null,null,null,null,null,4,"02005001","放射線管理部 業務課"]
[null,null,null,null,null,null,null,null,null,null,null,null,null,"",null,null,null,"．",null,null,null,null,null,null,null,4,"02005002","放射線管理部 線量管理課"]
[null,null,null,null,null,null,null,null,null,null,null,null,null,"",null,null,null,"．",null,null,null,null,null,null,null,4,"02005003","放射線管理部 環境放射線管理課"]
[null,null,null,null,null,null,null,null,null,null,null,null,null,"",null,null,null,"．",null,null,null,null,null,null,null,4,"02005004","放射線管理部 放射線管理第1課"]
[null,null,null,null,null,null,null,null,null,null,null,null,null,"",null,null,null,"．",null,null,null,null,null,null,null,4,"02005005","放射線管理部 放射線管理第2課"]
[null,null,null,null,null,null,null,null,null,null,null,null,null,"",null,null,null,"．",null,null,null,null,null,null,null,4,"02005006","放射線管理部 放射線計測技術課"]
[null,null,null,null,null,null,null,null,null,null,null,null,null,"",null,null,null,"．",null,null,null,null,null,null,null,4,"02003000","工務技術部"]
[null,null,null,null,null,null,null,null,null,null,null,null,null,"",null,null,null,"．",null,null,null,null,null,null,null,4,"02003001","工務技術部 業務課"]
[null,null,null,null,null,null,null,null,null,null,null,null,null,"",null,null,null,"．",null,null,null,null,null,null,null,4,"02003002","工務技術部 工務第1課"]
[null,null,null,null,null,null,null,null,null,null,null,null,null,"",null,null,null,"．",null,null,null,null,null,null,null,4,"02003003","工務技術部 工務第2課"]
[null,null,null,null,null,null,null,null,null,null,null,null,null,"",null,null,null,"．",null,null,null,null,null,null,null,4,"02003005","工務技術部 施設保全課"]
[null,null,null,null,null,null,null,null,null,null,null,null,null,"",null,null,null,"．",null,null,null,null,null,null,null,4,"02003006","工務技術部 工作技術課"]
[null,null,null,null,null,null,null,null,null,null,null,null,null,"",null,null,null,"．",null,null,null,null,null,null,null,4,"02006000","研究炉加速器管理部"]
[null,null,null,null,null,null,null,null,null,null,null,null,null,"",null,null,null,"．",null,null,null,null,null,null,null,4,"02006001","研究炉加速器管理部 業務課"]
[null,null,null,null,null,null,null,null,null,null,null,null,null,"",null,null,null,"．",null,null,null,null,null,null,null,4,"02006002","研究炉加速器管理部 JRR-3管理課"]
[null,null,null,null,null,null,null,null,null,null,null,null,null,"",null,null,null,"．",null,null,null,null,null,null,null,4,"02006003","研究炉加速器管理部 JRR-4管理課"]
[null,null,null,null,null,null,null,null,null,null,null,null,null,"",null,null,null,"．",null,null,null,null,null,null,null,4,"02006004","研究炉加速器管理部 NSRR管理課"]
[null,null,null,null,null,null,null,null,null,null,null,null,null,"",null,null,null,"．",null,null,null,null,null,null,null,4,"02006005","研究炉加速器管理部 加速器管理課"]
[null,null,null,null,null,null,null,null,null,null,null,null,null,"",null,null,null,"．",null,null,null,null,null,null,null,4,"02006006","研究炉加速器管理部 研究炉利用課"]
[null,null,null,null,null,null,null,null,null,null,null,null,null,"",null,null,null,"．",null,null,null,null,null,null,null,4,"02006007","研究炉加速器管理部 研究炉技術課"]
[null,null,null,null,null,null,null,null,null,null,null,null,null,"",null,null,null,"．",null,null,null,null,null,null,null,4,"02085000","J-PARCセンター"]
[null,null,null,null,null,null,null,null,null,null,null,null,null,"",null,null,null,"．",null,null,null,null,null,null,null,4,"02085014","J-PARCセンター 核変換セクション"]
[null,null,null,null,null,null,null,null,null,null,null,null,null,"",null,null,null,"．",null,null,null,null,null,null,null,4,"02085015","J-PARCセンター 低温セクション"]
[null,null,null,null,null,null,null,null,null,null,null,null,null,"",null,null,null,{"$f":"P385&\"．\"&Q385","v":"．"},null,null,null,null,null,null,null,4,"02085019","J-PARCセンター 運営推進支援セクション"]
[null,null,null,null,null,null,null,null,null,null,null,null,null,"",null,null,null,"．",null,null,null,null,null,null,null,4,"02085023","J-PARCセンター 情報システムセクション"]
[null,null,null,null,null,null,null,null,null,null,null,null,null,"",null,null,null,"．",null,null,null,null,null,null,null,4,"02085024","J-PARCセンター 広報セクション"]
[null,null,null,null,null,null,null,null,null,null,null,null,null,"",null,null,null,"．",null,null,null,null,null,null,null,4,"02085016","J-PARCセンター 安全ディビジョン"]
[null,null,null,null,null,null,null,null,null,null,null,null,null,"",null,null,null,"．",null,null,null,null,null,null,null,4,"02085017","J-PARCセンター 安全ディビジョン 放射線安全セクション"]
[null,null,null,null,null,null,null,null,null,null,null,null,null,"",null,null,null,"．",null,null,null,null,null,null,null,4,"02085018","J-PARCセンター 安全ディビジョン 一般安全セクション"]
[null,null,null,null,null,null,null,null,null,null,null,null,null,"",null,null,null,"．",null,null,null,null,null,null,null,4,"02085001","J-PARCセンター 加速器ディビジョン"]
[null,null,null,null,null,null,null,null,null,null,null,null,null,"",null,null,null,"．",null,null,null,null,null,null,null,4,"02085002","J-PARCセンター 加速器ディビジョン 加速器第一セクション"]
[null,null,null,null,null,null,null,null,null,null,null,null,null,"",null,null,null,"．",null,null,null,null,null,null,null,4,"02085003","J-PARCセンター 加速器ディビジョン 加速器第二セクション"]
[null,null,null,null,null,null,null,null,null,null,null,null,null,"",null,null,null,"．",null,null,null,null,null,null,null,4,"02085004","J-PARCセンター 加速器ディビジョン 加速器第三セクション"]
[null,null,null,null,null,null,null,null,null,null,null,null,null,"",null,null,null,"．",null,null,null,null,null,null,null,4,"02085005","J-PARCセンター 加速器ディビジョン 加速器第四セクション"]
[null,null,null,null,null,null,null,null,null,null,null,null,null,"",null,null,null,"．",null,null,null,null,null,null,null,4,"02085006","J-PARCセンター 加速器ディビジョン 加速器第五セクション"]
[null,null,null,null,null,null,null,null,null,null,null,null,null,"",null,null,null,"．",null,null,null,null,null,null,null,4,"02085007","J-PARCセンター 加速器ディビジョン 加速器第六セクション"]
[null,null,null,null,null,null,null,null,null,null,null,null,null,"",null,null,null,"．",null,null,null,null,null,null,null,4,"02085025","J-PARCセンター 加速器ディビジョン 加速器第七セクション"]
[null,null,null,null,null,null,null,null,null,null,null,null,null,"",null,null,null,"．",null,null,null,null,null,null,null,4,"02085008","J-PARCセンター 物質・生命科学ディビジョン"]
[null,null,null,null,null,null,null,null,null,null,null,null,null,"",null,null,null,"．",null,null,null,null,null,null,null,4,"02085009","J-PARCセンター 物質・生命科学ディビジョン 中性子源セクション"]
[null,null,null,null,null,null,null,null,null,null,null,null,null,"",null,null,null,"．",null,null,null,null,null,null,null,4,"02085010","J-PARCセンター 物質・生命科学ディビジョン 中性子利用セクション"]
[null,null,null,null,null,null,null,null,null,null,null,null,null,"",null,null,null,"．",null,null,null,null,null,null,null,4,"02085011","J-PARCセンター 物質・生命科学ディビジョン 中性子基盤セクション"]
[null,null,null,null,null,null,null,null,null,null,null,null,null,"",null,null,null,"．",null,null,null,null,null,null,null,4,"02085012","J-PARCセンター 物質・生命科学ディビジョン ミュオンセクション"]
[null,null,null,null,null,null,null,null,null,null,null,null,null,"",null,null,null,"．",null,null,null,null,null,null,null,4,"02085026","J-PARCセンター 物質・生命科学ディビジョン 共通技術開発セクション"]
[null,null,null,null,null,null,null,null,null,null,null,null,null,"",null,null,null,"．",null,null,null,null,null,null,null,4,"02085013","J-PARCセンター 素粒子原子核ディビジョン"]
[null,null,null,null,null,null,null,null,null,null,null,null,null,"",null,null,null,"．",null,null,null,null,null,null,null,4,"02085027","J-PARCセンター 素粒子原子核ディビジョン ニュートリノセクション"]
[null,null,null,null,null,null,null,null,null,null,null,null,null,"",null,null,null,"．",null,null,null,null,null,null,null,4,"02085028","J-PARCセンター 素粒子原子核ディビジョン ハドロンセクション"]
[null,null,null,null,null,null,null,null,null,null,null,null,null,"",null,null,null,"．",null,null,null,null,null,null,null,4,"02085020","J-PARCセンター 業務ディビジョン"]
[null,null,null,null,null,null,null,null,null,null,null,null,null,"",null,null,null,"．",null,null,null,null,null,null,null,4,"02085021","J-PARCセンター 業務ディビジョン 総務セクション"]
[null,null,null,null,null,null,null,null,null,null,null,null,null,"",null,null,null,"．",null,null,null,null,null,null,null,4,"02085022","J-PARCセンター 業務ディビジョン 利用業務セクション"]
[null,null,null,null,null,null,null,null,null,null,null,null,null,"",null,null,null,"．",null,null,null,null,null,null,null,4,"02009000","バックエンド技術部"]
[null,null,null,null,null,null,null,null,null,null,null,null,null,"",null,null,null,"．",null,null,null,null,null,null,null,4,"02009001","バックエンド技術部 業務課"]
[null,null,null,null,null,null,null,null,null,null,null,null,null,"",null,null,null,"．",null,null,null,null,null,null,null,4,"02009002","バックエンド技術部 放射性廃棄物管理技術課"]
[null,null,null,null,null,null,null,null,null,null,null,null,null,"",null,null,null,"．",null,null,null,null,null,null,null,4,"02009003","バックエンド技術部 放射性廃棄物管理第1課"]
[null,null,null,null,null,null,null,null,null,null,null,null,null,"",null,null,null,"．",null,null,null,null,null,null,null,4,"02009004","バックエンド技術部 放射性廃棄物管理第2課"]
[null,null,null,null,null,null,null,null,null,null,null,null,null,"",null,null,null,"．",null,null,null,null,null,null,null,4,"02009005","バックエンド技術部 高減容処理技術課"]
[null,null,null,null,null,null,null,null,null,null,null,null,null,"",null,null,null,"．",null,null,null,null,null,null,null,4,"02009007","バックエンド技術部 廃止措置課"]
[null,null,null,null,null,null,null,null,null,null,null,null,null,"",null,null,null,"．",null,null,null,null,null,null,null,5,"02039000","サイクル研地区"]
[null,null,null,null,null,null,null,null,null,null,null,null,null,"",null,null,null,"．",null,null,null,null,null,null,null,5,"02046000","環境技術開発センター"]
[null,null,null,null,null,null,null,null,null,null,null,null,null,"",null,null,null,"．",null,null,null,null,null,null,null,5,"02013000","環境技術開発センター 福島技術開発試験部"]
[null,null,null,null,null,null,null,null,null,null,null,null,null,"",null,null,null,"．",null,null,null,null,null,null,null,5,"02013002","環境技術開発センター 福島技術開発試験部 研究計画課"]
[null,null,null,null,null,null,null,null,null,null,null,null,null,"",null,null,null,"．",null,null,null,null,null,null,null,5,"02013004","環境技術開発センター 福島技術開発試験部 研究開発第1課"]
[null,null,null,null,null,null,null,null,null,null,null,null,null,"",null,null,null,"．",null,null,null,null,null,null,null,5,"02013005","環境技術開発センター 福島技術開発試験部 研究開発第2課"]
[null,null,null,null,null,null,null,null,null,null,null,null,null,"",null,null,null,"．",null,null,null,null,null,null,null,5,"02021000","プルトニウム燃料技術開発センター"]
[null,null,null,null,null,null,null,null,null,null,null,null,null,"",null,null,null,"．",null,null,null,null,null,null,null,5,"02021004","プルトニウム燃料技術開発センター プルトニウム燃料施設整備室"]
[null,null,null,null,null,null,null,null,null,null,null,null,null,"",null,null,null,"．",null,null,null,null,null,null,null,5,"02021001","プルトニウム燃料技術開発センター 計画管理課"]
[null,null,null,null,null,null,null,null,null,null,null,null,null,"",null,null,null,"．",null,null,null,null,null,null,null,5,"02021002","プルトニウム燃料技術開発センター 品質保証課"]
[null,null,null,null,null,null,null,null,null,null,null,null,null,"",null,null,null,"．",null,null,null,null,null,null,null,5,"02022000","プルトニウム燃料技術開発センター 技術部"]
[null,null,null,null,null,null,null,null,null,null,null,null,null,"",null,null,null,"．",null,null,null,null,null,null,null,5,"02022001","プルトニウム燃料技術開発センター 技術部 技術課"]
[null,null,null,null,null,null,null,null,null,null,null,null,null,"",null,null,null,"．",null,null,null,null,null,null,null,5,"02022002","プルトニウム燃料技術開発センター 技術部 核物質管理課"]
[null,null,null,null,null,null,null,null,null,null,null,null,null,"",null,null,null,"．",null,null,null,null,null,null,null,5,"02022003","プルトニウム燃料技術開発センター 技術部 品質管理課"]
[null,null,null,null,null,null,null,null,null,null,null,null,null,"",null,null,null,"．",null,null,null,null,null,null,null,5,"02023000","プルトニウム燃料技術開発センター 燃料技術部"]
[null,null,null,null,null,null,null,null,null,null,null,null,null,"",null,null,null,"．",null,null,null,null,null,null,null,5,"02023001","プルトニウム燃料技術開発センター 燃料技術部 試験第1課"]
[null,null,null,null,null,null,null,null,null,null,null,null,null,"",null,null,null,"．",null,null,null,null,null,null,null,5,"02023005","プルトニウム燃料技術開発センター 燃料技術部 試験第2課"]
[null,null,null,null,null,null,null,null,null,null,null,null,null,"",null,null,null,"．",null,null,null,null,null,null,null,5,"02023002","プルトニウム燃料技術開発センター 燃料技術部 プロセス設備開発課"]
[null,null,null,null,null,null,null,null,null,null,null,null,null,"",null,null,null,"．",null,null,null,null,null,null,null,5,"02023003","プルトニウム燃料技術開発センター 燃料技術部 燃料技術開発課"]
[null,null,null,null,null,null,null,null,null,null,null,null,null,"",null,null,null,"．",null,null,null,null,null,null,null,5,"02023004","プルトニウム燃料技術開発センター 燃料技術部 設計解析課"]
[null,null,null,null,null,null,null,null,null,null,null,null,null,"",null,null,null,"．",null,null,null,null,null,null,null,5,"02010000","保安管理部"]
[null,null,null,null,null,null,null,null,null,null,null,null,null,"",null,null,null,"．",null,null,null,null,null,null,null,5,"02010001","保安管理部 安全対策課"]
[null,null,null,null,null,null,null,null,null,null,null,null,null,"",null,null,null,"．",null,null,null,null,null,null,null,5,"02010002","保安管理部 危機管理課"]
[null,null,null,null,null,null,null,null,null,null,null,null,null,"",null,null,null,"．",null,null,null,null,null,null,null,5,"02010003","保安管理部 施設安全課"]
[null,null,null,null,null,null,null,null,null,null,null,null,null,"",null,null,null,"．",null,null,null,null,null,null,null,5,"02010004","保安管理部 核物質防護管理課"]
[null,null,null,null,null,null,null,null,null,null,null,null,null,"",null,null,null,"．",null,null,null,null,null,null,null,5,"02011001","バックエンド研究開発部門 計画管理室"]
[null,null,null,null,null,null,null,null,null,null,null,null,null,"",null,null,null,"．",null,null,null,null,null,null,null,5,"02012000","放射線管理部"]
[null,null,null,null,null,null,null,null,null,null,null,null,null,"",null,null,null,"．",null,null,null,null,null,null,null,5,"02012001","放射線管理部 線量計測課"]
[null,null,null,null,null,null,null,null,null,null,null,null,null,"",null,null,null,"．",null,null,null,null,null,null,null,5,"02012002","放射線管理部 環境監視課"]
[null,null,null,null,null,null,null,null,null,null,null,null,null,"",null,null,null,"．",null,null,null,null,null,null,null,5,"02012003","放射線管理部 放射線管理第1課"]
[null,null,null,null,null,null,null,null,null,null,null,null,null,"",null,null,null,"．",null,null,null,null,null,null,null,5,"02012004","放射線管理部 放射線管理第2課"]
[null,null,null,null,null,null,null,null,null,null,null,null,null,"",null,null,null,{"$f":"P449&\"．\"&Q449","v":"．"},null,null,null,null,null,null,null,5,"02029000","工務技術部"]
[null,null,null,null,null,null,null,null,null,null,null,null,null,"",null,null,null,"．",null,null,null,null,null,null,null,5,"02029001","工務技術部 管理課"]
[null,null,null,null,null,null,null,null,null,null,null,null,null,"",null,null,null,"．",null,null,null,null,null,null,null,5,"02029002","工務技術部 運転課"]
[null,null,null,null,null,null,null,null,null,null,null,null,null,"",null,null,null,"．",null,null,null,null,null,null,null,5,"02029003","工務技術部 施設営繕課"]
[null,null,null,null,null,null,null,null,null,null,null,null,null,"",null,null,null,"．",null,null,null,null,null,null,null,5,"02029004","工務技術部 施設建設課"]
[null,null,null,null,null,null,null,null,null,null,null,null,null,"",null,null,null,"．",null,null,null,null,null,null,null,5,"02046000","環境技術開発センター"]
[null,null,null,null,null,null,null,null,null,null,null,null,null,"",null,null,null,"．",null,null,null,null,null,null,null,5,"02046001","環境技術開発センター 計画管理課"]
[null,null,null,null,null,null,null,null,null,null,null,null,null,"",null,null,null,"．",null,null,null,null,null,null,null,5,"02046002","環境技術開発センター 施設管理課"]
[null,null,null,null,null,null,null,null,null,null,null,null,null,"",null,null,null,"．",null,null,null,null,null,null,null,5,"02014000","廃止措置技術部"]
[null,null,null,null,null,null,null,null,null,null,null,null,null,"",null,null,null,"．",null,null,null,null,null,null,null,5,"02014003","廃止措置技術部 環境施設計画課"]
[null,null,null,null,null,null,null,null,null,null,null,null,null,"",null,null,null,"．",null,null,null,null,null,null,null,5,"02014002","廃止措置技術部 環境保全課"]
[null,null,null,null,null,null,null,null,null,null,null,null,null,"",null,null,null,"．",null,null,null,null,null,null,null,5,"02014005","廃止措置技術部 廃止措置技術課"]
[null,null,null,null,null,null,null,null,null,null,null,null,null,"",null,null,null,"．",null,null,null,null,null,null,null,5,"02047000","基盤技術研究開発部"]
[null,null,null,null,null,null,null,null,null,null,null,null,null,"",null,null,null,"．",null,null,null,null,null,null,null,5,"02047001","基盤技術研究開発部 システム性能研究Gr"]
[null,null,null,null,null,null,null,null,null,null,null,null,null,"",null,null,null,"．",null,null,null,null,null,null,null,5,"02047002","基盤技術研究開発部 ニアフィールド研究Gr"]
[null,null,null,null,null,null,null,null,null,null,null,null,null,"",null,null,null,"．",null,null,null,null,null,null,null,5,"02047003","基盤技術研究開発部 核種移行研究Gr"]
[null,null,null,null,null,null,null,null,null,null,null,null,null,"",null,null,null,"．",null,null,null,null,null,null,null,5,"02047004","基盤技術研究開発部 廃棄物処理技術Gr"]
[null,null,null,null,null,null,null,null,null,null,null,null,null,"",null,null,null,"．",null,null,null,null,null,null,null,5,"02015000","再処理技術開発センター"]
[null,null,null,null,null,null,null,null,null,null,null,null,null,"",null,null,null,"．",null,null,null,null,null,null,null,5,"02016000","再処理技術開発センター 技術部"]
[null,null,null,null,null,null,null,null,null,null,null,null,null,"",null,null,null,"．",null,null,null,null,null,null,null,5,"02016005","再処理技術開発センター 技術部 計画管理課"]
[null,null,null,null,null,null,null,null,null,null,null,null,null,"",null,null,null,"．",null,null,null,null,null,null,null,5,"02016001","再処理技術開発センター 技術部 技術開発課"]
[null,null,null,null,null,null,null,null,null,null,null,null,null,"",null,null,null,"．",null,null,null,null,null,null,null,5,"02016006","再処理技術開発センター 技術部 品質保証課"]
[null,null,null,null,null,null,null,null,null,null,null,null,null,"",null,null,null,"．",null,null,null,null,null,null,null,5,"02016007","再処理技術開発センター 技術部 核物質管理課"]
[null,null,null,null,null,null,null,null,null,null,null,null,null,"",null,null,null,"．",null,null,null,null,null,null,null,5,"02026000","再処理技術開発センター ガラス固化技術開発部"]
[null,null,null,null,null,null,null,null,null,null,null,null,null,"",null,null,null,"．",null,null,null,null,null,null,null,5,"02026001","再処理技術開発センター ガラス固化技術開発部 ガラス固化管理課"]
[null,null,null,null,null,null,null,null,null,null,null,null,null,"",null,null,null,"．",null,null,null,null,null,null,null,5,"02026002","再処理技術開発センター ガラス固化技術開発部 ガラス固化技術課"]
[null,null,null,null,null,null,null,null,null,null,null,null,null,"",null,null,null,"．",null,null,null,null,null,null,null,5,"02026003","再処理技術開発センター ガラス固化技術開発部 ガラス固化処理課"]
[null,null,null,null,null,null,null,null,null,null,null,null,null,"",null,null,null,"．",null,null,null,null,null,null,null,5,"02017000","再処理技術開発センター 処理部"]
[null,null,null,null,null,null,null,null,null,null,null,null,null,"",null,null,null,"．",null,null,null,null,null,null,null,5,"02017001","再処理技術開発センター 処理部 前処理課"]
[null,null,null,null,null,null,null,null,null,null,null,null,null,"",null,null,null,"．",null,null,null,null,null,null,null,5,"02017002","再処理技術開発センター 処理部 化学処理第1課"]
[null,null,null,null,null,null,null,null,null,null,null,null,null,"",null,null,null,"．",null,null,null,null,null,null,null,5,"02017003","再処理技術開発センター 処理部 化学処理第2課"]
[null,null,null,null,null,null,null,null,null,null,null,null,null,"",null,null,null,"．",null,null,null,null,null,null,null,5,"02017004","再処理技術開発センター 処理部 化学処理第3課"]
[null,null,null,null,null,null,null,null,null,null,null,null,null,"",null,null,null,"．",null,null,null,null,null,null,null,5,"02017005","再処理技術開発センター 処理部 転換技術課"]
[null,null,null,null,null,null,null,null,null,null,null,null,null,"",null,null,null,"．",null,null,null,null,null,null,null,5,"02018000","再処理技術開発センター 施設管理部"]
[null,null,null,null,null,null,null,null,null,null,null,null,null,"",null,null,null,"．",null,null,null,null,null,null,null,5,"02018001","再処理技術開発センター 施設管理部 施設管理課"]
[null,null,null,null,null,null,null,null,null,null,null,null,null,"",null,null,null,"．",null,null,null,null,null,null,null,5,"02018002","再処理技術開発センター 施設管理部 施設保全第1課"]
[null,null,null,null,null,null,null,null,null,null,null,null,null,"",null,null,null,"．",null,null,null,null,null,null,null,5,"02018003","再処理技術開発センター 施設管理部 施設保全第2課"]
[null,null,null,null,null,null,null,null,null,null,null,null,null,"",null,null,null,"．",null,null,null,null,null,null,null,5,"02018004","再処理技術開発センター 施設管理部 分析第1課"]
[null,null,null,null,null,null,null,null,null,null,null,null,null,"",null,null,null,"．",null,null,null,null,null,null,null,5,"02018005","再処理技術開発センター 施設管理部 分析第2課"]
[null,null,null,null,null,null,null,null,null,null,null,null,null,"",null,null,null,"．",null,null,null,null,null,null,null,5,"02019000","再処理技術開発センター 環境保全部"]
[null,null,null,null,null,null,null,null,null,null,null,null,null,"",null,null,null,"．",null,null,null,null,null,null,null,5,"02019001","再処理技術開発センター 環境保全部 環境管理課"]
[null,null,null,null,null,null,null,null,null,null,null,null,null,"",null,null,null,"．",null,null,null,null,null,null,null,5,"02019002","再処理技術開発センター 環境保全部 処理第1課"]
[null,null,null,null,null,null,null,null,null,null,null,null,null,"",null,null,null,"．",null,null,null,null,null,null,null,5,"02019003","再処理技術開発センター 環境保全部 処理第2課"]
[null,null,null,null,null,null,null,null,null,null,null,null,null,"",null,null,null,"．",null,null,null,null,null,null,null,5,"02021000","プルトニウム燃料技術開発センター"]
[null,null,null,null,null,null,null,null,null,null,null,null,null,"",null,null,null,"．",null,null,null,null,null,null,null,5,"02024000","プルトニウム燃料技術開発センター 環境プラント技術部"]
[null,null,null,null,null,null,null,null,null,null,null,null,null,"",null,null,null,"．",null,null,null,null,null,null,null,5,"02024001","プルトニウム燃料技術開発センター 環境プラント技術部 環境管理課"]
[null,null,null,null,null,null,null,null,null,null,null,null,null,"",null,null,null,"．",null,null,null,null,null,null,null,5,"02024002","プルトニウム燃料技術開発センター 環境プラント技術部 環境技術課"]
[null,null,null,null,null,null,null,null,null,null,null,null,null,"",null,null,null,"．",null,null,null,null,null,null,null,5,"02024003","プルトニウム燃料技術開発センター 環境プラント技術部 廃止措置技術開発課"]
[null,null,null,null,null,null,null,null,null,null,null,null,null,"",null,null,null,"．",null,null,null,null,null,null,null,5,"02024004","プルトニウム燃料技術開発センター 環境プラント技術部 プラント保全課"]
[null,null,null,null,null,null,null,null,null,null,null,null,null,"",null,null,null,"．",null,null,null,null,null,null,null,6,"02092000","安全・核セキュリティ総括部"]
[null,null,null,null,null,null,null,null,null,null,null,null,null,"",null,null,null,"．",null,null,null,null,null,null,null,6,"02092006","安全・核セキュリティ総括部 核セキュリティ・保障措置課"]
[null,null,null,null,null,null,null,null,null,null,null,null,null,"",null,null,null,"．",null,null,null,null,null,null,null,6,"02056000","事業計画統括部"]
[null,null,null,null,null,null,null,null,null,null,null,null,null,"",null,null,null,"．",null,null,null,null,null,null,null,6,"02056002","事業計画統括部 評価室"]
[null,null,null,null,null,null,null,null,null,null,null,null,null,"",null,null,null,"．",null,null,null,null,null,null,null,6,"02057000","総務部"]
[null,null,null,null,null,null,null,null,null,null,null,null,null,"",null,null,null,"．",null,null,null,null,null,null,null,6,"02058000","人事部"]
[null,null,null,null,null,null,null,null,null,null,null,null,null,"",null,null,null,"．",null,null,null,null,null,null,null,6,"02058001","人事部 人事課"]
[null,null,null,null,null,null,null,null,null,null,null,null,null,"",null,null,null,"．",null,null,null,null,null,null,null,6,"02058002","人事部 給与課"]
[null,null,null,null,null,null,null,null,null,null,null,null,null,"",null,null,null,"．",null,null,null,null,null,null,null,6,"02058004","人事部 職員課"]
[null,null,null,null,null,null,null,null,null,null,null,null,null,"",null,null,null,"．",null,null,null,null,null,null,null,6,"02050000","産学連携推進部"]
[null,null,null,null,null,null,null,null,null,null,null,null,null,"",null,null,null,"．",null,null,null,null,null,null,null,6,"02050001","産学連携推進部 産学連携推進課"]
[null,null,null,null,null,null,null,null,null,null,null,null,null,"",null,null,null,"．",null,null,null,null,null,null,null,6,"02050002","産学連携推進部 研究協力課"]
[null,null,null,null,null,null,null,null,null,null,null,null,null,"",null,null,null,"．",null,null,null,null,null,null,null,6,"02050004","産学連携推進部 知的財産管理・利用促進課"]
[null,null,null,null,null,null,null,null,null,null,null,null,null,"",null,null,null,"．",null,null,null,null,null,null,null,6,"02074000","国際部"]
[null,null,null,null,null,null,null,null,null,null,null,null,null,"",null,null,null,"．",null,null,null,null,null,null,null,6,"02074001","国際部 国際協力課"]
[null,null,null,null,null,null,null,null,null,null,null,null,null,"",null,null,null,{"$f":"P513&\"．\"&Q513","v":"．"},null,null,null,null,null,null,null,6,"02051000","建設部"]
[null,null,null,null,null,null,null,null,null,null,null,null,null,"",null,null,null,"．",null,null,null,null,null,null,null,6,"02051001","建設部 業務課"]
[null,null,null,null,null,null,null,null,null,null,null,null,null,"",null,null,null,"．",null,null,null,null,null,null,null,6,"02051002","建設部 施設技術課"]
[null,null,null,null,null,null,null,null,null,null,null,null,null,"",null,null,null,"．",null,null,null,null,null,null,null,6,"02051003","建設部 建設課"]
[null,null,null,null,null,null,null,null,null,null,null,null,null,"",null,null,null,"．",null,null,null,null,null,null,null,6,"02051004","建設部 設備課"]
[null,null,null,null,null,null,null,null,null,null,null,null,null,"",null,null,null,"．",null,null,null,null,null,null,null,6,"02051007","建設部 耐震対応整備室"]
[null,null,null,null,null,null,null,null,null,null,null,null,null,"",null,null,null,"．",null,null,null,null,null,null,null,6,"02051005","建設部 大洗大型施設建設室"]
[null,null,null,null,null,null,null,null,null,null,null,null,null,"",null,null,null,"．",null,null,null,null,null,null,null,6,"02052000","研究技術情報部"]
[null,null,null,null,null,null,null,null,null,null,null,null,null,"",null,null,null,"．",null,null,null,null,null,null,null,6,"02052001","研究技術情報部 研究技術情報課"]
[null,null,null,null,null,null,null,null,null,null,null,null,null,"",null,null,null,"．",null,null,null,null,null,null,null,6,"02052002","研究技術情報部 情報メディア管理課"]
[null,null,null,null,null,null,null,null,null,null,null,null,null,"",null,null,null,"．",null,null,null,null,null,null,null,6,"02052003","研究技術情報部 原子力情報システム管理課"]
[null,null,null,null,null,null,null,null,null,null,null,null,null,"",null,null,null,"．",null,null,null,null,null,null,null,6,"02053000","システム計算科学センター"]
[null,null,null,null,null,null,null,null,null,null,null,null,null,"",null,null,null,"．",null,null,null,null,null,null,null,6,"02053007","システム計算科学センター 情報システム企画室"]
[null,null,null,null,null,null,null,null,null,null,null,null,null,"",null,null,null,"．",null,null,null,null,null,null,null,6,"02053002","システム計算科学センター 情報システム利用推進室"]
[null,null,null,null,null,null,null,null,null,null,null,null,null,"",null,null,null,"．",null,null,null,null,null,null,null,6,"02053003","システム計算科学センター 情報システム管理室"]
[null,null,null,null,null,null,null,null,null,null,null,null,null,"",null,null,null,"．",null,null,null,null,null,null,null,6,"02053004","システム計算科学センター OAシステム室"]
[null,null,null,null,null,null,null,null,null,null,null,null,null,"",null,null,null,"．",null,null,null,null,null,null,null,6,"02053005","システム計算科学センター 高度計算機技術開発室"]
[null,null,null,null,null,null,null,null,null,null,null,null,null,"",null,null,null,"．",null,null,null,null,null,null,null,6,"02053006","システム計算科学センター シミュレーション技術開発室"]
[null,null,null,null,null,null,null,null,null,null,null,null,null,"",null,null,null,"．",null,null,null,null,null,null,null,6,"02055000","原子力人材育成センター"]
[null,null,null,null,null,null,null,null,null,null,null,null,null,"",null,null,null,"．",null,null,null,null,null,null,null,6,"02055001","原子力人材育成センター 原子力人材育成推進課"]
[null,null,null,null,null,null,null,null,null,null,null,null,null,"",null,null,null,"．",null,null,null,null,null,null,null,6,"02055002","原子力人材育成センター 原子力研修課"]
[null,null,null,null,null,null,null,null,null,null,null,null,null,"",null,null,null,"．",null,null,null,null,null,null,null,6,"02055003","原子力人材育成センター 国際原子力人材育成課"]
[null,null,null,null,null,null,null,null,null,null,null,null,null,"",null,null,null,"．",null,null,null,null,null,null,null,6,"02043000","核不拡散・核セキュリティ総合支援センター"]
[null,null,null,null,null,null,null,null,null,null,null,null,null,"",null,null,null,"．",null,null,null,null,null,null,null,6,"02043001","核不拡散・核セキュリティ総合支援センター 計画管理室"]
[null,null,null,null,null,null,null,null,null,null,null,null,null,"",null,null,null,"．",null,null,null,null,null,null,null,6,"02043002","核不拡散・核セキュリティ総合支援センター 能力構築国際支援室"]
[null,null,null,null,null,null,null,null,null,null,null,null,null,"",null,null,null,"．",null,null,null,null,null,null,null,6,"02043003","核不拡散・核セキュリティ総合支援センター 政策調査室"]
[null,null,null,null,null,null,null,null,null,null,null,null,null,"",null,null,null,"．",null,null,null,null,null,null,null,6,"02043004","核不拡散・核セキュリティ総合支援センター 技術開発推進室"]
[null,null,null,null,null,null,null,null,null,null,null,null,null,"",null,null,null,"．",null,null,null,null,null,null,null,6,"02043005","核不拡散・核セキュリティ総合支援センター 輸送・研究炉燃料支援室"]
[null,null,null,null,null,null,null,null,null,null,null,null,null,"",null,null,null,"．",null,null,null,null,null,null,null,6,"02049000","核物質管理科学技術推進部"]
[null,null,null,null,null,null,null,null,null,null,null,null,null,"",null,null,null,"．",null,null,null,null,null,null,null,6,"02049001","核物質管理科学技術推進部 核物質管理室"]
[null,null,null,null,null,null,null,null,null,null,null,null,null,"",null,null,null,"．",null,null,null,null,null,null,null,6,"02027000","福島廃止措置技術開発センター"]
[null,null,null,null,null,null,null,null,null,null,null,null,null,"",null,null,null,"．",null,null,null,null,null,null,null,6,"02027001","福島廃止措置技術開発センター 研究推進室"]
[null,null,null,null,null,null,null,null,null,null,null,null,null,"",null,null,null,"．",null,null,null,null,null,null,null,6,"02027002","福島廃止措置技術開発センター 燃料デブリ取扱技術開発Gr"]
[null,null,null,null,null,null,null,null,null,null,null,null,null,"",null,null,null,"．",null,null,null,null,null,null,null,6,"02027003","福島廃止措置技術開発センター 廃棄物処理・処分技術開発Gr"]
[null,null,null,null,null,null,null,null,null,null,null,null,null,"",null,null,null,"．",null,null,null,null,null,null,null,6,"02027004","福島廃止措置技術開発センター 基盤技術開発Gr"]
[null,null,null,null,null,null,null,null,null,null,null,null,null,"",null,null,null,"．",null,null,null,null,null,null,null,6,"02030000","安全研究センター"]
[null,null,null,null,null,null,null,null,null,null,null,null,null,"",null,null,null,"．",null,null,null,null,null,null,null,6,"02030001","安全研究センター 研究計画調整室"]
[null,null,null,null,null,null,null,null,null,null,null,null,null,"",null,null,null,"．",null,null,null,null,null,null,null,6,"02030014","安全研究センター 規制情報分析室"]
[null,null,null,null,null,null,null,null,null,null,null,null,null,"",null,null,null,"．",null,null,null,null,null,null,null,6,"02030002","安全研究センター 原子炉安全研究U"]
[null,null,null,null,null,null,null,null,null,null,null,null,null,"",null,null,null,"．",null,null,null,null,null,null,null,6,"02030003","安全研究センター 原子炉安全研究U 熱水力安全研究Gr"]
[null,null,null,null,null,null,null,null,null,null,null,null,null,"",null,null,null,"．",null,null,null,null,null,null,null,6,"02030004","安全研究センター 原子炉安全研究U 燃料安全研究Gr"]
[null,null,null,null,null,null,null,null,null,null,null,null,null,"",null,null,null,"．",null,null,null,null,null,null,null,6,"02030010","安全研究センター 材料・構造安全研究U"]
[null,null,null,null,null,null,null,null,null,null,null,null,null,"",null,null,null,"．",null,null,null,null,null,null,null,6,"02030005","安全研究センター 材料・構造安全研究U 構造健全性評価研究Gr"]
[null,null,null,null,null,null,null,null,null,null,null,null,null,"",null,null,null,"．",null,null,null,null,null,null,null,6,"02030011","安全研究センター 材料・構造安全研究U 材料・水化学研究Gr"]
[null,null,null,null,null,null,null,null,null,null,null,null,null,"",null,null,null,"．",null,null,null,null,null,null,null,6,"02030015","安全研究センター リスク評価研究U"]
[null,null,null,null,null,null,null,null,null,null,null,null,null,"",null,null,null,"．",null,null,null,null,null,null,null,6,"02030016","安全研究センター リスク評価研究U シビアアクシデント評価研究Gr"]
[null,null,null,null,null,null,null,null,null,null,null,null,null,"",null,null,null,"．",null,null,null,null,null,null,null,6,"02030018","安全研究センター リスク評価研究U 放射線安全・防災研究Gr"]
[null,null,null,null,null,null,null,null,null,null,null,null,null,"",null,null,null,"．",null,null,null,null,null,null,null,6,"02030006","安全研究センター 燃料サイクル安全研究U"]
[null,null,null,null,null,null,null,null,null,null,null,null,null,"",null,null,null,"．",null,null,null,null,null,null,null,6,"02030008","安全研究センター 燃料サイクル安全研究U サイクル安全研究Gr"]
[null,null,null,null,null,null,null,null,null,null,null,null,null,"",null,null,null,"．",null,null,null,null,null,null,null,6,"02030019","安全研究センター 燃料サイクル安全研究U 臨界安全研究Gr"]
[null,null,null,null,null,null,null,null,null,null,null,null,null,"",null,null,null,"．",null,null,null,null,null,null,null,6,"02030020","安全研究センター 環境安全研究U"]
[null,null,null,null,null,null,null,null,null,null,null,null,null,"",null,null,null,"．",null,null,null,null,null,null,null,6,"02030009","安全研究センター 環境安全研究U 廃棄物安全研究Gr"]
[null,null,null,null,null,null,null,null,null,null,null,null,null,"",null,null,null,"．",null,null,null,null,null,null,null,6,"02030017","安全研究センター 環境安全研究U 環境影響評価研究Gr"]
[null,null,null,null,null,null,null,null,null,null,null,null,null,"",null,null,null,"．",null,null,null,null,null,null,null,6,"02031000","先端基礎研究センター"]
[null,null,null,null,null,null,null,null,null,null,null,null,null,"",null,null,null,"．",null,null,null,null,null,null,null,6,"02031001","先端基礎研究センター 研究推進室"]
[null,null,null,null,null,null,null,null,null,null,null,null,null,"",null,null,null,"．",null,null,null,null,null,null,null,6,"02031004","先端基礎研究センター 量子物性理論研究Gr"]
[null,null,null,null,null,null,null,null,null,null,null,null,null,"",null,null,null,"．",null,null,null,null,null,null,null,6,"02031006","先端基礎研究センター 分子スピントロニクス研究Gr"]
[null,null,null,null,null,null,null,null,null,null,null,null,null,"",null,null,null,"．",null,null,null,null,null,null,null,6,"02031011","先端基礎研究センター 力学的物質・スピン制御研究Gr"]
[null,null,null,null,null,null,null,null,null,null,null,null,null,"",null,null,null,"．",null,null,null,null,null,null,null,6,"02031002","先端基礎研究センター 重原子核反応フロンティア研究Gr"]
[null,null,null,null,null,null,null,null,null,null,null,null,null,"",null,null,null,"．",null,null,null,null,null,null,null,6,"02031003","先端基礎研究センター 超重元素研究Gr"]
[null,null,null,null,null,null,null,null,null,null,null,null,null,"",null,null,null,"．",null,null,null,null,null,null,null,6,"02031012","先端基礎研究センター アクチノイド物質開発研究Gr"]
[null,null,null,null,null,null,null,null,null,null,null,null,null,"",null,null,null,"．",null,null,null,null,null,null,null,6,"02031013","先端基礎研究センター 重元素系固体物理研究Gr"]
[null,null,null,null,null,null,null,null,null,null,null,null,null,"",null,null,null,"．",null,null,null,null,null,null,null,6,"02031014","先端基礎研究センター ハドロン物理研究Gr"]
[null,null,null,null,null,null,null,null,null,null,null,null,null,"",null,null,null,"．",null,null,null,null,null,null,null,6,"02031009","先端基礎研究センター バイオアクチノイド化学研究Gr"]
[null,null,null,null,null,null,null,null,null,null,null,null,null,"",null,null,null,{"$f":"P577&\"．\"&Q577","v":"．"},null,null,null,null,null,null,null,6,"02031010","先端基礎研究センター 放射場生体分子科学研究Gr"]
[null,null,null,null,null,null,null,null,null,null,null,null,null,"",null,null,null,"．",null,null,null,null,null,null,null,6,"02031007","先端基礎研究センター スピン偏極陽電子ビーム研究Gr"]
[null,null,null,null,null,null,null,null,null,null,null,null,null,"",null,null,null,"．",null,null,null,null,null,null,null,6,"02032000","原子力基礎工学研究センター"]
[null,null,null,null,null,null,null,null,null,null,null,null,null,"",null,null,null,"．",null,null,null,null,null,null,null,6,"02032001","原子力基礎工学研究センター 研究推進室"]
[null,null,null,null,null,null,null,null,null,null,null,null,null,"",null,null,null,"．",null,null,null,null,null,null,null,6,"02032002","原子力基礎工学研究センター 核工学・炉工学U"]
[null,null,null,null,null,null,null,null,null,null,null,null,null,"",null,null,null,"．",null,null,null,null,null,null,null,6,"02032007","原子力基礎工学研究センター 核工学・炉工学U 核データ研究Gr"]
[null,null,null,null,null,null,null,null,null,null,null,null,null,"",null,null,null,"．",null,null,null,null,null,null,null,6,"02032033","原子力基礎工学研究センター 核工学・炉工学U 炉物理標準コード研究Gr"]
[null,null,null,null,null,null,null,null,null,null,null,null,null,"",null,null,null,"．",null,null,null,null,null,null,null,6,"02032004","原子力基礎工学研究センター 核工学・炉工学U 熱流動研究Gr"]
[null,null,null,null,null,null,null,null,null,null,null,null,null,"",null,null,null,"．",null,null,null,null,null,null,null,6,"02032031","原子力基礎工学研究センター 核工学・炉工学U 原子力センシング研究Gr"]
[null,null,null,null,null,null,null,null,null,null,null,null,null,"",null,null,null,"．",null,null,null,null,null,null,null,6,"02032014","原子力基礎工学研究センター 燃料・材料工学U"]
[null,null,null,null,null,null,null,null,null,null,null,null,null,"",null,null,null,"．",null,null,null,null,null,null,null,6,"02032019","原子力基礎工学研究センター 燃料・材料工学U 防食材料技術開発Gr"]
[null,null,null,null,null,null,null,null,null,null,null,null,null,"",null,null,null,"．",null,null,null,null,null,null,null,6,"02032020","原子力基礎工学研究センター 燃料・材料工学U 照射材料工学研究Gr"]
[null,null,null,null,null,null,null,null,null,null,null,null,null,"",null,null,null,"．",null,null,null,null,null,null,null,6,"02032034","原子力基礎工学研究センター 燃料・材料工学U 燃料高温科学研究Gr"]
[null,null,null,null,null,null,null,null,null,null,null,null,null,"",null,null,null,"．",null,null,null,null,null,null,null,6,"02032040","原子力基礎工学研究センター 原子力化学U"]
[null,null,null,null,null,null,null,null,null,null,null,null,null,"",null,null,null,"．",null,null,null,null,null,null,null,6,"02032028","原子力基礎工学研究センター 原子力化学U 環境化学研究Gr"]
[null,null,null,null,null,null,null,null,null,null,null,null,null,"",null,null,null,"．",null,null,null,null,null,null,null,6,"02032024","原子力基礎工学研究センター 原子力化学U 放射化学研究Gr"]
[null,null,null,null,null,null,null,null,null,null,null,null,null,"",null,null,null,"．",null,null,null,null,null,null,null,6,"02032041","原子力基礎工学研究センター 原子力化学U 分析化学研究Gr"]
[null,null,null,null,null,null,null,null,null,null,null,null,null,"",null,null,null,"．",null,null,null,null,null,null,null,6,"02032022","原子力基礎工学研究センター 環境・放射線科学U"]
[null,null,null,null,null,null,null,null,null,null,null,null,null,"",null,null,null,"．",null,null,null,null,null,null,null,6,"02032023","原子力基礎工学研究センター 環境・放射線科学U 環境動態研究Gr"]
[null,null,null,null,null,null,null,null,null,null,null,null,null,"",null,null,null,"．",null,null,null,null,null,null,null,6,"02032026","原子力基礎工学研究センター 環境・放射線科学U 放射線影響解析研究Gr"]
[null,null,null,null,null,null,null,null,null,null,null,null,null,"",null,null,null,"．",null,null,null,null,null,null,null,6,"02032027","原子力基礎工学研究センター 環境・放射線科学U 放射線防護研究Gr"]
[null,null,null,null,null,null,null,null,null,null,null,null,null,"",null,null,null,"．",null,null,null,null,null,null,null,6,"02032042","原子力基礎工学研究センター 福島基盤技術U"]
[null,null,null,null,null,null,null,null,null,null,null,null,null,"",null,null,null,"．",null,null,null,null,null,null,null,6,"02032043","原子力基礎工学研究センター 福島基盤技術U 燃料デブリ解析研究Gr"]
[null,null,null,null,null,null,null,null,null,null,null,null,null,"",null,null,null,"．",null,null,null,null,null,null,null,6,"02032044","原子力基礎工学研究センター 福島基盤技術U 炉内状況解析研究Gr"]
[null,null,null,null,null,null,null,null,null,null,null,null,null,"",null,null,null,"．",null,null,null,null,null,null,null,6,"02032045","原子力基礎工学研究センター 福島基盤技術U 機器健全性評価研究Gr"]
[null,null,null,null,null,null,null,null,null,null,null,null,null,"",null,null,null,"．",null,null,null,null,null,null,null,6,"02032046","原子力基礎工学研究センター 福島基盤技術U 水処理材料評価研究Gr"]
[null,null,null,null,null,null,null,null,null,null,null,null,null,"",null,null,null,"．",null,null,null,null,null,null,null,6,"02032047","原子力基礎工学研究センター 分離変換技術開発U"]
[null,null,null,null,null,null,null,null,null,null,null,null,null,"",null,null,null,"．",null,null,null,null,null,null,null,6,"02032016","原子力基礎工学研究センター 分離変換技術開発U 分離変換サイクル開発Gr"]
[null,null,null,null,null,null,null,null,null,null,null,null,null,"",null,null,null,"．",null,null,null,null,null,null,null,6,"02032005","原子力基礎工学研究センター 分離変換技術開発U 核変換システム開発Gr"]
[null,null,null,null,null,null,null,null,null,null,null,null,null,"",null,null,null,"．",null,null,null,null,null,null,null,6,"02025000","原子力エネルギー基盤連携センター"]
[null,null,null,null,null,null,null,null,null,null,null,null,null,"",null,null,null,"．",null,null,null,null,null,null,null,6,"02025001","原子力エネルギー基盤連携センター 次世代再処理材料開発特別Gr"]
[null,null,null,null,null,null,null,null,null,null,null,null,null,"",null,null,null,"．",null,null,null,null,null,null,null,6,"02025002","原子力エネルギー基盤連携センター 軽水炉熱流動技術開発特別Gr"]
[null,null,null,null,null,null,null,null,null,null,null,null,null,"",null,null,null,"．",null,null,null,null,null,null,null,6,"02025004","原子力エネルギー基盤連携センター 黒鉛・炭素材料挙動評価特別Gr"]
[null,null,null,null,null,null,null,null,null,null,null,null,null,"",null,null,null,"．",null,null,null,null,null,null,null,6,"02025005","原子力エネルギー基盤連携センター ガラス固化技術特別Gr"]
[null,null,null,null,null,null,null,null,null,null,null,null,null,"",null,null,null,"．",null,null,null,null,null,null,null,6,"02025006","原子力エネルギー基盤連携センター 高温ガス炉要素技術開発特別Gr"]
[null,null,null,null,null,null,null,null,null,null,null,null,null,"",null,null,null,"．",null,null,null,null,null,null,null,6,"02025008","原子力エネルギー基盤連携センター 加速器中性子利用ＲＩ生成技術開発特別Gr"]
[null,null,null,null,null,null,null,null,null,null,null,null,null,"",null,null,null,"．",null,null,null,null,null,null,null,6,"02025009","原子力エネルギー基盤連携センター 材料溶融挙動評価特別Gr"]
[null,null,null,null,null,null,null,null,null,null,null,null,null,"",null,null,null,"．",null,null,null,null,null,null,null,6,"02025010","原子力エネルギー基盤連携センター 水素安全技術高度化特別Gr"]
[null,null,null,null,null,null,null,null,null,null,null,null,null,"",null,null,null,"．",null,null,null,null,null,null,null,6,"02033000","量子ビーム応用研究センター"]
[null,null,null,null,null,null,null,null,null,null,null,null,null,"",null,null,null,"．",null,null,null,null,null,null,null,6,"02033001","量子ビーム応用研究センター 研究推進室"]
[null,null,null,null,null,null,null,null,null,null,null,null,null,"",null,null,null,"．",null,null,null,null,null,null,null,6,"02033002","量子ビーム応用研究センター 量子ビーム機能性分子解析技術研究U"]
[null,null,null,null,null,null,null,null,null,null,null,null,null,"",null,null,null,"．",null,null,null,null,null,null,null,6,"02033003","量子ビーム応用研究センター 量子ビーム機能性分子解析技術研究U 分子構造・機能研究Gr"]
[null,null,null,null,null,null,null,null,null,null,null,null,null,"",null,null,null,"．",null,null,null,null,null,null,null,6,"02033004","量子ビーム応用研究センター 量子ビーム機能性分子解析技術研究U 分子シミュレーション研究Gr"]
[null,null,null,null,null,null,null,null,null,null,null,null,null,"",null,null,null,"．",null,null,null,null,null,null,null,6,"02033005","量子ビーム応用研究センター 量子ビーム機能性分子解析技術研究U 分子ダイナミクス研究Gr"]
[null,null,null,null,null,null,null,null,null,null,null,null,null,"",null,null,null,"．",null,null,null,null,null,null,null,6,"02033006","量子ビーム応用研究センター 量子ビーム材料評価・構造制御技術研究U"]
[null,null,null,null,null,null,null,null,null,null,null,null,null,"",null,null,null,"．",null,null,null,null,null,null,null,6,"02033007","量子ビーム応用研究センター 量子ビーム材料評価・構造制御技術研究U 多重自由度相関研究Gr"]
[null,null,null,null,null,null,null,null,null,null,null,null,null,"",null,null,null,"．",null,null,null,null,null,null,null,6,"02033008","量子ビーム応用研究センター 量子ビーム材料評価・構造制御技術研究U ナノ構造制御研究Gr"]
[null,null,null,null,null,null,null,null,null,null,null,null,null,"",null,null,null,"．",null,null,null,null,null,null,null,6,"02033062","量子ビーム応用研究センター 量子ビーム材料評価・構造制御技術研究U 強相関超分子研究Gr"]
[null,null,null,null,null,null,null,null,null,null,null,null,null,"",null,null,null,"．",null,null,null,null,null,null,null,6,"02033011","量子ビーム応用研究センター 量子ビーム材料評価・構造制御技術研究U 中性子イメージング・分析研究Gr"]
[null,null,null,null,null,null,null,null,null,null,null,null,null,"",null,null,null,"．",null,null,null,null,null,null,null,6,"02033012","量子ビーム応用研究センター 量子ビーム材料評価・構造制御技術研究U 弾塑性材料評価研究Gr"]
[null,null,null,null,null,null,null,null,null,null,null,null,null,"",null,null,null,"．",null,null,null,null,null,null,null,6,"02033023","量子ビーム応用研究センター 医療・バイオ応用量子ビーム技術研究U"]
[null,null,null,null,null,null,null,null,null,null,null,null,null,"",null,null,null,"．",null,null,null,null,null,null,null,6,"02033026","量子ビーム応用研究センター 医療・バイオ応用量子ビーム技術研究U ＲＩ医療応用研究Gr"]
[null,null,null,null,null,null,null,null,null,null,null,null,null,"",null,null,null,"．",null,null,null,null,null,null,null,6,"02033033","量子ビーム応用研究センター レーザー応用技術研究U"]
[null,null,null,null,null,null,null,null,null,null,null,null,null,"",null,null,null,"．",null,null,null,null,null,null,null,6,"02033066","量子ビーム応用研究センター レーザー応用技術研究U レーザー量子制御研究Gr"]
[null,null,null,null,null,null,null,null,null,null,null,null,null,"",null,null,null,"．",null,null,null,null,null,null,null,6,"02033060","量子ビーム応用研究センター レーザー応用技術研究U 光量子融合研究Gr"]
[null,null,null,null,null,null,null,null,null,null,null,null,null,"",null,null,null,"．",null,null,null,null,null,null,null,6,"02033043","量子ビーム応用研究センター レーザー応用技術研究U ガンマ線核種分析研究Gr"]
[null,null,null,null,null,null,null,null,null,null,null,null,null,"",null,null,null,"．",null,null,null,null,null,null,null,6,"02033044","量子ビーム応用研究センター 量子ビーム物性制御・解析技術研究U"]
[null,null,null,null,null,null,null,null,null,null,null,null,null,"",null,null,null,"．",null,null,null,null,null,null,null,6,"02033048","量子ビーム応用研究センター 量子ビーム物性制御・解析技術研究U 高密度物質研究Gr"]
[null,null,null,null,null,null,null,null,null,null,null,null,null,"",null,null,null,"．",null,null,null,null,null,null,null,6,"02033068","量子ビーム応用研究センター 量子ビーム反応制御・解析技術研究U"]
[null,null,null,null,null,null,null,null,null,null,null,null,null,"",null,null,null,"．",null,null,null,null,null,null,null,6,"02033049","量子ビーム応用研究センター 量子ビーム反応制御・解析技術研究U アクチノイド錯体化学研究Gr"]
[null,null,null,null,null,null,null,null,null,null,null,null,null,"",null,null,null,"．",null,null,null,null,null,null,null,6,"02033050","量子ビーム応用研究センター 量子ビーム反応制御・解析技術研究U 表面反応ダイナミクス研究Gr"]
[null,null,null,null,null,null,null,null,null,null,null,null,null,"",null,null,null,"．",null,null,null,null,null,null,null,6,"02035000","次世代高速炉サイクル研究開発センター"]
[null,null,null,null,null,null,null,null,null,null,null,null,null,"",null,null,null,"．",null,null,null,null,null,null,null,6,"02035001","次世代高速炉サイクル研究開発センター プロジェクト推進室"]
[null,null,null,null,null,null,null,null,null,null,null,null,null,"",null,null,null,"．",null,null,null,null,null,null,null,6,"02035040","次世代高速炉サイクル研究開発センター 設計・規格基準室"]
[null,null,null,null,null,null,null,null,null,null,null,null,null,"",null,null,null,{"$f":"P641&\"．\"&Q641","v":"．"},null,null,null,null,null,null,null,6,"02035033","次世代高速炉サイクル研究開発センター 燃料サイクル技術開発部"]
[null,null,null,null,null,null,null,null,null,null,null,null,null,"",null,null,null,"．",null,null,null,null,null,null,null,6,"02035022","次世代高速炉サイクル研究開発センター 燃料サイクル技術開発部 燃料技術開発Gr"]
[null,null,null,null,null,null,null,null,null,null,null,null,null,"",null,null,null,"．",null,null,null,null,null,null,null,6,"02035023","次世代高速炉サイクル研究開発センター 燃料サイクル技術開発部 再処理技術開発Gr"]
[null,null,null,null,null,null,null,null,null,null,null,null,null,"",null,null,null,"．",null,null,null,null,null,null,null,6,"02038000","バックエンド研究開発部門"]
[null,null,null,null,null,null,null,null,null,null,null,null,null,"",null,null,null,"．",null,null,null,null,null,null,null,6,"02038001","バックエンド研究開発部門 企画調整室"]
[null,null,null,null,null,null,null,null,null,null,null,null,null,"",null,null,null,"．",null,null,null,null,null,null,null,6,"02040000","廃棄物対策・埋設事業統括部"]
[null,null,null,null,null,null,null,null,null,null,null,null,null,"",null,null,null,"．",null,null,null,null,null,null,null,6,"02040001","廃棄物対策・埋設事業統括部 事業・立地推進課"]
[null,null,null,null,null,null,null,null,null,null,null,null,null,"",null,null,null,"．",null,null,null,null,null,null,null,6,"02040004","廃棄物対策・埋設事業統括部 廃止措置計画課"]
[null,null,null,null,null,null,null,null,null,null,null,null,null,"",null,null,null,"．",null,null,null,null,null,null,null,6,"02040005","廃棄物対策・埋設事業統括部 廃棄物処理計画課"]
[null,null,null,null,null,null,null,null,null,null,null,null,null,"",null,null,null,"．",null,null,null,null,null,null,null,6,"02040006","廃棄物対策・埋設事業統括部 廃棄物処分計画課"]
[null,null,null,null,null,null,null,null,null,null,null,null,null,"",null,null,null,"．",null,null,null,null,null,null,null,6,"02040003","廃棄物対策・埋設事業統括部 設計技術課"]
[null,null,null,null,null,null,null,null,null,null,null,null,null,"",null,null,null,"．",null,null,null,null,null,null,null,6,"02037000","地層処分研究開発推進部"]
[null,null,null,null,null,null,null,null,null,null,null,null,null,"",null,null,null,"．",null,null,null,null,null,null,null,6,"02037001","地層処分研究開発推進部 処分システム研究計画推進課"]
[null,null,null,null,null,null,null,null,null,null,null,null,null,"",null,null,null,"．",null,null,null,null,null,null,null,6,"02037017","地層処分研究開発推進部 地質環境研究統合課"]
[null,null,null,null,null,null,null,null,null,null,null,null,null,"",null,null,null,"．",null,null,null,null,null,null,null,6,"02037010","深地層研究部"]
[null,null,null,null,null,null,null,null,null,null,null,null,null,"",null,null,null,"．",null,null,null,null,null,null,null,6,"02037012","深地層研究部 堆積岩地質環境研究Gr"]
[null,null,null,null,null,null,null,null,null,null,null,null,null,"",null,null,null,"．",null,null,null,null,null,null,null,6,"02089001","人形峠環境技術センター 計画管理室"]
[null,null,null,null,null,null,null,null,null,null,null,null,null,"",null,null,null,"．",null,null,null,null,null,null,null,6,"02034000","核融合研究開発部門"]
[null,null,null,null,null,null,null,null,null,null,null,null,null,"",null,null,null,"．",null,null,null,null,null,null,null,6,"02034001","核融合研究開発部門 企画調整室"]
[null,null,null,null,null,null,null,null,null,null,null,null,null,"",null,null,null,"．",null,null,null,null,null,null,null,6,"02034010","トカマクシステム技術開発部"]
[null,null,null,null,null,null,null,null,null,null,null,null,null,"",null,null,null,"．",null,null,null,null,null,null,null,6,"02034012","トカマクシステム技術開発部 JT-60本体開発Gr"]
[null,null,null,null,null,null,null,null,null,null,null,null,null,"",null,null,null,"．",null,null,null,null,null,null,null,6,"02034039","核融合炉システム研究開発部"]
[null,null,null,null,null,null,null,null,null,null,null,null,null,"",null,null,null,"．",null,null,null,null,null,null,null,6,"02034048","核融合炉材料研究開発部"]
[null,null,null,null,null,null,null,null,null,null,null,null,null,"",null,null,null,"．",null,null,null,null,null,null,null,6,"02034042","核融合炉材料研究開発部 IFMIF加速器施設開発Gr"]
[null,null,null,null,null,null,null,null,null,null,null,null,null,"",null,null,null,"．",null,null,null,null,null,null,null,6,"02034043","核融合炉材料研究開発部 IFMIF照射・試験施設開発Gr"]
[null,null,null,null,null,null,null,null,null,null,null,null,null,"",null,null,null,"．",null,null,null,null,null,null,null,6,"02034033","核融合炉材料研究開発部 核融合炉構造材料開発Gr"]
[null,null,null,null,null,null,null,null,null,null,null,null,null,"",null,null,null,"．",null,null,null,null,null,null,null,6,"02034020","核融合炉材料研究開発部 核融合中性子工学研究Gr"]
[null,null,null,null,null,null,null,null,null,null,null,null,null,"",null,null,null,"．",null,null,null,null,null,null,null,6,"02034015","ブランケット研究開発部"]
[null,null,null,null,null,null,null,null,null,null,null,null,null,"",null,null,null,"．",null,null,null,null,null,null,null,6,"02034019","ブランケット研究開発部 トリチウム工学研究Gr"]
[null,null,null,null,null,null,null,null,null,null,null,null,null,"",null,null,null,"．",null,null,null,null,null,null,null,6,"02064000","役員室"]
[null,null,null,null,null,null,null,null,null,null,null,null,null,"",null,null,null,"．",null,null,null,null,null,null,null,7,"03000000","（大洗拠点）"]
[null,null,null,null,null,null,null,null,null,null,null,null,null,"",null,null,null,"．",null,null,null,null,null,null,null,7,"03009001","計画管理室"]
[null,null,null,null,null,null,null,null,null,null,null,null,null,"",null,null,null,"．",null,null,null,null,null,null,null,7,"03001000","安全管理部"]
[null,null,null,null,null,null,null,null,null,null,null,null,null,"",null,null,null,"．",null,null,null,null,null,null,null,7,"03001001","安全管理部 安全対策課"]
[null,null,null,null,null,null,null,null,null,null,null,null,null,"",null,null,null,"．",null,null,null,null,null,null,null,7,"03001006","安全管理部 施設安全課"]
[null,null,null,null,null,null,null,null,null,null,null,null,null,"",null,null,null,"．",null,null,null,null,null,null,null,7,"03001002","安全管理部 危機管理課"]
[null,null,null,null,null,null,null,null,null,null,null,null,null,"",null,null,null,"．",null,null,null,null,null,null,null,7,"03001007","安全管理部 核物質管理課"]
[null,null,null,null,null,null,null,null,null,null,null,null,null,"",null,null,null,"．",null,null,null,null,null,null,null,7,"03001003","安全管理部 環境監視線量計測課"]
[null,null,null,null,null,null,null,null,null,null,null,null,null,"",null,null,null,"．",null,null,null,null,null,null,null,7,"03001004","安全管理部 放射線管理第１課"]
[null,null,null,null,null,null,null,null,null,null,null,null,null,"",null,null,null,"．",null,null,null,null,null,null,null,7,"03001005","安全管理部 放射線管理第２課"]
[null,null,null,null,null,null,null,null,null,null,null,null,null,"",null,null,null,"．",null,null,null,null,null,null,null,7,"03002000","管理部"]
[null,null,null,null,null,null,null,null,null,null,null,null,null,"",null,null,null,"．",null,null,null,null,null,null,null,7,"03002001","管理部 総務・共生課"]
[null,null,null,null,null,null,null,null,null,null,null,null,null,"",null,null,null,"．",null,null,null,null,null,null,null,7,"03002003","管理部 経理課"]
[null,null,null,null,null,null,null,null,null,null,null,null,null,"",null,null,null,"．",null,null,null,null,null,null,null,7,"03002004","管理部 調達課"]
[null,null,null,null,null,null,null,null,null,null,null,null,null,"",null,null,null,"．",null,null,null,null,null,null,null,7,"03002005","管理部 労務課"]
[null,null,null,null,null,null,null,null,null,null,null,null,null,"",null,null,null,"．",null,null,null,null,null,null,null,7,"03002006","管理部 工務課"]
[null,null,null,null,null,null,null,null,null,null,null,null,null,"",null,null,null,"．",null,null,null,null,null,null,null,7,"03005000","福島燃料材料試験部"]
[null,null,null,null,null,null,null,null,null,null,null,null,null,"",null,null,null,"．",null,null,null,null,null,null,null,7,"03005005","福島燃料材料試験部 燃料技術管理課"]
[null,null,null,null,null,null,null,null,null,null,null,null,null,"",null,null,null,"．",null,null,null,null,null,null,null,7,"03005001","福島燃料材料試験部 集合体試験課"]
[null,null,null,null,null,null,null,null,null,null,null,null,null,"",null,null,null,"．",null,null,null,null,null,null,null,7,"03005002","福島燃料材料試験部 燃料試験課"]
[null,null,null,null,null,null,null,null,null,null,null,null,null,"",null,null,null,"．",null,null,null,null,null,null,null,7,"03005003","福島燃料材料試験部 材料試験課"]
[null,null,null,null,null,null,null,null,null,null,null,null,null,"",null,null,null,"．",null,null,null,null,null,null,null,7,"03010000","照射試験炉センター"]
[null,null,null,null,null,null,null,null,null,null,null,null,null,"",null,null,null,"．",null,null,null,null,null,null,null,7,"03010002","照射試験炉センター 計画推進課"]
[null,null,null,null,null,null,null,null,null,null,null,null,null,"",null,null,null,"．",null,null,null,null,null,null,null,7,"03010003","照射試験炉センター 照射試験開発課"]
[null,null,null,null,null,null,null,null,null,null,null,null,null,"",null,null,null,"．",null,null,null,null,null,null,null,7,"03006000","材料試験炉部"]
[null,null,null,null,null,null,null,null,null,null,null,null,null,"",null,null,null,"．",null,null,null,null,null,null,null,7,"03006001","材料試験炉部 業務課"]
[null,null,null,null,null,null,null,null,null,null,null,null,null,"",null,null,null,"．",null,null,null,null,null,null,null,7,"03006002","材料試験炉部 技術課"]
[null,null,null,null,null,null,null,null,null,null,null,null,null,"",null,null,null,"．",null,null,null,null,null,null,null,7,"03006003","材料試験炉部 原子炉第1課"]
[null,null,null,null,null,null,null,null,null,null,null,null,null,"",null,null,null,"．",null,null,null,null,null,null,null,7,"03006006","材料試験炉部 原子炉第2課"]
[null,null,null,null,null,null,null,null,null,null,null,null,null,"",null,null,null,"．",null,null,null,null,null,null,null,7,"03006004","材料試験炉部 照射課"]
[null,null,null,null,null,null,null,null,null,null,null,null,null,"",null,null,null,"．",null,null,null,null,null,null,null,7,"03006005","材料試験炉部 ホットラボ課"]
[null,null,null,null,null,null,null,null,null,null,null,null,null,"",null,null,null,"．",null,null,null,null,null,null,null,7,"03007000","高温工学試験研究炉部"]
[null,null,null,null,null,null,null,null,null,null,null,null,null,"",null,null,null,"．",null,null,null,null,null,null,null,7,"03007001","高温工学試験研究炉部 業務課"]
[null,null,null,null,null,null,null,null,null,null,null,null,null,"",null,null,null,"．",null,null,null,null,null,null,null,7,"03007002","高温工学試験研究炉部 HTTR計画課"]
[null,null,null,null,null,null,null,null,null,null,null,null,null,"",null,null,null,{"$f":"P705&\"．\"&Q705","v":"．"},null,null,null,null,null,null,null,7,"03007003","高温工学試験研究炉部 HTTR技術課"]
[null,null,null,null,null,null,null,null,null,null,null,null,null,"",null,null,null,"．",null,null,null,null,null,null,null,7,"03007004","高温工学試験研究炉部 HTTR運転管理課"]
[null,null,null,null,null,null,null,null,null,null,null,null,null,"",null,null,null,"．",null,null,null,null,null,null,null,7,"03003000","高速炉技術開発部"]
[null,null,null,null,null,null,null,null,null,null,null,null,null,"",null,null,null,"．",null,null,null,null,null,null,null,7,"03003004","高速炉技術開発部 熱流体技術開発課"]
[null,null,null,null,null,null,null,null,null,null,null,null,null,"",null,null,null,"．",null,null,null,null,null,null,null,7,"03003007","高速炉技術開発部 機械強度試験技術課"]
[null,null,null,null,null,null,null,null,null,null,null,null,null,"",null,null,null,"．",null,null,null,null,null,null,null,7,"03003008","高速炉技術開発部 ナトリウム応用・計測技術開発課"]
[null,null,null,null,null,null,null,null,null,null,null,null,null,"",null,null,null,"．",null,null,null,null,null,null,null,7,"03003006","高速炉技術開発部 機器開発試験技術課"]
[null,null,null,null,null,null,null,null,null,null,null,null,null,"",null,null,null,"．",null,null,null,null,null,null,null,7,"03004000","高速実験炉部"]
[null,null,null,null,null,null,null,null,null,null,null,null,null,"",null,null,null,"．",null,null,null,null,null,null,null,7,"03004001","高速実験炉部 高速炉技術課"]
[null,null,null,null,null,null,null,null,null,null,null,null,null,"",null,null,null,"．",null,null,null,null,null,null,null,7,"03004002","高速実験炉部 高速炉第1課"]
[null,null,null,null,null,null,null,null,null,null,null,null,null,"",null,null,null,"．",null,null,null,null,null,null,null,7,"03004003","高速実験炉部 高速炉第2課"]
[null,null,null,null,null,null,null,null,null,null,null,null,null,"",null,null,null,"．",null,null,null,null,null,null,null,7,"03004004","高速実験炉部 保全・照射技術開発課"]
[null,null,null,null,null,null,null,null,null,null,null,null,null,"",null,null,null,"．",null,null,null,null,null,null,null,7,"03008000","環境保全部"]
[null,null,null,null,null,null,null,null,null,null,null,null,null,"",null,null,null,"．",null,null,null,null,null,null,null,7,"03008001","環境保全部 環境計画課"]
[null,null,null,null,null,null,null,null,null,null,null,null,null,"",null,null,null,"．",null,null,null,null,null,null,null,7,"03008002","環境保全部 環境技術課"]
[null,null,null,null,null,null,null,null,null,null,null,null,null,"",null,null,null,"．",null,null,null,null,null,null,null,7,"03008003","環境保全部 廃棄物管理課"]
[null,null,null,null,null,null,null,null,null,null,null,null,null,"",null,null,null,"．",null,null,null,null,null,null,null,7,"03008004","環境保全部 減容処理施設整備室"]
[null,null,null,null,null,null,null,null,null,null,null,null,null,"",null,null,null,"．",null,null,null,null,null,null,null,7,"03069000","事業計画統括部"]
[null,null,null,null,null,null,null,null,null,null,null,null,null,"",null,null,null,"．",null,null,null,null,null,null,null,7,"03058000","人事部"]
[null,null,null,null,null,null,null,null,null,null,null,null,null,"",null,null,null,"．",null,null,null,null,null,null,null,7,"03058001","人事部 人事課"]
[null,null,null,null,null,null,null,null,null,null,null,null,null,"",null,null,null,"．",null,null,null,null,null,null,null,7,"03058004","人事部 職員課"]
[null,null,null,null,null,null,null,null,null,null,null,null,null,"",null,null,null,"．",null,null,null,null,null,null,null,7,"03050000","産学連携推進部"]
[null,null,null,null,null,null,null,null,null,null,null,null,null,"",null,null,null,"．",null,null,null,null,null,null,null,7,"03050001","産学連携推進部 産学連携推進課"]
[null,null,null,null,null,null,null,null,null,null,null,null,null,"",null,null,null,"．",null,null,null,null,null,null,null,7,"03050002","産学連携推進部 研究協力課"]
[null,null,null,null,null,null,null,null,null,null,null,null,null,"",null,null,null,"．",null,null,null,null,null,null,null,7,"03050004","産学連携推進部 知的財産管理・利用促進課"]
[null,null,null,null,null,null,null,null,null,null,null,null,null,"",null,null,null,"．",null,null,null,null,null,null,null,7,"03061000","建設部"]
[null,null,null,null,null,null,null,null,null,null,null,null,null,"",null,null,null,"．",null,null,null,null,null,null,null,7,"03061001","建設部 業務課"]
[null,null,null,null,null,null,null,null,null,null,null,null,null,"",null,null,null,"．",null,null,null,null,null,null,null,7,"03061002","建設部 施設技術課"]
[null,null,null,null,null,null,null,null,null,null,null,null,null,"",null,null,null,"．",null,null,null,null,null,null,null,7,"03061003","建設部 建設課"]
[null,null,null,null,null,null,null,null,null,null,null,null,null,"",null,null,null,"．",null,null,null,null,null,null,null,7,"03061004","建設部 設備課"]
[null,null,null,null,null,null,null,null,null,null,null,null,null,"",null,null,null,"．",null,null,null,null,null,null,null,7,"03061005","建設部 大洗大型施設建設室"]
[null,null,null,null,null,null,null,null,null,null,null,null,null,"",null,null,null,"．",null,null,null,null,null,null,null,7,"03052000","研究技術情報部"]
[null,null,null,null,null,null,null,null,null,null,null,null,null,"",null,null,null,"．",null,null,null,null,null,null,null,7,"03052002","研究技術情報部 情報メディア管理課"]
[null,null,null,null,null,null,null,null,null,null,null,null,null,"",null,null,null,"．",null,null,null,null,null,null,null,7,"03053000","システム計算科学センター"]
[null,null,null,null,null,null,null,null,null,null,null,null,null,"",null,null,null,"．",null,null,null,null,null,null,null,7,"03053003","システム計算科学センター 情報システム管理室"]
[null,null,null,null,null,null,null,null,null,null,null,null,null,"",null,null,null,"．",null,null,null,null,null,null,null,7,"03053004","システム計算科学センター OAシステム室"]
[null,null,null,null,null,null,null,null,null,null,null,null,null,"",null,null,null,"．",null,null,null,null,null,null,null,7,"03055000","原子力人材育成センター"]
[null,null,null,null,null,null,null,null,null,null,null,null,null,"",null,null,null,"．",null,null,null,null,null,null,null,7,"03055001","原子力人材育成センター 原子力人材育成推進課"]
[null,null,null,null,null,null,null,null,null,null,null,null,null,"",null,null,null,"．",null,null,null,null,null,null,null,7,"03043000","核不拡散・核セキュリティ総合支援センター"]
[null,null,null,null,null,null,null,null,null,null,null,null,null,"",null,null,null,"．",null,null,null,null,null,null,null,7,"03043005","核不拡散・核セキュリティ総合支援センター 輸送・研究炉燃料支援室"]
[null,null,null,null,null,null,null,null,null,null,null,null,null,"",null,null,null,"．",null,null,null,null,null,null,null,7,"03049000","核物質管理科学技術推進部"]
[null,null,null,null,null,null,null,null,null,null,null,null,null,"",null,null,null,"．",null,null,null,null,null,null,null,7,"03049001","核物質管理科学技術推進部 核物質管理室"]
[null,null,null,null,null,null,null,null,null,null,null,null,null,"",null,null,null,"．",null,null,null,null,null,null,null,7,"03027000","福島廃止措置技術開発センター"]
[null,null,null,null,null,null,null,null,null,null,null,null,null,"",null,null,null,"．",null,null,null,null,null,null,null,7,"03027003","福島廃止措置技術開発センター 廃棄物処理・処分技術開発Gr"]
[null,null,null,null,null,null,null,null,null,null,null,null,null,"",null,null,null,"．",null,null,null,null,null,null,null,7,"03027004","福島廃止措置技術開発センター 基盤技術開発Gr"]
[null,null,null,null,null,null,null,null,null,null,null,null,null,"",null,null,null,"．",null,null,null,null,null,null,null,7,"03027005","福島廃止措置技術開発センター 燃料溶融複雑系試験準備室"]
[null,null,null,null,null,null,null,null,null,null,null,null,null,"",null,null,null,"．",null,null,null,null,null,null,null,7,"03031000","先端基礎研究センター"]
[null,null,null,null,null,null,null,null,null,null,null,null,null,"",null,null,null,"．",null,null,null,null,null,null,null,7,"03031001","先端基礎研究センター 研究推進室"]
[null,null,null,null,null,null,null,null,null,null,null,null,null,"",null,null,null,"．",null,null,null,null,null,null,null,7,"03032000","原子力基礎工学研究センター"]
[null,null,null,null,null,null,null,null,null,null,null,null,null,"",null,null,null,"．",null,null,null,null,null,null,null,7,"03032001","原子力基礎工学研究センター 研究推進室"]
[null,null,null,null,null,null,null,null,null,null,null,null,null,"",null,null,null,"．",null,null,null,null,null,null,null,7,"03032002","原子力基礎工学研究センター 核工学・炉工学U"]
[null,null,null,null,null,null,null,null,null,null,null,null,null,"",null,null,null,"．",null,null,null,null,null,null,null,7,"03032014","原子力基礎工学研究センター 燃料・材料工学U"]
[null,null,null,null,null,null,null,null,null,null,null,null,null,"",null,null,null,"．",null,null,null,null,null,null,null,7,"03032020","原子力基礎工学研究センター 燃料・材料工学U 照射材料工学研究Gr"]
[null,null,null,null,null,null,null,null,null,null,null,null,null,"",null,null,null,"．",null,null,null,null,null,null,null,7,"03032034","原子力基礎工学研究センター 燃料・材料工学U 燃料高温科学研究Gr"]
[null,null,null,null,null,null,null,null,null,null,null,null,null,"",null,null,null,"．",null,null,null,null,null,null,null,7,"03032040","原子力基礎工学研究センター 原子力化学U"]
[null,null,null,null,null,null,null,null,null,null,null,null,null,"",null,null,null,"．",null,null,null,null,null,null,null,7,"03032042","原子力基礎工学研究センター 福島基盤技術U"]
[null,null,null,null,null,null,null,null,null,null,null,null,null,"",null,null,null,"．",null,null,null,null,null,null,null,7,"03032048","原子力基礎工学研究センター 福島基盤技術U 炉心溶融影響解析研究Gr"]
[null,null,null,null,null,null,null,null,null,null,null,null,null,"",null,null,null,"．",null,null,null,null,null,null,null,7,"03032047","原子力基礎工学研究センター 分離変換技術開発U"]
[null,null,null,null,null,null,null,null,null,null,null,null,null,"",null,null,null,"．",null,null,null,null,null,null,null,7,"03032016","原子力基礎工学研究センター 分離変換技術開発U 分離変換サイクル開発Gr"]
[null,null,null,null,null,null,null,null,null,null,null,null,null,"",null,null,null,"．",null,null,null,null,null,null,null,7,"03025000","原子力エネルギー基盤連携センター"]
[null,null,null,null,null,null,null,null,null,null,null,null,null,"",null,null,null,"．",null,null,null,null,null,null,null,7,"03025004","原子力エネルギー基盤連携センター 黒鉛・炭素材料挙動評価特別Gr"]
[null,null,null,null,null,null,null,null,null,null,null,null,null,"",null,null,null,"．",null,null,null,null,null,null,null,7,"03025006","原子力エネルギー基盤連携センター 高温ガス炉要素技術開発特別Gr"]
[null,null,null,null,null,null,null,null,null,null,null,null,null,"",null,null,null,"．",null,null,null,null,null,null,null,7,"03025010","原子力エネルギー基盤連携センター 水素安全技術高度化特別Gr"]
[null,null,null,null,null,null,null,null,null,null,null,null,null,"",null,null,null,"．",null,null,null,null,null,null,null,7,"03042000","原子力水素・熱利用研究センター"]
[null,null,null,null,null,null,null,null,null,null,null,null,null,"",null,null,null,{"$f":"P769&\"．\"&Q769","v":"．"},null,null,null,null,null,null,null,7,"03042001","原子力水素・熱利用研究センター 研究推進室"]
[null,null,null,null,null,null,null,null,null,null,null,null,null,"",null,null,null,"．",null,null,null,null,null,null,null,7,"03042002","原子力水素・熱利用研究センター 小型高温ガス炉研究開発U"]
[null,null,null,null,null,null,null,null,null,null,null,null,null,"",null,null,null,"．",null,null,null,null,null,null,null,7,"03042003","原子力水素・熱利用研究センター 小型高温ガス炉研究開発U 原子炉設計Gr"]
[null,null,null,null,null,null,null,null,null,null,null,null,null,"",null,null,null,"．",null,null,null,null,null,null,null,7,"03042004","原子力水素・熱利用研究センター 小型高温ガス炉研究開発U 国際共同試験Gr"]
[null,null,null,null,null,null,null,null,null,null,null,null,null,"",null,null,null,"．",null,null,null,null,null,null,null,7,"03042008","原子力水素・熱利用研究センター 小型高温ガス炉研究開発U 安全設計Gr"]
[null,null,null,null,null,null,null,null,null,null,null,null,null,"",null,null,null,"．",null,null,null,null,null,null,null,7,"03042005","原子力水素・熱利用研究センター 水素利用研究開発U"]
[null,null,null,null,null,null,null,null,null,null,null,null,null,"",null,null,null,"．",null,null,null,null,null,null,null,7,"03042006","原子力水素・熱利用研究センター 水素利用研究開発U ＩＳプロセス信頼性確証試験Gr"]
[null,null,null,null,null,null,null,null,null,null,null,null,null,"",null,null,null,"．",null,null,null,null,null,null,null,7,"03042007","原子力水素・熱利用研究センター 水素利用研究開発U 熱利用システム設計Gr"]
[null,null,null,null,null,null,null,null,null,null,null,null,null,"",null,null,null,"．",null,null,null,null,null,null,null,7,"03035000","次世代高速炉サイクル研究開発センター"]
[null,null,null,null,null,null,null,null,null,null,null,null,null,"",null,null,null,"．",null,null,null,null,null,null,null,7,"03035001","次世代高速炉サイクル研究開発センター プロジェクト推進室"]
[null,null,null,null,null,null,null,null,null,null,null,null,null,"",null,null,null,"．",null,null,null,null,null,null,null,7,"03035040","次世代高速炉サイクル研究開発センター 設計・規格基準室"]
[null,null,null,null,null,null,null,null,null,null,null,null,null,"",null,null,null,"．",null,null,null,null,null,null,null,7,"03035043","次世代高速炉サイクル研究開発センター 高速炉計算工学技術開発部"]
[null,null,null,null,null,null,null,null,null,null,null,null,null,"",null,null,null,"．",null,null,null,null,null,null,null,7,"03035014","次世代高速炉サイクル研究開発センター 高速炉計算工学技術開発部 システム統合Gr"]
[null,null,null,null,null,null,null,null,null,null,null,null,null,"",null,null,null,"．",null,null,null,null,null,null,null,7,"03035052","次世代高速炉サイクル研究開発センター 高速炉計算工学技術開発部 システム安全解析Gr"]
[null,null,null,null,null,null,null,null,null,null,null,null,null,"",null,null,null,"．",null,null,null,null,null,null,null,7,"03035053","次世代高速炉サイクル研究開発センター 高速炉計算工学技術開発部 炉心挙動解析Gr"]
[null,null,null,null,null,null,null,null,null,null,null,null,null,"",null,null,null,"．",null,null,null,null,null,null,null,7,"03035054","次世代高速炉サイクル研究開発センター 高速炉計算工学技術開発部 流動・系統解析Gr"]
[null,null,null,null,null,null,null,null,null,null,null,null,null,"",null,null,null,"．",null,null,null,null,null,null,null,7,"03035011","次世代高速炉サイクル研究開発センター 高速炉安全技術開発部"]
[null,null,null,null,null,null,null,null,null,null,null,null,null,"",null,null,null,"．",null,null,null,null,null,null,null,7,"03035018","次世代高速炉サイクル研究開発センター 高速炉安全技術開発部 構造・材料信頼性評価技術開発Gr"]
[null,null,null,null,null,null,null,null,null,null,null,null,null,"",null,null,null,"．",null,null,null,null,null,null,null,7,"03035051","次世代高速炉サイクル研究開発センター 高速炉安全技術開発部 炉心安全評価技術開発Gr"]
[null,null,null,null,null,null,null,null,null,null,null,null,null,"",null,null,null,"．",null,null,null,null,null,null,null,7,"03035033","次世代高速炉サイクル研究開発センター 燃料サイクル技術開発部"]
[null,null,null,null,null,null,null,null,null,null,null,null,null,"",null,null,null,"．",null,null,null,null,null,null,null,7,"03035022","次世代高速炉サイクル研究開発センター 燃料サイクル技術開発部 燃料材料開発Gr"]
[null,null,null,null,null,null,null,null,null,null,null,null,null,"",null,null,null,"．",null,null,null,null,null,null,null,7,"03034000","核融合研究開発部門"]
[null,null,null,null,null,null,null,null,null,null,null,null,null,"",null,null,null,"．",null,null,null,null,null,null,null,7,"03034039","核融合炉システム研究開発部"]
[null,null,null,null,null,null,null,null,null,null,null,null,null,"",null,null,null,"．",null,null,null,null,null,null,null,7,"03034048","核融合炉材料研究開発部"]
[null,null,null,null,null,null,null,null,null,null,null,null,null,"",null,null,null,"．",null,null,null,null,null,null,null,7,"03034042","核融合炉材料研究開発部 IFMIF加速器施設開発Gr"]
[null,null,null,null,null,null,null,null,null,null,null,null,null,"",null,null,null,"．",null,null,null,null,null,null,null,7,"03034043","核融合炉材料研究開発部 IFMIF照射・試験施設開発Gr"]
[null,null,null,null,null,null,null,null,null,null,null,null,null,"",null,null,null,"．",null,null,null,null,null,null,null,7,"03034015","ブランケット研究開発部"]
[null,null,null,null,null,null,null,null,null,null,null,null,null,"",null,null,null,"．",null,null,null,null,null,null,null,7,"03034022","ブランケット研究開発部 増殖機能材料開発Gr"]
[null,null,null,null,null,null,null,null,null,null,null,null,null,"",null,null,null,"．",null,null,null,null,null,null,null,7,"03011000","敦賀本部 原子力廃止措置研究開発センター"]
[null,null,null,null,null,null,null,null,null,null,null,null,null,"",null,null,null,"．",null,null,null,null,null,null,null,7,"03011001","敦賀本部 原子力廃止措置研究開発センター 技術開発部"]
[null,null,null,null,null,null,null,null,null,null,null,null,null,"",null,null,null,"．",null,null,null,null,null,null,null,7,"03011002","敦賀本部 原子力廃止措置研究開発センター 技術開発部 技術開発課"]
[null,null,null,null,null,null,null,null,null,null,null,null,null,"",null,null,null,"．",null,null,null,null,null,null,null,7,"03012000","敦賀本部 レーザー共同研究所"]
[null,null,null,null,null,null,null,null,null,null,null,null,null,"",null,null,null,"．",null,null,null,null,null,null,null,7,"03012002","敦賀本部 レーザー共同研究所 レーザー応用技術開発室"]
[null,null,null,null,null,null,null,null,null,null,null,null,null,"",null,null,null,"．",null,null,null,null,null,null,null,7,"03023000","敦賀本部 FBR安全技術センター"]
[null,null,null,null,null,null,null,null,null,null,null,null,null,"",null,null,null,"．",null,null,null,null,null,null,null,7,"03023004","敦賀本部 FBR安全技術センター シビアアクシデント評価Gr"]
[null,null,null,null,null,null,null,null,null,null,null,null,null,"",null,null,null,"．",null,null,null,null,null,null,null,7,"03064000","役員室"]
[null,null,null,null,null,null,null,null,null,null,null,null,null,"",null,null,null,"．",null,null,null,null,null,null,null,8,"04000000","（敦賀拠点）"]
[null,null,null,null,null,null,null,null,null,null,null,null,null,"",null,null,null,"．",null,null,null,null,null,null,null,8,"04024000","0 もんじゅ安全・改革本部"]
[null,null,null,null,null,null,null,null,null,null,null,null,null,"",null,null,null,"．",null,null,null,null,null,null,null,8,"04024001","0 もんじゅ安全・改革本部 もんじゅ安全・改革室"]
[null,null,null,null,null,null,null,null,null,null,null,null,null,"",null,null,null,"．",null,null,null,null,null,null,null,8,"04062000","高速炉研究開発部門"]
[null,null,null,null,null,null,null,null,null,null,null,null,null,"",null,null,null,"．",null,null,null,null,null,null,null,8,"04062001","高速炉研究開発部門 0 企画調整室"]
[null,null,null,null,null,null,null,null,null,null,null,null,null,"",null,null,null,"．",null,null,null,null,null,null,null,8,"04001000","経営企画部"]
[null,null,null,null,null,null,null,null,null,null,null,null,null,"",null,null,null,"．",null,null,null,null,null,null,null,8,"04001003","経営企画部 経営企画Gr"]
[null,null,null,null,null,null,null,null,null,null,null,null,null,"",null,null,null,"．",null,null,null,null,null,null,null,8,"04001005","経営企画部 技術展開推進Gr"]
[null,null,null,null,null,null,null,null,null,null,null,null,null,"",null,null,null,"．",null,null,null,null,null,null,null,8,"04001006","経営企画部 もんじゅ総括調整Gr"]
[null,null,null,null,null,null,null,null,null,null,null,null,null,"",null,null,null,"．",null,null,null,null,null,null,null,8,"04001001","経営企画部 産学連携業務推進室"]
[null,null,null,null,null,null,null,null,null,null,null,null,null,"",null,null,null,"．",null,null,null,null,null,null,null,8,"04001002","経営企画部 地域共生課"]
[null,null,null,null,null,null,null,null,null,null,null,null,null,"",null,null,null,"．",null,null,null,null,null,null,null,8,"04002000","安全品質推進部"]
[null,null,null,null,null,null,null,null,null,null,null,null,null,"",null,null,null,"．",null,null,null,null,null,null,null,8,"04002001","安全品質推進部 安全品質推進室"]
[null,null,null,null,null,null,null,null,null,null,null,null,null,"",null,null,null,"．",null,null,null,null,null,null,null,8,"04002002","安全品質推進部 環境監視課"]
[null,null,null,null,null,null,null,null,null,null,null,null,null,"",null,null,null,"．",null,null,null,null,null,null,null,8,"04003000","業務統括部"]
[null,null,null,null,null,null,null,null,null,null,null,null,null,"",null,null,null,"．",null,null,null,null,null,null,null,8,"04003001","業務統括部 総務課"]
[null,null,null,null,null,null,null,null,null,null,null,null,null,"",null,null,null,"．",null,null,null,null,null,null,null,8,"04003002","業務統括部 広報課"]
[null,null,null,null,null,null,null,null,null,null,null,null,null,"",null,null,null,"．",null,null,null,null,null,null,null,8,"04003003","業務統括部 地域交流課"]
[null,null,null,null,null,null,null,null,null,null,null,null,null,"",null,null,null,"．",null,null,null,null,null,null,null,8,"04003004","業務統括部 労務課"]
[null,null,null,null,null,null,null,null,null,null,null,null,null,"",null,null,null,"．",null,null,null,null,null,null,null,8,"04003005","業務統括部 経理課"]
[null,null,null,null,null,null,null,null,null,null,null,null,null,"",null,null,null,"．",null,null,null,null,null,null,null,8,"04003006","業務統括部 調達課"]
[null,null,null,null,null,null,null,null,null,null,null,null,null,"",null,null,null,"．",null,null,null,null,null,null,null,8,"04003007","業務統括部 建設管理課"]
[null,null,null,null,null,null,null,null,null,null,null,null,null,"",null,null,null,"．",null,null,null,null,null,null,null,8,"04004000","高速増殖炉研究開発センター"]
[null,null,null,null,null,null,null,null,null,null,null,null,null,"",null,null,null,"．",null,null,null,null,null,null,null,8,"04004001","高速増殖炉研究開発センター 運営管理室"]
[null,null,null,null,null,null,null,null,null,null,null,null,null,"",null,null,null,"．",null,null,null,null,null,null,null,8,"04004002","高速増殖炉研究開発センター 品質保証室"]
[null,null,null,null,null,null,null,null,null,null,null,null,null,"",null,null,null,"．",null,null,null,null,null,null,null,8,"04004004","高速増殖炉研究開発センター 危機管理室"]
[null,null,null,null,null,null,null,null,null,null,null,null,null,"",null,null,null,"．",null,null,null,null,null,null,null,8,"04004003","高速増殖炉研究開発センター 管理課"]
[null,null,null,null,null,null,null,null,null,null,null,null,null,"",null,null,null,"．",null,null,null,null,null,null,null,8,"04021000","高速増殖炉研究開発センター 技術部"]
[null,null,null,null,null,null,null,null,null,null,null,null,null,"",null,null,null,{"$f":"P833&\"．\"&Q833","v":"．"},null,null,null,null,null,null,null,8,"04021001","高速増殖炉研究開発センター 技術部 技術課"]
[null,null,null,null,null,null,null,null,null,null,null,null,null,"",null,null,null,"．",null,null,null,null,null,null,null,8,"04021002","高速増殖炉研究開発センター 技術部 試験計画課"]
[null,null,null,null,null,null,null,null,null,null,null,null,null,"",null,null,null,"．",null,null,null,null,null,null,null,8,"04022000","高速増殖炉研究開発センター プラント管理部"]
[null,null,null,null,null,null,null,null,null,null,null,null,null,"",null,null,null,"．",null,null,null,null,null,null,null,8,"04022001","高速増殖炉研究開発センター プラント管理部 安全管理課"]
[null,null,null,null,null,null,null,null,null,null,null,null,null,"",null,null,null,"．",null,null,null,null,null,null,null,8,"04022002","高速増殖炉研究開発センター プラント管理部 発電課"]
[null,null,null,null,null,null,null,null,null,null,null,null,null,"",null,null,null,"．",null,null,null,null,null,null,null,8,"04005000","高速増殖炉研究開発センター プラント保全部"]
[null,null,null,null,null,null,null,null,null,null,null,null,null,"",null,null,null,"．",null,null,null,null,null,null,null,8,"04005006","高速増殖炉研究開発センター プラント保全部 保修計画課"]
[null,null,null,null,null,null,null,null,null,null,null,null,null,"",null,null,null,"．",null,null,null,null,null,null,null,8,"04005009","高速増殖炉研究開発センター プラント保全部 機械保修課"]
[null,null,null,null,null,null,null,null,null,null,null,null,null,"",null,null,null,"．",null,null,null,null,null,null,null,8,"04005010","高速増殖炉研究開発センター プラント保全部 電気保修課"]
[null,null,null,null,null,null,null,null,null,null,null,null,null,"",null,null,null,"．",null,null,null,null,null,null,null,8,"04005011","高速増殖炉研究開発センター プラント保全部 施設保全課"]
[null,null,null,null,null,null,null,null,null,null,null,null,null,"",null,null,null,"．",null,null,null,null,null,null,null,8,"04005007","高速増殖炉研究開発センター プラント保全部 燃料環境課"]
[null,null,null,null,null,null,null,null,null,null,null,null,null,"",null,null,null,"．",null,null,null,null,null,null,null,8,"04006000","原子力廃止措置研究開発センター"]
[null,null,null,null,null,null,null,null,null,null,null,null,null,"",null,null,null,"．",null,null,null,null,null,null,null,8,"04006001","原子力廃止措置研究開発センター 管理課"]
[null,null,null,null,null,null,null,null,null,null,null,null,null,"",null,null,null,"．",null,null,null,null,null,null,null,8,"04006004","原子力廃止措置研究開発センター 安全品質管理課"]
[null,null,null,null,null,null,null,null,null,null,null,null,null,"",null,null,null,"．",null,null,null,null,null,null,null,8,"04006002","原子力廃止措置研究開発センター 環境管理課"]
[null,null,null,null,null,null,null,null,null,null,null,null,null,"",null,null,null,"．",null,null,null,null,null,null,null,8,"04008000","原子力廃止措置研究開発センター 技術開発部"]
[null,null,null,null,null,null,null,null,null,null,null,null,null,"",null,null,null,"．",null,null,null,null,null,null,null,8,"04008001","原子力廃止措置研究開発センター 技術開発部 計画管理課"]
[null,null,null,null,null,null,null,null,null,null,null,null,null,"",null,null,null,"．",null,null,null,null,null,null,null,8,"04008002","原子力廃止措置研究開発センター 技術開発部 技術開発課"]
[null,null,null,null,null,null,null,null,null,null,null,null,null,"",null,null,null,"．",null,null,null,null,null,null,null,8,"04008003","原子力廃止措置研究開発センター 技術開発部 設備保全課"]
[null,null,null,null,null,null,null,null,null,null,null,null,null,"",null,null,null,"．",null,null,null,null,null,null,null,8,"04008004","原子力廃止措置研究開発センター 技術開発部 開発実証課"]
[null,null,null,null,null,null,null,null,null,null,null,null,null,"",null,null,null,"．",null,null,null,null,null,null,null,8,"04008005","原子力廃止措置研究開発センター 技術開発部 技術調査課"]
[null,null,null,null,null,null,null,null,null,null,null,null,null,"",null,null,null,"．",null,null,null,null,null,null,null,8,"04007000","国際原子力情報・研修センター"]
[null,null,null,null,null,null,null,null,null,null,null,null,null,"",null,null,null,"．",null,null,null,null,null,null,null,8,"04007001","国際原子力情報・研修センター 国際協力課"]
[null,null,null,null,null,null,null,null,null,null,null,null,null,"",null,null,null,"．",null,null,null,null,null,null,null,8,"04007002","国際原子力情報・研修センター 研修課"]
[null,null,null,null,null,null,null,null,null,null,null,null,null,"",null,null,null,"．",null,null,null,null,null,null,null,8,"04007004","国際原子力情報・研修センター ナトリウム工学研究施設整備室"]
[null,null,null,null,null,null,null,null,null,null,null,null,null,"",null,null,null,"．",null,null,null,null,null,null,null,8,"04010000","レーザー共同研究所"]
[null,null,null,null,null,null,null,null,null,null,null,null,null,"",null,null,null,"．",null,null,null,null,null,null,null,8,"04010001","レーザー共同研究所 レーザー技術利用推進室"]
[null,null,null,null,null,null,null,null,null,null,null,null,null,"",null,null,null,"．",null,null,null,null,null,null,null,8,"04010002","レーザー共同研究所 レーザー応用技術開発室"]
[null,null,null,null,null,null,null,null,null,null,null,null,null,"",null,null,null,"．",null,null,null,null,null,null,null,8,"04023000","FBR安全技術センター"]
[null,null,null,null,null,null,null,null,null,null,null,null,null,"",null,null,null,"．",null,null,null,null,null,null,null,8,"04023001","FBR安全技術センター 計画管理室"]
[null,null,null,null,null,null,null,null,null,null,null,null,null,"",null,null,null,"．",null,null,null,null,null,null,null,8,"04023002","FBR安全技術センター 解析評価部"]
[null,null,null,null,null,null,null,null,null,null,null,null,null,"",null,null,null,"．",null,null,null,null,null,null,null,8,"04023003","FBR安全技術センター 解析評価部 プラント安全評価Gr"]
[null,null,null,null,null,null,null,null,null,null,null,null,null,"",null,null,null,"．",null,null,null,null,null,null,null,8,"04023004","FBR安全技術センター 解析評価部 シビアアクシデント解析Gr"]
[null,null,null,null,null,null,null,null,null,null,null,null,null,"",null,null,null,"．",null,null,null,null,null,null,null,8,"04023005","FBR安全技術センター 解析評価部 プラント特性評価Gr"]
[null,null,null,null,null,null,null,null,null,null,null,null,null,"",null,null,null,"．",null,null,null,null,null,null,null,8,"04023006","FBR安全技術センター 解析評価部 炉心・燃料特性評価Gr"]
[null,null,null,null,null,null,null,null,null,null,null,null,null,"",null,null,null,"．",null,null,null,null,null,null,null,8,"04023010","FBR安全技術センター 解析評価部 地質・地震動評価Gr"]
[null,null,null,null,null,null,null,null,null,null,null,null,null,"",null,null,null,"．",null,null,null,null,null,null,null,8,"04023007","FBR安全技術センター 運転技術支援部"]
[null,null,null,null,null,null,null,null,null,null,null,null,null,"",null,null,null,"．",null,null,null,null,null,null,null,8,"04023008","FBR安全技術センター 運転技術支援部 ナトリウム技術開発Gr"]
[null,null,null,null,null,null,null,null,null,null,null,null,null,"",null,null,null,"．",null,null,null,null,null,null,null,8,"04023009","FBR安全技術センター 運転技術支援部 保全技術開発Gr"]
[null,null,null,null,null,null,null,null,null,null,null,null,null,"",null,null,null,"．",null,null,null,null,null,null,null,8,"04058000","人事部"]
[null,null,null,null,null,null,null,null,null,null,null,null,null,"",null,null,null,"．",null,null,null,null,null,null,null,8,"04009001","大洗研究開発センター 計画管理室"]
[null,null,null,null,null,null,null,null,null,null,null,null,null,"",null,null,null,"．",null,null,null,null,null,null,null,8,"04050000","産学連携推進部"]
[null,null,null,null,null,null,null,null,null,null,null,null,null,"",null,null,null,"．",null,null,null,null,null,null,null,8,"04061000","建設部"]
[null,null,null,null,null,null,null,null,null,null,null,null,null,"",null,null,null,"．",null,null,null,null,null,null,null,8,"04061003","建設部 建設課"]
[null,null,null,null,null,null,null,null,null,null,null,null,null,"",null,null,null,"．",null,null,null,null,null,null,null,8,"04052000","研究技術情報部"]
[null,null,null,null,null,null,null,null,null,null,null,null,null,"",null,null,null,"．",null,null,null,null,null,null,null,8,"04055000","原子力人材育成センター"]
[null,null,null,null,null,null,null,null,null,null,null,null,null,"",null,null,null,"．",null,null,null,null,null,null,null,8,"04055001","原子力人材育成推進課"]
[null,null,null,null,null,null,null,null,null,null,null,null,null,"",null,null,null,"．",null,null,null,null,null,null,null,8,"04087000","大洗研究開発センター 福島燃料材料試験部"]
[null,null,null,null,null,null,null,null,null,null,null,null,null,"",null,null,null,"．",null,null,null,null,null,null,null,8,"04087001","大洗研究開発センター 福島燃料材料試験部 集合体試験課"]
[null,null,null,null,null,null,null,null,null,null,null,null,null,"",null,null,null,"．",null,null,null,null,null,null,null,8,"04087002","大洗研究開発センター 福島燃料材料試験部 燃料試験課"]
[null,null,null,null,null,null,null,null,null,null,null,null,null,"",null,null,null,"．",null,null,null,null,null,null,null,8,"04087003","大洗研究開発センター 福島燃料材料試験部 材料試験課"]
[null,null,null,null,null,null,null,null,null,null,null,null,null,"",null,null,null,"．",null,null,null,null,null,null,null,8,"04030000","安全研究センター"]
[null,null,null,null,null,null,null,null,null,null,null,null,null,"",null,null,null,"．",null,null,null,null,null,null,null,8,"04030001","安全研究センター 研究計画調整室"]
[null,null,null,null,null,null,null,null,null,null,null,null,null,"",null,null,null,"．",null,null,null,null,null,null,null,8,"04018000","原子力緊急時支援・研修センター"]
[null,null,null,null,null,null,null,null,null,null,null,null,null,"",null,null,null,"．",null,null,null,null,null,null,null,8,"04018001","原子力緊急時支援・研修センター 福井支所"]
[null,null,null,null,null,null,null,null,null,null,null,null,null,"",null,null,null,"．",null,null,null,null,null,null,null,8,"04032000","原子力基礎工学研究センター"]
[null,null,null,null,null,null,null,null,null,null,null,null,null,"",null,null,null,"．",null,null,null,null,null,null,null,8,"04032014","原子力基礎工学研究センター 燃料・材料工学U"]
[null,null,null,null,null,null,null,null,null,null,null,null,null,"",null,null,null,"．",null,null,null,null,null,null,null,8,"04032020","原子力基礎工学研究センター 燃料・材料工学U 照射材料工学研究Gr"]
[null,null,null,null,null,null,null,null,null,null,null,null,null,"",null,null,null,"．",null,null,null,null,null,null,null,8,"04084000","原子力科学研究所 保安管理部"]
[null,null,null,null,null,null,null,null,null,null,null,null,null,"",null,null,null,"．",null,null,null,null,null,null,null,8,"04084003","原子力科学研究所 保安管理部 施設安全課"]
[null,null,null,null,null,null,null,null,null,null,null,null,null,"",null,null,null,"．",null,null,null,null,null,null,null,8,"04035000","次世代高速炉サイクル研究開発センター"]
[null,null,null,null,null,null,null,null,null,null,null,null,null,"",null,null,null,"．",null,null,null,null,null,null,null,8,"04035001","次世代高速炉サイクル研究開発センター プロジェクト推進室"]
[null,null,null,null,null,null,null,null,null,null,null,null,null,"",null,null,null,"．",null,null,null,null,null,null,null,8,"04020000","大洗研究開発センター 高速炉技術開発部"]
[null,null,null,null,null,null,null,null,null,null,null,null,null,"",null,null,null,"．",null,null,null,null,null,null,null,8,"04020004","大洗研究開発センター 高速炉技術開発部 熱流体技術開発課"]
[null,null,null,null,null,null,null,null,null,null,null,null,null,"",null,null,null,{"$f":"P897&\"．\"&Q897","v":"．"},null,null,null,null,null,null,null,8,"04082000","大洗研究開発センター 高速実験炉部"]
[null,null,null,null,null,null,null,null,null,null,null,null,null,"",null,null,null,"．",null,null,null,null,null,null,null,8,"04082001","大洗研究開発センター 高速実験炉部 高速炉技術課"]
[null,null,null,null,null,null,null,null,null,null,null,null,null,"",null,null,null,"．",null,null,null,null,null,null,null,8,"04082002","大洗研究開発センター 高速実験炉部 高速炉第1課"]
[null,null,null,null,null,null,null,null,null,null,null,null,null,"",null,null,null,"．",null,null,null,null,null,null,null,8,"04082003","大洗研究開発センター 高速実験炉部 高速炉第2課"]
[null,null,null,null,null,null,null,null,null,null,null,null,null,"",null,null,null,"．",null,null,null,null,null,null,null,8,"04038000","バックエンド研究開発部門"]
[null,null,null,null,null,null,null,null,null,null,null,null,null,"",null,null,null,"．",null,null,null,null,null,null,null,8,"04038001","バックエンド研究開発部門 企画調整室"]
[null,null,null,null,null,null,null,null,null,null,null,null,null,"",null,null,null,"．",null,null,null,null,null,null,null,8,"04040000","廃棄物対策・埋設事業統括部"]
[null,null,null,null,null,null,null,null,null,null,null,null,null,"",null,null,null,"．",null,null,null,null,null,null,null,8,"04040004","廃棄物対策・埋設事業統括部 廃止措置計画課"]
[null,null,null,null,null,null,null,null,null,null,null,null,null,"",null,null,null,"．",null,null,null,null,null,null,null,8,"04015000","核サ研) 再処理技術開発センター"]
[null,null,null,null,null,null,null,null,null,null,null,null,null,"",null,null,null,"．",null,null,null,null,null,null,null,8,"04015002","核サ研) 再処理技術開発センター 品質保証課"]
[null,null,null,null,null,null,null,null,null,null,null,null,null,"",null,null,null,"．",null,null,null,null,null,null,null,8,"04037013","地層科学研究部"]
[null,null,null,null,null,null,null,null,null,null,null,null,null,"",null,null,null,"．",null,null,null,null,null,null,null,8,"04037016","地層科学研究部 ネオテクトニクス研究Gr"]
[null,null,null,null,null,null,null,null,null,null,null,null,null,"",null,null,null,"．",null,null,null,null,null,null,null,8,"04088000","大洗研究開発センター 環境保全部"]
[null,null,null,null,null,null,null,null,null,null,null,null,null,"",null,null,null,"．",null,null,null,null,null,null,null,8,"04088002","環境技術課"]
[null,null,null,null,null,null,null,null,null,null,null,null,null,"",null,null,null,"．",null,null,null,null,null,null,null,8,"04064000","役員室"]
[null,null,null,null,null,null,null,null,null,null,null,null,null,"",null,null,null,"．",null,null,null,null,null,null,null,9,"05000000","（那珂拠点）"]
[null,null,null,null,null,null,null,null,null,null,null,null,null,"",null,null,null,"．",null,null,null,null,null,null,null,9,"05001000","管理部"]
[null,null,null,null,null,null,null,null,null,null,null,null,null,"",null,null,null,"．",null,null,null,null,null,null,null,9,"05001004","管理部 保安管理課"]
[null,null,null,null,null,null,null,null,null,null,null,null,null,"",null,null,null,"．",null,null,null,null,null,null,null,9,"05001001","管理部 総務課"]
[null,null,null,null,null,null,null,null,null,null,null,null,null,"",null,null,null,"．",null,null,null,null,null,null,null,9,"05001002","管理部 経理課"]
[null,null,null,null,null,null,null,null,null,null,null,null,null,"",null,null,null,"．",null,null,null,null,null,null,null,9,"05001003","管理部 工務課"]
[null,null,null,null,null,null,null,null,null,null,null,null,null,"",null,null,null,"",null,null,null,null,null,null,null,9,"05058000","人事部"]
[null,null,null,null,null,null,null,null,null,null,null,null,null,null,null,null,null,null,null,null,null,null,null,null,null,9,"05058004","人事部 職員課"]
[null,null,null,null,null,null,null,null,null,null,null,null,null,null,null,null,null,null,null,null,null,null,null,null,null,9,"05051000","建設部"]
[null,null,null,null,null,null,null,null,null,null,null,null,null,null,null,null,null,null,null,null,null,null,null,null,null,9,"05051001","建設部 業務課"]
[null,null,null,null,null,null,null,null,null,null,null,null,null,null,null,null,null,null,null,null,null,null,null,null,null,9,"05051002","建設部 施設技術課"]
[null,null,null,null,null,null,null,null,null,null,null,null,null,null,null,null,null,null,null,null,null,null,null,null,null,9,"05051003","建設部 建設課"]
[null,null,null,null,null,null,null,null,null,null,null,null,null,null,null,null,null,null,null,null,null,null,null,null,null,9,"05051004","建設部 設備課"]
[null,null,null,null,null,null,null,null,null,null,null,null,null,null,null,null,null,null,null,null,null,null,null,null,null,9,"05051007","建設部 耐震対応整備室"]
[null,null,null,null,null,null,null,null,null,null,null,null,null,null,null,null,null,null,null,null,null,null,null,null,null,9,"05062000","研究技術情報部"]
[null,null,null,null,null,null,null,null,null,null,null,null,null,null,null,null,null,null,null,null,null,null,null,null,null,9,"05053000","システム計算科学センター"]
[null,null,null,null,null,null,null,null,null,null,null,null,null,null,null,null,null,null,null,null,null,null,null,null,null,9,"05053003","システム計算科学センター 情報システム管理室"]
[null,null,null,null,null,null,null,null,null,null,null,null,null,null,null,null,null,null,null,null,null,null,null,null,null,9,"05055000","原子力人材育成センター"]
[null,null,null,null,null,null,null,null,null,null,null,null,null,null,null,null,null,null,null,null,null,null,null,null,null,9,"05055001","原子力人材育成センター 原子力人材育成推進課"]
[null,null,null,null,null,null,null,null,null,null,null,null,null,null,null,null,null,null,null,null,null,null,null,null,null,9,"05006000","大洗研究開発センター 材料試験炉部"]
[null,null,null,null,null,null,null,null,null,null,null,null,null,null,null,null,null,null,null,null,null,null,null,null,null,9,"05034000","核融合研究開発部門"]
[null,null,null,null,null,null,null,null,null,null,null,null,null,null,null,null,null,null,null,null,null,null,null,null,null,9,"05034001","核融合研究開発部門 企画調整室"]
[null,null,null,null,null,null,null,null,null,null,null,null,null,null,null,null,null,null,null,null,null,null,null,null,null,9,"05034002","ITERプロジェクト部"]
[null,null,null,null,null,null,null,null,null,null,null,null,null,null,null,null,null,null,null,null,null,null,null,null,null,9,"05034027","ITERプロジェクト部 ITER計画管理Gr"]
[null,null,null,null,null,null,null,null,null,null,null,null,null,null,null,null,null,null,null,null,null,null,null,null,null,9,"05034028","ITERプロジェクト部 ITER統合支援Gr"]
[null,null,null,null,null,null,null,null,null,null,null,null,null,null,null,null,null,null,null,null,null,null,null,null,null,9,"05034029","ITERプロジェクト部 ITERトカマク本体開発Gr"]
[null,null,null,null,null,null,null,null,null,null,null,null,null,null,null,null,null,null,null,null,null,null,null,null,null,9,"05034045","ITERプロジェクト部 超伝導コイル開発Gr"]
[null,null,null,null,null,null,null,null,null,null,null,null,null,null,null,null,null,null,null,null,null,null,null,null,null,9,"05034046","ITERプロジェクト部 超伝導導体開発Gr"]
[null,null,null,null,null,null,null,null,null,null,null,null,null,null,null,null,null,null,null,null,null,null,null,null,null,9,"05034047","ITERプロジェクト部 超伝導コイル試験Gr"]
[null,null,null,null,null,null,null,null,null,null,null,null,null,null,null,null,null,null,null,null,null,null,null,null,null,9,"05034035","ITERプロジェクト部 計測開発Gr"]
[null,null,null,null,null,null,null,null,null,null,null,null,null,null,null,null,null,null,null,null,null,null,null,null,null,9,"05034013","ITERプロジェクト部 RF加熱開発Gr"]
[null,null,null,null,null,null,null,null,null,null,null,null,null,null,null,null,null,null,null,null,null,null,null,null,null,9,"05034014","ITERプロジェクト部 NB加熱開発Gr"]
[null,null,null,null,null,null,null,null,null,null,null,null,null,null,null,null,null,null,null,null,null,null,null,null,null,9,"05034010","トカマクシステム技術開発部"]
[null,null,null,null,null,null,null,null,null,null,null,null,null,null,null,null,null,null,null,null,null,null,null,null,null,9,"05034043","トカマクシステム技術開発部 JT-60システム統合Gr"]
[null,null,null,null,null,null,null,null,null,null,null,null,null,null,null,null,null,null,null,null,null,null,null,null,null,9,"05034036","トカマクシステム技術開発部 JT-60マグネットシステム開発Gr"]
[null,null,null,null,null,null,null,null,null,null,null,null,null,null,null,null,null,null,null,null,null,null,null,null,null,9,"05034012","トカマクシステム技術開発部 JT-60本体開発Gr"]
[null,null,null,null,null,null,null,null,null,null,null,null,null,null,null,null,null,null,null,null,null,null,null,null,null,9,"05034011","トカマクシステム技術開発部 JT-60電源・制御開発Gr"]
[null,null,null,null,null,null,null,null,null,null,null,null,null,null,null,null,null,null,null,null,null,null,null,null,null,9,"05034038","トカマクシステム技術開発部 JT-60安全評価Gr"]
[null,null,null,null,null,null,null,null,null,null,null,null,null,null,null,null,null,null,null,null,null,null,null,null,null,9,"05034003","先進プラズマ研究部"]
[null,null,null,null,null,null,null,null,null,null,null,null,null,null,null,null,null,null,null,null,null,null,null,null,null,9,"05034032","先進プラズマ研究部 先進プラズマ計画調整Gr"]
[null,null,null,null,null,null,null,null,null,null,null,null,null,null,null,null,null,null,null,null,null,null,null,null,null,9,"05034005","先進プラズマ研究部 先進プラズマモデリングGr"]
[null,null,null,null,null,null,null,null,null,null,null,null,null,null,null,null,null,null,null,null,null,null,null,null,null,9,"05034006","先進プラズマ研究部 先進プラズマ実験Gr"]
[null,null,null,null,null,null,null,null,null,null,null,null,null,null,null,null,null,null,null,null,null,null,null,null,null,9,"05034039","核融合炉システム研究開発部"]
[null,null,null,null,null,null,null,null,null,null,null,null,null,null,null,null,null,null,null,null,null,null,null,null,null,9,"05034041","核融合炉システム研究開発部 BA計画調整Gr"]
[null,null,null,null,null,null,null,null,null,null,null,null,null,null,null,null,null,null,null,null,null,null,null,null,null,9,"05034008","核融合炉システム研究開発部 プラズマ理論シミュレーションGr"]
[null,null,null,null,null,null,null,null,null,null,null,null,null,null,null,null,null,null,null,null,null,null,null,null,null,9,"05034009","核融合炉システム研究開発部 核融合炉システム研究Gr"]
[null,null,null,null,null,null,null,null,null,null,null,null,null,null,null,null,null,null,null,null,null,null,null,null,null,9,"05034048","核融合炉材料研究開発部"]
[null,null,null,null,null,null,null,null,null,null,null,null,null,null,null,null,null,null,null,null,null,null,null,null,null,9,"05034042","核融合炉材料研究開発部 IFMIF加速器施設開発Gr"]
[null,null,null,null,null,null,null,null,null,null,null,null,null,null,null,null,null,null,null,null,null,null,null,null,null,9,"05034044","核融合炉材料研究開発部 IFMIF照射・試験施設開発Gr"]
[null,null,null,null,null,null,null,null,null,null,null,null,null,null,null,null,null,null,null,null,null,null,null,null,null,9,"05034021","核融合炉材料研究開発部 核融合炉構造材料開発Gr"]
[null,null,null,null,null,null,null,null,null,null,null,null,null,null,null,null,null,null,null,null,null,null,null,null,null,9,"05034020","核融合炉材料研究開発部 核融合中性子工学研究Gr"]
[null,null,null,null,null,null,null,null,null,null,null,null,null,null,null,null,null,null,null,null,null,null,null,null,null,9,"05034015","ブランケット研究開発部"]
[null,null,null,null,null,null,null,null,null,null,null,null,null,null,null,null,null,null,null,null,null,null,null,null,null,9,"05034016","ブランケット研究開発部 ブランケット工学研究Gr"]
[null,null,null,null,null,null,null,null,null,null,null,null,null,null,null,null,null,null,null,null,null,null,null,null,null,9,"05034019","ブランケット研究開発部 トリチウム工学研究Gr"]
[null,null,null,null,null,null,null,null,null,null,null,null,null,null,null,null,null,null,null,null,null,null,null,null,null,9,"05034022","ブランケット研究開発部 増殖機能材料開発Gr"]
[null,null,null,null,null,null,null,null,null,null,null,null,null,null,null,null,null,null,null,null,null,null,null,null,null,10,"06000000","（高崎拠点）"]
[null,null,null,null,null,null,null,null,null,null,null,null,null,null,null,null,null,null,null,null,null,null,null,null,null,10,"06001000","管理部"]
[null,null,null,null,null,null,null,null,null,null,null,null,null,null,null,null,null,null,null,null,null,null,null,null,null,10,"06001004","管理部 保安管理課"]
[null,null,null,null,null,null,null,null,null,null,null,null,null,null,null,null,null,null,null,null,null,null,null,null,null,10,"06001001","管理部 総務課"]
[null,null,null,null,null,null,null,null,null,null,null,null,null,null,null,null,null,null,null,null,null,null,null,null,null,10,"06001002","管理部 経理課"]
[null,null,null,null,null,null,null,null,null,null,null,null,null,null,null,null,null,null,null,null,null,null,null,null,null,10,"06001003","管理部 工務課"]
[null,null,null,null,null,null,null,null,null,null,null,null,null,null,null,null,null,null,null,null,null,null,null,null,null,10,"06002000","放射線高度利用施設部"]
[null,null,null,null,null,null,null,null,null,null,null,null,null,null,null,null,null,null,null,null,null,null,null,null,null,10,"06002002","放射線高度利用施設部 利用計画課"]
[null,null,null,null,null,null,null,null,null,null,null,null,null,null,null,null,null,null,null,null,null,null,null,null,null,10,"06002003","放射線高度利用施設部 イオン加速器管理課"]
[null,null,null,null,null,null,null,null,null,null,null,null,null,null,null,null,null,null,null,null,null,null,null,null,null,10,"06002004","放射線高度利用施設部 照射施設管理課"]
[null,null,null,null,null,null,null,null,null,null,null,null,null,null,null,null,null,null,null,null,null,null,null,null,null,10,"06002005","放射線高度利用施設部 ビーム技術開発課"]
[null,null,null,null,null,null,null,null,null,null,null,null,null,null,null,null,null,null,null,null,null,null,null,null,null,10,"06056000","事業計画統括部"]
[null,null,null,null,null,null,null,null,null,null,null,null,null,null,null,null,null,null,null,null,null,null,null,null,null,10,"06056002","事業計画統括部 評価室"]
[null,null,null,null,null,null,null,null,null,null,null,null,null,null,null,null,null,null,null,null,null,null,null,null,null,10,"06058000","人事部"]
[null,null,null,null,null,null,null,null,null,null,null,null,null,null,null,null,null,null,null,null,null,null,null,null,null,10,"06058004","人事部 職員課"]
[null,null,null,null,null,null,null,null,null,null,null,null,null,null,null,null,null,null,null,null,null,null,null,null,null,10,"06050000","産学連携推進部"]
[null,null,null,null,null,null,null,null,null,null,null,null,null,null,null,null,null,null,null,null,null,null,null,null,null,10,"06050001","産学連携推進部 産学連携推進課"]
[null,null,null,null,null,null,null,null,null,null,null,null,null,null,null,null,null,null,null,null,null,null,null,null,null,10,"06050004","産学連携推進部 知的財産管理・利用促進課"]
[null,null,null,null,null,null,null,null,null,null,null,null,null,null,null,null,null,null,null,null,null,null,null,null,null,10,"06061000","建設部"]
[null,null,null,null,null,null,null,null,null,null,null,null,null,null,null,null,null,null,null,null,null,null,null,null,null,10,"06061003","建設部 建設課"]
[null,null,null,null,null,null,null,null,null,null,null,null,null,null,null,null,null,null,null,null,null,null,null,null,null,10,"06061004","建設部 設備課"]
[null,null,null,null,null,null,null,null,null,null,null,null,null,null,null,null,null,null,null,null,null,null,null,null,null,10,"06062000","研究技術情報部"]
[null,null,null,null,null,null,null,null,null,null,null,null,null,null,null,null,null,null,null,null,null,null,null,null,null,10,"06055000","原子力人材育成センター"]
[null,null,null,null,null,null,null,null,null,null,null,null,null,null,null,null,null,null,null,null,null,null,null,null,null,10,"06055001","原子力人材育成センター 原子力人材育成推進課"]
[null,null,null,null,null,null,null,null,null,null,null,null,null,null,null,null,null,null,null,null,null,null,null,null,null,10,"06043000","核不拡散・核セキュリティ総合支援センター"]
[null,null,null,null,null,null,null,null,null,null,null,null,null,null,null,null,null,null,null,null,null,null,null,null,null,10,"06043004","核不拡散・核セキュリティ総合支援センター 技術開発推進室"]
[null,null,null,null,null,null,null,null,null,null,null,null,null,null,null,null,null,null,null,null,null,null,null,null,null,10,"06049000","核物質管理科学技術推進部"]
[null,null,null,null,null,null,null,null,null,null,null,null,null,null,null,null,null,null,null,null,null,null,null,null,null,10,"06049001","核物質管理科学技術推進部 核物質管理室"]
[null,null,null,null,null,null,null,null,null,null,null,null,null,null,null,null,null,null,null,null,null,null,null,null,null,10,"06031000","先端基礎研究センター"]
[null,null,null,null,null,null,null,null,null,null,null,null,null,null,null,null,null,null,null,null,null,null,null,null,null,10,"06031006","先端基礎研究センター 分子スピントロニクス研究Gr"]
[null,null,null,null,null,null,null,null,null,null,null,null,null,null,null,null,null,null,null,null,null,null,null,null,null,10,"06031011","先端基礎研究センター 力学的物質・スピン制御研究Gr"]
[null,null,null,null,null,null,null,null,null,null,null,null,null,null,null,null,null,null,null,null,null,null,null,null,null,10,"06031007","先端基礎研究センター スピン偏極陽電子ビーム研究Gr"]
[null,null,null,null,null,null,null,null,null,null,null,null,null,null,null,null,null,null,null,null,null,null,null,null,null,10,"06032000","原子力基礎工学研究センター"]
[null,null,null,null,null,null,null,null,null,null,null,null,null,null,null,null,null,null,null,null,null,null,null,null,null,10,"06032040","原子力基礎工学研究センター 原子力化学U"]
[null,null,null,null,null,null,null,null,null,null,null,null,null,null,null,null,null,null,null,null,null,null,null,null,null,10,"06032024","原子力基礎工学研究センター 原子力化学U 放射化学研究Gr"]
[null,null,null,null,null,null,null,null,null,null,null,null,null,null,null,null,null,null,null,null,null,null,null,null,null,10,"06032047","原子力基礎工学研究センター 分離変換技術開発U"]
[null,null,null,null,null,null,null,null,null,null,null,null,null,null,null,null,null,null,null,null,null,null,null,null,null,10,"06032016","原子力基礎工学研究センター 分離変換技術開発U 分離変換サイクル開発Gr"]
[null,null,null,null,null,null,null,null,null,null,null,null,null,null,null,null,null,null,null,null,null,null,null,null,null,10,"06033000","量子ビーム応用研究センター"]
[null,null,null,null,null,null,null,null,null,null,null,null,null,null,null,null,null,null,null,null,null,null,null,null,null,10,"06033001","量子ビーム応用研究センター 研究推進室"]
[null,null,null,null,null,null,null,null,null,null,null,null,null,null,null,null,null,null,null,null,null,null,null,null,null,10,"06033023","量子ビーム応用研究センター 医療・バイオ応用量子ビーム技術研究U"]
[null,null,null,null,null,null,null,null,null,null,null,null,null,null,null,null,null,null,null,null,null,null,null,null,null,10,"06033024","量子ビーム応用研究センター 医療・バイオ応用量子ビーム技術研究U イオンビーム変異誘発研究Gr"]
[null,null,null,null,null,null,null,null,null,null,null,null,null,null,null,null,null,null,null,null,null,null,null,null,null,10,"06033025","量子ビーム応用研究センター 医療・バイオ応用量子ビーム技術研究U マイクロビーム細胞照射研究Gr"]
[null,null,null,null,null,null,null,null,null,null,null,null,null,null,null,null,null,null,null,null,null,null,null,null,null,10,"06033026","量子ビーム応用研究センター 医療・バイオ応用量子ビーム技術研究U ＲＩ医療応用研究Gr"]
[null,null,null,null,null,null,null,null,null,null,null,null,null,null,null,null,null,null,null,null,null,null,null,null,null,10,"06033063","量子ビーム応用研究センター 医療・バイオ応用量子ビーム技術研究U ＲＩイメージング研究Gr"]
[null,null,null,null,null,null,null,null,null,null,null,null,null,null,null,null,null,null,null,null,null,null,null,null,null,10,"06033064","量子ビーム応用研究センター 医療・バイオ応用量子ビーム技術研究U 照射細胞解析研究Gr"]
[null,null,null,null,null,null,null,null,null,null,null,null,null,null,null,null,null,null,null,null,null,null,null,null,null,10,"06033027","量子ビーム応用研究センター 環境・産業応用量子ビーム技術研究U"]
[null,null,null,null,null,null,null,null,null,null,null,null,null,null,null,null,null,null,null,null,null,null,null,null,null,10,"06033028","量子ビーム応用研究センター 環境・産業応用量子ビーム技術研究U 高性能高分子材料研究Gr"]
[null,null,null,null,null,null,null,null,null,null,null,null,null,null,null,null,null,null,null,null,null,null,null,null,null,10,"06033029","量子ビーム応用研究センター 環境・産業応用量子ビーム技術研究U 機能性セラミック材料研究Gr"]
[null,null,null,null,null,null,null,null,null,null,null,null,null,null,null,null,null,null,null,null,null,null,null,null,null,10,"06033030","量子ビーム応用研究センター 環境・産業応用量子ビーム技術研究U 半導体耐放射線性研究Gr"]
[null,null,null,null,null,null,null,null,null,null,null,null,null,null,null,null,null,null,null,null,null,null,null,null,null,10,"06033031","量子ビーム応用研究センター 環境・産業応用量子ビーム技術研究U 環境機能高分子材料研究Gr"]
[null,null,null,null,null,null,null,null,null,null,null,null,null,null,null,null,null,null,null,null,null,null,null,null,null,10,"06033032","量子ビーム応用研究センター 環境・産業応用量子ビーム技術研究U 環境材料プロセシング研究Gr"]
[null,null,null,null,null,null,null,null,null,null,null,null,null,null,null,null,null,null,null,null,null,null,null,null,null,11,"07000000","（関西拠点） 0"]
[null,null,null,null,null,null,null,null,null,null,null,null,null,null,null,null,null,null,null,null,null,null,null,null,null,11,"07001000","管理部"]
[null,null,null,null,null,null,null,null,null,null,null,null,null,null,null,null,null,null,null,null,null,null,null,null,null,11,"07001004","管理部 保安工務課"]
[null,null,null,null,null,null,null,null,null,null,null,null,null,null,null,null,null,null,null,null,null,null,null,null,null,11,"07001001","管理部 総務課"]
[null,null,null,null,null,null,null,null,null,null,null,null,null,null,null,null,null,null,null,null,null,null,null,null,null,11,"07001002","管理部 経理課"]
[null,null,null,null,null,null,null,null,null,null,null,null,null,null,null,null,null,null,null,null,null,null,null,null,null,11,"07002000","プロジェクト推進室"]
[null,null,null,null,null,null,null,null,null,null,null,null,null,null,null,null,null,null,null,null,null,null,null,null,null,11,"07058000","人事部"]
[null,null,null,null,null,null,null,null,null,null,null,null,null,null,null,null,null,null,null,null,null,null,null,null,null,11,"07058004","人事部 職員課"]
[null,null,null,null,null,null,null,null,null,null,null,null,null,null,null,null,null,null,null,null,null,null,null,null,null,11,"07050000","産学連携推進部"]
[null,null,null,null,null,null,null,null,null,null,null,null,null,null,null,null,null,null,null,null,null,null,null,null,null,11,"07050001","産学連携推進部 産学連携推進課"]
[null,null,null,null,null,null,null,null,null,null,null,null,null,null,null,null,null,null,null,null,null,null,null,null,null,11,"07062000","研究技術情報部"]
[null,null,null,null,null,null,null,null,null,null,null,null,null,null,null,null,null,null,null,null,null,null,null,null,null,11,"07053000","システム計算科学センター"]
[null,null,null,null,null,null,null,null,null,null,null,null,null,null,null,null,null,null,null,null,null,null,null,null,null,11,"07053002","システム計算科学センター 情報システム利用推進室"]
[null,null,null,null,null,null,null,null,null,null,null,null,null,null,null,null,null,null,null,null,null,null,null,null,null,11,"07053003","システム計算科学センター 情報システム管理室"]
[null,null,null,null,null,null,null,null,null,null,null,null,null,null,null,null,null,null,null,null,null,null,null,null,null,11,"07053006","システム計算科学センター シミュレーション技術開発室"]
[null,null,null,null,null,null,null,null,null,null,null,null,null,null,null,null,null,null,null,null,null,null,null,null,null,11,"07055000","原子力人材育成センター"]
[null,null,null,null,null,null,null,null,null,null,null,null,null,null,null,null,null,null,null,null,null,null,null,null,null,11,"07055001","原子力人材育成センター 原子力人材育成推進課"]
[null,null,null,null,null,null,null,null,null,null,null,null,null,null,null,null,null,null,null,null,null,null,null,null,null,11,"07033000","量子ビーム応用研究センター"]
[null,null,null,null,null,null,null,null,null,null,null,null,null,null,null,null,null,null,null,null,null,null,null,null,null,11,"07033001","量子ビーム応用研究センター 研究推進室"]
[null,null,null,null,null,null,null,null,null,null,null,null,null,null,null,null,null,null,null,null,null,null,null,null,null,11,"07033002","量子ビーム応用研究センター 量子ビーム機能性分子解析技術研究U"]
[null,null,null,null,null,null,null,null,null,null,null,null,null,null,null,null,null,null,null,null,null,null,null,null,null,11,"07033004","量子ビーム応用研究センター 量子ビーム機能性分子解析技術研究U 分子シミュレーション研究Gr"]
[null,null,null,null,null,null,null,null,null,null,null,null,null,null,null,null,null,null,null,null,null,null,null,null,null,11,"07033005","量子ビーム応用研究センター 量子ビーム機能性分子解析技術研究U 分子ダイナミクス研究Gr"]
[null,null,null,null,null,null,null,null,null,null,null,null,null,null,null,null,null,null,null,null,null,null,null,null,null,11,"07033006","量子ビーム応用研究センター 量子ビーム材料評価・構造制御技術研究U"]
[null,null,null,null,null,null,null,null,null,null,null,null,null,null,null,null,null,null,null,null,null,null,null,null,null,11,"07033012","量子ビーム応用研究センター 量子ビーム材料評価・構造制御技術研究U 弾塑性材料評価研究Gr"]
[null,null,null,null,null,null,null,null,null,null,null,null,null,null,null,null,null,null,null,null,null,null,null,null,null,11,"07033023","量子ビーム応用研究センター 医療・バイオ応用量子ビーム技術研究U"]
[null,null,null,null,null,null,null,null,null,null,null,null,null,null,null,null,null,null,null,null,null,null,null,null,null,11,"07033064","量子ビーム応用研究センター 医療・バイオ応用量子ビーム技術研究U 照射細胞解析研究Gr"]
[null,null,null,null,null,null,null,null,null,null,null,null,null,null,null,null,null,null,null,null,null,null,null,null,null,11,"07033033","量子ビーム応用研究センター 先進ビーム技術研究U"]
[null,null,null,null,null,null,null,null,null,null,null,null,null,null,null,null,null,null,null,null,null,null,null,null,null,11,"07033036","量子ビーム応用研究センター 先進ビーム技術研究U レーザー駆動粒子線研究Gr"]
[null,null,null,null,null,null,null,null,null,null,null,null,null,null,null,null,null,null,null,null,null,null,null,null,null,11,"07033037","量子ビーム応用研究センター 先進ビーム技術研究U レーザー電子加速研究Gr"]
[null,null,null,null,null,null,null,null,null,null,null,null,null,null,null,null,null,null,null,null,null,null,null,null,null,11,"07033034","量子ビーム応用研究センター 先進ビーム技術研究U Ｘ線レーザー応用研究Gr"]
[null,null,null,null,null,null,null,null,null,null,null,null,null,null,null,null,null,null,null,null,null,null,null,null,null,11,"07033070","量子ビーム応用研究センター 先進ビーム技術研究U 高出力レーザー研究Gr"]
[null,null,null,null,null,null,null,null,null,null,null,null,null,null,null,null,null,null,null,null,null,null,null,null,null,11,"07033065","量子ビーム応用研究センター レーザー応用技術研究U"]
[null,null,null,null,null,null,null,null,null,null,null,null,null,null,null,null,null,null,null,null,null,null,null,null,null,11,"07033035","量子ビーム応用研究センター レーザー応用技術研究U 高強度場物質制御研究Gr"]
[null,null,null,null,null,null,null,null,null,null,null,null,null,null,null,null,null,null,null,null,null,null,null,null,null,11,"07033066","量子ビーム応用研究センター レーザー応用技術研究U レーザー量子制御研究Gr"]
[null,null,null,null,null,null,null,null,null,null,null,null,null,null,null,null,null,null,null,null,null,null,null,null,null,11,"07033060","量子ビーム応用研究センター レーザー応用技術研究U 光量子融合研究Gr"]
[null,null,null,null,null,null,null,null,null,null,null,null,null,null,null,null,null,null,null,null,null,null,null,null,null,11,"07033043","量子ビーム応用研究センター レーザー応用技術研究U ガンマ線核種分析研究Gr"]
[null,null,null,null,null,null,null,null,null,null,null,null,null,null,null,null,null,null,null,null,null,null,null,null,null,11,"07033059","量子ビーム応用研究センター レーザー応用技術研究U 次世代レーザー開発研究Gr"]
[null,null,null,null,null,null,null,null,null,null,null,null,null,null,null,null,null,null,null,null,null,null,null,null,null,11,"07033044","量子ビーム応用研究センター 量子ビーム物性制御・解析技術研究U"]
[null,null,null,null,null,null,null,null,null,null,null,null,null,null,null,null,null,null,null,null,null,null,null,null,null,11,"07033048","量子ビーム応用研究センター 量子ビーム物性制御・解析技術研究U 高密度物質研究Gr"]
[null,null,null,null,null,null,null,null,null,null,null,null,null,null,null,null,null,null,null,null,null,null,null,null,null,11,"07033046","量子ビーム応用研究センター 量子ビーム物性制御・解析技術研究U 量子構造研究Gr"]
[null,null,null,null,null,null,null,null,null,null,null,null,null,null,null,null,null,null,null,null,null,null,null,null,null,11,"07033051","量子ビーム応用研究センター 量子ビーム物性制御・解析技術研究U 電子構造研究Gr"]
[null,null,null,null,null,null,null,null,null,null,null,null,null,null,null,null,null,null,null,null,null,null,null,null,null,11,"07033052","量子ビーム応用研究センター 量子ビーム物性制御・解析技術研究U 量子シミュレーション研究Gr"]
[null,null,null,null,null,null,null,null,null,null,null,null,null,null,null,null,null,null,null,null,null,null,null,null,null,11,"07033067","量子ビーム応用研究センター 量子ビーム物性制御・解析技術研究U コヒーレントＸ線利用研究Gr"]
[null,null,null,null,null,null,null,null,null,null,null,null,null,null,null,null,null,null,null,null,null,null,null,null,null,11,"07033068","量子ビーム応用研究センター 量子ビーム反応制御・解析技術研究U"]
[null,null,null,null,null,null,null,null,null,null,null,null,null,null,null,null,null,null,null,null,null,null,null,null,null,11,"07033049","量子ビーム応用研究センター 量子ビーム反応制御・解析技術研究U アクチノイド錯体化学研究Gr"]
[null,null,null,null,null,null,null,null,null,null,null,null,null,null,null,null,null,null,null,null,null,null,null,null,null,11,"07033047","量子ビーム応用研究センター 量子ビーム反応制御・解析技術研究U 量子ダイナミクス研究Gr"]
[null,null,null,null,null,null,null,null,null,null,null,null,null,null,null,null,null,null,null,null,null,null,null,null,null,11,"07033050","量子ビーム応用研究センター 量子ビーム反応制御・解析技術研究U 表面反応ダイナミクス研究Gr"]
[null,null,null,null,null,null,null,null,null,null,null,null,null,null,null,null,null,null,null,null,null,null,null,null,null,11,"07064000","役員室"]
[null,null,null,null,null,null,null,null,null,null,null,null,null,null,null,null,null,null,null,null,null,null,null,null,null,12,"08000000","（幌延拠点）"]
[null,null,null,null,null,null,null,null,null,null,null,null,null,null,null,null,null,null,null,null,null,null,null,null,null,12,"08000001","保安・建設課"]
[null,null,null,null,null,null,null,null,null,null,null,null,null,null,null,null,null,null,null,null,null,null,null,null,null,12,"08000002","総務・共生課"]
[null,null,null,null,null,null,null,null,null,null,null,null,null,null,null,null,null,null,null,null,null,null,null,null,null,12,"08000003","経理課"]
[null,null,null,null,null,null,null,null,null,null,null,null,null,null,null,null,null,null,null,null,null,null,null,null,null,12,"08037010","深地層研究部"]
[null,null,null,null,null,null,null,null,null,null,null,null,null,null,null,null,null,null,null,null,null,null,null,null,null,12,"08037018","深地層研究部 研究計画調整Gr"]
[null,null,null,null,null,null,null,null,null,null,null,null,null,null,null,null,null,null,null,null,null,null,null,null,null,12,"08037011","深地層研究部 堆積岩処分技術開発Gr"]
[null,null,null,null,null,null,null,null,null,null,null,null,null,null,null,null,null,null,null,null,null,null,null,null,null,12,"08037012","深地層研究部 堆積岩地質環境研究Gr"]
[null,null,null,null,null,null,null,null,null,null,null,null,null,null,null,null,null,null,null,null,null,null,null,null,null,12,"08058000","人事部"]
[null,null,null,null,null,null,null,null,null,null,null,null,null,null,null,null,null,null,null,null,null,null,null,null,null,12,"08061000","建設部"]
[null,null,null,null,null,null,null,null,null,null,null,null,null,null,null,null,null,null,null,null,null,null,null,null,null,12,"08061003","建設部 建設課"]
[null,null,null,null,null,null,null,null,null,null,null,null,null,null,null,null,null,null,null,null,null,null,null,null,null,12,"08061004","建設部 設備課"]
[null,null,null,null,null,null,null,null,null,null,null,null,null,null,null,null,null,null,null,null,null,null,null,null,null,12,"08055000","原子力人材育成センター"]
[null,null,null,null,null,null,null,null,null,null,null,null,null,null,null,null,null,null,null,null,null,null,null,null,null,12,"08055001","原子力人材育成センター 原子力人材育成推進課"]
[null,null,null,null,null,null,null,null,null,null,null,null,null,null,null,null,null,null,null,null,null,null,null,null,null,12,"08030000","安全研究センター"]
[null,null,null,null,null,null,null,null,null,null,null,null,null,null,null,null,null,null,null,null,null,null,null,null,null,12,"08030008","安全研究センター サイクル安全研究Gr"]
[null,null,null,null,null,null,null,null,null,null,null,null,null,null,null,null,null,null,null,null,null,null,null,null,null,12,"08030009","安全研究センター 廃棄物安全研究Gr"]
[null,null,null,null,null,null,null,null,null,null,null,null,null,null,null,null,null,null,null,null,null,null,null,null,null,12,"08046000","核サ研 環境技術開発センター"]
[null,null,null,null,null,null,null,null,null,null,null,null,null,null,null,null,null,null,null,null,null,null,null,null,null,12,"08047000","核サ研 環境技術開発センター 基盤技術研究開発部"]
[null,null,null,null,null,null,null,null,null,null,null,null,null,null,null,null,null,null,null,null,null,null,null,null,null,12,"08047002","核サ研 環境技術開発センター 基盤技術研究開発部 ニアフィールド研究Gr"]
[null,null,null,null,null,null,null,null,null,null,null,null,null,null,null,null,null,null,null,null,null,null,null,null,null,13,"09000000","（東濃拠点）"]
[null,null,null,null,null,null,null,null,null,null,null,null,null,null,null,null,null,null,null,null,null,null,null,null,null,13,"09000001","保安管理課"]
[null,null,null,null,null,null,null,null,null,null,null,null,null,null,null,null,null,null,null,null,null,null,null,null,null,13,"09000002","総務・共生課"]
[null,null,null,null,null,null,null,null,null,null,null,null,null,null,null,null,null,null,null,null,null,null,null,null,null,13,"09000004","経理課"]
[null,null,null,null,null,null,null,null,null,null,null,null,null,null,null,null,null,null,null,null,null,null,null,null,null,13,"09000005","鉱山措置課"]
[null,null,null,null,null,null,null,null,null,null,null,null,null,null,null,null,null,null,null,null,null,null,null,null,null,13,"09000006","施設建設課"]
[null,null,null,null,null,null,null,null,null,null,null,null,null,null,null,null,null,null,null,null,null,null,null,null,null,13,"09038000","地層科学研究部"]
[null,null,null,null,null,null,null,null,null,null,null,null,null,null,null,null,null,null,null,null,null,null,null,null,null,13,"09038001","地層科学研究部 結晶質岩工学技術開発Gr"]
[null,null,null,null,null,null,null,null,null,null,null,null,null,null,null,null,null,null,null,null,null,null,null,null,null,13,"09038002","地層科学研究部 結晶質岩地質環境研究Gr"]
[null,null,null,null,null,null,null,null,null,null,null,null,null,null,null,null,null,null,null,null,null,null,null,null,null,13,"09038003","地層科学研究部 ネオテクトニクス研究Gr"]
[null,null,null,null,null,null,null,null,null,null,null,null,null,null,null,null,null,null,null,null,null,null,null,null,null,13,"09058000","人事部"]
[null,null,null,null,null,null,null,null,null,null,null,null,null,null,null,null,null,null,null,null,null,null,null,null,null,13,"09061000","建設部"]
[null,null,null,null,null,null,null,null,null,null,null,null,null,null,null,null,null,null,null,null,null,null,null,null,null,13,"09061003","建設部 建設課"]
[null,null,null,null,null,null,null,null,null,null,null,null,null,null,null,null,null,null,null,null,null,null,null,null,null,13,"09052000","研究技術情報部"]
[null,null,null,null,null,null,null,null,null,null,null,null,null,null,null,null,null,null,null,null,null,null,null,null,null,13,"09055000","原子力人材育成センター"]
[null,null,null,null,null,null,null,null,null,null,null,null,null,null,null,null,null,null,null,null,null,null,null,null,null,13,"09055001","原子力人材育成センター 原子力人材育成推進課"]
[null,null,null,null,null,null,null,null,null,null,null,null,null,null,null,null,null,null,null,null,null,null,null,null,null,13,"09037000","地層処分研究開発推進部"]
[null,null,null,null,null,null,null,null,null,null,null,null,null,null,null,null,null,null,null,null,null,null,null,null,null,13,"09037001","地層処分研究開発推進部 処分システム研究計画推進課"]
[null,null,null,null,null,null,null,null,null,null,null,null,null,null,null,null,null,null,null,null,null,null,null,null,null,14,"10000000","（人形峠拠点）"]
[null,null,null,null,null,null,null,null,null,null,null,null,null,null,null,null,null,null,null,null,null,null,null,null,null,14,"10000001","安全管理課"]
[null,null,null,null,null,null,null,null,null,null,null,null,null,null,null,null,null,null,null,null,null,null,null,null,null,14,"10000002","計画管理室"]
[null,null,null,null,null,null,null,null,null,null,null,null,null,null,null,null,null,null,null,null,null,null,null,null,null,14,"10000003","総務課"]
[null,null,null,null,null,null,null,null,null,null,null,null,null,null,null,null,null,null,null,null,null,null,null,null,null,14,"10000004","経理課"]
[null,null,null,null,null,null,null,null,null,null,null,null,null,null,null,null,null,null,null,null,null,null,null,null,null,14,"10001000","環境保全技術開発部"]
[null,null,null,null,null,null,null,null,null,null,null,null,null,null,null,null,null,null,null,null,null,null,null,null,null,14,"10001008","環境保全技術開発部 施設管理課"]
[null,null,null,null,null,null,null,null,null,null,null,null,null,null,null,null,null,null,null,null,null,null,null,null,null,14,"10001009","環境保全技術開発部 設備処理課"]
[null,null,null,null,null,null,null,null,null,null,null,null,null,null,null,null,null,null,null,null,null,null,null,null,null,14,"10001010","環境保全技術開発部 研究開発推進課"]
[null,null,null,null,null,null,null,null,null,null,null,null,null,null,null,null,null,null,null,null,null,null,null,null,null,14,"10001011","環境保全技術開発部 処理技術開発課"]
[null,null,null,null,null,null,null,null,null,null,null,null,null,null,null,null,null,null,null,null,null,null,null,null,null,14,"10001012","環境保全技術開発部 環境技術開発課"]
[null,null,null,null,null,null,null,null,null,null,null,null,null,null,null,null,null,null,null,null,null,null,null,null,null,14,"10058000","人事部"]
[null,null,null,null,null,null,null,null,null,null,null,null,null,null,null,null,null,null,null,null,null,null,null,null,null,14,"10061000","建設部"]
[null,null,null,null,null,null,null,null,null,null,null,null,null,null,null,null,null,null,null,null,null,null,null,null,null,14,"10061003","建設部 建設課"]
[null,null,null,null,null,null,null,null,null,null,null,null,null,null,null,null,null,null,null,null,null,null,null,null,null,14,"10061004","建設部 設備課"]
[null,null,null,null,null,null,null,null,null,null,null,null,null,null,null,null,null,null,null,null,null,null,null,null,null,14,"10052000","研究技術情報部"]
[null,null,null,null,null,null,null,null,null,null,null,null,null,null,null,null,null,null,null,null,null,null,null,null,null,14,"10055000","原子力人材育成センター"]
[null,null,null,null,null,null,null,null,null,null,null,null,null,null,null,null,null,null,null,null,null,null,null,null,null,14,"10055001","原子力人材育成センター 原子力人材育成推進課"]
[null,null,null,null,null,null,null,null,null,null,null,null,null,null,null,null,null,null,null,null,null,null,null,null,null,14,"10064000","役員室"]
[null,null,null,null,null,null,null,null,null,null,null,null,null,null,null,null,null,null,null,null,null,null,null,null,null,15,"11000000","（青森拠点）"]
[null,null,null,null,null,null,null,null,null,null,null,null,null,null,null,null,null,null,null,null,null,null,null,null,null,15,"11001000","管理部"]
[null,null,null,null,null,null,null,null,null,null,null,null,null,null,null,null,null,null,null,null,null,null,null,null,null,15,"11001001","管理部 総務課"]
[null,null,null,null,null,null,null,null,null,null,null,null,null,null,null,null,null,null,null,null,null,null,null,null,null,15,"11001004","管理部 経理課"]
[null,null,null,null,null,null,null,null,null,null,null,null,null,null,null,null,null,null,null,null,null,null,null,null,null,15,"11001002","管理部 工務課"]
[null,null,null,null,null,null,null,null,null,null,null,null,null,null,null,null,null,null,null,null,null,null,null,null,null,15,"11002000","むつ事務所"]
[null,null,null,null,null,null,null,null,null,null,null,null,null,null,null,null,null,null,null,null,null,null,null,null,null,15,"11002004","むつ事務所 保安管理課"]
[null,null,null,null,null,null,null,null,null,null,null,null,null,null,null,null,null,null,null,null,null,null,null,null,null,15,"11002001","むつ事務所 施設管理課"]
[null,null,null,null,null,null,null,null,null,null,null,null,null,null,null,null,null,null,null,null,null,null,null,null,null,15,"11002003","むつ事務所 AMS管理課"]
[null,null,null,null,null,null,null,null,null,null,null,null,null,null,null,null,null,null,null,null,null,null,null,null,null,15,"11021001","サイクル協力室"]
[null,null,null,null,null,null,null,null,null,null,null,null,null,null,null,null,null,null,null,null,null,null,null,null,null,15,"11058000","人事部"]
[null,null,null,null,null,null,null,null,null,null,null,null,null,null,null,null,null,null,null,null,null,null,null,null,null,15,"11055000","原子力人材育成センター"]
[null,null,null,null,null,null,null,null,null,null,null,null,null,null,null,null,null,null,null,null,null,null,null,null,null,15,"11055001","原子力人材育成センター 原子力人材育成推進課"]
[null,null,null,null,null,null,null,null,null,null,null,null,null,null,null,null,null,null,null,null,null,null,null,null,null,15,"11032000","原子力基礎工学研究センター"]
[null,null,null,null,null,null,null,null,null,null,null,null,null,null,null,null,null,null,null,null,null,null,null,null,null,15,"11032022","原子力基礎工学研究センター 環境・放射線科学U"]
[null,null,null,null,null,null,null,null,null,null,null,null,null,null,null,null,null,null,null,null,null,null,null,null,null,15,"11032023","原子力基礎工学研究センター 環境・放射線科学U 環境動態研究Gr"]
[null,null,null,null,null,null,null,null,null,null,null,null,null,null,null,null,null,null,null,null,null,null,null,null,null,15,"11016000","核サ研) 再処理技術開発センター 技術部"]
[null,null,null,null,null,null,null,null,null,null,null,null,null,null,null,null,null,null,null,null,null,null,null,null,null,15,"11034000","核融合研究開発部門"]
[null,null,null,null,null,null,null,null,null,null,null,null,null,null,null,null,null,null,null,null,null,null,null,null,null,15,"11034001","核融合研究開発部門 企画調整室"]
[null,null,null,null,null,null,null,null,null,null,null,null,null,null,null,null,null,null,null,null,null,null,null,null,null,15,"11034003","先進プラズマ研究部"]
[null,null,null,null,null,null,null,null,null,null,null,null,null,null,null,null,null,null,null,null,null,null,null,null,null,15,"11034050","六ヶ所核融合研究所"]
[null,null,null,null,null,null,null,null,null,null,null,null,null,null,null,null,null,null,null,null,null,null,null,null,null,15,"11034039","核融合炉システム研究開発部"]
[null,null,null,null,null,null,null,null,null,null,null,null,null,null,null,null,null,null,null,null,null,null,null,null,null,15,"11034041","核融合炉システム研究開発部 BA計画調整Gr"]
[null,null,null,null,null,null,null,null,null,null,null,null,null,null,null,null,null,null,null,null,null,null,null,null,null,15,"11034008","核融合炉システム研究開発部 プラズマ理論シミュレーションGr"]
[null,null,null,null,null,null,null,null,null,null,null,null,null,null,null,null,null,null,null,null,null,null,null,null,null,15,"11034009","核融合炉システム研究開発部 核融合炉システム研究Gr"]
[null,null,null,null,null,null,null,null,null,null,null,null,null,null,null,null,null,null,null,null,null,null,null,null,null,15,"11034048","核融合炉材料研究開発部"]
[null,null,null,null,null,null,null,null,null,null,null,null,null,null,null,null,null,null,null,null,null,null,null,null,null,15,"11034042","核融合炉材料研究開発部 IFMIF加速器施設開発Gr"]
[null,null,null,null,null,null,null,null,null,null,null,null,null,null,null,null,null,null,null,null,null,null,null,null,null,15,"11034043","核融合炉材料研究開発部 IFMIF照射・試験施設開発Gr"]
[null,null,null,null,null,null,null,null,null,null,null,null,null,null,null,null,null,null,null,null,null,null,null,null,null,15,"11034033","核融合炉材料研究開発部 核融合炉構造材料開発Gr"]
[null,null,null,null,null,null,null,null,null,null,null,null,null,null,null,null,null,null,null,null,null,null,null,null,null,15,"11034015","ブランケット研究開発部"]
[null,null,null,null,null,null,null,null,null,null,null,null,null,null,null,null,null,null,null,null,null,null,null,null,null,15,"11034019","ブランケット研究開発部 トリチウム工学研究Gr"]
[null,null,null,null,null,null,null,null,null,null,null,null,null,null,null,null,null,null,null,null,null,null,null,null,null,15,"11034022","ブランケット研究開発部 増殖機能材料開発Gr"]
[null,null,null,null,null,null,null,null,null,null,null,null,null,null,null,null,null,null,null,null,null,null,null,null,null,15,"11064000","役員室"]
[null,null,null,null,null,null,null,null,null,null,null,null,null,null,null,null,null,null,null,null,null,null,null,null,null,10,7033034,"関西量応　Ｘ線レーザー応用Ｇ　"]
[null,null,null,null,null,null,null,null,null,null,null,null,null,null,null,null,null,null,null,null,null,null,null,null,null,10,7033035,"関西量応　高強度場物質制御Ｇ　"]
[null,null,null,null,null,null,null,null,null,null,null,null,null,null,null,null,null,null,null,null,null,null,null,null,null,10,7033036,"関西量応　レーザー駆動粒子線Ｇ"]
[null,null,null,null,null,null,null,null,null,null,null,null,null,null,null,null,null,null,null,null,null,null,null,null,null,10,7033037,"関西量応　レーザー電子加速Ｇ　"]
[null,null,null,null,null,null,null,null,null,null,null,null,null,null,null,null,null,null,null,null,null,null,null,null,null,10,7033039,"関西量応　先端光量子機能（廃　"]
[null,null,null,null,null,null,null,null,null,null,null,null,null,null,null,null,null,null,null,null,null,null,null,null,null,10,7033040,"関西量応　光量子シミュレ（廃　"]
[null,null,null,null,null,null,null,null,null,null,null,null,null,null,null,null,null,null,null,null,null,null,null,null,null,10,7033042,"関西量応　高強度レーザー（廃　"]
[null,null,null,null,null,null,null,null,null,null,null,null,null,null,null,null,null,null,null,null,null,null,null,null,null,10,7033043,"関西量応　ガンマ線核種分析Ｇ　"]
[null,null,null,null,null,null,null,null,null,null,null,null,null,null,null,null,null,null,null,null,null,null,null,null,null,10,7033044,"関西量応　物性制御・解析Ｕ　　"]
[null,null,null,null,null,null,null,null,null,null,null,null,null,null,null,null,null,null,null,null,null,null,null,null,null,10,7033045,"関西量応　放射光技術開発Ｇ（廃"]
[null,null,null,null,null,null,null,null,null,null,null,null,null,null,null,null,null,null,null,null,null,null,null,null,null,10,7033046,"関西量応　量子構造研究Ｇ　　　"]
[null,null,null,null,null,null,null,null,null,null,null,null,null,null,null,null,null,null,null,null,null,null,null,null,null,10,7033047,"関西量応　量子ダイナミクスＧ　"]
[null,null,null,null,null,null,null,null,null,null,null,null,null,null,null,null,null,null,null,null,null,null,null,null,null,10,7033048,"関西量応　高密度物質研究Ｇ　　"]
[null,null,null,null,null,null,null,null,null,null,null,null,null,null,null,null,null,null,null,null,null,null,null,null,null,10,7033049,"関西量応　アクチノイド錯体Ｇ　"]
[null,null,null,null,null,null,null,null,null,null,null,null,null,null,null,null,null,null,null,null,null,null,null,null,null,10,7033050,"関西量応　表面反応ダイナミクＧ"]
[null,null,null,null,null,null,null,null,null,null,null,null,null,null,null,null,null,null,null,null,null,null,null,null,null,10,7033051,"関西量応　電子構造研究Ｇ　　　"]
[null,null,null,null,null,null,null,null,null,null,null,null,null,null,null,null,null,null,null,null,null,null,null,null,null,10,7033052,"関西量応　量子シミュレーショＧ"]
[null,null,null,null,null,null,null,null,null,null,null,null,null,null,null,null,null,null,null,null,null,null,null,null,null,10,7033059,"関西量応　次世代レーザー開発Ｇ"]
[null,null,null,null,null,null,null,null,null,null,null,null,null,null,null,null,null,null,null,null,null,null,null,null,null,10,7033060,"関西量応　光量子融合研究Ｇ　　"]
[null,null,null,null,null,null,null,null,null,null,null,null,null,null,null,null,null,null,null,null,null,null,null,null,null,10,7033064,"関西量応　照射細胞解析研究Ｇ　"]
[null,null,null,null,null,null,null,null,null,null,null,null,null,null,null,null,null,null,null,null,null,null,null,null,null,10,7033065,"関西量応　レーザー応用技術Ｕ　"]
[null,null,null,null,null,null,null,null,null,null,null,null,null,null,null,null,null,null,null,null,null,null,null,null,null,10,7033066,"関西量応　レーザー量子制御Ｇ　"]
[null,null,null,null,null,null,null,null,null,null,null,null,null,null,null,null,null,null,null,null,null,null,null,null,null,10,7033067,"関西量応　コヒーレントＸ線Ｇ　"]
[null,null,null,null,null,null,null,null,null,null,null,null,null,null,null,null,null,null,null,null,null,null,null,null,null,10,7033068,"関西量応　反応制御・解析Ｕ　　"]
[null,null,null,null,null,null,null,null,null,null,null,null,null,null,null,null,null,null,null,null,null,null,null,null,null,10,7033069,"関西量応　光医療レーザーＧ（廃"]
[null,null,null,null,null,null,null,null,null,null,null,null,null,null,null,null,null,null,null,null,null,null,null,null,null,10,7033070,"関西量応　高出力レーザー研究Ｇ"]
[null,null,null,null,null,null,null,null,null,null,null,null,null,null,null,null,null,null,null,null,null,null,null,null,null,10,7039000,"関西　光医療研究連携センタ（廃"]
[null,null,null,null,null,null,null,null,null,null,null,null,null,null,null,null,null,null,null,null,null,null,null,null,null,10,7039001,"関西光医　研究推進Ｇ（廃　　　"]
[null,null,null,null,null,null,null,null,null,null,null,null,null,null,null,null,null,null,null,null,null,null,null,null,null,10,7039002,"関西光医　光医療産業研究Ｇ（廃"]
[null,null,null,null,null,null,null,null,null,null,null,null,null,null,null,null,null,null,null,null,null,null,null,null,null,10,7050000,"関西　産学連携推進部　　　　　"]
[null,null,null,null,null,null,null,null,null,null,null,null,null,null,null,null,null,null,null,null,null,null,null,null,null,10,7050001,"関西　産学部　産学連携推進課　"]
[null,null,null,null,null,null,null,null,null,null,null,null,null,null,null,null,null,null,null,null,null,null,null,null,null,10,7055000,"関西　原子力人材育成センター　"]
[null,null,null,null,null,null,null,null,null,null,null,null,null,null,null,null,null,null,null,null,null,null,null,null,null,10,7055001,"関西育セ　原子力人材育成推進課"]
[null,null,null,null,null,null,null,null,null,null,null,null,null,null,null,null,null,null,null,null,null,null,null,null,null,10,7062000,"関西　研究技術情報部　　　　　"]
[null,null,null,null,null,null,null,null,null,null,null,null,null,null,null,null,null,null,null,null,null,null,null,null,null,13,8037010,"幌延地層　深地層研究部　　　　"]
[null,null,null,null,null,null,null,null,null,null,null,null,null,null,null,null,null,null,null,null,null,null,null,null,null,13,8037011,"幌延地層　堆積岩処分技術開発Ｇ"]
[null,null,null,null,null,null,null,null,null,null,null,null,null,null,null,null,null,null,null,null,null,null,null,null,null,13,8037012,"幌延地層　堆積岩地質環境研究Ｇ"]
[null,null,null,null,null,null,null,null,null,null,null,null,null,null,null,null,null,null,null,null,null,null,null,null,null,13,8037018,"幌延地層　研究計画調整Ｇ　　　"]
[null,null,null,null,null,null,null,null,null,null,null,null,null,null,null,null,null,null,null,null,null,null,null,null,null,12,9000005,"東濃地層　鉱山措置課　　　　　"]
[null,null,null,null,null,null,null,null,null,null,null,null,null,null,null,null,null,null,null,null,null,null,null,null,null,12,9000006,"東濃地層　施設建設課　　　　　"]
[null,null,null,null,null,null,null,null,null,null,null,null,null,null,null,null,null,null,null,null,null,null,null,null,null,12,9037013,"東濃地層　地層科学研究部　　　"]
[null,null,null,null,null,null,null,null,null,null,null,null,null,null,null,null,null,null,null,null,null,null,null,null,null,12,9037014,"東濃地層　結晶質岩工学技術Ｇ　"]
[null,null,null,null,null,null,null,null,null,null,null,null,null,null,null,null,null,null,null,null,null,null,null,null,null,12,9037015,"東濃地層　結晶質岩地質環境Ｇ　"]
[null,null,null,null,null,null,null,null,null,null,null,null,null,null,null,null,null,null,null,null,null,null,null,null,null,12,9037016,"東濃地層　ネオテクトニクス研Ｇ"]
[null,null,null,null,null,null,null,null,null,null,null,null,null,null,null,null,null,null,null,null,null,null,null,null,null,14,10000002,"人形峠セ　計画管理室　　　　　"]
[null,null,null,null,null,null,null,null,null,null,null,null,null,null,null,null,null,null,null,null,null,null,null,null,null,14,10000003,"人形峠セ　総務課　　　　　　　"]
[null,null,null,null,null,null,null,null,null,null,null,null,null,null,null,null,null,null,null,null,null,null,null,null,null,14,10001000,"人形峠セ　環境保全技術開発部　"]
[null,null,null,null,null,null,null,null,null,null,null,null,null,null,null,null,null,null,null,null,null,null,null,null,null,14,10001001,"人形峠セ環境部　環境技術課（廃"]
[null,null,null,null,null,null,null,null,null,null,null,null,null,null,null,null,null,null,null,null,null,null,null,null,null,14,10001002,"人形峠セ環境部　環境保全課（廃"]
[null,null,null,null,null,null,null,null,null,null,null,null,null,null,null,null,null,null,null,null,null,null,null,null,null,14,10001008,"人形峠セ環境部　施設管理課　　"]
[null,null,null,null,null,null,null,null,null,null,null,null,null,null,null,null,null,null,null,null,null,null,null,null,null,14,9,"人形峠セ環境部　設備処理課　　"]
[null,null,null,null,null,null,null,null,null,null,null,null,null,null,null,null,null,null,null,null,null,null,null,null,null,14,10001010,"人形峠セ環境部　研究開発推進課"]
[null,null,null,null,null,null,null,null,null,null,null,null,null,null,null,null,null,null,null,null,null,null,null,null,null,14,10001011,"人形峠セ環境部　処理技術開発課"]
[null,null,null,null,null,null,null,null,null,null,null,null,null,null,null,null,null,null,null,null,null,null,null,null,null,14,10001012,"人形峠セ環境部　環境技術開発課"]
[null,null,null,null,null,null,null,null,null,null,null,null,null,null,null,null,null,null,null,null,null,null,null,null,null,11,11000000,"青森研究開発センター　　　　　"]
[null,null,null,null,null,null,null,null,null,null,null,null,null,null,null,null,null,null,null,null,null,null,null,null,null,11,11001000,"青森　管理部　　　　　　　　　"]
[null,null,null,null,null,null,null,null,null,null,null,null,null,null,null,null,null,null,null,null,null,null,null,null,null,11,11001001,"青森管理部　総務課　　　　　　"]
[null,null,null,null,null,null,null,null,null,null,null,null,null,null,null,null,null,null,null,null,null,null,null,null,null,11,11001002,"青森管理部　工務課　　　　　　"]
[null,null,null,null,null,null,null,null,null,null,null,null,null,null,null,null,null,null,null,null,null,null,null,null,null,11,11002000,"青森　むつ事務所　　　　　　　"]
[null,null,null,null,null,null,null,null,null,null,null,null,null,null,null,null,null,null,null,null,null,null,null,null,null,11,11002001,"青森むつ事　施設管理課　　　　"]
[null,null,null,null,null,null,null,null,null,null,null,null,null,null,null,null,null,null,null,null,null,null,null,null,null,11,11002003,"青森むつ事　ＡＭＳ管理課　　　"]
[null,null,null,null,null,null,null,null,null,null,null,null,null,null,null,null,null,null,null,null,null,null,null,null,null,11,11002004,"青森むつ事　保安管理課　　　　"]
[null,null,null,null,null,null,null,null,null,null,null,null,null,null,null,null,null,null,null,null,null,null,null,null,null,11,11016000,"青森　再処理センター　技術部　"]
[null,null,null,null,null,null,null,null,null,null,null,null,null,null,null,null,null,null,null,null,null,null,null,null,null,11,11021001,"青森　サイクル協力室　　　　　"]
[null,null,null,null,null,null,null,null,null,null,null,null,null,null,null,null,null,null,null,null,null,null,null,null,null,11,11032000,"青森　原子力基礎工学研究センタ"]
[null,null,null,null,null,null,null,null,null,null,null,null,null,null,null,null,null,null,null,null,null,null,null,null,null,11,11032022,"青森原基　環境・放射線科学Ｕ　"]
[null,null,null,null,null,null,null,null,null,null,null,null,null,null,null,null,null,null,null,null,null,null,null,null,null,11,11032023,"青森原基　環境動態研究Ｇ　　　"]
[null,null,null,null,null,null,null,null,null,null,null,null,null,null,null,null,null,null,null,null,null,null,null,null,null,11,11034000,"青森　核融合研究開発部門　　　"]
[null,null,null,null,null,null,null,null,null,null,null,null,null,null,null,null,null,null,null,null,null,null,null,null,null,11,11034001,"青森核融　企画調整室　　　　　"]
[null,null,null,null,null,null,null,null,null,null,null,null,null,null,null,null,null,null,null,null,null,null,null,null,null,11,11034003,"青森核融　先進プラズマ研究部　"]
[null,null,null,null,null,null,null,null,null,null,null,null,null,null,null,null,null,null,null,null,null,null,null,null,null,11,11034008,"青森核融　プラズマ理論Ｇ　　　"]
[null,null,null,null,null,null,null,null,null,null,null,null,null,null,null,null,null,null,null,null,null,null,null,null,null,11,11034009,"青森核融　核融合炉システムＧ　"]
[null,null,null,null,null,null,null,null,null,null,null,null,null,null,null,null,null,null,null,null,null,null,null,null,null,11,11034015,"青森核融ブランケット研究開発部"]
[null,null,null,null,null,null,null,null,null,null,null,null,null,null,null,null,null,null,null,null,null,null,null,null,null,11,11034019,"青森核融　トリチウム工学研究Ｇ"]
[null,null,null,null,null,null,null,null,null,null,null,null,null,null,null,null,null,null,null,null,null,null,null,null,null,11,11034022,"青森核融　増殖機能材料開発Ｇ　"]
[null,null,null,null,null,null,null,null,null,null,null,null,null,null,null,null,null,null,null,null,null,null,null,null,null,11,11034033,"青森核融　核融合炉構造材料Ｇ　"]
[null,null,null,null,null,null,null,null,null,null,null,null,null,null,null,null,null,null,null,null,null,null,null,null,null,11,11034039,"青森核融　核融合炉システム部　"]
[null,null,null,null,null,null,null,null,null,null,null,null,null,null,null,null,null,null,null,null,null,null,null,null,null,11,11034040,"青森核融　業務推進Ｇ（廃　　　"]
[null,null,null,null,null,null,null,null,null,null,null,null,null,null,null,null,null,null,null,null,null,null,null,null,null,11,11034041,"青森核融　ＢＡ計画調整Ｇ　　　"]
[null,null,null,null,null,null,null,null,null,null,null,null,null,null,null,null,null,null,null,null,null,null,null,null,null,11,11034042,"青森核融　ＩＦＭＩＦ加速器Ｇ　"]
[null,null,null,null,null,null,null,null,null,null,null,null,null,null,null,null,null,null,null,null,null,null,null,null,null,11,11034043,"青森核融　ＩＦＭＩＦ照射Ｇ　　"]
[null,null,null,null,null,null,null,null,null,null,null,null,null,null,null,null,null,null,null,null,null,null,null,null,null,11,11034048,"青森核融　核融合炉材料研究部　"]
[null,null,null,null,null,null,null,null,null,null,null,null,null,null,null,null,null,null,null,null,null,null,null,null,null,11,11036000,"青森　核燃料サイクル部門（廃　"]
[null,null,null,null,null,null,null,null,null,null,null,null,null,null,null,null,null,null,null,null,null,null,null,null,null,11,11036006,"青森核燃　サイクル技術Ｇ（廃　"]
[null,null,null,null,null,null,null,null,null,null,null,null,null,null,null,null,null,null,null,null,null,null,null,null,null,11,11055000,"青森　原子力人材育成センター　"]
[null,null,null,null,null,null,null,null,null,null,null,null,null,null,null,null,null,null,null,null,null,null,null,null,null,11,11055001,"青森育セ　原子力人材育成推進課"]

{"sheet":"課室","index":9,"n_rows":1148,"n_cols":7,"rows_kept":1148,"cut":false,"hidden":false,"merged":[]}
["拠点コード","組織コード","課室名",{"$f":"IF(ISNA(入力シート!AA54)=\"\",\"\",入力シート!AA54)","v":0},null,"拠点コード","拠点名"]
[1,1000000,"（本　　　部）   ",null,null,6,"東海駐在"]
[1,1024000,"もんじゅ安全・改革本部 ",null,null,3,"東海管理センター"]
[1,1024001,"もんじゅ安全・改革本部 もんじゅ安全・改革室",null,null,4,"原子力科学研究所"]
[1,1022001,"原子力機構改革室 ",null,null,5,"核燃料サイクル工学研究所"]
[1,1045000,"戦略企画室 ",null,null,7,"大洗研究開発センター"]
[1,1045001,"戦略企画室 秘書課",null,null,8,"敦賀本部"]
[1,1045002,"戦略企画室 廃炉国際共同研究センター準備Gr",null,null,9,"那珂核融合研究所"]
[1,1009000,"安全・核セキュリティ統括部 ",null,null,10,"高崎量子応用研究所"]
[1,1009007,"安全・核セキュリティ統括部 安全・核セキュリティ推進室",null,null,11,"関西光科学研究所"]
[1,1009001,"安全・核セキュリティ統括部 安全・環境課",null,null,12,"幌延深地層研究センター"]
[1,1009003,"安全・核セキュリティ統括部 品質保証課",null,null,13,"東濃地科学センター"]
[1,1009006,"安全・核セキュリティ統括部 核セキュリティ・保障措置課",null,null,14,"人形峠環境技術センター"]
[1,1009002,"安全・核セキュリティ統括部 危機管理課",null,null,15,"青森研究開発センター"]
[1,1004000,"法務監査部 ",null,null,1,"本部"]
[1,1004001,"法務監査部 法務リスク管理課",null,null,2,"東京駐在"]
[1,1004002,"法務監査部 監査課"]
[1,1004003,"法務監査部 原子力安全監査課"]
[1,1001000,"事業計画統括部 "]
[1,1001002,"事業計画統括部 評価室"]
[1,1002000,"総務部 "]
[1,1002001,"総務部 総務課"]
[1,1002002,"総務部 文書課"]
[1,1005000,"人事部 "]
[1,1005001,"人事部 人事課"]
[1,1005002,"人事部 給与課"]
[1,1005004,"人事部 職員課"]
[1,1007000,"財務部 "]
[1,1007001,"財務部 財務課"]
[1,1007002,"財務部 経理課"]
[1,1007003,"財務部 資金課"]
[1,1007004,"財務部 管財課"]
[1,1008000,"契約部 "]
[1,1008001,"契約部 契約調整課"]
[1,1008002,"契約部 契約第１課"]
[1,1008003,"契約部 契約第２課"]
[1,1008004,"契約部 契約第３課"]
[1,1008006,"契約部 契約第４課"]
[1,1008005,"契約部 審査課"]
[1,1010000,"広報部 "]
[1,1010001,"広報部 広報課"]
[1,1010002,"広報部 報道課"]
[1,1010003,"広報部 情報公開課"]
[1,1074000,"移管統合準備室 "]
[1,1011000,"研究連携成果展開部 "]
[1,1011006,"研究連携成果展開部 連携展開推進室"]
[1,1011002,"研究連携成果展開部 連携協力課"]
[1,1011004,"研究連携成果展開部 知的財産管理・利用促進課"]
[1,1011007,"研究連携成果展開部 研究成果管理課"]
[1,1011008,"研究連携成果展開部 科学技術情報課"]
[1,1012000,"国際室 "]
[1,1012003,"国際室 ワシントン事務所"]
[1,1012004,"国際室 パリ事務所"]
[1,1012005,"国際室 ウィーン事務所"]
[1,1013000,"建設部 "]
[1,1013001,"建設部 業務課"]
[1,1013002,"建設部 施設技術課"]
[1,1013003,"建設部 建設課"]
[1,1013004,"建設部 設備課"]
[1,1013007,"建設部 耐震対応整備室"]
[1,1013005,"建設部 大洗大型施設建設室"]
[1,1015000,"システム計算科学センター "]
[1,1015007,"システム計算科学センター 情報システム企画室"]
[1,1015002,"システム計算科学センター 情報システム利用推進室"]
[1,1015003,"システム計算科学センター 情報システム管理室"]
[1,1015004,"システム計算科学センター OAシステム室"]
[1,1015005,"システム計算科学センター 高度計算機技術開発室"]
[1,1015006,"システム計算科学センター シミュレーション技術開発室"]
[1,1017000,"原子力人材育成センター "]
[1,1017001,"原子力人材育成センター 原子力人材育成推進課"]
[1,1017002,"原子力人材育成センター 原子力研修課"]
[1,1017003,"原子力人材育成センター 国際原子力人材育成課"]
[1,1043000,"核不拡散・核セキュリティ総合支援センター "]
[1,1043001,"核不拡散・核セキュリティ総合支援センター 計画管理室"]
[1,1043002,"核不拡散・核セキュリティ総合支援センター 能力構築国際支援室"]
[1,1043003,"核不拡散・核セキュリティ総合支援センター 政策調査室"]
[1,1043004,"核不拡散・核セキュリティ総合支援センター 技術開発推進室"]
[1,1043005,"核不拡散・核セキュリティ総合支援センター 輸送・研究炉燃料支援室"]
[1,1044000,"福島研究開発部門  "]
[1,1044001,"福島研究開発部門  企画調整室"]
[1,1050000,"福島事業管理部 "]
[1,1050001,"福島事業管理部 　総務課"]
[1,1050002,"福島事業管理部 　経理管理課"]
[1,1052000,"福島廃炉技術安全研究所  "]
[1,1052001,"福島廃炉技術安全研究所 研究計画部 "]
[1,1052002,"福島廃炉技術安全研究所 研究計画部 研究計画課"]
[1,1052003,"福島廃炉技術安全研究所 研究計画部 アクティブ試験施設課"]
[1,1052004,"福島廃炉技術安全研究所 研究計画部 モックアップ試験施設課"]
[1,1052007,"福島廃炉技術安全研究所 研究計画部 工務課"]
[1,1052005,"福島廃炉技術安全研究所 福島現地調査事務所 "]
[1,1052006,"福島廃炉技術安全研究所 保安管理課 "]
[1,1053000,"福島廃止措置技術開発センター  "]
[1,1053001,"福島廃止措置技術開発センター  研究推進室"]
[1,1053002,"福島廃止措置技術開発センター  燃料デブリ取扱技術開発Gr"]
[1,1053003,"福島廃止措置技術開発センター  廃棄物処理・処分技術開発Gr"]
[1,1053004,"福島廃止措置技術開発センター  基盤技術開発Gr"]
[1,1053005,"福島廃止措置技術開発センター  燃料溶融複雑系試験準備室"]
[1,1051000,"福島環境安全センター  "]
[1,1051001,"福島環境安全センター  計画管理室"]
[1,1051002,"福島環境安全センター  放射線計測技術Gr"]
[1,1051003,"福島環境安全センター  環境回復推進Gr"]
[1,1051004,"福島環境安全センター  環境動態研究Gr"]
[1,1030000,"安全研究センター  "]
[1,1030001,"安全研究センター  研究計画調整室"]
[1,1030014,"安全研究センター  規制情報分析室"]
[1,1030002,"安全研究センター 原子炉安全研究U "]
[1,1030003,"安全研究センター 原子炉安全研究U 熱水力安全研究Gr"]
[1,1030004,"安全研究センター 原子炉安全研究U 燃料安全研究Gr"]
[1,1030010,"安全研究センター 材料・構造安全研究U "]
[1,1030005,"安全研究センター 材料・構造安全研究U 構造健全性評価研究Gr"]
[1,1030011,"安全研究センター 材料・構造安全研究U 材料・水化学研究Gr"]
[1,1030015,"安全研究センター リスク評価研究U "]
[1,1030016,"安全研究センター リスク評価研究U シビアアクシデント評価研究Gr"]
[1,1030018,"安全研究センター リスク評価研究U 放射線安全・防災研究Gr"]
[1,1030006,"安全研究センター 燃料サイクル安全研究U "]
[1,1030008,"安全研究センター 燃料サイクル安全研究U サイクル安全研究Gr"]
[1,1030019,"安全研究センター 燃料サイクル安全研究U 臨界安全研究Gr"]
[1,1030020,"安全研究センター 環境安全研究U "]
[1,1030009,"安全研究センター 環境安全研究U 廃棄物安全研究Gr"]
[1,1030017,"安全研究センター 環境安全研究U 環境影響評価研究Gr"]
[1,1018000,"原子力緊急時支援・研修センター "]
[1,1018001,"原子力緊急時支援・研修センター 企画管理課"]
[1,1018002,"原子力緊急時支援・研修センター 調査研究課"]
[1,1018003,"原子力緊急時支援・研修センター 原子力防災研修課"]
[1,1031000,"先端基礎研究センター "]
[1,1031001,"先端基礎研究センター 研究推進室"]
[1,1031004,"先端基礎研究センター 量子物性理論研究Gr"]
[1,1031006,"先端基礎研究センター 分子スピントロニクス研究Gr"]
[1,1031011,"先端基礎研究センター 力学的物質・スピン制御研究Gr"]
[1,1031002,"先端基礎研究センター 重原子核反応フロンティア研究Gr"]
[1,1031003,"先端基礎研究センター 超重元素研究Gr"]
[1,1031012,"先端基礎研究センター アクチノイド物質開発研究Gr"]
[1,1031013,"先端基礎研究センター 重元素系固体物理研究Gr"]
[1,1031014,"先端基礎研究センター ハドロン物理研究Gr"]
[1,1031009,"先端基礎研究センター バイオアクチノイド化学研究Gr"]
[1,1031010,"先端基礎研究センター 放射場生体分子科学研究Gr"]
[1,1031007,"先端基礎研究センター スピン偏極陽電子ビーム研究Gr"]
[1,1032000,"原子力基礎工学研究センター  "]
[1,1032001,"原子力基礎工学研究センター  研究推進室"]
[1,1032002,"原子力基礎工学研究センター 核工学・炉工学U "]
[1,1032007,"原子力基礎工学研究センター 核工学・炉工学U 核データ研究Gr"]
[1,1032033,"原子力基礎工学研究センター 核工学・炉工学U 炉物理標準コード研究Gr"]
[1,1032004,"原子力基礎工学研究センター 核工学・炉工学U 熱流動研究Gr"]
[1,1032031,"原子力基礎工学研究センター 核工学・炉工学U 原子力センシング研究Gr"]
[1,1032014,"原子力基礎工学研究センター 燃料・材料工学U "]
[1,1032019,"原子力基礎工学研究センター 燃料・材料工学U 防食材料技術開発Gr"]
[1,1032020,"原子力基礎工学研究センター 燃料・材料工学U 照射材料工学研究Gr"]
[1,1032034,"原子力基礎工学研究センター 燃料・材料工学U 燃料高温科学研究Gr"]
[1,1032040,"原子力基礎工学研究センター 原子力化学U "]
[1,1032028,"原子力基礎工学研究センター 原子力化学U 環境化学研究Gr"]
[1,1032024,"原子力基礎工学研究センター 原子力化学U 放射化学研究Gr"]
[1,1032041,"原子力基礎工学研究センター 原子力化学U 分析化学研究Gr"]
[1,1032022,"原子力基礎工学研究センター 環境・放射線科学U "]
[1,1032023,"原子力基礎工学研究センター 環境・放射線科学U 環境動態研究Gr"]
[1,1032026,"原子力基礎工学研究センター 環境・放射線科学U 放射線影響解析研究Gr"]
[1,1032027,"原子力基礎工学研究センター 環境・放射線科学U 放射線防護研究Gr"]
[1,1032042,"原子力基礎工学研究センター 福島基盤技術U "]
[1,1032043,"原子力基礎工学研究センター 福島基盤技術U 燃料デブリ解析研究Gr"]
[1,1032047,"原子力基礎工学研究センター 分離変換技術開発U "]
[1,1032016,"原子力基礎工学研究センター 分離変換技術開発U 分離変換サイクル開発Gr"]
[1,1032005,"原子力基礎工学研究センター 分離変換技術開発U 核変換システム開発Gr"]
[1,1020000,"原子力エネルギー基盤連携センター  "]
[1,1020001,"原子力エネルギー基盤連携センター  次世代再処理材料開発特別Gr"]
[1,1020002,"原子力エネルギー基盤連携センター  軽水炉熱流動技術開発特別Gr"]
[1,1020004,"原子力エネルギー基盤連携センター  黒鉛・炭素材料挙動評価特別Gr"]
[1,1020005,"原子力エネルギー基盤連携センター  ガラス固化技術特別Gr"]
[1,1020006,"原子力エネルギー基盤連携センター  高温ガス炉要素技術開発特別Gr"]
[1,1020008,"原子力エネルギー基盤連携センター  加速器中性子利用ＲＩ生成技術開発特別Gr"]
[1,1020009,"原子力エネルギー基盤連携センター  材料溶融挙動評価特別Gr"]
[1,1020010,"原子力エネルギー基盤連携センター  水素安全技術高度化特別Gr"]
[1,1033000,"量子ビーム応用研究センター  "]
[1,1033001,"量子ビーム応用研究センター  研究推進室"]
[1,1033002,"量子ビーム応用研究センター 量子ビーム機能性分子解析技術研究U "]
[1,1033003,"量子ビーム応用研究センター 量子ビーム機能性分子解析技術研究U 分子構造・機能研究Gr"]
[1,1033004,"量子ビーム応用研究センター 量子ビーム機能性分子解析技術研究U 分子シミュレーション研究Gr"]
[1,1033005,"量子ビーム応用研究センター 量子ビーム機能性分子解析技術研究U 分子ダイナミクス研究Gr"]
[1,1033006,"量子ビーム応用研究センター 量子ビーム材料評価・構造制御技術研究U "]
[1,1033007,"量子ビーム応用研究センター 量子ビーム材料評価・構造制御技術研究U 多重自由度相関研究Gr"]
[1,1033008,"量子ビーム応用研究センター 量子ビーム材料評価・構造制御技術研究U ナノ構造制御研究Gr"]
[1,1033062,"量子ビーム応用研究センター 量子ビーム材料評価・構造制御技術研究U 強相関超分子研究Gr"]
[1,1033011,"量子ビーム応用研究センター 量子ビーム材料評価・構造制御技術研究U 中性子イメージング・分析研究Gr"]
[1,1033012,"量子ビーム応用研究センター 量子ビーム材料評価・構造制御技術研究U 弾塑性材料評価研究Gr"]
[1,1033023,"量子ビーム応用研究センター 医療・バイオ応用量子ビーム技術研究U "]
[1,1033024,"量子ビーム応用研究センター 医療・バイオ応用量子ビーム技術研究U イオンビーム変異誘発研究Gr"]
[1,1033025,"量子ビーム応用研究センター 医療・バイオ応用量子ビーム技術研究U マイクロビーム細胞照射研究Gr"]
[1,1033026,"量子ビーム応用研究センター 医療・バイオ応用量子ビーム技術研究U ＲＩ医療応用研究Gr"]
[1,1033063,"量子ビーム応用研究センター 医療・バイオ応用量子ビーム技術研究U ＲＩイメージング研究Gr"]
[1,1033064,"量子ビーム応用研究センター 医療・バイオ応用量子ビーム技術研究U 照射細胞解析研究Gr"]
[1,1033027,"量子ビーム応用研究センター 環境・産業応用量子ビーム技術研究U "]
[1,1033028,"量子ビーム応用研究センター 環境・産業応用量子ビーム技術研究U 高性能高分子材料研究Gr"]
[1,1033029,"量子ビーム応用研究センター 環境・産業応用量子ビーム技術研究U 機能性セラミック材料研究Gr"]
[1,1033030,"量子ビーム応用研究センター 環境・産業応用量子ビーム技術研究U 半導体耐放射線性研究Gr"]
[1,1033031,"量子ビーム応用研究センター 環境・産業応用量子ビーム技術研究U 環境機能高分子材料研究Gr"]
[1,1033032,"量子ビーム応用研究センター 環境・産業応用量子ビーム技術研究U 環境材料プロセシング研究Gr"]
[1,1033033,"量子ビーム応用研究センター 先進ビーム技術研究U "]
[1,1033036,"量子ビーム応用研究センター 先進ビーム技術研究U レーザー駆動粒子線研究Gr"]
[1,1033037,"量子ビーム応用研究センター 先進ビーム技術研究U レーザー電子加速研究Gr"]
[1,1033034,"量子ビーム応用研究センター 先進ビーム技術研究U Ｘ線レーザー応用研究Gr"]
[1,1033070,"量子ビーム応用研究センター 先進ビーム技術研究U 高出力レーザー研究Gr"]
[1,1033065,"量子ビーム応用研究センター レーザー応用技術研究U "]
[1,1033035,"量子ビーム応用研究センター レーザー応用技術研究U 高強度場物質制御研究Gr"]
[1,1033066,"量子ビーム応用研究センター レーザー応用技術研究U レーザー量子制御研究Gr"]
[1,1033060,"量子ビーム応用研究センター レーザー応用技術研究U 光量子融合研究Gr"]
[1,1033043,"量子ビーム応用研究センター レーザー応用技術研究U ガンマ線核種分析研究Gr"]
[1,1033059,"量子ビーム応用研究センター レーザー応用技術研究U 次世代レーザー開発研究Gr"]
[1,1033044,"量子ビーム応用研究センター 量子ビーム物性制御・解析技術研究U "]
[1,1033048,"量子ビーム応用研究センター 量子ビーム物性制御・解析技術研究U 高密度物質研究Gr"]
[1,1033046,"量子ビーム応用研究センター 量子ビーム物性制御・解析技術研究U 量子構造研究Gr"]
[1,1033051,"量子ビーム応用研究センター 量子ビーム物性制御・解析技術研究U 電子構造研究Gr"]
[1,1033052,"量子ビーム応用研究センター 量子ビーム物性制御・解析技術研究U 量子シミュレーション研究Gr"]
[1,1033067,"量子ビーム応用研究センター 量子ビーム物性制御・解析技術研究U コヒーレントＸ線利用研究Gr"]
[1,1033068,"量子ビーム応用研究センター 量子ビーム反応制御・解析技術研究U "]
[1,1033049,"量子ビーム応用研究センター 量子ビーム反応制御・解析技術研究U アクチノイド錯体化学研究Gr"]
[1,1033047,"量子ビーム応用研究センター 量子ビーム反応制御・解析技術研究U 量子ダイナミクス研究Gr"]
[1,1033050,"量子ビーム応用研究センター 量子ビーム反応制御・解析技術研究U 表面反応ダイナミクス研究Gr"]
[1,1042000,"原子力水素・熱利用研究センター  "]
[1,1042001,"原子力水素・熱利用研究センター  研究推進室"]
[1,1042002,"小型高温ガス炉研究開発U "]
[1,1042003,"小型高温ガス炉研究開発U 原子炉設計Gr"]
[1,1042004,"小型高温ガス炉研究開発U 国際共同試験Gr"]
[1,1042008,"小型高温ガス炉研究開発U 安全設計Gr"]
[1,1042005,"水素利用研究開発U "]
[1,1042006,"水素利用研究開発U ＩＳプロセス信頼性確証試験Gr"]
[1,1042007,"水素利用研究開発U 熱利用システム設計Gr"]
[1,1035000,"次世代高速炉サイクル研究開発センター  "]
[1,1035001,"次世代高速炉サイクル研究開発センター  プロジェクト推進室"]
[1,1035040,"次世代高速炉サイクル研究開発センター  設計・規格基準室"]
[1,1035043,"高速炉計算工学技術開発部 "]
[1,1035014,"高速炉計算工学技術開発部 システム統合Gr"]
[1,1035052,"高速炉計算工学技術開発部 システム安全解析Gr"]
[1,1035053,"高速炉計算工学技術開発部 炉心挙動解析Gr"]
[1,1035054,"高速炉計算工学技術開発部 流動・系統解析Gr"]
[1,1035011,"高速炉安全技術開発部 "]
[1,1035018,"高速炉安全技術開発部 構造・材料信頼性評価技術開発Gr"]
[1,1035051,"高速炉安全技術開発部 炉心安全評価技術開発Gr"]
[1,1035033,"燃料サイクル技術開発部 "]
[1,1035049,"燃料サイクル技術開発部 燃料材料開発Gr"]
[1,1035022,"燃料サイクル技術開発部 燃料技術開発Gr"]
[1,1035023,"燃料サイクル技術開発部 再処理技術開発Gr"]
[1,1038000,"バックエンド研究開発部門  "]
[1,1038001,"バックエンド研究開発部門  企画調整室"]
[1,1040000,"廃棄物対策・埋設事業統括部 "]
[1,1040001,"廃棄物対策・埋設事業統括部 事業・立地推進課"]
[1,1040004,"廃棄物対策・埋設事業統括部 廃止措置計画課"]
[1,1040005,"廃棄物対策・埋設事業統括部 廃棄物処理計画課"]
[1,1040006,"廃棄物対策・埋設事業統括部 廃棄物処分計画課"]
[1,1040003,"廃棄物対策・埋設事業統括部 設計技術課"]
[1,1037000,"地層処分研究開発推進部 "]
[1,1037001,"地層処分研究開発推進部 処分システム研究計画推進課"]
[1,1037017,"地層処分研究開発推進部 地質環境研究統合課"]
[1,1037010,"深地層研究部 "]
[1,1037018,"深地層研究部 研究計画調整Gr"]
[1,1037011,"深地層研究部 堆積岩処分技術開発Gr"]
[1,1037012,"深地層研究部 堆積岩地質環境研究Gr"]
[1,1037013,"地層科学研究部 "]
[1,1037014,"地層科学研究部 結晶質岩工学技術開発Gr"]
[1,1037015,"地層科学研究部 結晶質岩地質環境研究Gr"]
[1,1037016,"地層科学研究部 ネオテクトニクス研究Gr"]
[1,1034000,"核融合研究開発部門  "]
[1,1034001,"核融合研究開発部門  企画調整室"]
[1,1034002,"ITERプロジェクト部 "]
[1,1034027,"ITERプロジェクト部 ITER計画管理Gr"]
[1,1034028,"ITERプロジェクト部 ITER統合支援Gr"]
[1,1034029,"ITERプロジェクト部 ITERトカマク本体開発Gr"]
[1,1034045,"ITERプロジェクト部 超伝導コイル開発Gr"]
[1,1034046,"ITERプロジェクト部 超伝導導体開発Gr"]
[1,1034047,"ITERプロジェクト部 超伝導コイル試験Gr"]
[1,1034035,"ITERプロジェクト部 計測開発Gr"]
[1,1034013,"ITERプロジェクト部 RF加熱開発Gr"]
[1,1034014,"ITERプロジェクト部 NB加熱開発Gr"]
[1,1034010,"トカマクシステム技術開発部 "]
[1,1034043,"トカマクシステム技術開発部 JT-60システム統合Gr"]
[1,1034036,"トカマクシステム技術開発部 JT-60マグネットシステム開発Gr"]
[1,1034012,"トカマクシステム技術開発部 JT-60本体開発Gr"]
[1,1034011,"トカマクシステム技術開発部 JT-60電源・制御開発Gr"]
[1,1034038,"トカマクシステム技術開発部 JT-60安全評価Gr"]
[1,1034003,"先進プラズマ研究部 "]
[1,1034032,"先進プラズマ研究部 先進プラズマ計画調整Gr"]
[1,1034005,"先進プラズマ研究部 先進プラズマモデリングGr"]
[1,1034006,"先進プラズマ研究部 先進プラズマ実験Gr"]
[1,1034039,"核融合炉システム研究開発部 "]
[1,1034041,"核融合炉システム研究開発部 BA計画調整Gr"]
[1,1034008,"核融合炉システム研究開発部 プラズマ理論シミュレーションGr"]
[1,1034009,"核融合炉システム研究開発部 核融合炉システム研究Gr"]
[1,1034048,"核融合炉材料研究開発部 "]
[1,1034042,"核融合炉材料研究開発部 IFMIF加速器施設開発Gr"]
[1,1034044,"核融合炉材料研究開発部 IFMIF照射・試験施設開発Gr"]
[1,1034033,"核融合炉材料研究開発部 核融合炉構造材料開発Gr"]
[1,1034020,"核融合炉材料研究開発部 核融合中性子工学研究Gr"]
[1,1034015,"ブランケット研究開発部 "]
[1,1034016,"ブランケット研究開発部 ブランケット工学研究Gr"]
[1,1034019,"ブランケット研究開発部 トリチウム工学研究Gr"]
[1,1034022,"ブランケット研究開発部 増殖機能材料開発Gr"]
[1,1100000,"役員室  "]
[2,1093001,"大洗研究開発センター 計画管理室 "]
[2,1078000,"大洗研究開発センター 安全管理部 "]
[2,1068000,"大洗研究開発センター 安全管理部 危機管理課"]
[2,1079000,"大洗研究開発センター 管理部 "]
[2,1083000,"大洗) 福島燃料材料試験部 "]
[2,1083001,"大洗) 福島燃料材料試験部 集合体試験課 "]
[2,1065000,"原子力科学研究所 保安管理部 "]
[2,1084000,"原子力科学研究所 放射線管理部 "]
[2,1084003,"原子力科学研究所 放射線管理部 放射線管理第１課"]
[2,1084004,"原子力科学研究所 放射線管理部 放射線管理第２課"]
[2,1087000,"Ｊ－ＰＡＲＣセンター "]
[2,1087009,"Ｊ－ＰＡＲＣセンター 中性子源セクション"]
[2,1087010,"Ｊ－ＰＡＲＣセンター 中性子利用セクション"]
[2,1087014,"Ｊ－ＰＡＲＣセンター 核変換セクション"]
[2,1091004,"大洗) 高温工学試験研究炉部 HTTR運転管理課 "]
[2,1085000,"原子力科学研究所 バックエンド技術部 "]
[2,1085005,"原子力科学研究所 バックエンド技術部 高減容処理技術課"]
[2,1046000,"核サ研 環境技術開発センター  "]
[2,1047000,"基盤技術研究開発部 "]
[2,1047001,"基盤技術研究開発部 システム性能研究Gr"]
[2,1047002,"基盤技術研究開発部 ニアフィールド研究Gr"]
[2,1047003,"基盤技術研究開発部 核種移行研究Gr"]
[2,1047004,"基盤技術研究開発部 廃棄物処理技術Gr"]
[2,1089000,"大洗研究開発センター 環境保全部 "]
[2,1089001,"大洗研究開発センター 環境保全部 環境計画課 "]
[3,2000000,"（東海拠点）   "]
[3,2001000,"東海管理センター "]
[3,2001001,"東海管理センター 総務第１課"]
[3,2001008,"東海管理センター 総務第２課"]
[3,2001003,"東海管理センター 経理課"]
[3,2001004,"東海管理センター 管財課"]
[3,2001007,"東海管理センター 労務課"]
[4,2002000,"原科研地区   "]
[4,2007000,"福島技術開発試験部 "]
[4,2007001,"福島技術開発試験部 業務課"]
[4,2007006,"福島技術開発試験部 ホット使用施設管理課"]
[4,2007003,"福島技術開発試験部 実用燃料試験課"]
[4,2007004,"福島技術開発試験部 ホット材料試験課"]
[4,2007005,"福島技術開発試験部 未照射燃料管理課"]
[4,2007007,"福島技術開発試験部 臨界技術第１課"]
[4,2007008,"福島技術開発試験部 臨界技術第２課"]
[4,2007009,"福島技術開発試験部 BECKY技術課"]
[4,2007010,"福島技術開発試験部 分析技術課"]
[4,2007011,"福島技術開発試験部 流動試験技術課"]
[4,2044000,"安全研究・防災支援部門  "]
[4,2044001,"安全研究・防災支援部門 企画調整室 "]
[4,2044002,"安全研究・防災支援部門 核不拡散・核セキュリティ規制支援室 "]
[4,2045000,"原子力科学研究部門  "]
[4,2045001,"企画調整室 "]
[4,2004000,"保安管理部 "]
[4,2004001,"保安管理部 業務課"]
[4,2004002,"保安管理部 安全対策課"]
[4,2004003,"保安管理部 施設安全課"]
[4,2004004,"保安管理部 危機管理課"]
[4,2004005,"保安管理部 核物質管理課"]
[4,2002001,"計画管理室 "]
[4,2005000,"放射線管理部 "]
[4,2005001,"放射線管理部 業務課"]
[4,2005002,"放射線管理部 線量管理課"]
[4,2005003,"放射線管理部 環境放射線管理課"]
[4,2005004,"放射線管理部 放射線管理第1課"]
[4,2005005,"放射線管理部 放射線管理第2課"]
[4,2005006,"放射線管理部 放射線計測技術課"]
[4,2003000,"工務技術部 "]
[4,2003001,"工務技術部 業務課"]
[4,2003002,"工務技術部 工務第1課"]
[4,2003003,"工務技術部 工務第2課"]
[4,2003005,"工務技術部 施設保全課"]
[4,2003006,"工務技術部 工作技術課"]
[4,2006000,"研究炉加速器管理部 "]
[4,2006001,"研究炉加速器管理部 業務課"]
[4,2006002,"研究炉加速器管理部 JRR-3管理課"]
[4,2006003,"研究炉加速器管理部 JRR-4管理課"]
[4,2006004,"研究炉加速器管理部 NSRR管理課"]
[4,2006005,"研究炉加速器管理部 加速器管理課"]
[4,2006006,"研究炉加速器管理部 研究炉利用課"]
[4,2006007,"研究炉加速器管理部 研究炉技術課"]
[4,2085000,"J-PARCセンター  "]
[4,2085014,"J-PARCセンター  核変換セクション"]
[4,2085015,"J-PARCセンター  低温セクション"]
[4,2085019,"J-PARCセンター  運営推進支援セクション"]
[4,2085023,"J-PARCセンター  情報システムセクション"]
[4,2085024,"J-PARCセンター  広報セクション"]
[4,2085016,"安全ディビジョン "]
[4,2085017,"安全ディビジョン 放射線安全セクション"]
[4,2085018,"安全ディビジョン 一般安全セクション"]
[4,2085001,"加速器ディビジョン "]
[4,2085002,"加速器ディビジョン 加速器第一セクション"]
[4,2085003,"加速器ディビジョン 加速器第二セクション"]
[4,2085004,"加速器ディビジョン 加速器第三セクション"]
[4,2085005,"加速器ディビジョン 加速器第四セクション"]
[4,2085006,"加速器ディビジョン 加速器第五セクション"]
[4,2085007,"加速器ディビジョン 加速器第六セクション"]
[4,2085025,"加速器ディビジョン 加速器第七セクション"]
[4,2085008,"物質・生命科学ディビジョン "]
[4,2085009,"物質・生命科学ディビジョン 中性子源セクション"]
[4,2085010,"物質・生命科学ディビジョン 中性子利用セクション"]
[4,2085011,"物質・生命科学ディビジョン 中性子基盤セクション"]
[4,2085012,"物質・生命科学ディビジョン ミュオンセクション"]
[4,2085026,"物質・生命科学ディビジョン 共通技術開発セクション"]
[4,2085013,"素粒子原子核ディビジョン "]
[4,2085027,"素粒子原子核ディビジョン ニュートリノセクション"]
[4,2085028,"素粒子原子核ディビジョン ハドロンセクション"]
[4,2085020,"業務ディビジョン "]
[4,2085021,"業務ディビジョン 総務セクション"]
[4,2085022,"業務ディビジョン 利用業務セクション"]
[4,2093000,"燃料特別チーム "]
[4,2093001,"燃料特別チーム 計画調整Gr"]
[4,2093002,"燃料特別チーム 容器・輸送Gr"]
[4,2093003,"燃料特別チーム 施設対応Gr"]
[4,2093004,"燃料特別チーム 代替実験・燃料Gr"]
[4,2009000,"バックエンド技術部 "]
[4,2009001,"バックエンド技術部 業務課"]
[4,2009002,"バックエンド技術部 放射性廃棄物管理技術課"]
[4,2009003,"バックエンド技術部 放射性廃棄物管理第1課"]
[4,2009004,"バックエンド技術部 放射性廃棄物管理第2課"]
[4,2009005,"バックエンド技術部 高減容処理技術課"]
[4,2009007,"バックエンド技術部 廃止措置課"]
[5,2039000,"サイクル研地区   "]
[5,2046000,"環境技術開発センター  "]
[5,2013000,"福島技術開発試験部 "]
[5,2013002,"福島技術開発試験部 研究計画課"]
[5,2013004,"福島技術開発試験部 研究開発第1課"]
[5,2013005,"福島技術開発試験部 研究開発第2課"]
[5,2021000,"プルトニウム燃料技術開発センター  "]
[5,2021004,"プルトニウム燃料技術開発センター  プルトニウム燃料施設整備室"]
[5,2021001,"プルトニウム燃料技術開発センター  計画管理課"]
[5,2021002,"プルトニウム燃料技術開発センター  品質保証課"]
[5,2022000,"プルトニウム燃料技術開発センター 技術部 "]
[5,2022001,"プルトニウム燃料技術開発センター 技術部 技術課"]
[5,2022002,"プルトニウム燃料技術開発センター 技術部 核物質管理課"]
[5,2022003,"プルトニウム燃料技術開発センター 技術部 品質管理課"]
[5,2023000,"プルトニウム燃料技術開発センター 燃料技術部 "]
[5,2023001,"プルトニウム燃料技術開発センター 燃料技術部 試験第1課"]
[5,2023005,"プルトニウム燃料技術開発センター 燃料技術部 試験第2課"]
[5,2023002,"プルトニウム燃料技術開発センター 燃料技術部 プロセス設備開発課"]
[5,2023003,"プルトニウム燃料技術開発センター 燃料技術部 燃料技術開発課"]
[5,2023004,"プルトニウム燃料技術開発センター 燃料技術部 設計解析課"]
[5,2010000,"保安管理部 "]
[5,2010001,"保安管理部 安全対策課"]
[5,2010002,"保安管理部 危機管理課"]
[5,2010003,"保安管理部 施設安全課"]
[5,2010004,"保安管理部 核物質防護管理課"]
[5,2011001,"計画管理室 "]
[5,2012000,"放射線管理部 "]
[5,2012001,"放射線管理部 線量計測課"]
[5,2012002,"放射線管理部 環境監視課"]
[5,2012003,"放射線管理部 放射線管理第1課"]
[5,2012004,"放射線管理部 放射線管理第2課"]
[5,2029000,"工務技術部 "]
[5,2029001,"工務技術部 管理課"]
[5,2029002,"工務技術部 運転課"]
[5,2029003,"工務技術部 施設営繕課"]
[5,2029004,"工務技術部 施設建設課"]
[5,2046000,"環境技術開発センター  "]
[5,2046001,"環境技術開発センター  計画管理課"]
[5,2046002,"環境技術開発センター  施設管理課"]
[5,2014000,"環境技術開発センター 廃止措置技術部 "]
[5,2014003,"環境技術開発センター 廃止措置技術部 環境施設計画課"]
[5,2014002,"環境技術開発センター 廃止措置技術部 環境保全課"]
[5,2014005,"環境技術開発センター 廃止措置技術部 廃止措置技術課"]
[5,2047000,"環境技術開発センター 基盤技術研究開発部 "]
[5,2047001,"環境技術開発センター 基盤技術研究開発部 システム性能研究Gr"]
[5,2047002,"環境技術開発センター 基盤技術研究開発部 ニアフィールド研究Gr"]
[5,2047003,"環境技術開発センター 基盤技術研究開発部 核種移行研究Gr"]
[5,2047004,"環境技術開発センター 基盤技術研究開発部 廃棄物処理技術Gr"]
[5,2015000,"再処理技術開発センター  "]
[5,2016000,"再処理技術開発センター 技術部 "]
[5,2016005,"再処理技術開発センター 技術部 計画管理課"]
[5,2016001,"再処理技術開発センター 技術部 技術開発課"]
[5,2016006,"再処理技術開発センター 技術部 品質保証課"]
[5,2016007,"再処理技術開発センター 技術部 核物質管理課"]
[5,2026000,"再処理技術開発センター ガラス固化技術開発部 "]
[5,2026001,"再処理技術開発センター ガラス固化技術開発部 ガラス固化管理課"]
[5,2026002,"再処理技術開発センター ガラス固化技術開発部 ガラス固化技術課"]
[5,2026003,"再処理技術開発センター ガラス固化技術開発部 ガラス固化処理課"]
[5,2017000,"再処理技術開発センター 処理部 "]
[5,2017001,"再処理技術開発センター 処理部 前処理課"]
[5,2017002,"再処理技術開発センター 処理部 化学処理第1課"]
[5,2017003,"再処理技術開発センター 処理部 化学処理第2課"]
[5,2017004,"再処理技術開発センター 処理部 化学処理第3課"]
[5,2017005,"再処理技術開発センター 処理部 転換技術課"]
[5,2018000,"再処理技術開発センター 施設管理部 "]
[5,2018001,"再処理技術開発センター 施設管理部 施設管理課"]
[5,2018002,"再処理技術開発センター 施設管理部 施設保全第1課"]
[5,2018003,"再処理技術開発センター 施設管理部 施設保全第2課"]
[5,2018004,"再処理技術開発センター 施設管理部 分析第1課"]
[5,2018005,"再処理技術開発センター 施設管理部 分析第2課"]
[5,2019000,"再処理技術開発センター 環境保全部 "]
[5,2019001,"再処理技術開発センター 環境保全部 環境管理課"]
[5,2019002,"再処理技術開発センター 環境保全部 処理第1課"]
[5,2019003,"再処理技術開発センター 環境保全部 処理第2課"]
[5,2021000,"プルトニウム燃料技術開発センター  "]
[5,2024000,"プルトニウム燃料技術開発センター 環境プラント技術部 "]
[5,2024001,"プルトニウム燃料技術開発センター 環境プラント技術部 環境管理課"]
[5,2024002,"プルトニウム燃料技術開発センター 環境プラント技術部 環境技術課"]
[5,2024003,"プルトニウム燃料技術開発センター 環境プラント技術部 廃止措置技術開発課"]
[5,2024004,"プルトニウム燃料技術開発センター 環境プラント技術部 プラント保全課"]
[6,2092000,"安全・核セキュリティ総括部 "]
[6,2092006,"安全・核セキュリティ総括部 核セキュリティ・保障措置課"]
[6,2056000,"事業計画統括部 "]
[6,2056002,"事業計画統括部 評価室"]
[6,2057000,"総務部 "]
[6,2058000,"人事部 "]
[6,2058001,"人事部 人事課"]
[6,2058002,"人事部 給与課"]
[6,2058004,"人事部 職員課"]
[6,2001005,"契約部　契約第4課 "]
[6,2050000,"研究連携成果展開部 "]
[6,2050006,"研究連携成果展開部 連携展開推進室"]
[6,2050002,"研究連携成果展開部 連携協力課"]
[6,2050004,"研究連携成果展開部 知的財産管理・利用促進課"]
[6,2050007,"研究連携成果展開部 研究成果管理課"]
[6,2050008,"研究連携成果展開部 科学技術情報課"]
[6,2050009,"研究連携成果展開部 連携協力課(東大)"]
[6,2074000,"国際室 "]
[6,2051000,"建設部 "]
[6,2051001,"建設部 業務課"]
[6,2051002,"建設部 施設技術課"]
[6,2051003,"建設部 建設課"]
[6,2051004,"建設部 設備課"]
[6,2051007,"建設部 耐震対応整備室"]
[6,2051005,"建設部 大洗大型施設建設室"]
[6,2053000,"システム計算科学センター "]
[6,2053007,"システム計算科学センター 情報システム企画室"]
[6,2053002,"システム計算科学センター 情報システム利用推進室"]
[6,2053003,"システム計算科学センター 情報システム管理室"]
[6,2053004,"システム計算科学センター OAシステム室"]
[6,2053005,"システム計算科学センター 高度計算機技術開発室"]
[6,2053006,"システム計算科学センター シミュレーション技術開発室"]
[6,2055000,"原子力人材育成センター "]
[6,2055001,"原子力人材育成センター 原子力人材育成推進課"]
[6,2055002,"原子力人材育成センター 原子力研修課"]
[6,2055003,"原子力人材育成センター 国際原子力人材育成課"]
[6,2043000,"核不拡散・核セキュリティ総合支援センター "]
[6,2043001,"核不拡散・核セキュリティ総合支援センター 計画管理室"]
[6,2043002,"核不拡散・核セキュリティ総合支援センター 能力構築国際支援室"]
[6,2043003,"核不拡散・核セキュリティ総合支援センター 政策調査室"]
[6,2043004,"核不拡散・核セキュリティ総合支援センター 技術開発推進室"]
[6,2043005,"核不拡散・核セキュリティ総合支援センター 輸送・研究炉燃料支援室"]
[6,2027000,"福島廃止措置技術開発センター "]
[6,2027001,"福島廃止措置技術開発センター 研究推進室"]
[6,2027002,"福島廃止措置技術開発センター 燃料デブリ取扱技術開発Gr"]
[6,2027003,"福島廃止措置技術開発センター 廃棄物処理・処分技術開発Gr"]
[6,2027004,"福島廃止措置技術開発センター 基盤技術開発Gr"]
[6,2030000,"安全研究センター  "]
[6,2030001,"安全研究センター  研究計画調整室"]
[6,2030014,"安全研究センター  規制情報分析室"]
[6,2030002,"安全研究センター 原子炉安全研究U "]
[6,2030003,"安全研究センター 原子炉安全研究U 熱水力安全研究Gr"]
[6,2030004,"安全研究センター 原子炉安全研究U 燃料安全研究Gr"]
[6,2030010,"安全研究センター 材料・構造安全研究U "]
[6,2030005,"安全研究センター 材料・構造安全研究U 構造健全性評価研究Gr"]
[6,2030011,"安全研究センター 材料・構造安全研究U 材料・水化学研究Gr"]
[6,2030015,"安全研究センター リスク評価研究U "]
[6,2030016,"安全研究センター リスク評価研究U シビアアクシデント評価研究Gr"]
[6,2030018,"安全研究センター リスク評価研究U 放射線安全・防災研究Gr"]
[6,2030006,"安全研究センター 燃料サイクル安全研究U "]
[6,2030008,"安全研究センター 燃料サイクル安全研究U サイクル安全研究Gr"]
[6,2030019,"安全研究センター 燃料サイクル安全研究U 臨界安全研究Gr"]
[6,2030020,"安全研究センター 環境安全研究U "]
[6,2030009,"安全研究センター 環境安全研究U 廃棄物安全研究Gr"]
[6,2030017,"安全研究センター 環境安全研究U 環境影響評価研究Gr"]
[6,2031000,"先端基礎研究センター "]
[6,2031001,"先端基礎研究センター 研究推進室"]
[6,2031004,"先端基礎研究センター 量子物性理論研究Gr"]
[6,2031006,"先端基礎研究センター 分子スピントロニクス研究Gr"]
[6,2031011,"先端基礎研究センター 力学的物質・スピン制御研究Gr"]
[6,2031002,"先端基礎研究センター 重原子核反応フロンティア研究Gr"]
[6,2031003,"先端基礎研究センター 超重元素研究Gr"]
[6,2031012,"先端基礎研究センター アクチノイド物質開発研究Gr"]
[6,2031013,"先端基礎研究センター 重元素系固体物理研究Gr"]
[6,2031014,"先端基礎研究センター ハドロン物理研究Gr"]
[6,2031009,"先端基礎研究センター バイオアクチノイド化学研究Gr"]
[6,2031010,"先端基礎研究センター 放射場生体分子科学研究Gr"]
[6,2031007,"先端基礎研究センター スピン偏極陽電子ビーム研究Gr"]
[6,2032000,"原子力基礎工学研究センター  "]
[6,2032001,"原子力基礎工学研究センター  研究推進室"]
[6,2032002,"原子力基礎工学研究センター 核工学・炉工学U "]
[6,2032007,"原子力基礎工学研究センター 核工学・炉工学U 核データ研究Gr"]
[6,2032033,"原子力基礎工学研究センター 核工学・炉工学U 炉物理標準コード研究Gr"]
[6,2032004,"原子力基礎工学研究センター 核工学・炉工学U 熱流動研究Gr"]
[6,2032031,"原子力基礎工学研究センター 核工学・炉工学U 原子力センシング研究Gr"]
[6,2032014,"原子力基礎工学研究センター 燃料・材料工学U "]
[6,2032019,"原子力基礎工学研究センター 燃料・材料工学U 防食材料技術開発Gr"]
[6,2032020,"原子力基礎工学研究センター 燃料・材料工学U 照射材料工学研究Gr"]
[6,2032034,"原子力基礎工学研究センター 燃料・材料工学U 燃料高温科学研究Gr"]
[6,2032040,"原子力基礎工学研究センター 原子力化学U "]
[6,2032028,"原子力基礎工学研究センター 原子力化学U 環境化学研究Gr"]
[6,2032024,"原子力基礎工学研究センター 原子力化学U 放射化学研究Gr"]
[6,2032041,"原子力基礎工学研究センター 原子力化学U 分析化学研究Gr"]
[6,2032022,"原子力基礎工学研究センター 環境・放射線科学U "]
[6,2032023,"原子力基礎工学研究センター 環境・放射線科学U 環境動態研究Gr"]
[6,2032026,"原子力基礎工学研究センター 環境・放射線科学U 放射線影響解析研究Gr"]
[6,2032027,"原子力基礎工学研究センター 環境・放射線科学U 放射線防護研究Gr"]
[6,2032042,"原子力基礎工学研究センター 福島基盤技術U "]
[6,2032043,"原子力基礎工学研究センター 福島基盤技術U 燃料デブリ解析研究Gr"]
[6,2032044,"原子力基礎工学研究センター 福島基盤技術U 炉内状況解析研究Gr"]
[6,2032045,"原子力基礎工学研究センター 福島基盤技術U 機器健全性評価研究Gr"]
[6,2032046,"原子力基礎工学研究センター 福島基盤技術U 水処理材料評価研究Gr"]
[6,2032047,"原子力基礎工学研究センター 分離変換技術開発U "]
[6,2032016,"原子力基礎工学研究センター 分離変換技術開発U 分離変換サイクル開発Gr"]
[6,2032005,"原子力基礎工学研究センター 分離変換技術開発U 核変換システム開発Gr"]
[6,2025000,"原子力エネルギー基盤連携センター  "]
[6,2025001,"原子力エネルギー基盤連携センター  次世代再処理材料開発特別Gr"]
[6,2025002,"原子力エネルギー基盤連携センター  軽水炉熱流動技術開発特別Gr"]
[6,2025004,"原子力エネルギー基盤連携センター  黒鉛・炭素材料挙動評価特別Gr"]
[6,2025005,"原子力エネルギー基盤連携センター  ガラス固化技術特別Gr"]
[6,2025006,"原子力エネルギー基盤連携センター  高温ガス炉要素技術開発特別Gr"]
[6,2025008,"原子力エネルギー基盤連携センター  加速器中性子利用ＲＩ生成技術開発特別Gr"]
[6,2025009,"原子力エネルギー基盤連携センター  材料溶融挙動評価特別Gr"]
[6,2025010,"原子力エネルギー基盤連携センター  水素安全技術高度化特別Gr"]
[6,2033000,"量子ビーム応用研究センター  "]
[6,2033001,"量子ビーム応用研究センター  研究推進室"]
[6,2033002,"量子ビーム応用研究センター 量子ビーム機能性分子解析技術研究U "]
[6,2033003,"量子ビーム応用研究センター 量子ビーム機能性分子解析技術研究U 分子構造・機能研究Gr"]
[6,2033004,"量子ビーム応用研究センター 量子ビーム機能性分子解析技術研究U 分子シミュレーション研究Gr"]
[6,2033005,"量子ビーム応用研究センター 量子ビーム機能性分子解析技術研究U 分子ダイナミクス研究Gr"]
[6,2033006,"量子ビーム応用研究センター 量子ビーム材料評価・構造制御技術研究U "]
[6,2033007,"量子ビーム応用研究センター 量子ビーム材料評価・構造制御技術研究U 多重自由度相関研究Gr"]
[6,2033008,"量子ビーム応用研究センター 量子ビーム材料評価・構造制御技術研究U ナノ構造制御研究Gr"]
[6,2033062,"量子ビーム応用研究センター 量子ビーム材料評価・構造制御技術研究U 強相関超分子研究Gr"]
[6,2033011,"量子ビーム応用研究センター 量子ビーム材料評価・構造制御技術研究U 中性子イメージング・分析研究Gr"]
[6,2033012,"量子ビーム応用研究センター 量子ビーム材料評価・構造制御技術研究U 弾塑性材料評価研究Gr"]
[6,2033023,"量子ビーム応用研究センター 医療・バイオ応用量子ビーム技術研究U "]
[6,2033026,"量子ビーム応用研究センター 医療・バイオ応用量子ビーム技術研究U ＲＩ医療応用研究Gr"]
[6,2033033,"量子ビーム応用研究センター レーザー応用技術研究U "]
[6,2033066,"量子ビーム応用研究センター レーザー応用技術研究U レーザー量子制御研究Gr"]
[6,2033060,"量子ビーム応用研究センター レーザー応用技術研究U 光量子融合研究Gr"]
[6,2033043,"量子ビーム応用研究センター レーザー応用技術研究U ガンマ線核種分析研究Gr"]
[6,2033044,"量子ビーム応用研究センター 量子ビーム物性制御・解析技術研究U "]
[6,2033048,"量子ビーム応用研究センター 量子ビーム物性制御・解析技術研究U 高密度物質研究Gr"]
[6,2033068,"量子ビーム応用研究センター 量子ビーム反応制御・解析技術研究U "]
[6,2033049,"量子ビーム応用研究センター 量子ビーム反応制御・解析技術研究U アクチノイド錯体化学研究Gr"]
[6,2033050,"量子ビーム応用研究センター 量子ビーム反応制御・解析技術研究U 表面反応ダイナミクス研究Gr"]
[6,2035000,"次世代高速炉サイクル研究開発センター  "]
[6,2035001,"次世代高速炉サイクル研究開発センター  プロジェクト推進室"]
[6,2035040,"次世代高速炉サイクル研究開発センター  設計・規格基準室"]
[6,2035033,"次世代高速炉サイクル研究開発センター 燃料サイクル技術開発部 "]
[6,2035022,"次世代高速炉サイクル研究開発センター 燃料サイクル技術開発部 燃料技術開発Gr"]
[6,2035023,"次世代高速炉サイクル研究開発センター 燃料サイクル技術開発部 再処理技術開発Gr"]
[6,2038000,"バックエンド研究開発部門  "]
[6,2038001,"バックエンド研究開発部門  企画調整室"]
[6,2040000,"廃棄物対策・埋設事業統括部 "]
[6,2040001,"廃棄物対策・埋設事業統括部 事業・立地推進課"]
[6,2040004,"廃棄物対策・埋設事業統括部 廃止措置計画課"]
[6,2040005,"廃棄物対策・埋設事業統括部 廃棄物処理計画課"]
[6,2040006,"廃棄物対策・埋設事業統括部 廃棄物処分計画課"]
[6,2040003,"廃棄物対策・埋設事業統括部 設計技術課"]
[6,2037000,"地層処分研究開発推進部 "]
[6,2037001,"地層処分研究開発推進部 処分システム研究計画推進課"]
[6,2037017,"地層処分研究開発推進部 地質環境研究統合課"]
[6,2037010,"深地層研究部 "]
[6,2037012,"深地層研究部 堆積岩地質環境研究Gr"]
[6,2089001,"人形峠環境技術センター 計画管理室 "]
[6,2034000,"核融合研究開発部門  "]
[6,2034001,"核融合研究開発部門  企画調整室"]
[6,2034010,"トカマクシステム技術開発部 "]
[6,2034012,"トカマクシステム技術開発部 JT-60本体開発Gr"]
[6,2034039,"核融合炉システム研究開発部 "]
[6,2034048,"核融合炉材料研究開発部 "]
[6,2034042,"核融合炉材料研究開発部 IFMIF加速器施設開発Gr"]
[6,2034043,"核融合炉材料研究開発部 IFMIF照射・試験施設開発Gr"]
[6,2034033,"核融合炉材料研究開発部 核融合炉構造材料開発Gr"]
[6,2034020,"核融合炉材料研究開発部 核融合中性子工学研究Gr"]
[6,2034015,"ブランケット研究開発部 "]
[6,2034019,"ブランケット研究開発部 トリチウム工学研究Gr"]
[6,2064000,"役員室 "]
[7,3000000,"（大洗拠点）   "]
[7,3009001,"計画管理室 "]
[7,3001000,"安全管理部 "]
[7,3001001,"安全管理部 安全対策課"]
[7,3001006,"安全管理部 施設安全課"]
[7,3001002,"安全管理部 危機管理課"]
[7,3001007,"安全管理部 核物質管理課"]
[7,3001003,"安全管理部 環境監視線量計測課"]
[7,3001004,"安全管理部 放射線管理第１課"]
[7,3001005,"安全管理部 放射線管理第２課"]
[7,3002000,"管理部 "]
[7,3002001,"管理部 総務・共生課"]
[7,3002003,"管理部 経理課"]
[7,3002004,"管理部 調達課"]
[7,3002005,"管理部 労務課"]
[7,3002006,"管理部 工務課"]
[7,3005000,"福島燃料材料試験部 "]
[7,3005005,"福島燃料材料試験部 燃料技術管理課"]
[7,3005001,"福島燃料材料試験部 集合体試験課"]
[7,3005002,"福島燃料材料試験部 燃料試験課"]
[7,3005003,"福島燃料材料試験部 材料試験課"]
[7,3010000,"照射試験炉センター  "]
[7,3010002,"照射試験炉センター  計画推進課"]
[7,3010003,"照射試験炉センター  照射試験開発課"]
[7,3006000,"材料試験炉部 "]
[7,3006001,"材料試験炉部 業務課"]
[7,3006002,"材料試験炉部 技術課"]
[7,3006003,"材料試験炉部 原子炉第1課"]
[7,3006006,"材料試験炉部 原子炉第2課"]
[7,3006004,"材料試験炉部 照射課"]
[7,3006005,"材料試験炉部 ホットラボ課"]
[7,3007000,"高温工学試験研究炉部 "]
[7,3007001,"高温工学試験研究炉部 業務課"]
[7,3007002,"高温工学試験研究炉部 HTTR計画課"]
[7,3007003,"高温工学試験研究炉部 HTTR技術課"]
[7,3007004,"高温工学試験研究炉部 HTTR運転管理課"]
[7,3003000,"高速炉技術開発部 "]
[7,3003004,"高速炉技術開発部 熱流体技術開発課"]
[7,3003007,"高速炉技術開発部 機械強度試験技術課"]
[7,3003008,"高速炉技術開発部 ナトリウム応用・計測技術開発課"]
[7,3003006,"高速炉技術開発部 機器開発試験技術課"]
[7,3004000,"高速実験炉部 "]
[7,3004001,"高速実験炉部 高速炉技術課"]
[7,3004002,"高速実験炉部 高速炉第1課"]
[7,3004003,"高速実験炉部 高速炉第2課"]
[7,3004004,"高速実験炉部 保全・照射技術開発課"]
[7,3008000,"環境保全部 "]
[7,3008001,"環境保全部 環境計画課"]
[7,3008002,"環境保全部 環境技術課"]
[7,3008003,"環境保全部 廃棄物管理課"]
[7,3008004,"環境保全部 減容処理施設整備室"]
[7,3069000,"事業計画統括部 "]
[7,3058000,"人事部 "]
[7,3058001,"人事部 人事課"]
[7,3058004,"人事部 職員課"]
[7,3050000,"研究連携成果展開部 "]
[7,3050002,"研究連携成果展開部 連携協力課"]
[7,3050004,"研究連携成果展開部 知的財産管理・利用促進課"]
[7,3050008,"研究連携成果展開部 科学技術情報課"]
[7,3061000,"建設部 "]
[7,3061001,"建設部 業務課"]
[7,3061002,"建設部 施設技術課"]
[7,3061003,"建設部 建設課"]
[7,3061004,"建設部 設備課"]
[7,3061005,"建設部 大洗大型施設建設室"]
[7,3053000,"システム計算科学センター "]
[7,3053003,"システム計算科学センター 情報システム管理室"]
[7,3053004,"システム計算科学センター OAシステム室"]
[7,3055000,"原子力人材育成センター "]
[7,3055001,"原子力人材育成センター 原子力人材育成推進課"]
[7,3043000,"核不拡散・核セキュリティ総合支援センター "]
[7,3043005,"核不拡散・核セキュリティ総合支援センター 輸送・研究炉燃料支援室"]
[7,3027000,"福島廃止措置技術開発センター "]
[7,3027003,"福島廃止措置技術開発センター 廃棄物処理・処分技術開発Gr"]
[7,3027004,"福島廃止措置技術開発センター 基盤技術開発Gr"]
[7,3027005,"福島廃止措置技術開発センター 燃料溶融複雑系試験準備室"]
[7,3031000,"先端基礎研究センター "]
[7,3031001,"先端基礎研究センター 研究推進室"]
[7,3032000,"原子力基礎工学研究センター  "]
[7,3032001,"原子力基礎工学研究センター  研究推進室"]
[7,3032002,"原子力基礎工学研究センター 核工学・炉工学U "]
[7,3032014,"原子力基礎工学研究センター 燃料・材料工学U "]
[7,3032020,"原子力基礎工学研究センター 燃料・材料工学U 照射材料工学研究Gr"]
[7,3032034,"原子力基礎工学研究センター 燃料・材料工学U 燃料高温科学研究Gr"]
[7,3032040,"原子力基礎工学研究センター 原子力化学U "]
[7,3032042,"原子力基礎工学研究センター 福島基盤技術U "]
[7,3032048,"原子力基礎工学研究センター 福島基盤技術U 炉心溶融影響解析研究Gr"]
[7,3032047,"原子力基礎工学研究センター 分離変換技術開発U "]
[7,3032016,"原子力基礎工学研究センター 分離変換技術開発U 分離変換サイクル開発Gr"]
[7,3025000,"原子力エネルギー基盤連携センター  "]
[7,3025004,"原子力エネルギー基盤連携センター  黒鉛・炭素材料挙動評価特別Gr"]
[7,3025006,"原子力エネルギー基盤連携センター  高温ガス炉要素技術開発特別Gr"]
[7,3025010,"原子力エネルギー基盤連携センター  水素安全技術高度化特別Gr"]
[7,3042000,"原子力水素・熱利用研究センター  "]
[7,3042001,"原子力水素・熱利用研究センター  研究推進室"]
[7,3042002,"原子力水素・熱利用研究センター 小型高温ガス炉研究開発U "]
[7,3042003,"原子力水素・熱利用研究センター 小型高温ガス炉研究開発U 原子炉設計Gr"]
[7,3042004,"原子力水素・熱利用研究センター 小型高温ガス炉研究開発U 国際共同試験Gr"]
[7,3042008,"原子力水素・熱利用研究センター 小型高温ガス炉研究開発U 安全設計Gr"]
[7,3042005,"原子力水素・熱利用研究センター 水素利用研究開発U "]
[7,3042006,"原子力水素・熱利用研究センター 水素利用研究開発U ＩＳプロセス信頼性確証試験Gr"]
[7,3042007,"原子力水素・熱利用研究センター 水素利用研究開発U 熱利用システム設計Gr"]
[7,3035000,"次世代高速炉サイクル研究開発センター  "]
[7,3035001,"次世代高速炉サイクル研究開発センター  プロジェクト推進室"]
[7,3035040,"次世代高速炉サイクル研究開発センター  設計・規格基準室"]
[7,3035043,"次世代高速炉サイクル研究開発センター 高速炉計算工学技術開発部 "]
[7,3035014,"次世代高速炉サイクル研究開発センター 高速炉計算工学技術開発部 システム統合Gr"]
[7,3035052,"次世代高速炉サイクル研究開発センター 高速炉計算工学技術開発部 システム安全解析Gr"]
[7,3035053,"次世代高速炉サイクル研究開発センター 高速炉計算工学技術開発部 炉心挙動解析Gr"]
[7,3035054,"次世代高速炉サイクル研究開発センター 高速炉計算工学技術開発部 流動・系統解析Gr"]
[7,3035011,"次世代高速炉サイクル研究開発センター 高速炉安全技術開発部 "]
[7,3035018,"次世代高速炉サイクル研究開発センター 高速炉安全技術開発部 構造・材料信頼性評価技術開発Gr"]
[7,3035051,"次世代高速炉サイクル研究開発センター 高速炉安全技術開発部 炉心安全評価技術開発Gr"]
[7,3035033,"次世代高速炉サイクル研究開発センター 燃料サイクル技術開発部 "]
[7,3035022,"次世代高速炉サイクル研究開発センター 燃料サイクル技術開発部 燃料材料開発Gr"]
[7,3034000,"核融合研究開発部門  "]
[7,3034039,"核融合炉システム研究開発部 "]
[7,3034048,"核融合炉材料研究開発部 "]
[7,3034042,"核融合炉材料研究開発部 IFMIF加速器施設開発Gr"]
[7,3034043,"核融合炉材料研究開発部 IFMIF照射・試験施設開発Gr"]
[7,3034015,"ブランケット研究開発部 "]
[7,3034022,"ブランケット研究開発部 増殖機能材料開発Gr"]
[7,3011000,"敦賀本部 原子力廃止措置研究開発センター  "]
[7,3011001,"敦賀本部 原子力廃止措置研究開発センター 技術開発部 "]
[7,3011002,"敦賀本部 原子力廃止措置研究開発センター 技術開発部 技術開発課"]
[7,3012000,"敦賀本部 レーザー共同研究所  "]
[7,3012002,"敦賀本部 レーザー共同研究所  レーザー応用技術開発室"]
[7,3023000,"敦賀本部 FBR安全技術センター  "]
[7,3023004,"敦賀本部 FBR安全技術センター  シビアアクシデント評価Gr"]
[7,3064000,"役員室 "]
[8,4000000,"（敦賀拠点）   "]
[8,4024000,"もんじゅ安全・改革本部 "]
[8,4024001,"もんじゅ安全・改革本部 もんじゅ安全・改革室"]
[8,4062000,"高速炉研究開発部門  "]
[8,4062001,"高速炉研究開発部門  企画調整室"]
[8,4000000,"敦賀事業本部  "]
[8,4002000,"安全品質推進室 "]
[8,4003000,"業務管理部 "]
[8,4003001,"業務管理部 総務・共生課"]
[8,4003009,"業務管理部 福井共生室"]
[8,4003002,"業務管理部 広報課"]
[8,4003004,"業務管理部 労務課"]
[8,4003005,"業務管理部 経理課"]
[8,4003006,"業務管理部 調達課"]
[8,4004000,"高速増殖炉研究開発センター  "]
[8,4004004,"高速増殖炉研究開発センター  危機管理室"]
[8,4004003,"高速増殖炉研究開発センター  管理課"]
[8,4021000,"技術部 "]
[8,4021001,"技術部 技術課"]
[8,4022000,"プラント管理部 "]
[8,4022001,"プラント管理部 安全管理課"]
[8,4022002,"プラント管理部 発電課"]
[8,4005000,"プラント保全部 "]
[8,4005010,"プラント保全部 電気保修課"]
[8,4005011,"プラント保全部 施設保全課"]
[8,4005007,"プラント保全部 燃料環境課"]
[8,4007000,"国際産学連携センター  "]
[8,4007001,"国際産学連携センター  国際協力室"]
[8,4007005,"国際産学連携センター  産学連携推進室"]
[8,4033000,"量子ビーム応用研究センター  "]
[8,4033071,"量子ビーム応用研究センター レーザー共同研究所 "]
[8,4033072,"量子ビーム応用研究センター レーザー共同研究所 レーザー技術利用推進室"]
[8,4033073,"量子ビーム応用研究センター レーザー共同研究所 レーザー応用技術開発室"]
[8,4042000,"高速増殖原型炉もんじゅ  "]
[8,4042001,"高速増殖原型炉もんじゅ  品質保証室"]
[8,4043000,"高速増殖原型炉もんじゅ 運営管理部 "]
[8,4043001,"高速増殖原型炉もんじゅ 運営管理部 技術総括課"]
[8,4043002,"高速増殖原型炉もんじゅ 運営管理部 管理課"]
[8,4043003,"高速増殖原型炉もんじゅ 運営管理部 危機管理課"]
[8,4044000,"高速増殖原型炉もんじゅ プラント管理部 "]
[8,4044001,"高速増殖原型炉もんじゅ プラント管理部 安全管理課"]
[8,4044002,"高速増殖原型炉もんじゅ プラント管理部 炉心・燃料課"]
[8,4044003,"高速増殖原型炉もんじゅ プラント管理部 発電課"]
[8,4045000,"高速増殖原型炉もんじゅ プラント保全部 "]
[8,4045001,"高速増殖原型炉もんじゅ プラント保全部 保全管理課"]
[8,4045002,"高速増殖原型炉もんじゅ プラント保全部 保全計画課"]
[8,4045003,"高速増殖原型炉もんじゅ プラント保全部 機械保修課"]
[8,4045004,"高速増殖原型炉もんじゅ プラント保全部 電気保修課"]
[8,4045005,"高速増殖原型炉もんじゅ プラント保全部 施設保全課"]
[8,4045006,"高速増殖原型炉もんじゅ プラント保全部 燃料環境課"]
[8,4026000,"もんじゅ運営計画・研究開発センター  "]
[8,4027000,"もんじゅ運営計画・研究開発センター 計画管理部 "]
[8,4027001,"もんじゅ運営計画・研究開発センター 計画管理部 計画管理課"]
[8,4027002,"もんじゅ運営計画・研究開発センター 計画管理部 技術管理課"]
[8,4027003,"もんじゅ運営計画・研究開発センター 計画管理部 品質保証課"]
[8,4027004,"もんじゅ運営計画・研究開発センター 計画管理部 安全技術課"]
[8,4027005,"もんじゅ運営計画・研究開発センター 計画管理部 環境監視課"]
[8,4028000,"もんじゅ運営計画・研究開発センター プラント安全評価部 "]
[8,4028001,"もんじゅ運営計画・研究開発センター プラント安全評価部 プラント安全評価Gr"]
[8,4028002,"もんじゅ運営計画・研究開発センター プラント安全評価部 ナトリウム安全・格納容器評価Gr"]
[8,4028003,"もんじゅ運営計画・研究開発センター プラント安全評価部 炉心・燃料特性評価Gr"]
[8,4029000,"もんじゅ運営計画・研究開発センター プラント技術支援部 "]
[8,4029001,"もんじゅ運営計画・研究開発センター プラント技術支援部 運転技術支援課"]
[8,4029002,"もんじゅ運営計画・研究開発センター プラント技術支援部 保全技術開発Gr"]
[8,4029003,"もんじゅ運営計画・研究開発センター プラント技術支援部 耐震・構造評価Gr"]
[8,4029004,"もんじゅ運営計画・研究開発センター プラント技術支援部 自然現象評価Gr"]
[8,4006000,"原子力廃止措置研究開発センター  "]
[8,4006008,"原子力廃止措置研究開発センター  計画管理課"]
[8,4006001,"原子力廃止措置研究開発センター  管理課"]
[8,4006004,"原子力廃止措置研究開発センター  安全品質管理課"]
[8,4006002,"原子力廃止措置研究開発センター  環境管理課"]
[8,4008000,"技術開発部 "]
[8,4008002,"技術開発部 技術開発課"]
[8,4008003,"技術開発部 設備保全課"]
[8,4008004,"技術開発部 開発実証課"]
[8,4008005,"技術開発部 技術調査課"]
[8,4058000,"人事部 "]
[8,4009001,"大洗研究開発センター 計画管理室 "]
[8,4050000,"研究連携成果展開部 "]
[8,4061000,"建設部 "]
[8,4061003,"建設部 建設課"]
[8,4055000,"原子力人材育成センター "]
[8,4055001,"原子力人材育成センター 原子力人材育成推進課"]
[8,4087000,"大洗研究開発センター 福島燃料材料試験部  "]
[8,4087001,"大洗研究開発センター 福島燃料材料試験部  集合体試験課"]
[8,4087002,"大洗研究開発センター 福島燃料材料試験部  燃料試験課"]
[8,4087003,"大洗研究開発センター 福島燃料材料試験部  材料試験課"]
[8,4030000,"安全研究センター  "]
[8,4030001,"安全研究センター  研究計画調整室"]
[8,4018000,"原子力緊急時支援・研修センター "]
[8,4018001,"原子力緊急時支援・研修センター 福井支所"]
[8,4032000,"原子力基礎工学研究センター  "]
[8,4032014,"原子力基礎工学研究センター 燃料・材料工学U "]
[8,4032020,"原子力基礎工学研究センター 燃料・材料工学U 照射材料工学研究Gr"]
[8,4084000,"原子力科学研究所 保安管理部  "]
[8,4084003,"原子力科学研究所 保安管理部  施設安全課"]
[8,4035000,"次世代高速炉サイクル研究開発センター  "]
[8,4035001,"次世代高速炉サイクル研究開発センター  プロジェクト推進室"]
[8,4020000,"大洗研究開発センター 高速炉技術開発部  "]
[8,4020004,"大洗研究開発センター 高速炉技術開発部  熱流体技術開発課"]
[8,4082000,"大洗研究開発センター 高速実験炉部  "]
[8,4082001,"大洗研究開発センター 高速実験炉部  高速炉技術課"]
[8,4082002,"大洗研究開発センター 高速実験炉部  高速炉第1課"]
[8,4082003,"大洗研究開発センター 高速実験炉部  高速炉第2課"]
[8,4038000,"バックエンド研究開発部門  "]
[8,4038001,"バックエンド研究開発部門  企画調整室"]
[8,4040000,"廃棄物対策・埋設事業統括部 "]
[8,4040004,"廃棄物対策・埋設事業統括部 廃止措置計画課"]
[8,4015000,"核サ研) 再処理技術開発センター  "]
[8,4015002,"核サ研) 再処理技術開発センター  品質保証課"]
[8,4037013,"地層科学研究部  "]
[8,4037016,"地層科学研究部  ネオテクトニクス研究Gr"]
[8,4088000,"大洗研究開発センター 環境保全部  "]
[8,4088002,"大洗研究開発センター 環境保全部  環境技術課"]
[8,4064000,"役員室 "]
[9,5000000,"(那珂拠点)   "]
[9,5001000,"核融合研究開発部門 管理部 "]
[9,5001004,"核融合研究開発部門 管理部 保安管理課"]
[9,5001001,"核融合研究開発部門 管理部 総務課"]
[9,5001002,"核融合研究開発部門 管理部 経理課"]
[9,5001003,"核融合研究開発部門 管理部 工務課"]
[9,5058000,"人事部 "]
[9,5058004,"人事部 職員課"]
[9,5051000,"建設部 "]
[9,5051001,"建設部 業務課"]
[9,5051002,"建設部 施設技術課"]
[9,5051003,"建設部 建設課"]
[9,5051004,"建設部 設備課"]
[9,5051007,"建設部 耐震対応整備室"]
[9,5050000,"研究連携成果展開部 "]
[9,5053000,"システム計算科学センター "]
[9,5053003,"システム計算科学センター 情報システム管理室"]
[9,5055000,"原子力人材育成センター "]
[9,5055001,"原子力人材育成センター 原子力人材育成推進課"]
[9,5006000,"大洗研究開発センター 材料試験炉部  "]
[9,5034000,"核融合研究開発部門  "]
[9,5034001,"核融合研究開発部門  企画調整室"]
[9,5034002,"ITERプロジェクト部 "]
[9,5034027,"ITERプロジェクト部 ITER計画管理Gr"]
[9,5034028,"ITERプロジェクト部 ITER統合支援Gr"]
[9,5034029,"ITERプロジェクト部 ITERトカマク本体開発Gr"]
[9,5034045,"ITERプロジェクト部 超伝導コイル開発Gr"]
[9,5034046,"ITERプロジェクト部 超伝導導体開発Gr"]
[9,5034047,"ITERプロジェクト部 超伝導コイル試験Gr"]
[9,5034035,"ITERプロジェクト部 計測開発Gr"]
[9,5034013,"ITERプロジェクト部 RF加熱開発Gr"]
[9,5034014,"ITERプロジェクト部 NB加熱開発Gr"]
[9,5034010,"トカマクシステム技術開発部 "]
[9,5034043,"トカマクシステム技術開発部 JT-60システム統合Gr"]
[9,5034036,"トカマクシステム技術開発部 JT-60マグネットシステム開発Gr"]
[9,5034012,"トカマクシステム技術開発部 JT-60本体開発Gr"]
[9,5034011,"トカマクシステム技術開発部 JT-60電源・制御開発Gr"]
[9,5034038,"トカマクシステム技術開発部 JT-60安全評価Gr"]
[9,5034003,"先進プラズマ研究部 "]
[9,5034032,"先進プラズマ研究部 先進プラズマ計画調整Gr"]
[9,5034005,"先進プラズマ研究部 先進プラズマモデリングGr"]
[9,5034006,"先進プラズマ研究部 先進プラズマ実験Gr"]
[9,5034039,"核融合炉システム研究開発部 "]
[9,5034041,"核融合炉システム研究開発部 BA計画調整Gr"]
[9,5034008,"核融合炉システム研究開発部 プラズマ理論シミュレーションGr"]
[9,5034009,"核融合炉システム研究開発部 核融合炉システム研究Gr"]
[9,5034048,"核融合炉材料研究開発部 "]
[9,5034042,"核融合炉材料研究開発部 IFMIF加速器施設開発Gr"]
[9,5034044,"核融合炉材料研究開発部 IFMIF照射・試験施設開発Gr"]
[9,5034021,"核融合炉材料研究開発部 核融合炉構造材料開発Gr"]
[9,5034020,"核融合炉材料研究開発部 核融合中性子工学研究Gr"]
[9,5034015,"ブランケット研究開発部 "]
[9,5034016,"ブランケット研究開発部 ブランケット工学研究Gr"]
[9,5034019,"ブランケット研究開発部 トリチウム工学研究Gr"]
[9,5034022,"ブランケット研究開発部 増殖機能材料開発Gr"]
[10,6000000,"（高崎拠点）   "]
[10,6001000,"管理部 "]
[10,6001004,"管理部 保安管理課"]
[10,6001001,"管理部 総務課"]
[10,6001002,"管理部 経理課"]
[10,6001003,"管理部 工務課"]
[10,6002000,"放射線高度利用施設部 "]
[10,6002002,"放射線高度利用施設部 利用計画課"]
[10,6002003,"放射線高度利用施設部 イオン加速器管理課"]
[10,6002004,"放射線高度利用施設部 照射施設管理課"]
[10,6002005,"放射線高度利用施設部 ビーム技術開発課"]
[10,6056000,"事業計画統括部 "]
[10,6056002,"事業計画統括部 評価室"]
[10,6058000,"人事部 "]
[10,6058004,"人事部 職員課"]
[10,6050000,"研究連携成果展開部 "]
[10,6050002,"研究連携成果展開部 連携協力課"]
[10,6050004,"研究連携成果展開部 知的財産管理・利用促進課"]
[10,6061000,"建設部 "]
[10,6061003,"建設部 建設課"]
[10,6061004,"建設部 設備課"]
[10,6055000,"原子力人材育成センター "]
[10,6055001,"原子力人材育成センター 原子力人材育成推進課"]
[10,6043000,"核不拡散・核セキュリティ総合支援センター "]
[10,6043004,"核不拡散・核セキュリティ総合支援センター 技術開発推進室"]
[10,6031000,"先端基礎研究センター "]
[10,6031006,"先端基礎研究センター 分子スピントロニクス研究Gr"]
[10,6031011,"先端基礎研究センター 力学的物質・スピン制御研究Gr"]
[10,6031007,"先端基礎研究センター スピン偏極陽電子ビーム研究Gr"]
[10,6032000,"原子力基礎工学研究センター  "]
[10,6032040,"原子力基礎工学研究センター 原子力化学U "]
[10,6032024,"原子力基礎工学研究センター 原子力化学U 放射化学研究Gr"]
[10,6032047,"原子力基礎工学研究センター 分離変換技術開発U "]
[10,6032016,"原子力基礎工学研究センター 分離変換技術開発U 分離変換サイクル開発Gr"]
[10,6033000,"量子ビーム応用研究センター  "]
[10,6033001,"量子ビーム応用研究センター  研究推進室"]
[10,6033023,"量子ビーム応用研究センター 医療・バイオ応用量子ビーム技術研究U "]
[10,6033024,"量子ビーム応用研究センター 医療・バイオ応用量子ビーム技術研究U イオンビーム変異誘発研究Gr"]
[10,6033025,"量子ビーム応用研究センター 医療・バイオ応用量子ビーム技術研究U マイクロビーム細胞照射研究Gr"]
[10,6033026,"量子ビーム応用研究センター 医療・バイオ応用量子ビーム技術研究U ＲＩ医療応用研究Gr"]
[10,6033063,"量子ビーム応用研究センター 医療・バイオ応用量子ビーム技術研究U ＲＩイメージング研究Gr"]
[10,6033064,"量子ビーム応用研究センター 医療・バイオ応用量子ビーム技術研究U 照射細胞解析研究Gr"]
[10,6033027,"量子ビーム応用研究センター 環境・産業応用量子ビーム技術研究U "]
[10,6033028,"量子ビーム応用研究センター 環境・産業応用量子ビーム技術研究U 高性能高分子材料研究Gr"]
[10,6033029,"量子ビーム応用研究センター 環境・産業応用量子ビーム技術研究U 機能性セラミック材料研究Gr"]
[10,6033030,"量子ビーム応用研究センター 環境・産業応用量子ビーム技術研究U 半導体耐放射線性研究Gr"]
[10,6033031,"量子ビーム応用研究センター 環境・産業応用量子ビーム技術研究U 環境機能高分子材料研究Gr"]
[10,6033032,"量子ビーム応用研究センター 環境・産業応用量子ビーム技術研究U 環境材料プロセシング研究Gr"]
[11,7000000,"（関西拠点）   "]
[11,7001000,"管理部 "]
[11,7001004,"管理部 保安工務課"]
[11,7001001,"管理部 総務課"]
[11,7001002,"管理部 経理課"]
[11,7002000,"プロジェクト推進室 "]
[11,7058000,"人事部 "]
[11,7058004,"人事部 職員課"]
[11,7050000,"研究連携成果展開部 "]
[11,7050002,"研究連携成果展開部 連携協力課"]
[11,7053000,"システム計算科学センター "]
[11,7053002,"システム計算科学センター 情報システム利用推進室"]
[11,7053003,"システム計算科学センター 情報システム管理室"]
[11,7053006,"システム計算科学センター シミュレーション技術開発室"]
[11,7055000,"原子力人材育成センター "]
[11,7055001,"原子力人材育成センター 原子力人材育成推進課"]
[11,7033000,"量子ビーム応用研究センター  "]
[11,7033001,"量子ビーム応用研究センター  研究推進室"]
[11,7033002,"量子ビーム応用研究センター 量子ビーム機能性分子解析技術研究U "]
[11,7033004,"量子ビーム応用研究センター 量子ビーム機能性分子解析技術研究U 分子シミュレーション研究Gr"]
[11,7033005,"量子ビーム応用研究センター 量子ビーム機能性分子解析技術研究U 分子ダイナミクス研究Gr"]
[11,7033006,"量子ビーム応用研究センター 量子ビーム材料評価・構造制御技術研究U "]
[11,7033012,"量子ビーム応用研究センター 量子ビーム材料評価・構造制御技術研究U 　弾塑性材料評価研究Gr"]
[11,7033023,"量子ビーム応用研究センター 医療・バイオ応用量子ビーム技術研究U "]
[11,7033064,"量子ビーム応用研究センター 医療・バイオ応用量子ビーム技術研究U 照射細胞解析研究Gr"]
[11,7033033,"量子ビーム応用研究センター 先進ビーム技術研究U "]
[11,7033036,"量子ビーム応用研究センター 先進ビーム技術研究U レーザー駆動粒子線研究Gr"]
[11,7033037,"量子ビーム応用研究センター 先進ビーム技術研究U レーザー電子加速研究Gr"]
[11,7033034,"量子ビーム応用研究センター 先進ビーム技術研究U Ｘ線レーザー応用研究Gr"]
[11,7033070,"量子ビーム応用研究センター 先進ビーム技術研究U 高出力レーザー研究Gr"]
[11,7033065,"量子ビーム応用研究センター レーザー応用技術研究U "]
[11,7033035,"量子ビーム応用研究センター レーザー応用技術研究U 高強度場物質制御研究Gr"]
[11,7033066,"量子ビーム応用研究センター レーザー応用技術研究U レーザー量子制御研究Gr"]
[11,7033060,"量子ビーム応用研究センター レーザー応用技術研究U 光量子融合研究Gr"]
[11,7033043,"量子ビーム応用研究センター レーザー応用技術研究U ガンマ線核種分析研究Gr"]
[11,7033059,"量子ビーム応用研究センター レーザー応用技術研究U 次世代レーザー開発研究Gr"]
[11,7033044,"量子ビーム応用研究センター 量子ビーム物性制御・解析技術研究U "]
[11,7033048,"量子ビーム応用研究センター 量子ビーム物性制御・解析技術研究U 高密度物質研究Gr"]
[11,7033046,"量子ビーム応用研究センター 量子ビーム物性制御・解析技術研究U 量子構造研究Gr"]
[11,7033051,"量子ビーム応用研究センター 量子ビーム物性制御・解析技術研究U 電子構造研究Gr"]
[11,7033052,"量子ビーム応用研究センター 量子ビーム物性制御・解析技術研究U 量子シミュレーション研究Gr"]
[11,7033067,"量子ビーム応用研究センター 量子ビーム物性制御・解析技術研究U コヒーレントＸ線利用研究Gr"]
[11,7033068,"量子ビーム応用研究センター 量子ビーム反応制御・解析技術研究U "]
[11,7033049,"量子ビーム応用研究センター 量子ビーム反応制御・解析技術研究U アクチノイド錯体化学研究Gr"]
[11,7033047,"量子ビーム応用研究センター 量子ビーム反応制御・解析技術研究U 量子ダイナミクス研究Gr"]
[11,7033050,"量子ビーム応用研究センター 量子ビーム反応制御・解析技術研究U 表面反応ダイナミクス研究Gr"]
[11,7064000,"役員室 "]
[12,8000000,"（幌延拠点）   "]
[12,8000001," 保安・建設課"]
[12,8000002," 総務・共生課"]
[12,8000003," 経理課"]
[12,8037010,"深地層研究部 "]
[12,8037018,"深地層研究部 研究計画調整Gr"]
[12,8037011,"深地層研究部 堆積岩処分技術開発Gr"]
[12,8037012,"深地層研究部 堆積岩地質環境研究Gr"]
[12,8058000,"人事部 "]
[12,8061000,"建設部 "]
[12,8061003,"建設部 建設課"]
[12,8061004,"建設部 設備課"]
[12,8055000,"原子力人材育成センター "]
[12,8055001,"原子力人材育成センター 原子力人材育成推進課"]
[12,8030000,"安全研究センター  "]
[12,8030008,"安全研究センター  サイクル安全研究Gr"]
[12,8030009,"安全研究センター  廃棄物安全研究Gr"]
[12,8046000,"核サ研 環境技術開発センター  "]
[12,8047000,"基盤技術研究開発部 "]
[12,8047002,"基盤技術研究開発部 ニアフィールド研究Gr"]
[13,9000000,"（東濃拠点）   "]
[13,9000001," 保安管理課"]
[13,9000002," 総務・共生課"]
[13,9000004," 経理課"]
[13,9000005," 鉱山措置課"]
[13,9000006," 施設建設課"]
[13,9038000,"地層科学研究部 "]
[13,9038001,"地層科学研究部 結晶質岩工学技術開発Gr"]
[13,9038002,"地層科学研究部 結晶質岩地質環境研究Gr"]
[13,9038003,"地層科学研究部 ネオテクトニクス研究Gr"]
[13,9058000,"人事部 "]
[13,9061000,"建設部 "]
[13,9061003,"建設部 建設課"]
[13,9052000,"研究技術情報部 "]
[13,9055000,"原子力人材育成センター "]
[13,9055001,"原子力人材育成センター 原子力人材育成推進課"]
[13,9037000,"地層処分研究開発推進部 "]
[13,9037001,"地層処分研究開発推進部 処分システム研究計画推進課"]
[14,10000000,"（人形峠拠点）   "]
[14,10000001," 安全管理課"]
[14,10000002," 計画管理室"]
[14,10000003," 総務課"]
[14,10000004," 経理課"]
[14,10001000,"環境保全技術開発部 "]
[14,10001008,"環境保全技術開発部 施設管理課"]
[14,10001009,"環境保全技術開発部 設備処理課"]
[14,10001010,"環境保全技術開発部 研究開発推進課"]
[14,10001011,"環境保全技術開発部 処理技術開発課"]
[14,10001012,"環境保全技術開発部 環境技術開発課"]
[14,10058000,"人事部 "]
[14,10061000,"建設部 "]
[14,10061003,"建設部 建設課"]
[14,10061004,"建設部 設備課"]
[14,10052000,"研究技術情報部 "]
[14,10050000,"研究連携成果展開部 "]
[14,10055000,"原子力人材育成センター "]
[14,10055001,"原子力人材育成センター 原子力人材育成推進課"]
[14,10064000,"役員室 "]
[15,11000000,"（青森拠点）   "]
[15,11001000,"管理部 "]
[15,11001001,"管理部 総務課"]
[15,11001004,"管理部 経理課"]
[15,11001002,"管理部 工務課"]
[15,11002000,"むつ事務所 "]
[15,11002004,"むつ事務所 保安管理課"]
[15,11002001,"むつ事務所 施設管理課"]
[15,11002003,"むつ事務所 AMS管理課"]
[15,11021001,"サイクル協力室 "]
[15,11058000,"人事部 "]
[15,11055000,"原子力人材育成センター "]
[15,11055001,"原子力人材育成センター 原子力人材育成推進課"]
[15,11032000,"原子力基礎工学研究センター  "]
[15,11032022,"原子力基礎工学研究センター 環境・放射線科学U "]
[15,11032023,"原子力基礎工学研究センター 環境・放射線科学U 環境動態研究Gr"]
[15,11016000,"核サ研) 再処理技術開発センター 技術部  "]
[15,11034000,"核融合研究開発部門  "]
[15,11034001,"核融合研究開発部門  企画調整室"]
[15,11034003,"核融合研究開発部門 先進プラズマ研究部 "]
[15,11034050,"六ヶ所核融合研究所  "]
[15,11034039,"核融合炉システム研究開発部 "]
[15,11034041,"核融合炉システム研究開発部 BA計画調整Gr"]
[15,11034008,"核融合炉システム研究開発部 プラズマ理論シミュレーションGr"]
[15,11034009,"核融合炉システム研究開発部 核融合炉システム研究Gr"]
[15,11034048,"核融合炉材料研究開発部 "]
[15,11034042,"核融合炉材料研究開発部 IFMIF加速器施設開発Gr"]
[15,11034043,"核融合炉材料研究開発部 IFMIF照射・試験施設開発Gr"]
[15,11034033,"核融合炉材料研究開発部 核融合炉構造材料開発Gr"]
[15,11034015,"ブランケット研究開発部 "]
[15,11034019,"ブランケット研究開発部 トリチウム工学研究Gr"]
[15,11034022,"ブランケット研究開発部 増殖機能材料開発Gr"]
[15,11064000,"役員室 "]